Workbook

Sheet START
A1: =muni -> LIM476 Tubatse Fetakgomo

Sheet Instructions
D2: 2020
X4: Yes
X5: No
W7: Type of Entities Range: | X7: Parent Municipality
X8: Consolidated Information
W10: Date linked | X10: 9
W11: Date | X11: =VLOOKUP(X10,W39:X55,2) -> M09 March | Y11: 2013-08-01
W19: MTREF Range: | X19: 2008
X20: 2009
X21: 2010
X22: 2011
X23: 2012
X24: 2013
X25: 2014
X26: 2015
X27: 2016
X28: 2017
X29: 2018
X30: 2019
X31: 2020
X32: 2021
X33: 2022
W34: MTREF Linked:
W35: MTREF: | X35: 13
X36: =INDEX(X19:X33,X35,1) -> 2020
W37: Fin Year:
X38: =MTREF&"/"&RIGHT(MTREF,2)+1 -> 2020/21
V39: Date/type of report | W39: 1 | X39: M01 July
W40: 2 | X40: M02 August
W41: 3 | X41: M03 September
W42: 4 | X42: M04 October
W43: 5 | X43: M05 November
W44: 6 | X44: M06 December
W45: 7 | X45: M07 January
W46: 8 | X46: M08 February
W47: 9 | X47: M09 March
W48: 10 | X48: M10 April
W49: 11 | X49: M11 May
W50: 12 | X50: M12 June
W51: 13 | X51: Q1 First Quarter
W52: 14 | X52: Q2 Second Quarter
W53: 15 | X53: Q3 Third Quarter
W54: 16 | X54: Q4 Fourth Quarter
W55: 17 | X55: Mid-Year Assessment

Sheet Template names (hidden)
A1: Common sheet headings
A2: Head1 | B2: =HLOOKUP(MTREF,Headings,2) -> 2019/20 | C2: Prior year -1
A3: Head2 | B3: =HLOOKUP(MTREF,Headings,5) -> Budget Year 2020/21 | C3: Year of approved budget
A4: Head2A | B4: =HLOOKUP(MTREF,Headings,4) -> 2020/21 | C4: Approved budget year
A5: Head3 | B5: =HLOOKUP(MTREF,Headings,3) -> 2020/21 Medium Term Revenue & Expenditure Framework | C5: MTREF header name
A6: Head5 | B6: Audited Outcome
A7: Head5A | B7: Outcome
A8: Head5B | B8: Pre-audit outcome
A9: Head6 | B9: Original Budget
A10: Head7 | B10: Adjusted Budget
A11: Head8 | B11: Full Year Forecast
A12: Head9 | B12: =HLOOKUP(MTREF,Headings,5) -> Budget Year 2020/21 | C12: 1st year of MTREF | D12: Year1
A13: Head10 | B13: =HLOOKUP(MTREF,Headings,6) -> Budget Year +1 2021/22 | C13: 2nd year of MTREF | D13: Year2
A14: Head11 | B14: =HLOOKUP(MTREF,Headings,7) -> Budget Year +2 2022/23 | C14: 3rd year of MTREF | D14: Year3
A15: Head12 | B15: Forecast 2010/11 | D15: Year4
A16: Head13 | B16: Forecast 2011/12 | D16: Year5
A17: Head14 | B17: Forecast 2012/13 | D17: Year6
A18: Head15 | B18: Forecast 2013/14 | D18: Year7
A19: Head16 | B19: Forecast 2014/15 | D19: Year8
A20: Head17 | B20: Forecast 2015/16 | D20: Year9
A21: Head18 | B21: Forecast 2016/17 | D21: Year10
A22: Head19 | B22: Forecast 2017/18 | D22: Year11
A23: Head20 | B23: Forecast 2018/19 | D23: Year12
A24: Head21 | B24: Forecast 2019/20 | D24: Year13
A25: Head22 | B25: Forecast 2020/21 | D25: Year14
A26: Head23 | B26: Forecast 2021/22 | D26: Year15
A27: Head24 | B27: Description | D27: Desc
A28: Head25 | B28: Schedule of funding diligence | D28: fdil
A29: Head26 | B29: Vote Description | D29: VDesc
A30: Head27 | B30: Ref
A31: Head27a | B31: References
A32: Head28 | B32: Surplus/ (Deficit) for the year | D32: Result
A33: Head29 | B33: Annual target 2007/08
A34: Head30 | B34: Revised target 2007/08
A35: Head31 | B35: Quarter ended 30 September
A36: Head32 | B36: Quarter ended 31 December
A37: Head33 | B37: Quarter ended 31 March
A38: Head34 | B38: Quarter ended 30 June
A39: Head35 | B39: Variance explanation
A40: Head36 | B40: YTD Actual 31 Dec
A41: Head37 | B41: YTD Budget 31 Dec
A42: Head38 | B42: Monthly actual
A43: Head39 | B43: YearTD actual
A44: Head40 | B44: YearTD budget
A45: Head41 | B45: YTD variance
A46: Head42 | B46: Surplus/ (Deficit) for the yr/period
A47: Head43 | B47: =Head3&" Summary" -> 2020/21 Medium Term Revenue & Expenditure Framework Summary
A48: Head44 | B48: 1996 Census
A49: Head45 | B49: 2001 Census
A50: Head46 | B50: - Adjustments Budget - Month YYYY
A51: Head47 | B51: Previous target year to complete
A52: Head48 | B52: Present value
A53: Head49 | B53: Virement
A54: Head50 | B54: Other Adjusts.
A55: Head51 | B55: Accum. Funds
A56: Head52 | B56: Multi-year capital
A57: Head53 | B57: Unfore. Unavoid.
A58: Head54 | B58: Prior Adjusted
A59: Head55 | B59: Nat. or Prov. Govt
A60: Head56 | B60: Total Adjusts.
A61: Head57 | B61: =date -> M09 March
A62: Head58 | B62: Parent muni.
A63: Head59 | B63: Downward adjusts
A64: Head60 | B64: Month | C64: Report header part name | D64: =MONTH(date) -> 
A65: SFPerf1 | B65: Budgeted Financial Performance
A66: SFPerf2 | B66: Forecast Financial Performance
A67: SFPos1 | B67: Budgeted Financial Position
A68: SFPos2 | B68: Forecast Financial Position
A69: Cash1 | B69: Budget Cash Flow
A70: Cash2 | B70: Forecast Cash Flow
A71: RandM | B71: Expenditure includes repairs & maintenance of R'000
A72: Standard nomenclature
A73: Muni | B73: ='Lookup and lists'!B27 -> LIM476 Tubatse Fetakgomo
A74: Municipal Entities | B74: 2 | C74: Type of report: | D74: 1
A75: =IF((MuniEntities=1)*(MuniType=2),"YES","NO") -> NO | B75: Does this municipality have entities (consolidated budget and entity budgets required)? YES/NO
A76: s71 (Monthly Mayor report) schedules and charts
A77: S71sum | B77: =IF(Consolques="YES",E77,F77) -> Table C1 Monthly Budget Statement Summary | D77: Table C1 | E77: =D77&"Consolidated Monthly Budget Statement Summary" -> Table C1 Consolidated Monthly Budget Statement Summary | F77: =D77&"Monthly Budget Statement Summary" -> Table C1 Monthly Budget Statement Summary
A78: S71C | B78: Table C3 Monthly Budget Statement - Financial Performance (revenue and expenditure by municipal vote) | D78: Table C3 | E78: =D78&"Consolidated Monthly Budget Statement - Financial Performance (revenue and expenditure by municipal vote) " -> Table C3 Consolidated Monthly Budget Statement - Financial Performance (revenue and expenditure by municipal vote) | F78: =D78&"Monthly Budget Statement - Financial Performance (revenue and expenditure by municipal vote)" -> Table C3 Monthly Budget Statement - Financial Performance (revenue and expenditure by municipal vote)
A79: S71A | B79: =IF(Consolques="YES",E79,F79) -> Table C2 Monthly Budget Statement - Financial Performance (functional classification) | D79: Table C2 | E79: =D79&"Consolidated Monthly Budget Statement - Financial Performance (functional classification) " -> Table C2 Consolidated Monthly Budget Statement - Financial Performance (functional classification) | F79: =D79&"Monthly Budget Statement - Financial Performance (functional classification)" -> Table C2 Monthly Budget Statement - Financial Performance (functional classification)
A80: S71B | B80: =IF(Consolques="YES",E80,F80) -> Table C4 Monthly Budget Statement - Financial Performance (revenue and expenditure) | D80: Table C4 | E80: =D80&"Consolidated Monthly Budget Statement - Financial Performance (revenue and expenditure) " -> Table C4 Consolidated Monthly Budget Statement - Financial Performance (revenue and expenditure) | F80: =D80&"Monthly Budget Statement - Financial Performance (revenue and expenditure)" -> Table C4 Monthly Budget Statement - Financial Performance (revenue and expenditure)
A81: S71D | B81: =IF(Consolques="YES",E81,F81) -> Table C5 Monthly Budget Statement - Capital Expenditure (municipal vote, functional classification and funding) | D81: Table C5 | E81: =D81&"Consolidated Monthly Budget Statement - Capital Expenditure (municipal vote, functional classification and funding " -> Table C5 Consolidated Monthly Budget Statement - Capital Expenditure (municipal vote, functional classification and funding | F81: =D81&"Monthly Budget Statement - Capital Expenditure (municipal vote, functional classification and funding)" -> Table C5 Monthly Budget Statement - Capital Expenditure (municipal vote, functional classification and funding)
A82: S71E | B82: Table C6 Monthly Budget Statement - Financial Position | D82: Table C6 | E82: =D82&"Consolidated Monthly Budget Statement - Financial Position " -> Table C6 Consolidated Monthly Budget Statement - Financial Position | F82: =D82&"Monthly Budget Statement - Financial Position" -> Table C6 Monthly Budget Statement - Financial Position
A83: S71F | B83: Table C7 Monthly Budget Statement - Cash Flow | D83: Table C7 | E83: =D83&"Consolidated Monthly Budget Statement - Cash Flow " -> Table C7 Consolidated Monthly Budget Statement - Cash Flow | F83: =D83&"Monthly Budget Statement - Cash Flow " -> Table C7 Monthly Budget Statement - Cash Flow
A84: S71G | B84: =D84&"Material variance explanations " -> Supporting Table SC1 Material variance explanations | D84: Supporting Table SC1
A85: S71H | B85: =D85&"Monthly Budget Statement - performance indicators " -> Supporting Table SC2 Monthly Budget Statement - performance indicators | D85: Supporting Table SC2
A86: S71I | B86: =D86&"Monthly Budget Statement - aged debtors" -> Supporting Table SC3 Monthly Budget Statement - aged debtors | D86: Supporting Table SC3
A87: S71J | B87: =D87&"Monthly Budget Statement - aged creditors " -> Supporting Table SC4 Monthly Budget Statement - aged creditors | D87: Supporting Table SC4
A88: S71K | B88: =D88&"Monthly Budget Statement - investment portfolio " -> Supporting Table SC5 Monthly Budget Statement - investment portfolio | D88: Supporting Table SC5
A89: S71L | B89: =D89&"Monthly Budget Statement - transfers and grant receipts " -> Supporting Table SC6 Monthly Budget Statement - transfers and grant receipts | D89: Supporting Table SC6
A90: S71M | B90: =D90&" Monthly Budget Statement - transfers and grant expenditure " -> Supporting Table SC7(1) Monthly Budget Statement - transfers and grant expenditure | D90: Supporting Table SC7(1)
A91: S71N | B91: =D91&"Monthly Budget Statement - councillor and staff benefits " -> Supporting Table SC8 Monthly Budget Statement - councillor and staff benefits | D91: Supporting Table SC8
A92: S71O | B92: =D92&"Monthly Budget Statement - actuals and revised targets for cash receipts" -> Supporting Table SC9 Monthly Budget Statement - actuals and revised targets for cash receipts | D92: Supporting Table SC9
A93: S71P | B93: =IF(Consolques="YES",E93,F93) -> NOT REQUIRED - municipality does not have entities or this is the parent municipality's budget | D93: Supporting Table SC10 | E93: =D93&"Monthly Budget Statement - Parent Municipality Financial Performance (revenue and expenditure) " -> Supporting Table SC10 Monthly Budget Statement - Parent Municipality Financial Performance (revenue and expenditure) | F93: NOT REQUIRED - municipality does not have entities or this is the parent municipality's budget
A94: S71Q | B94: NOT REQUIRED - municipality does not have entities or this is the parent municipality's budget | D94: Supporting Table SC11 | E94: =D94&"Monthly Budget Statement - summary of municipal entities" -> Supporting Table SC11 Monthly Budget Statement - summary of municipal entities | F94: NOT REQUIRED - municipality does not have entities or this is the parent municipality's budget
A95: S71R | B95: Supporting Table SC12 Monthly Budget Statement - capital expenditure trend | D95: Supporting Table SC12 | E95: =D95&"Consolidated Monthly Budget Statement - capital expenditure trend " -> Supporting Table SC12 Consolidated Monthly Budget Statement - capital expenditure trend | F95: =D95&"Monthly Budget Statement - capital expenditure trend" -> Supporting Table SC12 Monthly Budget Statement - capital expenditure trend
A96: S71Sa | B96: Supporting Table SC13a Monthly Budget Statement - capital expenditure on new assets by asset class | D96: Supporting Table SC13a | E96: =D96&"Consolidated Monthly Budget Statement - capital expenditure on new assets by asset class" -> Supporting Table SC13a Consolidated Monthly Budget Statement - capital expenditure on new assets by asset class | F96: =D96&"Monthly Budget Statement - capital expenditure on new assets by asset class" -> Supporting Table SC13a Monthly Budget Statement - capital expenditure on new assets by asset class
A97: S71Sb | B97: Supporting Table SC13b Monthly Budget Statement - capital expenditure on renewal of existing assets by asset class | D97: Supporting Table SC13b | E97: =D97&"Consolidated Monthly Budget Statement - capital expenditure on renewal of existing assets by asset class" -> Supporting Table SC13b Consolidated Monthly Budget Statement - capital expenditure on renewal of existing assets by asset class | F97: =D97&"Monthly Budget Statement - capital expenditure on renewal of existing assets by asset class" -> Supporting Table SC13b Monthly Budget Statement - capital expenditure on renewal of existing assets by asset class
A98: S71Sc | B98: Supporting Table SC13c Monthly Budget Statement - expenditure on repairs and maintenance by asset class | D98: Supporting Table SC13c | E98: =D98&"Consolidated Monthly Budget Statement - expenditure on repairs and maintenance by asset class" -> Supporting Table SC13c Consolidated Monthly Budget Statement - expenditure on repairs and maintenance by asset class | F98: =D98&"Monthly Budget Statement - expenditure on repairs and maintenance by asset class" -> Supporting Table SC13c Monthly Budget Statement - expenditure on repairs and maintenance by asset class
A99: S71Sd | B99: Supporting Table SC13d Monthly Budget Statement - depreciation by asset class | D99: Supporting Table SC13d | E99: =D99&"Consolidated Monthly Budget Statement - depreciation by asset class" -> Supporting Table SC13d Consolidated Monthly Budget Statement - depreciation by asset class | F99: =D99&"Monthly Budget Statement - depreciation by asset class" -> Supporting Table SC13d Monthly Budget Statement - depreciation by asset class
A100: S71Se | B100: =IF(Consolques="YES",E100,F100) -> Supporting Table SC13e Monthly Budget Statement - capital expenditure on upgrading of existing assets by asset class | D100: Supporting Table SC13e | E100: =D100&"Consolidated Monthly Budget Statement - capital expenditure on upgrading of existing assets by asset class" -> Supporting Table SC13e Consolidated Monthly Budget Statement - capital expenditure on upgrading of existing assets by asset class | F100: =D100&"Monthly Budget Statement - capital expenditure on upgrading of existing assets by asset class" -> Supporting Table SC13e Monthly Budget Statement - capital expenditure on upgrading of existing assets by asset class
B101: s71 charts listing
B102: =D102&Head2A&" Capital Expenditure Monthly Trend: actual v target" -> Chart C1 2020/21 Capital Expenditure Monthly Trend: actual v target | D102: Chart C1
B103: =D103&Head2A&" Capital Expenditure: YTD actual v YTD target" -> Chart C2 2020/21 Capital Expenditure: YTD actual v YTD target | D103: Chart C2
B104: =D104&"Aged Consumer Debtors Analysis" -> Chart C3 Aged Consumer Debtors Analysis | D104: Chart C3
B105: =D105&"Consumer Debtors (total by Debtor Customer Category)" -> Chart C4 Consumer Debtors (total by Debtor Customer Category) | D105: Chart C4
B106: =D106&"Aged Creditors Analysis" -> Chart C5 Aged Creditors Analysis | D106: Chart C5
A107: S71T | B107: =D107&" Monthly Budget Statement - Expenditure against approved rollovers" -> Supporting Table SC7(2) Monthly Budget Statement - Expenditure against approved rollovers | D107: Supporting Table SC7(2)

Sheet Lookup and lists (hidden)
A1: Description | B1: 2007 | C1: 2008 | D1: 2009 | E1: 2010 | F1: 2011 | G1: 2012 | H1: 2013 | I1: 2014 | J1: 2015 | K1: 2016 | L1: 2017 | M1: 2018 | N1: 2019 | O1: 2020 | Q1: Grants: | R1: National - opex | S1: Provincial - opex | T1: National - capex | U1: Provincial - capex | V1: YESNO
A2: ='Template names'!C2 -> Prior year -1 | B2: 2006/07 | C2: 2007/08 | D2: 2008/09 | E2: =E1-1&"/"&RIGHT(E1,2)-0 -> 2009/10 | F2: =F1-1&"/"&RIGHT(F1,2)-0 -> 2010/11 | G2: 2011/12 | H2: 2012/13 | I2: 2013/14 | J2: 2014/15 | K2: 2015/16 | L2: 2016/17 | M2: 2017/18 | N2: 2018/19 | O2: 2019/20 | R2: Local Government Equitable Share | S2: Health subsidy | T2: Municipal Infrastructure Grant (MIG) | U2: Agriculture | V2: Yes
A3: ='Template names'!C5 -> MTREF header name | B3: 2007/08 Medium Term Revenue & Expenditure Framework | C3: 2008/09 Medium Term Revenue & Expenditure Framework | D3: 2009/10 Medium Term Revenue & Expenditure Framework | E3: =E1&"/"&RIGHT(E1,2)+1&" Medium Term Revenue & Expenditure Framework" -> 2010/11 Medium Term Revenue & Expenditure Framework | F3: =F1&"/"&RIGHT(F1,2)+1&" Medium Term Revenue & Expenditure Framework" -> 2011/12 Medium Term Revenue & Expenditure Framework | G3: 2012/13 Medium Term Revenue & Expenditure Framework | H3: 2013/14 Medium Term Revenue & Expenditure Framework | I3: 2014/15 Medium Term Revenue & Expenditure Framework | J3: 2015/16 Medium Term Revenue & Expenditure Framework | K3: 2016/17 Medium Term Revenue & Expenditure Framework | L3: 2017/18 Medium Term Revenue & Expenditure Framework | M3: 2018/19 Medium Term Revenue & Expenditure Framework | N3: 2019/20 Medium Term Revenue & Expenditure Framework | O3: 2020/21 Medium Term Revenue & Expenditure Framework | R3: RSC Levy Replacement | S3: Ambulance subsidy | T3: Public Transport and Systems | U3: Education | V3: No
A4: ='Template names'!C4 -> Approved budget year | B4: 2007/08 | C4: 2008/09 | D4: 2009/10 | E4: =E1&"/"&RIGHT(E1,2)+1 -> 2010/11 | F4: =F1&"/"&RIGHT(F1,2)+1 -> 2011/12 | G4: 2012/13 | H4: 2013/14 | I4: 2014/15 | J4: 2015/16 | K4: 2016/17 | L4: 2017/18 | M4: 2018/19 | N4: 2019/20 | O4: 2020/21 | R4: Finance Management | S4: Housing | T4: Rural Transport Services and Infrastructure | U4: Health
A5: ='Template names'!C12 -> 1st year of MTREF | B5: Budget Year 2007/08 | C5: Budget Year 2008/09 | D5: Budget Year 2009/10 | E5: ="Budget Year "&E1&"/"&RIGHT(E1,2)+1 -> Budget Year 2010/11 | F5: ="Budget Year "&F1&"/"&RIGHT(F1,2)+1 -> Budget Year 2011/12 | G5: Budget Year 2012/13 | H5: Budget Year 2013/14 | I5: Budget Year 2014/15 | J5: Budget Year 2015/16 | K5: Budget Year 2016/17 | L5: Budget Year 2017/18 | M5: Budget Year 2018/19 | N5: Budget Year 2019/20 | O5: Budget Year 2020/21 | R5: Municipal Systems Improvement | S5: Sport and Recreation | T5: Regional Bulk Infrastructure | U5: Housing and Local Government
A6: ='Template names'!C13 -> 2nd year of MTREF | B6: Budget Year +1 2008/09 | C6: Budget Year +1 2009/10 | D6: Budget Year +1 2010/11 | E6: ="Budget Year +1 "&E1+1&"/"&RIGHT(E1,2)+2 -> Budget Year +1 2011/12 | F6: ="Budget Year +1 "&F1+1&"/"&RIGHT(F1,2)+2 -> Budget Year +1 2012/13 | G6: Budget Year +1 2013/14 | H6: Budget Year +1 2014/15 | I6: Budget Year +1 2015/16 | J6: Budget Year +1 2016/17 | K6: Budget Year +1 2017/18 | L6: Budget Year +1 2018/19 | M6: Budget Year +1 2019/20 | N6: Budget Year +1 2020/21 | O6: Budget Year +1 2021/22 | R6: Water Services Operating Subsidy | T6: Rural Households Infrastructure | U6: Other Departments
A7: ='Template names'!C14 -> 3rd year of MTREF | B7: Budget Year +2 2009/10 | C7: Budget Year +2 2010/11 | D7: Budget Year +2 2011/12 | E7: ="Budget Year +2 "&E1+2&"/"&RIGHT(E1,2)+3 -> Budget Year +2 2012/13 | F7: ="Budget Year +2 "&F1+2&"/"&RIGHT(F1,2)+3 -> Budget Year +2 2013/14 | G7: Budget Year +2 2014/15 | H7: Budget Year +2 2015/16 | I7: Budget Year +2 2016/17 | J7: Budget Year +2 2017/18 | K7: Budget Year +2 2018/19 | L7: Budget Year +2 2019/20 | M7: Budget Year +2 2020/21 | N7: Budget Year +2 2021/22 | O7: Budget Year +2 2022/23 | R7: Energy Efficiency and Demand Management | T7: Neighbourhood Development Partnership | U7: Public Works, Roads, Transport
A8: NOTE: This sheet should not be directly amended - select headings from sheet 'S' | R8: Integrated National Electrification Programme | T8: 2010 FIFA World Cup Stadiums Development | U8: Sport and Recreation
R9: Municipal Drought Relief
R10: 2010 FIFA World Cup Operating
R11: Electricity Demand Side Management
R12: EPWP Incentive
A26: Name link | B26: 154
A27: Name of Muni | B27: =INDEX(B28:B311,B26,1) -> LIM476 Tubatse Fetakgomo
B28: Choose name from list | C28: Set name on 'Instructions' sheet
B29: BUF Buffalo City | C29: EC EASTERN CAPE
B30: NMA Nelson Mandela Bay | C30: EC EASTERN CAPE
B31: EC101 Dr Beyers Naude | C31: EC EASTERN CAPE
B32: EC102 Blue Crane Route | C32: EC EASTERN CAPE
B33: EC104 Makana | C33: EC EASTERN CAPE
B34: EC105 Ndlambe | C34: EC EASTERN CAPE
B35: EC106 Sundays River Valley | C35: EC EASTERN CAPE
B36: EC108 Kouga | C36: EC EASTERN CAPE
B37: EC109 Kou-Kamma | C37: EC EASTERN CAPE
B38: DC10 Sarah Baartman | C38: EC EASTERN CAPE
B39: EC121 Mbhashe | C39: EC EASTERN CAPE
B40: EC122 Mnquma | C40: EC EASTERN CAPE
B41: EC123 Great Kei | C41: EC EASTERN CAPE
B42: EC124 Amahlathi | C42: EC EASTERN CAPE
B43: EC126 Ngqushwa | C43: EC EASTERN CAPE
B44: EC129 Raymond Mhlaba | C44: EC EASTERN CAPE
B45: DC12 Amathole | C45: EC EASTERN CAPE
B46: EC131 Inxuba Yethemba | C46: EC EASTERN CAPE
B47: EC135 Intsika Yethu | C47: EC EASTERN CAPE
B48: EC136 Emalahleni (Ec) | C48: EC EASTERN CAPE
B49: EC137 Engcobo | C49: EC EASTERN CAPE
B50: EC138 Sakhisizwe | C50: EC EASTERN CAPE
B51: EC139 Enoch Mgijima | C51: EC EASTERN CAPE
B52: DC13 Chris Hani | C52: EC EASTERN CAPE
B53: EC141 Elundini | C53: EC EASTERN CAPE
B54: EC142 Senqu | C54: EC EASTERN CAPE
B55: EC145 Walter Sisulu | C55: EC EASTERN CAPE
B56: DC14 Joe Gqabi | C56: EC EASTERN CAPE
B57: EC153 Ngquza Hills | C57: EC EASTERN CAPE
B58: EC154 Port St Johns | C58: EC EASTERN CAPE
B59: EC155 Nyandeni | C59: EC EASTERN CAPE
B60: EC156 Mhlontlo | C60: EC EASTERN CAPE
B61: EC157 King Sabata Dalindyebo | C61: EC EASTERN CAPE
B62: DC15 O .R. Tambo | C62: EC EASTERN CAPE
B63: EC441 Matatiele | C63: EC EASTERN CAPE
B64: EC442 Umzimvubu | C64: EC EASTERN CAPE
B65: EC443 Mbizana | C65: EC EASTERN CAPE
B66: EC444 Ntabankulu | C66: EC EASTERN CAPE
B67: DC44 Alfred Nzo | C67: EC EASTERN CAPE
B68: MAN Mangaung | C68: FS FREE STATE
B69: FS161 Letsemeng | C69: FS FREE STATE
B70: FS162 Kopanong | C70: FS FREE STATE
B71: FS163 Mohokare | C71: FS FREE STATE
B72: DC16 Xhariep | C72: FS FREE STATE
B73: FS181 Masilonyana | C73: FS FREE STATE
B74: FS182 Tokologo | C74: FS FREE STATE
B75: FS183 Tswelopele | C75: FS FREE STATE
B76: FS184 Matjhabeng | C76: FS FREE STATE
B77: FS185 Nala | C77: FS FREE STATE
B78: DC18 Lejweleputswa | C78: FS FREE STATE
B79: FS191 Setsoto | C79: FS FREE STATE
B80: FS192 Dihlabeng | C80: FS FREE STATE
B81: FS193 Nketoana | C81: FS FREE STATE
B82: FS194 Maluti-a-Phofung | C82: FS FREE STATE
B83: FS195 Phumelela | C83: FS FREE STATE
B84: FS196 Mantsopa | C84: FS FREE STATE
B85: DC19 Thabo Mofutsanyana | C85: FS FREE STATE
B86: FS201 Moqhaka | C86: FS FREE STATE
B87: FS203 Ngwathe | C87: FS FREE STATE
B88: FS204 Metsimaholo | C88: FS FREE STATE
B89: FS205 Mafube | C89: FS FREE STATE
B90: DC20 Fezile Dabi | C90: FS FREE STATE
B91: EKU City of Ekurhuleni | C91: GT GAUTENG
B92: JHB City Of Johannesburg | C92: GT GAUTENG
B93: TSH City Of Tshwane | C93: GT GAUTENG
B94: GT421 Emfuleni | C94: GT GAUTENG
B95: GT422 Midvaal | C95: GT GAUTENG
B96: GT423 Lesedi | C96: GT GAUTENG
B97: DC42 Sedibeng | C97: GT GAUTENG
B98: GT481 Mogale City | C98: GT GAUTENG
B99: GT484 Merafong City | C99: GT GAUTENG
B100: GT485 Rand West City | C100: GT GAUTENG
B101: DC48 West Rand | C101: GT GAUTENG
B102: ETH eThekwini | C102: KZN KWAZULU-NATAL
B103: KZN212 Umdoni | C103: KZN KWAZULU-NATAL
B104: KZN213 Umzumbe | C104: KZN KWAZULU-NATAL
B105: KZN214 uMuziwabantu | C105: KZN KWAZULU-NATAL
B106: KZN216 Ray Nkonyeni | C106: KZN KWAZULU-NATAL
B107: DC21 Ugu | C107: KZN KWAZULU-NATAL
B108: KZN221 uMshwathi | C108: KZN KWAZULU-NATAL
B109: KZN222 uMngeni | C109: KZN KWAZULU-NATAL
B110: KZN223 Mpofana | C110: KZN KWAZULU-NATAL
B111: KZN224 Impendle | C111: KZN KWAZULU-NATAL
B112: KZN225 Msunduzi | C112: KZN KWAZULU-NATAL
B113: KZN226 Mkhambathini | C113: KZN KWAZULU-NATAL
B114: KZN227 Richmond | C114: KZN KWAZULU-NATAL
B115: DC22 uMgungundlovu | C115: KZN KWAZULU-NATAL
B116: KZN235 Okhahlamba | C116: KZN KWAZULU-NATAL
B117: KZN237 Inkosi Langalibalele | C117: KZN KWAZULU-NATAL
B118: KZN238 Alfred Duma | C118: KZN KWAZULU-NATAL
B119: DC23 Uthukela | C119: KZN KWAZULU-NATAL
B120: KZN241 Endumeni | C120: KZN KWAZULU-NATAL
B121: KZN242 Nquthu | C121: KZN KWAZULU-NATAL
B122: KZN244 Msinga | C122: KZN KWAZULU-NATAL
B123: KZN245 Umvoti | C123: KZN KWAZULU-NATAL
B124: DC24 Umzinyathi | C124: KZN KWAZULU-NATAL
B125: KZN252 Newcastle | C125: KZN KWAZULU-NATAL
B126: KZN253 Emadlangeni | C126: KZN KWAZULU-NATAL
B127: KZN254 Dannhauser | C127: KZN KWAZULU-NATAL
B128: DC25 Amajuba | C128: KZN KWAZULU-NATAL
B129: KZN261 eDumbe | C129: KZN KWAZULU-NATAL
B130: KZN262 uPhongolo | C130: KZN KWAZULU-NATAL
B131: KZN263 Abaqulusi | C131: KZN KWAZULU-NATAL
B132: KZN265 Nongoma | C132: KZN KWAZULU-NATAL
B133: KZN266 Ulundi | C133: KZN KWAZULU-NATAL
B134: DC26 Zululand | C134: KZN KWAZULU-NATAL
B135: KZN271 Umhlabuyalingana | C135: KZN KWAZULU-NATAL
B136: KZN272 Jozini | C136: KZN KWAZULU-NATAL
B137: KZN275 Mtubatuba | C137: KZN KWAZULU-NATAL
B138: KZN276 Hlabisa Big Five | C138: KZN KWAZULU-NATAL
B139: DC27 Umkhanyakude | C139: KZN KWAZULU-NATAL
B140: KZN281 Mfolozi | C140: KZN KWAZULU-NATAL
B141: KZN282 uMhlathuze | C141: KZN KWAZULU-NATAL
B142: KZN284 uMlalazi | C142: KZN KWAZULU-NATAL
B143: KZN285 Mthonjaneni | C143: KZN KWAZULU-NATAL
B144: KZN286 Nkandla | C144: KZN KWAZULU-NATAL
B145: DC28 King Cetshwayo | C145: KZN KWAZULU-NATAL
B146: KZN291 Mandeni | C146: KZN KWAZULU-NATAL
B147: KZN292 KwaDukuza | C147: KZN KWAZULU-NATAL
B148: KZN293 Ndwedwe | C148: KZN KWAZULU-NATAL
B149: KZN294 Maphumulo | C149: KZN KWAZULU-NATAL
B150: DC29 iLembe | C150: KZN KWAZULU-NATAL
B151: KZN433 Greater Kokstad | C151: KZN KWAZULU-NATAL
B152: KZN434 Ubuhlebezwe | C152: KZN KWAZULU-NATAL
B153: KZN435 Umzimkhulu | C153: KZN KWAZULU-NATAL
B154: KZN436 Dr Nkosazana Dlamini Zuma | C154: KZN KWAZULU-NATAL
B155: DC43 Harry Gwala | C155: KZN KWAZULU-NATAL
B156: LIM331 Greater Giyani | C156: LIM LIMPOPO
B157: LIM332 Greater Letaba | C157: LIM LIMPOPO
B158: LIM333 Greater Tzaneen | C158: LIM LIMPOPO
B159: LIM334 Ba-Phalaborwa | C159: LIM LIMPOPO
B160: LIM335 Maruleng | C160: LIM LIMPOPO
B161: DC33 Mopani | C161: LIM LIMPOPO
B162: LIM341 Musina | C162: LIM LIMPOPO
B163: LIM343 Thulamela | C163: LIM LIMPOPO
B164: LIM344 Makhado | C164: LIM LIMPOPO
B165: LIM345 Collins Chabane | C165: LIM LIMPOPO
B166: DC34 Vhembe | C166: LIM LIMPOPO
B167: LIM351 Blouberg | C167: LIM LIMPOPO
B168: LIM353 Molemole | C168: LIM LIMPOPO
B169: LIM354 Polokwane | C169: LIM LIMPOPO
B170: LIM355 Lepelle-Nkumpi | C170: LIM LIMPOPO
B171: DC35 Capricorn | C171: LIM LIMPOPO
B172: LIM361 Thabazimbi | C172: LIM LIMPOPO
B173: LIM362 Lephalale | C173: LIM LIMPOPO
B174: LIM366 Bela Bela | C174: LIM LIMPOPO
B175: LIM367 Mogalakwena | C175: LIM LIMPOPO
B176: LIM368 Modimolle-Mookgopong | C176: LIM LIMPOPO
B177: DC36 Waterberg | C177: LIM LIMPOPO
B178: LIM471 Ephraim Mogale | C178: LIM LIMPOPO
B179: LIM472 Elias Motsoaledi | C179: LIM LIMPOPO
B180: LIM473 Makhuduthamaga | C180: LIM LIMPOPO
B181: LIM476 Tubatse Fetakgomo | C181: LIM LIMPOPO
B182: DC47 Sekhukhune | C182: LIM LIMPOPO
B183: MP301 Albert Luthuli | C183: MP MPUMALANGA
B184: MP302 Msukaligwa | C184: MP MPUMALANGA
B185: MP303 Mkhondo | C185: MP MPUMALANGA
B186: MP304 Pixley Ka Seme (MP) | C186: MP MPUMALANGA
B187: MP305 Lekwa | C187: MP MPUMALANGA
B188: MP306 Dipaleseng | C188: MP MPUMALANGA
B189: MP307 Govan Mbeki | C189: MP MPUMALANGA
B190: DC30 Gert Sibande | C190: MP MPUMALANGA
B191: MP311 Victor Khanye | C191: MP MPUMALANGA
B192: MP312 Emalahleni (Mp) | C192: MP MPUMALANGA
B193: MP313 Steve Tshwete | C193: MP MPUMALANGA
B194: MP314 Emakhazeni | C194: MP MPUMALANGA
B195: MP315 Thembisile Hani | C195: MP MPUMALANGA
B196: MP316 Dr J.S. Moroka | C196: MP MPUMALANGA
B197: DC31 Nkangala | C197: MP MPUMALANGA
B198: MP321 Thaba Chweu | C198: MP MPUMALANGA
B199: MP324 Nkomazi | C199: MP MPUMALANGA
B200: MP325 Bushbuckridge | C200: MP MPUMALANGA
B201: MP326 City of Mbombela | C201: MP MPUMALANGA
B202: DC32 Ehlanzeni | C202: MP MPUMALANGA
B203: NC451 Joe Morolong | C203: NC NORTHERN CAPE
B204: NC452 Ga-Segonyana | C204: NC NORTHERN CAPE
B205: NC453 Gamagara | C205: NC NORTHERN CAPE
B206: DC45 John Taolo Gaetsewe | C206: NC NORTHERN CAPE
B207: NC061 Richtersveld | C207: NC NORTHERN CAPE
B208: NC062 Nama Khoi | C208: NC NORTHERN CAPE
B209: NC064 Kamiesberg | C209: NC NORTHERN CAPE
B210: NC065 Hantam | C210: NC NORTHERN CAPE
B211: NC066 Karoo Hoogland | C211: NC NORTHERN CAPE
B212: NC067 Khai-Ma | C212: NC NORTHERN CAPE
B213: DC6 Namakwa | C213: NC NORTHERN CAPE
... 73 more rows

Sheet Org structure
A1: Organisational Structure Votes | C1: Organisational Structure Sub-Votes | E1: Display Sub-Votes
A2: =B2&" - "&C2 -> Vote 01 - Corporate Services | B2: Vote 01 | C2: Corporate Services
A3: =B5&" - "&C5 -> Vote 02 - Municipal Manager | B3: 01.1 | C3: Corporate Services Administration | D3: =CONCATENATE(B3, " - ", C3) -> 01.1 - Corporate Services Administration | E3: 01.1 - Corporate Services Administration
A4: =B7&" - "&C7 -> Vote 03 - Budget And Treasury | B4: 01.2 | C4: Executive Support | D4: =CONCATENATE(B4, " - ", C4) -> 01.2 - Executive Support | E4: 01.2 - Executive Support
A5: =B9&" - "&C9 -> Vote 04 - Technical Services | B5: Vote 02 | C5: Municipal Manager
A6: =B14&" - "&C14 -> Vote 05 - Community Services | B6: 02.1 | C6: Municipal Manager Administration | D6: =CONCATENATE(B6, " - ", C6) -> 02.1 - Municipal Manager Administration | E6: 02.1 - Municipal Manager Administration
A7: =B20&" - "&C20 -> Vote 06 - Development And Planning | B7: Vote 03 | C7: Budget And Treasury
A8: =B23&" - "&C23 -> Vote 07 - Local Economic Development And Tourism | B8: 03.1 | C8: Finance Services Administration | D8: =CONCATENATE(B8, " - ", C8) -> 03.1 - Finance Services Administration | E8: 03.1 - Finance Services Administration
A9: =B25&" - "&C25 -> Vote 08 - | B9: Vote 04 | C9: Technical Services
A10: Vote 09 - | B10: 04.1 | C10: Technical Services Administration | D10: =CONCATENATE(B10, " - ", C10) -> 04.1 - Technical Services Administration | E10: 04.1 - Technical Services Administration
A11: Vote 10 - | B11: 04.2 | C11: Sewer Disposal | D11: =CONCATENATE(B11, " - ", C11) -> 04.2 - Sewer Disposal | E11: 04.2 - Sewer Disposal
A12: Vote 11 - | B12: 04.3 | C12: Roads | D12: =CONCATENATE(B12, " - ", C12) -> 04.3 - Roads | E12: 04.3 - Roads
A13: Vote 12 - | B13: 04.4 | C13: Storm Water | D13: =CONCATENATE(B13, " - ", C13) -> 04.4 - Storm Water | E13: 04.4 - Storm Water
A14: Vote 13 - | B14: Vote 05 | C14: Community Services
A15: Vote 14 - | B15: 05.1 | C15: Community Services Administration | D15: =CONCATENATE(B15, " - ", C15) -> 05.1 - Community Services Administration | E15: 05.1 - Community Services Administration
A16: Vote 15 - Other | B16: 05.2 | C16: Protection Services | D16: =CONCATENATE(B16, " - ", C16) -> 05.2 - Protection Services | E16: 05.2 - Protection Services
B17: 05.3 | C17: Cemeteries | D17: =CONCATENATE(B17, " - ", C17) -> 05.3 - Cemeteries | E17: 05.3 - Cemeteries
B18: 05.4 | C18: Libraries | D18: =CONCATENATE(B18, " - ", C18) -> 05.4 - Libraries | E18: 05.4 - Libraries
B19: 05.5 | C19: Refuse Removal Services | D19: =CONCATENATE(B19, " - ", C19) -> 05.5 - Refuse Removal Services | E19: 05.5 - Refuse Removal Services
B20: Vote 06 | C20: Development And Planning
B21: 06.1 | C21: Dvp Services Administration | D21: =CONCATENATE(B21, " - ", C21) -> 06.1 - Dvp Services Administration | E21: 06.1 - Dvp Services Administration
B22: 06.2 | C22: Municipal Buildings | D22: =CONCATENATE(B22, " - ", C22) -> 06.2 - Municipal Buildings | E22: 06.2 - Municipal Buildings
B23: Vote 07 | C23: Local Economic Development And Tourism
B24: 07.1 | C24: Economic & Land Development Admini | D24: =CONCATENATE(B24, " - ", C24) -> 07.1 - Economic & Land Development Admini | E24: 07.1 - Economic & Land Development Admini
B25: Vote 08
B26: Vote 09
B27: Vote 10
B28: Vote 11
B29: Vote 12
B30: Vote 13
B31: Vote 14
B32: Vote 15 | C32: Other

Sheet Contacts
A1: =muni&" - "&" Contact Information" -> LIM476 Tubatse Fetakgomo - Contact Information
A3: A. GENERAL INFORMATION
A4: Municipality | B4: =muni -> LIM476 Tubatse Fetakgomo | C4: Set name on 'Instructions' sheet
A6: Grade | B6: 5 | C6: 1 Grade in terms of the Remuneration of Public Office Bearers Act.
A8: Province | B8: =IF(B4>" ",VLOOKUP(B4,'Lookup and lists'!B28:C311,2, FALSE)," ") -> LIM LIMPOPO
A10: Web Address | B10: www.fgtm.gov.za
A12: e-mail Address
A14: B. CONTACT INFORMATION
A15: Postal address:
A16: P.O. Box | B16: P.O Box 206
A17: City / Town | B17: Burgersfort
A18: Postal Code | B18: 1150
A20: Street address
A21: Building
A22: Street No. & Name | B22: 1kastania street
A23: City / Town | B23: Burgersfort
A24: Postal Code | B24: 1150
A26: General Contacts
A27: Telephone number | B27: 0132311000
A28: Fax number
A30: C. POLITICAL LEADERSHIP
A31: Speaker: | C31: Secretary/PA to the Speaker:
A32: ID Number | C32: ID Number | D32: 770526 0403 081
A33: Title | B33: Mrs | C33: Title | D33: Mrs
A34: Name | B34: Phala NT | C34: Name | D34: Malatji Girlie
A35: Telephone number | C35: Telephone number | D35: 013 231 1104
A36: Cell number | C36: Cell number | D36: 082 836 3728
A37: Fax number | C37: Fax number
A38: E-mail address | C38: E-mail address | D38: gmaltjie@tubatse.gov.za
A40: Mayor/Executive Mayor: | C40: Secretary/PA to the Mayor/Executive Mayor:
A41: ID Number | B41: 4802115286085 | C41: ID Number | D41: 740626 0676 087
A42: Title | B42: Mr | C42: Title | D42: Mrs
A43: Name | B43: MAMEKOA RS | C43: Name | D43: Mabela Pogoti Emly
A44: Telephone number | B44: 0132311000 | C44: Telephone number | D44: 013 231 1102
A45: Cell number | B45: 079 344 1026 | C45: Cell number | D45: 078 301 2340
A46: Fax number | C46: Fax number
A47: E-mail address | B47: mamekoars1@gmail.com | C47: E-mail address | D47: mabelape@tubatse.gov.za
A49: Deputy Mayor/Executive Mayor: | C49: Secretary/PA to the Deputy Mayor/Executive Mayor:
A50: ID Number | C50: ID Number
A51: Title | C51: Title
A52: Name | C52: Name
A53: Telephone number | C53: Telephone number
A54: Cell number | C54: Cell number
A55: Fax number | C55: Fax number
A56: E-mail address | C56: E-mail address
A58: D. MANAGEMENT LEADERSHIP
A59: Municipal Manager: | C59: Secretary/PA to the Municipal Manager:
A60: ID Number | B60: Mr | C60: ID Number | D60: 851205 1084 081
A61: Title | B61: Phala NW | C61: Title | D61: Mrs
A62: Name | C62: Name | D62: Mashilangoako Sina
A63: Telephone number | B63: 795085082 | C63: Telephone number | D63: 072 143 3798
A64: Cell number | C64: Cell number | D64: 013 231 1014
A65: Fax number | B65: nwphala@tubatse.gov.za | C65: Fax number
A66: E-mail address | C66: E-mail address | D66: mashilangoakos@tubatse.gov.za
A68: Chief Financial Officer | C68: Secretary/PA to the Chief Financial Officer
A69: ID Number | B69: 80006266055085 | C69: ID Number | D69: 791218 0477 084
A70: Title | B70: Mr | C70: Title | D70: Mrs
A71: Name | B71: Makgata Joel | C71: Name | D71: Ndlovu R E
A72: Telephone number | C72: Telephone number | D72: 132311222
A73: Cell number | B73: 724425840 | C73: Cell number | D73: 720961895
A74: Fax number | C74: Fax number
A75: E-mail address | B75: joel.makgata@gmail.com | C75: E-mail address | D75: rendlovu@tubatse.gov.za
A77: Official responsible for submitting financial information | C77: Official responsible for submitting financial information
A78: ID Number | B78: Ms | C78: ID Number
A79: Title | B79: Matheba RA | C79: Title
A80: Name | B80: 0132311224 | C80: Name
A81: Telephone number | B81: 0649002121 | C81: Telephone number
A82: Cell number | C82: Cell number
A83: Fax number | B83: mmmasemola@tubatse.gov.za | C83: Fax number
A84: E-mail address | C84: E-mail address
A85: Official responsible for submitting financial information | C85: Official responsible for submitting financial information
A86: ID Number | B86: Ms | C86: ID Number
A87: Title | B87: Masemola MM | C87: Title
A88: Name | B88: 0132311224 | C88: Name
A89: Telephone number | B89: 0790633290 | C89: Telephone number
A90: Cell number | C90: Cell number
A91: Fax number | B91: mmmasemola@tubatse.gov.za | C91: Fax number
A92: E-mail address | C92: E-mail address
A93: Official responsible for submitting financial information | C93: Official responsible for submitting financial information
A94: ID Number | B94: 730928 0314 087 | C94: ID Number
A95: Title | B95: Mrs | C95: Title
A96: Name | B96: Manak M.L | C96: Name
A97: Telephone number | B97: 013 231 1274 | C97: Telephone number
A98: Cell number | B98: 076 406 8389 | C98: Cell number
A99: Fax number | C99: Fax number
A100: E-mail address | B100: mlmanaka@tubatse.gov.za | C100: E-mail address
A101: Official responsible for submitting financial information | C101: Official responsible for submitting financial information
A102: ID Number | B102: 8708250660081 | C102: ID Number
A103: Title | B103: Mrs | C103: Title
A104: Name | B104: Nkoana MS | C104: Name
A105: Telephone number | B105: 0132311224 | C105: Telephone number
A106: Cell number | B106: 0713825848 | C106: Cell number
A107: Fax number | C107: Fax number
A108: E-mail address | B108: msnkoana@tubatse.gov.za | C108: E-mail address
A109: Official responsible for submitting financial information | C109: Official responsible for submitting financial information
A110: ID Number | C110: ID Number
A111: Title | C111: Title
A112: Name | C112: Name
A113: Telephone number | C113: Telephone number
A114: Cell number | C114: Cell number
A115: Fax number | C115: Fax number
A116: E-mail address | C116: E-mail address
A117: Official responsible for submitting financial information | C117: Official responsible for submitting financial information
A118: ID Number | C118: ID Number
A119: Title | C119: Title
A120: Name | C120: Name
A121: Telephone number | C121: Telephone number
A122: Cell number | C122: Cell number
A123: Fax number | C123: Fax number
A124: E-mail address | C124: E-mail address
A125: Official responsible for submitting financial information | C125: Official responsible for submitting financial information
A126: ID Number | C126: ID Number
A127: Title | C127: Title
A128: Name | C128: Name
A129: Telephone number | C129: Telephone number
A130: Cell number | C130: Cell number
A131: Fax number | C131: Fax number
A132: E-mail address | C132: E-mail address
A133: Official responsible for submitting financial information
A134: ID Number
A135: Title
A136: Name
A137: Telephone number
A138: Cell number
A139: Fax number
A140: E-mail address

Sheet C1-Sum
A1: =muni& " - "&s71sum& " - "&date -> LIM476 Tubatse Fetakgomo - Table C1 Monthly Budget Statement Summary - M09 March
A2: =desc -> Description | B2: =Head1 -> 2019/20 | C2: =Head2 -> Budget Year 2020/21
B3: =Head5 -> Audited Outcome | C3: =Head6 -> Original Budget | D3: =Head7 -> Adjusted Budget | E3: =Head38 -> Monthly actual | F3: =Head39 -> YearTD actual | G3: =Head40 -> YearTD budget | H3: =Head41 -> YTD variance | I3: =Head41 -> YTD variance | J3: =Head8 -> Full Year Forecast
A4: R thousands | I4: %
A5: Financial Performance
A6: Property rates | B6: =SUM('C4-FinPerf RE'!C6:C6) -> 112040267.7 | C6: =SUM('C4-FinPerf RE'!D6:D6) -> 121787199 | D6: =SUM('C4-FinPerf RE'!E6:E6) -> 121787199 | E6: =SUM('C4-FinPerf RE'!F6:F6) -> 9282087.83 | F6: =SUM('C4-FinPerf RE'!G6:G6) -> 91106400.79 | G6: =SUM('C4-FinPerf RE'!H6:H6) -> 91340370 | H6: =F6-G6 -> -233969.21 | I6: =IF(H6=0,"",H6/G6) -> -0.00256150933 | J6: =SUM('C4-FinPerf RE'!K6:K6) -> 121787199
A7: Service charges | B7: =SUM('C4-FinPerf RE'!C7:C10) -> 21779433.75 | C7: =SUM('C4-FinPerf RE'!D7:D10) -> 25921465 | D7: =SUM('C4-FinPerf RE'!E7:E10) -> 25921465 | E7: =SUM('C4-FinPerf RE'!F7:F10) -> 1952028.42 | F7: =SUM('C4-FinPerf RE'!G7:G10) -> 17155280.55 | G7: =SUM('C4-FinPerf RE'!H7:H10) -> 19441098 | H7: =F7-G7 -> -2285817.45 | I7: =IF(H7=0,"",H7/G7) -> -0.1175765613 | J7: =SUM('C4-FinPerf RE'!K7:K10) -> 25921465
A8: Investment revenue | B8: ='C4-FinPerf RE'!C13 -> 9951564.51 | C8: ='C4-FinPerf RE'!D13 -> 10485868 | D8: ='C4-FinPerf RE'!E13 -> 10485868 | E8: ='C4-FinPerf RE'!F13 -> 355427.57 | F8: ='C4-FinPerf RE'!G13 -> 4504882.87 | G8: ='C4-FinPerf RE'!H13 -> 7864398 | H8: =F8-G8 -> -3359515.13 | I8: =IF(H8=0,"",H8/G8) -> -0.4271802025 | J8: ='C4-FinPerf RE'!K13 -> 10485868
A9: Transfers and subsidies | B9: ='C4-FinPerf RE'!C19 -> 420867989.5 | C9: ='C4-FinPerf RE'!D19 -> 456109000 | D9: ='C4-FinPerf RE'!E19 -> 560832000 | E9: ='C4-FinPerf RE'!F19 -> 113263237.9 | F9: ='C4-FinPerf RE'!G19 -> 424700031.2 | G9: ='C4-FinPerf RE'!H19 -> 415387838 | H9: =F9-G9 -> 9312193.2 | I9: =IF(H9=0,"",H9/G9) -> 0.02241806897 | J9: ='C4-FinPerf RE'!K19 -> 560832000
A10: Other own revenue | B10: ='C4-FinPerf RE'!C12+'C4-FinPerf RE'!C14+'C4-FinPerf RE'!C15+'C4-FinPerf RE'!C16+'C4-FinPerf RE'!C17+'C4-FinPerf RE'!C18+'C4-FinPerf RE'!C20+'C4-FinPerf RE'!C21 -> 60442759.48 | C10: ='C4-FinPerf RE'!D12+'C4-FinPerf RE'!D14+'C4-FinPerf RE'!D15+'C4-FinPerf RE'!D16+'C4-FinPerf RE'!D17+'C4-FinPerf RE'!D18+'C4-FinPerf RE'!D20+'C4-FinPerf RE'!D21 -> 63902755 | D10: ='C4-FinPerf RE'!E12+'C4-FinPerf RE'!E14+'C4-FinPerf RE'!E15+'C4-FinPerf RE'!E16+'C4-FinPerf RE'!E17+'C4-FinPerf RE'!E18+'C4-FinPerf RE'!E20+'C4-FinPerf RE'!E21 -> 64486344 | E10: ='C4-FinPerf RE'!F12+'C4-FinPerf RE'!F14+'C4-FinPerf RE'!F15+'C4-FinPerf RE'!F16+'C4-FinPerf RE'!F17+'C4-FinPerf RE'!F18+'C4-FinPerf RE'!F20+'C4-FinPerf RE'!F21 -> 2389368.73 | F10: ='C4-FinPerf RE'!G12+'C4-FinPerf RE'!G14+'C4-FinPerf RE'!G15+'C4-FinPerf RE'!G16+'C4-FinPerf RE'!G17+'C4-FinPerf RE'!G18+'C4-FinPerf RE'!G20+'C4-FinPerf RE'!G21 -> 26843082.3 | G10: ='C4-FinPerf RE'!H12+'C4-FinPerf RE'!H14+'C4-FinPerf RE'!H15+'C4-FinPerf RE'!H16+'C4-FinPerf RE'!H17+'C4-FinPerf RE'!H18+'C4-FinPerf RE'!H20+'C4-FinPerf RE'!H21 -> 48160370.6 | H10: =F10-G10 -> -21317288.3 | I10: =IF(H10=0,"",H10/G10) -> -0.4426313177 | J10: ='C4-FinPerf RE'!K12+'C4-FinPerf RE'!K14+'C4-FinPerf RE'!K15+'C4-FinPerf RE'!K16+'C4-FinPerf RE'!K17+'C4-FinPerf RE'!K18+'C4-FinPerf RE'!K20+'C4-FinPerf RE'!K21 -> 64486344
A11: Total Revenue (excluding capital transfers and contributions) | B11: =SUM(B6:B10) -> 625082014.9 | C11: 678206287 | D11: 783512876 | E11: 127242150.4 | F11: 564309677.7 | G11: 582194074.6 | H11: =F11-G11 -> -17884396.89 | I11: =IF(H11=0,"",H11/G11) -> -0.03071896069 | J11: 783512876
A12: Employee costs | B12: ='C4-FinPerf RE'!C25 -> 175835152.2 | C12: ='C4-FinPerf RE'!D25 -> 200681339 | D12: ='C4-FinPerf RE'!E25 -> 199255586 | E12: ='C4-FinPerf RE'!F25 -> 14627091.25 | F12: ='C4-FinPerf RE'!G25 -> 138026380.7 | G12: ='C4-FinPerf RE'!H25 -> 150001693.8 | H12: -11975313.14 | I12: -0.07983451944 | J12: ='C4-FinPerf RE'!K25 -> 199255586
A13: Remuneration of Councillors | B13: ='C4-FinPerf RE'!C26 -> 31961761.23 | C13: ='C4-FinPerf RE'!D26 -> 35684835 | D13: ='C4-FinPerf RE'!E26 -> 35684835 | E13: ='C4-FinPerf RE'!F26 -> 2502090.06 | F13: ='C4-FinPerf RE'!G26 -> 22220910.54 | G13: ='C4-FinPerf RE'!H26 -> 26763687 | H13: -4542776.46 | I13: -0.169736571 | J13: ='C4-FinPerf RE'!K26 -> 35684835
A14: Depreciation & asset impairment | B14: ='C4-FinPerf RE'!C28 -> 105980217.8 | C14: ='C4-FinPerf RE'!D28 -> 89877203 | D14: ='C4-FinPerf RE'!E28 -> 89677203 | E14: ='C4-FinPerf RE'!F28 -> 0 | F14: ='C4-FinPerf RE'!G28 -> 0 | G14: ='C4-FinPerf RE'!H28 -> 67327921 | H14: -67327921 | I14: -1 | J14: ='C4-FinPerf RE'!K28 -> 89677203
A15: Finance charges | B15: ='C4-FinPerf RE'!C29 -> 842599.41 | C15: ='C4-FinPerf RE'!D29 -> 954967 | D15: ='C4-FinPerf RE'!E29 -> 1354967 | E15: ='C4-FinPerf RE'!F29 -> 2071.5 | F15: ='C4-FinPerf RE'!G29 -> 2071.5 | G15: ='C4-FinPerf RE'!H29 -> 996229 | H15: -994157.5 | I15: -0.9979206588 | J15: ='C4-FinPerf RE'!K29 -> 1354967
A16: Materials and bulk purchases | B16: =SUM('C4-FinPerf RE'!C30:C31) -> 1787552.27 | C16: =SUM('C4-FinPerf RE'!D30:D31) -> 6657370 | D16: =SUM('C4-FinPerf RE'!E30:E31) -> 9757370 | E16: =SUM('C4-FinPerf RE'!F30:F31) -> 47403.97 | F16: =SUM('C4-FinPerf RE'!G30:G31) -> 5772256.89 | G16: =SUM('C4-FinPerf RE'!H30:H31) -> 6876380.36 | H16: -1104123.47 | I16: -0.1605675388 | J16: =SUM('C4-FinPerf RE'!K30:K31) -> 9757370
A17: Transfers and subsidies | B17: ='C4-FinPerf RE'!C33 -> 845054.87 | C17: ='C4-FinPerf RE'!D33 -> 1371624 | D17: ='C4-FinPerf RE'!E33 -> 1721624 | E17: ='C4-FinPerf RE'!F33 -> 11382.61 | F17: ='C4-FinPerf RE'!G33 -> 443516.72 | G17: ='C4-FinPerf RE'!H33 -> 1168736 | H17: -725219.28 | I17: -0.6205159078 | J17: ='C4-FinPerf RE'!K33 -> 1721624
A18: Other expenditure | B18: ='C4-FinPerf RE'!C36-SUM('C1-Sum'!B12:B17) -> 259305324.5 | C18: ='C4-FinPerf RE'!D36-SUM('C1-Sum'!C12:C17) -> 271857548 | D18: ='C4-FinPerf RE'!E36-SUM('C1-Sum'!D12:D17) -> 322489666 | E18: ='C4-FinPerf RE'!F36-SUM('C1-Sum'!E12:E17) -> 27006870.62 | F18: ='C4-FinPerf RE'!G36-SUM('C1-Sum'!F12:F17) -> 293107839.2 | G18: ='C4-FinPerf RE'!H36-SUM('C1-Sum'!G12:G17) -> 240228577.8 | H18: 52879261.33 | I18: 0.220120611 | J18: ='C4-FinPerf RE'!K36-SUM('C1-Sum'!J12:J17) -> 322489666
A19: Total Expenditure | B19: =SUM(B12:B18) -> 576557662.3 | C19: 607084886 | D19: 659941251 | E19: 44196910.01 | F19: 459572975.5 | G19: 493363225 | H19: -33790249.52 | I19: -0.06848959916 | J19: =SUM(J12:J18) -> 659941251
A20: Surplus/(Deficit) | B20: =B11-B19 -> 48524352.68 | C20: 71121401 | D20: 123571625 | E20: 83045240.43 | F20: 104736702.2 | G20: 88830849.6 | H20: 15905852.63 | I20: 0.1790577564 | J20: =J11-J19 -> 123571625
A21: ='C4-FinPerf RE'!A39 -> Transfers and subsidies - capital (monetary allocations) (National / Provincial and District) | B21: ='C4-FinPerf RE'!C39 -> 108376630.1 | C21: ='C4-FinPerf RE'!D39 -> 83797000 | D21: ='C4-FinPerf RE'!E39 -> 113066057 | E21: ='C4-FinPerf RE'!F39 -> 5586283.22 | F21: ='C4-FinPerf RE'!G39 -> 40957372.49 | G21: ='C4-FinPerf RE'!H39 -> 74555369.8 | H21: -33597997.31 | I21: -0.4506449019 | J21: ='C4-FinPerf RE'!K39 -> 113066057
A22: ='C4-FinPerf RE'!A40&" & "&'C4-FinPerf RE'!A41 -> Transfers and subsidies - capital (monetary allocations) (National / Provincial Departmental Agencies, Households, Non-profit Institutions, Private Enterprises, Public Corporatons, Higher Educational Institutions) & Transfers and subsidies - capital (in-kind - all) | B22: =SUM('C4-FinPerf RE'!C40:C41) -> 0 | C22: =SUM('C4-FinPerf RE'!D40:D41) -> 3299 | D22: =SUM('C4-FinPerf RE'!E40:E41) -> 28309229 | E22: =SUM('C4-FinPerf RE'!F40:F41) -> 2848414.4 | F22: =SUM('C4-FinPerf RE'!G40:G41) -> 12464098.71 | G22: =SUM('C4-FinPerf RE'!H40:H41) -> 11324838 | H22: 1139260.71 | I22: 0.1005984112 | J22: =SUM('C4-FinPerf RE'!K40:K41) -> 28309229
A23: Surplus/(Deficit) after capital transfers & contributions | B23: =B20+B21+B22 -> 156900982.8 | C23: 154921700 | D23: 264946911 | E23: 91479938.05 | F23: 158158173.4 | G23: 174711057.4 | H23: -16552883.97 | I23: -0.09474434084 | J23: =J20+J21+J22 -> 264946911
A24: Share of surplus/ (deficit) of associate | B24: ='C4-FinPerf RE'!C47 -> 0 | C24: ='C4-FinPerf RE'!D47 -> 0 | D24: ='C4-FinPerf RE'!E47 -> 0 | E24: ='C4-FinPerf RE'!F47 -> 0 | F24: ='C4-FinPerf RE'!G47 -> 0 | G24: ='C4-FinPerf RE'!H47 -> 0 | H24: 0 | J24: ='C4-FinPerf RE'!K47 -> 0
A25: Surplus/ (Deficit) for the year | B25: =B23+B24 -> 156900982.8 | C25: 154921700 | D25: 264946911 | E25: 91479938.05 | F25: 158158173.4 | G25: 174711057.4 | H25: -16552883.97 | I25: -0.09474434084 | J25: =J23+J24 -> 264946911
A27: Capital expenditure & funds sources
A28: Capital expenditure | B28: ='C5-Capex'!C40 -> 85784805.85 | C28: ='C5-Capex'!D40 -> 150893152 | D28: ='C5-Capex'!E40 -> 267513506 | E28: ='C5-Capex'!F40 -> 10362571.97 | F28: ='C5-Capex'!G40 -> 107791319.5 | G28: ='C5-Capex'!H40 -> 175362355.6 | H28: =F28-G28 -> -67571036.14 | I28: =IF(H28=0,"",H28/G28) -> -0.3853223567 | J28: ='C5-Capex'!K40 -> 267513506
A29: Capital transfers recognised | B29: ='C5-Capex'!C70 -> 70614494.57 | C29: ='C5-Capex'!D70 -> 79607152 | D29: ='C5-Capex'!E70 -> 137313506 | E29: ='C5-Capex'!F70 -> 7546773.6 | F29: ='C5-Capex'!G70 -> 34258216.33 | G29: ='C5-Capex'!H70 -> 82787920.6 | H29: -48529704.27 | I29: -0.5861930571 | J29: ='C5-Capex'!K70 -> 137313506
A31: Borrowing | B31: ='C5-Capex'!C72 -> 0 | C31: ='C5-Capex'!D72 -> 0 | D31: ='C5-Capex'!E72 -> 0 | E31: ='C5-Capex'!F72 -> 0 | F31: ='C5-Capex'!G72 -> 0 | G31: ='C5-Capex'!H72 -> 0 | H31: 0 | J31: ='C5-Capex'!K72 -> 0
A32: Internally generated funds | B32: ='C5-Capex'!C73 -> 15170311.28 | C32: ='C5-Capex'!D73 -> 71286000 | D32: ='C5-Capex'!E73 -> 130200000 | E32: ='C5-Capex'!F73 -> 2815798.37 | F32: ='C5-Capex'!G73 -> 73533103.13 | G32: ='C5-Capex'!H73 -> 92574435 | H32: -19041331.87 | I32: -0.2056867198 | J32: ='C5-Capex'!K73 -> 130200000
A33: Total sources of capital funds | B33: =+B29+B31+B32 -> 85784805.85 | C33: 150893152 | D33: 267513506 | E33: 10362571.97 | F33: 107791319.5 | G33: 175362355.6 | H33: -67571036.14 | I33: -0.3853223567 | J33: =+J29+J31+J32 -> 267513506
A35: Financial position
A36: Total current assets | B36: ='C6-FinPos'!C13 -> 271921341 | C36: ='C6-FinPos'!D13 -> 464545554 | D36: ='C6-FinPos'!E13 -> 410521016 | F36: ='C6-FinPos'!F13 -> 270827614.3 | J36: ='C6-FinPos'!G13 -> 410521016
A37: Total non current assets | B37: ='C6-FinPos'!C25 -> 2320594877 | C37: ='C6-FinPos'!D25 -> 3996014311 | D37: ='C6-FinPos'!E25 -> 4112627453 | F37: ='C6-FinPos'!F25 -> 2428386196 | J37: ='C6-FinPos'!G25 -> 4112627453
A38: Total current liabilities | B38: ='C6-FinPos'!C35 -> 258718126.3 | C38: ='C6-FinPos'!D35 -> 275094221 | D38: ='C6-FinPos'!E35 -> -18988217 | F38: ='C6-FinPos'!F35 -> 219086584 | J38: ='C6-FinPos'!G35 -> -18988217
A39: Total non current liabilities | B39: ='C6-FinPos'!C40 -> 11741187.94 | C39: ='C6-FinPos'!D40 -> 56998261 | D39: ='C6-FinPos'!E40 -> 8983577 | F39: ='C6-FinPos'!F40 -> 251977.29 | J39: ='C6-FinPos'!G40 -> 8983577
A40: Community wealth/Equity | B40: ='C6-FinPos'!C48 -> 2197295690 | C40: ='C6-FinPos'!D48 -> 4159247167 | D40: ='C6-FinPos'!E48 -> 4348212287 | F40: ='C6-FinPos'!F48 -> 2389582462 | J40: ='C6-FinPos'!G48 -> 4348212287
A42: Cash flows
A43: Net cash from (used) operating | B43: ='C7-CFlow'!C18 -> 0 | C43: ='C7-CFlow'!D18 -> 0 | D43: ='C7-CFlow'!E18 -> -990071195 | E43: ='C7-CFlow'!F18 -> 112132981.2 | F43: ='C7-CFlow'!G18 -> 161988732.5 | G43: ='C7-CFlow'!H18 -> -742553396.2 | H43: =G43-F43 -> -904542128.6 | I43: =IF(H43=0,"",H43/G43) -> 1.218150955 | J43: ='C7-CFlow'!K18 -> -990071195
A44: Net cash from (used) investing | B44: ='C7-CFlow'!C28 -> 0 | C44: ='C7-CFlow'!D28 -> 0 | D44: ='C7-CFlow'!E28 -> -116620354 | E44: ='C7-CFlow'!F28 -> -10362571.97 | F44: ='C7-CFlow'!G28 -> -104766889.6 | G44: ='C7-CFlow'!H28 -> -87465265.38 | H44: =G44-F44 -> 17301624.26 | I44: =IF(H44=0,"",H44/G44) -> -0.1978113733 | J44: ='C7-CFlow'!K28 -> -116620354
A45: Net cash from (used) financing | B45: ='C7-CFlow'!C37 -> 0 | C45: ='C7-CFlow'!D37 -> 0 | D45: ='C7-CFlow'!E37 -> -40000000 | E45: ='C7-CFlow'!F37 -> 0 | F45: ='C7-CFlow'!G37 -> 0 | G45: ='C7-CFlow'!H37 -> -29999999.97 | H45: =G45-F45 -> -29999999.97 | I45: =IF(H45=0,"",H45/G45) -> 1 | J45: ='C7-CFlow'!K37 -> -40000000
A46: Cash/cash equivalents at the month/year end | B46: ='C7-CFlow'!C41 -> 94178554.5 | C46: ='C7-CFlow'!D41 -> 180581894 | D46: ='C7-CFlow'!E41 -> -921848500 | E46: ='C7-CFlow'!F41 -> 0 | F46: ='C7-CFlow'!G41 -> 270585042 | G46: ='C7-CFlow'!H41 -> -860018661.5 | H46: =G46-F46 -> -1130603704 | I46: =IF(H46=0,"",H46/G46) -> 1.314626942 | J46: ='C7-CFlow'!K41 -> -1146691549
A48: Debtors & creditors analysis | B48: ='SC3'!C3 -> 0-30 Days | C48: ='SC3'!D3 -> 31-60 Days | D48: ='SC3'!E3 -> 61-90 Days | E48: ='SC3'!F3 -> 91-120 Days | F48: ='SC3'!G3 -> 121-150 Dys | G48: ='SC3'!H3 -> 151-180 Dys | H48: ='SC3'!I3 -> 181 Dys-1 Yr | I48: ='SC3'!J3 -> Over 1Yr | J48: Total
A49: =LEFT('SC3'!A4,20) -> Debtors Age Analysis
A50: ='SC3'!A14 -> Total By Income Source | B50: ='SC3'!C14 -> 13009069 | C50: ='SC3'!D14 -> 9760067 | D50: ='SC3'!E14 -> 8116761 | E50: ='SC3'!F14 -> 7025441 | F50: ='SC3'!G14 -> 6681266 | G50: ='SC3'!H14 -> 7175643 | H50: ='SC3'!I14 -> 53353813 | I50: ='SC3'!J14 -> 322573324 | J50: ='SC3'!K14 -> 427695384
A51: =LEFT('SC4'!A5,22) -> Creditors Age Analysis
A52: Total Creditors | B52: ='SC4'!C15 -> 4612148 | C52: ='SC4'!D15 -> 911161 | D52: ='SC4'!E15 -> 270055 | E52: ='SC4'!F15 -> 2242786 | F52: ='SC4'!G15 -> 0 | G52: ='SC4'!H15 -> 0 | H52: ='SC4'!I15 -> 0 | I52: ='SC4'!J15 -> 0 | J52: ='SC4'!K15 -> 8036150

Sheet C2-FinPerf SC
A1: =muni& " - "&S71A& " - "&date -> LIM476 Tubatse Fetakgomo - Table C2 Monthly Budget Statement - Financial Performance (functional classification) - M09 March
A2: =desc -> Description | B2: =head27 -> Ref | C2: =Head1 -> 2019/20 | D2: =Head2 -> Budget Year 2020/21
C3: =Head5 -> Audited Outcome | D3: =Head6 -> Original Budget | E3: =Head7 -> Adjusted Budget | F3: =Head38 -> Monthly actual | G3: =Head39 -> YearTD actual | H3: =Head40 -> YearTD budget | I3: =Head41 -> YTD variance | J3: =Head41 -> YTD variance | K3: =Head8 -> Full Year Forecast
A4: R thousands | B4: 1 | J4: %
A5: Revenue - Functional
A6: Governance and administration | C6: =SUM(C7:C9) -> 703783803.7 | D6: 729485364 | E6: 891734719 | F6: 133148675.6 | G6: 595183595.5 | H6: 643430530 | I6: =G6-H6 -> -48246934.54 | J6: =IF(I6=0,"",I6/H6) -> -0.07498390625 | K6: =SUM(K7:K9) -> 891734719
A7: Executive and council | C7: ='C2C'!C7 -> 0 | D7: ='C2C'!D7 -> 0 | E7: ='C2C'!E7 -> 0 | F7: ='C2C'!F7 -> 0 | G7: ='C2C'!G7 -> 0 | H7: ='C2C'!H7 -> 0 | I7: 0 | J7: =IF(I7=0,"",I7/H7) ->  | K7: ='C2C'!K7 -> 0
A8: Finance and administration | C8: ='C2C'!C10 -> 703783803.7 | D8: ='C2C'!D10 -> 729485364 | E8: ='C2C'!E10 -> 891734719 | F8: ='C2C'!F10 -> 133148675.6 | G8: ='C2C'!G10 -> 595183595.5 | H8: ='C2C'!H10 -> 643430530 | I8: -48246934.54 | J8: -0.07498390625 | K8: ='C2C'!K10 -> 891734719
A9: Internal audit | C9: ='C2C'!C24 -> 0 | D9: ='C2C'!D24 -> 0 | E9: ='C2C'!E24 -> 0 | F9: ='C2C'!F24 -> 0 | G9: ='C2C'!G24 -> 0 | H9: ='C2C'!H24 -> 0 | I9: 0 | K9: ='C2C'!K24 -> 0
A10: Community and public safety | C10: =SUM(C11:C15) -> 620562.68 | D10: 160215 | E10: 160215 | F10: 10984 | G10: 58523.68 | H10: 120141 | I10: -61617.32 | J10: -0.5128750385 | K10: =SUM(K11:K15) -> 160215
A11: Community and social services | C11: ='C2C'!C27 -> 620562.68 | D11: ='C2C'!D27 -> 160215 | E11: ='C2C'!E27 -> 160215 | F11: ='C2C'!F27 -> 10984 | G11: ='C2C'!G27 -> 58523.68 | H11: ='C2C'!H27 -> 120141 | I11: -61617.32 | J11: -0.5128750385 | K11: ='C2C'!K27 -> 160215
A12: Sport and recreation | C12: ='C2C'!C49 -> 0 | D12: ='C2C'!D49 -> 0 | E12: ='C2C'!E49 -> 0 | F12: ='C2C'!F49 -> 0 | G12: ='C2C'!G49 -> 0 | H12: ='C2C'!H49 -> 0 | I12: 0 | K12: ='C2C'!K49 -> 0
A13: Public safety | C13: ='C2C'!C55 -> 0 | D13: ='C2C'!D55 -> 0 | E13: ='C2C'!E55 -> 0 | F13: ='C2C'!F55 -> 0 | G13: ='C2C'!G55 -> 0 | H13: ='C2C'!H55 -> 0 | I13: 0 | K13: ='C2C'!K55 -> 0
A14: Housing | C14: ='C2C'!C64 -> 0 | D14: ='C2C'!D64 -> 0 | E14: ='C2C'!E64 -> 0 | F14: ='C2C'!F64 -> 0 | G14: ='C2C'!G64 -> 0 | H14: ='C2C'!H64 -> 0 | I14: =G14-H14 -> 0 | J14: =IF(I14=0,"",I14/H14) ->  | K14: ='C2C'!K64 -> 0
A15: Health | C15: ='C2C'!C67 -> 0 | D15: ='C2C'!D67 -> 0 | E15: ='C2C'!E67 -> 0 | F15: ='C2C'!F67 -> 0 | G15: ='C2C'!G67 -> 0 | H15: ='C2C'!H67 -> 0 | I15: 0 | K15: ='C2C'!K67 -> 0
A16: Economic and environmental services | C16: =SUM(C17:C19) -> 294006.94 | D16: 4399 | E16: 636620 | F16: -21782.74 | G16: 207363.74 | H16: 256173.4 | I16: -48809.66 | J16: -0.1905336776 | K16: =SUM(K17:K19) -> 636620
A17: Planning and development | C17: ='C2C'!C76 -> 294006.94 | D17: ='C2C'!D76 -> 4399 | E17: ='C2C'!E76 -> 636620 | F17: ='C2C'!F76 -> -21782.74 | G17: ='C2C'!G76 -> 207363.74 | H17: ='C2C'!H76 -> 256173.4 | I17: -48809.66 | J17: -0.1905336776 | K17: ='C2C'!K76 -> 636620
A18: Road transport | C18: ='C2C'!C87 -> 0 | D18: ='C2C'!D87 -> 0 | E18: ='C2C'!E87 -> 0 | F18: ='C2C'!F87 -> 0 | G18: ='C2C'!G87 -> 0 | H18: ='C2C'!H87 -> 0 | I18: 0 | K18: ='C2C'!K87 -> 0
A19: Environmental protection | C19: ='C2C'!C92 -> 0 | D19: ='C2C'!D92 -> 0 | E19: ='C2C'!E92 -> 0 | F19: ='C2C'!F92 -> 0 | G19: ='C2C'!G92 -> 0 | H19: ='C2C'!H92 -> 0 | I19: 0 | K19: ='C2C'!K92 -> 0
A20: Trading services | C20: =SUM(C21:C24) -> 28760271.75 | D20: =SUM(D21:D24) -> 32356608 | E20: 32356608 | F20: 2538971.24 | G20: 22281666.03 | H20: 24267438 | I20: -1985771.97 | J20: -0.08182866152 | K20: =SUM(K21:K24) -> 32356608
A21: Energy sources | C21: ='C2C'!C100 -> 0 | D21: ='C2C'!D100 -> 0 | E21: ='C2C'!E100 -> 0 | F21: ='C2C'!F100 -> 0 | G21: ='C2C'!G100 -> 0 | H21: ='C2C'!H100 -> 0 | I21: =G21-H21 -> 0 | K21: ='C2C'!K100 -> 0
A22: Water management | C22: ='C2C'!C104 -> 0 | D22: ='C2C'!D104 -> 0 | E22: ='C2C'!E104 -> 0 | F22: ='C2C'!F104 -> 0 | G22: ='C2C'!G104 -> 0 | H22: ='C2C'!H104 -> 0 | I22: =G22-H22 -> 0 | K22: ='C2C'!K104 -> 0
A23: Waste water management | C23: ='C2C'!C108 -> 0 | D23: ='C2C'!D108 -> 0 | E23: ='C2C'!E108 -> 0 | F23: ='C2C'!F108 -> 0 | G23: ='C2C'!G108 -> 0 | H23: ='C2C'!H108 -> 0 | I23: =G23-H23 -> 0 | K23: ='C2C'!K108 -> 0
A24: Waste management | C24: ='C2C'!C113 -> 28760271.75 | D24: ='C2C'!D113 -> 32356608 | E24: ='C2C'!E113 -> 32356608 | F24: ='C2C'!F113 -> 2538971.24 | G24: ='C2C'!G113 -> 22281666.03 | H24: ='C2C'!H113 -> 24267438 | I24: =G24-H24 -> -1985771.97 | J24: -0.08182866152 | K24: ='C2C'!K113 -> 32356608
A25: Other | B25: 4 | C25: ='C2C'!C118 -> 0 | D25: ='C2C'!D118 -> 0 | E25: ='C2C'!E118 -> 0 | F25: ='C2C'!F118 -> 0 | G25: ='C2C'!G118 -> 0 | H25: ='C2C'!H118 -> 0 | I25: =G25-H25 -> 0 | K25: ='C2C'!K118 -> 0
A26: Total Revenue - Functional | B26: 2 | C26: =C6+C10+C16+C20+C25 -> 733458645.1 | D26: =D6+D10+D16+D20+D25 -> 762006586 | E26: 924888162 | F26: 135676848.1 | G26: 617731148.9 | H26: 668074282.4 | I26: -50343133.49 | J26: -0.07535559266 | K26: =K6+K10+K16+K20+K25 -> 924888162
A28: Expenditure - Functional
A29: Governance and administration | C29: =SUM(C30:C32) -> 520142006.9 | D29: 526887673 | E29: 559305191 | F29: 36089007.69 | G29: 408579019.6 | H29: 419789228.2 | I29: =G29-H29 -> -11210208.56 | J29: =IF(I29=0,"",I29/H29) -> -0.02670437402 | K29: =SUM(K30:K32) -> 559305191
A30: Executive and council | C30: ='C2C'!C129 -> 44140866.14 | D30: ='C2C'!D129 -> 100541904 | E30: ='C2C'!E129 -> 115566651 | F30: ='C2C'!F129 -> 12186233.29 | G30: ='C2C'!G129 -> 69981215.76 | H30: ='C2C'!H129 -> 83138830.8 | I30: -13157615.04 | J30: =IF(I30=0,"",I30/H30) -> -0.1582607659 | K30: ='C2C'!K129 -> 115566651
A31: Finance and administration | C31: ='C2C'!C132 -> 476001140.8 | D31: ='C2C'!D132 -> 426345769 | E31: ='C2C'!E132 -> 443738540 | F31: ='C2C'!F132 -> 23902774.4 | G31: ='C2C'!G132 -> 338597803.9 | H31: ='C2C'!H132 -> 336650397.4 | I31: 1947406.48 | J31: 0.005784655224 | K31: ='C2C'!K132 -> 443738540
A32: Internal audit | C32: ='C2C'!C146 -> 0 | D32: ='C2C'!D146 -> 0 | E32: ='C2C'!E146 -> 0 | F32: ='C2C'!F146 -> 0 | G32: ='C2C'!G146 -> 0 | H32: ='C2C'!H146 -> 0 | I32: 0 | K32: ='C2C'!K146 -> 0
A33: Community and public safety | C33: =SUM(C34:C38) -> 9020665.94 | D33: 11448420 | E33: 13889420 | F33: 602247.86 | G33: 8543611.35 | H33: 10312868 | I33: -1769256.65 | J33: -0.1715581592 | K33: =SUM(K34:K38) -> 13889420
A34: Community and social services | C34: ='C2C'!C149 -> 9020665.94 | D34: ='C2C'!D149 -> 11448420 | E34: ='C2C'!E149 -> 13889420 | F34: ='C2C'!F149 -> 602247.86 | G34: ='C2C'!G149 -> 8543611.35 | H34: ='C2C'!H149 -> 10312868 | I34: -1769256.65 | J34: -0.1715581592 | K34: ='C2C'!K149 -> 13889420
A35: Sport and recreation | C35: ='C2C'!C171 -> 0 | D35: ='C2C'!D171 -> 0 | E35: ='C2C'!E171 -> 0 | F35: ='C2C'!F171 -> 0 | G35: ='C2C'!G171 -> 0 | H35: ='C2C'!H171 -> 0 | I35: 0 | K35: ='C2C'!K171 -> 0
A36: Public safety | C36: ='C2C'!C177 -> 0 | D36: ='C2C'!D177 -> 0 | E36: ='C2C'!E177 -> 0 | F36: ='C2C'!F177 -> 0 | G36: ='C2C'!G177 -> 0 | H36: ='C2C'!H177 -> 0 | I36: 0 | K36: ='C2C'!K177 -> 0
A37: Housing | C37: ='C2C'!C186 -> 0 | D37: ='C2C'!D186 -> 0 | E37: ='C2C'!E186 -> 0 | F37: ='C2C'!F186 -> 0 | G37: ='C2C'!G186 -> 0 | H37: ='C2C'!H186 -> 0 | I37: 0 | K37: ='C2C'!K186 -> 0
A38: Health | C38: ='C2C'!C189 -> 0 | D38: ='C2C'!D189 -> 0 | E38: ='C2C'!E189 -> 0 | F38: ='C2C'!F189 -> 0 | G38: ='C2C'!G189 -> 0 | H38: ='C2C'!H189 -> 0 | I38: 0 | K38: ='C2C'!K189 -> 0
A39: Economic and environmental services | C39: =SUM(C40:C42) -> 32974927.49 | D39: 52621175 | E39: 62469022 | F39: 5618408.22 | G39: 30974901.43 | H39: 46105317.8 | I39: -15130416.37 | J39: -0.3281707424 | K39: =SUM(K40:K42) -> 62469022
A40: Planning and development | C40: ='C2C'!C198 -> 10355148.05 | D40: ='C2C'!D198 -> 15059884 | E40: ='C2C'!E198 -> 13301355 | F40: ='C2C'!F198 -> 1085073.9 | G40: ='C2C'!G198 -> 6522512.51 | H40: ='C2C'!H198 -> 10591696.4 | I40: -4069183.89 | J40: -0.3841862282 | K40: ='C2C'!K198 -> 13301355
A41: Road transport | C41: ='C2C'!C209 -> 22619779.44 | D41: ='C2C'!D209 -> 37561291 | E41: ='C2C'!E209 -> 49167667 | F41: ='C2C'!F209 -> 4533334.32 | G41: ='C2C'!G209 -> 24452388.92 | H41: ='C2C'!H209 -> 35513621.4 | I41: -11061232.48 | J41: -0.3114645042 | K41: ='C2C'!K209 -> 49167667
A42: Environmental protection | C42: ='C2C'!C214 -> 0 | D42: ='C2C'!D214 -> 0 | E42: ='C2C'!E214 -> 0 | F42: ='C2C'!F214 -> 0 | G42: ='C2C'!G214 -> 0 | H42: ='C2C'!H214 -> 0 | I42: 0 | K42: ='C2C'!K214 -> 0
A43: Trading services | C43: =SUM(C44:C47) -> 14420061.91 | D43: =SUM(D44:D47) -> 16127618 | E43: 24277618 | F43: 1887246.24 | G43: 11475443.06 | H43: 17155811 | I43: -5680367.94 | J43: -0.3311046001 | K43: =SUM(K44:K47) -> 24277618
A44: Energy sources | C44: ='C2C'!C222 -> 0 | D44: ='C2C'!D222 -> 0 | E44: ='C2C'!E222 -> 0 | F44: ='C2C'!F222 -> 0 | G44: ='C2C'!G222 -> 0 | H44: ='C2C'!H222 -> 0 | I44: 0 | K44: ='C2C'!K222 -> 0
A45: Water management | C45: ='C2C'!C226 -> 0 | D45: ='C2C'!D226 -> 0 | E45: ='C2C'!E226 -> 0 | F45: ='C2C'!F226 -> 0 | G45: ='C2C'!G226 -> 0 | H45: ='C2C'!H226 -> 0 | I45: 0 | K45: ='C2C'!K226 -> 0
A46: Waste water management | C46: ='C2C'!C230 -> 0 | D46: ='C2C'!D230 -> 0 | E46: ='C2C'!E230 -> 0 | F46: ='C2C'!F230 -> 0 | G46: ='C2C'!G230 -> 0 | H46: ='C2C'!H230 -> 0 | I46: 0 | K46: ='C2C'!K230 -> 0
A47: Waste management | C47: ='C2C'!C235 -> 14420061.91 | D47: ='C2C'!D235 -> 16127618 | E47: ='C2C'!E235 -> 24277618 | F47: ='C2C'!F235 -> 1887246.24 | G47: ='C2C'!G235 -> 11475443.06 | H47: ='C2C'!H235 -> 17155811 | I47: -5680367.94 | J47: -0.3311046001 | K47: ='C2C'!K235 -> 24277618
A48: Other | C48: ='C2C'!C240 -> 0 | D48: ='C2C'!D240 -> 0 | E48: ='C2C'!E240 -> 0 | F48: ='C2C'!F240 -> 0 | G48: ='C2C'!G240 -> 0 | H48: ='C2C'!H240 -> 0 | I48: 0 | K48: ='C2C'!K240 -> 0
A49: Total Expenditure - Functional | B49: 3 | C49: =C29+C33+C39+C43+C48 -> 576557662.3 | D49: =D29+D33+D39+D43+D48 -> 607084886 | E49: 659941251 | F49: 44196910.01 | G49: 459572975.5 | H49: 493363225 | I49: -33790249.52 | J49: -0.06848959916 | K49: =K29+K33+K39+K43+K48 -> 659941251
A50: Surplus/ (Deficit) for the year | C50: =C26-C49 -> 156900982.8 | D50: 154921700 | E50: 264946911 | F50: 91479938.05 | G50: 158158173.4 | H50: 174711057.4 | I50: =I26-I49 -> -16552883.97 | J50: =IF(I50=0,"",I50/H50) -> -0.09474434084 | K50: =K26-K49 -> 264946911
A51: =head27a -> References
A52: 1. Government Finance Statistics Functions and Sub-functions are standardised to assist the compilation of national and international accounts for comparison purposes
A53: 2. Total Revenue by functional classification must reconcile to Total Operating Revenue shown in the Financial Performance Statement
A54: 3. Total Expenditure by functional classification must reconcile to total operating expenditure shown in 'Financial Performance Statement'
A55: 4. All amounts must be classified under a functional classification (modified GFS). The GFS function 'Other' is only for Abbatoirs, Air Transport, Licensing and Regulation, Markets and Tourism - and if used must be supported by footnotes. Nothing else may be placed under 'Other'. Assign associate share to relevant classification

Sheet C2C
A1: =muni& " - "&S71A& " - "&date -> LIM476 Tubatse Fetakgomo - Table C2 Monthly Budget Statement - Financial Performance (functional classification) - M09 March
A2: =desc -> Description | B2: =head27 -> Ref | C2: =Head1 -> 2019/20 | D2: =Head2 -> Budget Year 2020/21
C3: =Head5 -> Audited Outcome | D3: =Head6 -> Original Budget | E3: =Head7 -> Adjusted Budget | F3: =Head38 -> Monthly actual | G3: =Head39 -> YearTD actual | H3: =Head40 -> YearTD budget | I3: =Head41 -> YTD variance | J3: =Head41 -> YTD variance | K3: =Head8 -> Full Year Forecast
A4: R thousands | B4: 1 | J4: %
A5: Revenue - Functional
A6: Municipal governance and administration | C6: =C7+C10+C24 -> 703783803.7 | D6: 729485364 | E6: 891734719 | F6: 133148675.6 | G6: 595183595.5 | H6: 643430530 | I6: =G6-H6 -> -48246934.54 | J6: =IF(I6=0,"",I6/H6) -> -0.07498390625 | K6: =K7+K10+K24 -> 891734719
A7: Executive and council | C7: =SUM(C8:C9) -> 0 | D7: =SUM(D8:D9) -> 0 | E7: 0 | F7: 0 | G7: 0 | H7: 0 | I7: =G7-H7 -> 0 | J7: =IF(I7=0,"",I7/H7) ->  | K7: 0
A8: Mayor and Council | C8: 0 | D8: 0 | E8: 0 | F8: 0 | G8: 0 | H8: 0 | I8: 0 | K8: 0
A9: Municipal Manager, Town Secretary and Chief Executive | C9: 0 | D9: 0 | E9: 0 | F9: 0 | G9: 0 | H9: 0 | I9: 0 | K9: 0
A10: Finance and administration | C10: =SUM(C11:C23) -> 703783803.7 | D10: 729485364 | E10: 891734719 | F10: 133148675.6 | G10: 595183595.5 | H10: 643430530 | I10: =G10-H10 -> -48246934.54 | J10: =IF(I10=0,"",I10/H10) -> -0.07498390625 | K10: =SUM(K11:K23) -> 891734719
A11: Administrative and Corporate Support | C11: 110298358.1 | D11: 86397073 | E11: 143923428 | F11: 8478070.48 | G11: 54542986.04 | H11: 87808310 | I11: -33265323.96 | J11: -0.378840271 | K11: 143923428
A12: Asset Management | I12: 0
A13: Finance | C13: 584678058.4 | D13: 618170554 | E13: 722893554 | F13: 123437026.4 | G13: 533928982.5 | H13: 536933945 | I13: -3004962.48 | J13: -0.00559652171 | K13: 722893554
A14: Fleet Management | I14: 0
A15: Human Resources | I15: 0
A16: Information Technology | I16: =G16-H16 -> 0 | J16: =IF(I16=0,"",I16/H16) -> 
A17: Legal Services | I17: 0
A18: Marketing, Customer Relations, Publicity and Media Co-ordination | I18: 0
A19: Property Services | I19: 0
A20: Risk Management | I20: 0
A21: Security Services | C21: 8807387.24 | D21: 24917737 | E21: 24917737 | F21: 1233578.67 | G21: 6711626.9 | H21: 18688275 | I21: -11976648.1 | J21: -0.6408642906 | K21: 24917737
A22: Supply Chain Management | I22: 0
A23: Valuation Service | I23: 0
A24: Internal audit | C24: =SUM(C25:C25) -> 0 | D24: 0 | E24: 0 | F24: 0 | G24: 0 | H24: 0 | I24: 0 | K24: =SUM(K25:K25) -> 0
A25: Governance Function | I25: 0
A26: Community and public safety | C26: =C27+C49+C55+C64+C67 -> 620562.68 | D26: =D27+D49+D55+D64+D67 -> 160215 | E26: 160215 | F26: 10984 | G26: 58523.68 | H26: 120141 | I26: -61617.32 | J26: -0.5128750385 | K26: 160215
A27: Community and social services | C27: =SUM(C28:C48) -> 620562.68 | D27: 160215 | E27: 160215 | F27: 10984 | G27: 58523.68 | H27: 120141 | I27: -61617.32 | J27: -0.5128750385 | K27: =SUM(K28:K48) -> 160215
A28: Aged Care | I28: =G28-H28 -> 0 | J28: =IF(I28=0,"",I28/H28) -> 
A29: Agricultural | I29: 0
A30: Animal Care and Diseases | I30: 0
A31: Cemeteries, Funeral Parlours and Crematoriums | C31: 610644.5 | D31: 149059 | E31: 149059 | F31: 9054.78 | G31: 55804.4 | H31: 111780 | I31: -55975.6 | J31: -0.5007657899 | K31: 149059
A32: Child Care Facilities | I32: 0
A33: Community Halls and Facilities | I33: 0
A34: Consumer Protection | I34: 0
A35: Cultural Matters | I35: =G35-H35 -> 0 | J35: =IF(I35=0,"",I35/H35) -> 
A36: Disaster Management | I36: 0
A37: Education | I37: 0
A38: Indigenous and Customary Law | I38: 0
A39: Industrial Promotion | I39: 0
A40: Language Policy | I40: 0
A41: Libraries and Archives | C41: 9918.18 | D41: 11156 | E41: 11156 | F41: 1929.22 | G41: 2719.28 | H41: 8361 | I41: -5641.72 | J41: -0.6747661763 | K41: 11156
A42: Literacy Programmes | I42: 0
A43: Media Services | I43: 0
A44: Museums and Art Galleries | I44: 0
A45: Population Development | I45: 0
A46: Provincial Cultural Matters | I46: 0
A47: Theatres | I47: 0
A48: Zoo's | I48: 0
A49: Sport and recreation | C49: =SUM(C50:C54) -> 0 | D49: =SUM(D50:D54) -> 0 | E49: 0 | F49: 0 | G49: 0 | H49: 0 | I49: =G49-H49 -> 0 | J49: =IF(I49=0,"",I49/H49) ->  | K49: 0
A50: Beaches and Jetties | I50: 0
A51: Casinos, Racing, Gambling, Wagering | I51: 0
A52: Community Parks (including Nurseries) | I52: 0
A53: Recreational Facilities | I53: 0
A54: Sports Grounds and Stadiums | I54: 0
A55: Public safety | C55: =SUM(C56:C63) -> 0 | D55: =SUM(D56:D63) -> 0 | E55: 0 | F55: 0 | G55: 0 | H55: 0 | I55: 0 | K55: 0
A56: Civil Defence | I56: 0
A57: Cleansing | I57: 0
A58: Control of Public Nuisances | I58: =G58-H58 -> 0 | J58: =IF(I58=0,"",I58/H58) -> 
A59: Fencing and Fences | I59: 0
A60: Fire Fighting and Protection | I60: 0
A61: Licensing and Control of Animals | I61: =G61-H61 -> 0 | J61: =IF(I61=0,"",I61/H61) -> 
A62: Police Forces, Traffic and Street Parking Control | I62: =G62-H62 -> 0 | J62: =IF(I62=0,"",I62/H62) -> 
A63: Pounds | I63: 0
A64: Housing | C64: =SUM(C65:C66) -> 0 | D64: 0 | E64: 0 | F64: 0 | G64: 0 | H64: 0 | I64: =G64-H64 -> 0 | J64: =IF(I64=0,"",I64/H64) ->  | K64: =SUM(K65:K66) -> 0
A65: Housing | I65: =G65-H65 -> 0 | J65: =IF(I65=0,"",I65/H65) -> 
A66: Informal Settlements | I66: =G66-H66 -> 0 | J66: =IF(I66=0,"",I66/H66) -> 
A67: Health | C67: =SUM(C68:C74) -> 0 | D67: 0 | E67: 0 | F67: 0 | G67: 0 | H67: 0 | I67: 0 | K67: =SUM(K68:K74) -> 0
A68: Ambulance | I68: 0
A69: Health Services | I69: 0
A70: Laboratory Services | I70: =G70-H70 -> 0 | J70: =IF(I70=0,"",I70/H70) -> 
A71: Food Control | I71: =G71-H71 -> 0 | J71: =IF(I71=0,"",I71/H71) -> 
A72: Health Surveillance and Prevention of Communicable Diseases including immunizations | I72: 0
A73: Vector Control | I73: 0
A74: Chemical Safety | I74: 0
A75: Economic and environmental services | C75: =C76+C87+C92 -> 294006.94 | D75: 4399 | E75: 636620 | F75: -21782.74 | G75: 207363.74 | H75: 256173.4 | I75: -48809.66 | J75: -0.1905336776 | K75: =K76+K87+K92 -> 636620
A76: Planning and development | C76: =SUM(C77:C86) -> 294006.94 | D76: 4399 | E76: 636620 | F76: -21782.74 | G76: 207363.74 | H76: 256173.4 | I76: -48809.66 | J76: -0.1905336776 | K76: =SUM(K77:K86) -> 636620
A77: Billboards | I77: =G77-H77 -> 0 | J77: =IF(I77=0,"",I77/H77) -> 
A78: Corporate Wide Strategic Planning (IDPs, LEDs) | I78: 0
A79: Central City Improvement District | I79: 0
A80: Development Facilitation | I80: =G80-H80 -> 0 | J80: =IF(I80=0,"",I80/H80) -> 
A81: Economic Development/Planning | C81: 294006.94 | D81: 4399 | E81: 636620 | F81: -21782.74 | G81: 207363.74 | H81: 256173.4 | I81: =G81-H81 -> -48809.66 | J81: =IF(I81=0,"",I81/H81) -> -0.1905336776 | K81: 636620
A82: Regional Planning and Development | I82: =G82-H82 -> 0 | J82: =IF(I82=0,"",I82/H82) -> 
A83: Town Planning, Building Regulations and Enforcement, and City Engineer | I83: =G83-H83 -> 0 | J83: =IF(I83=0,"",I83/H83) -> 
A84: Project Management Unit | I84: 0
A85: Provincial Planning | I85: 0
A86: Support to Local Municipalities | I86: 0
A87: Road transport | C87: =SUM(C88:C91) -> 0 | D87: 0 | E87: 0 | F87: 0 | G87: 0 | H87: 0 | I87: 0 | K87: =SUM(K88:K91) -> 0
A88: Public Transport | I88: 0
A89: Road and Traffic Regulation | I89: 0
A90: Roads | C90: 0 | D90: 0 | E90: 0 | F90: 0 | G90: 0 | H90: 0 | I90: 0 | K90: 0
A91: Taxi Ranks | I91: 0
A92: Environmental protection | C92: =SUM(C93:C98) -> 0 | D92: =SUM(D93:D98) -> 0 | E92: 0 | F92: 0 | G92: 0 | H92: 0 | I92: 0 | K92: 0
A93: Biodiversity and Landscape | I93: 0
A94: Coastal Protection | I94: 0
A95: Indigenous Forests | I95: =G95-H95 -> 0 | J95: =IF(I95=0,"",I95/H95) -> 
A96: Nature Conservation | I96: =G96-H96 -> 0 | J96: =IF(I96=0,"",I96/H96) -> 
A97: Pollution Control | I97: 0
A98: Soil Conservation | I98: 0
A99: Trading services | C99: =C100+C104+C108+C113 -> 28760271.75 | D99: =D100+D104+D108+D113 -> 32356608 | E99: 32356608 | F99: 2538971.24 | G99: 22281666.03 | H99: 24267438 | I99: -1985771.97 | J99: -0.08182866152 | K99: =K100+K104+K108+K113 -> 32356608
A100: Energy sources | C100: =SUM(C101:C103) -> 0 | D100: =SUM(D101:D103) -> 0 | E100: 0 | F100: 0 | G100: 0 | H100: 0 | I100: 0 | K100: 0
A101: Electricity | I101: 0
A102: Street Lighting and Signal Systems | I102: =G102-H102 -> 0 | J102: =IF(I102=0,"",I102/H102) -> 
A103: Nonelectric Energy | I103: 0
A104: Water management | C104: =SUM(C105:C107) -> 0 | D104: =SUM(D105:D107) -> 0 | E104: 0 | F104: 0 | G104: 0 | H104: 0 | I104: 0 | K104: 0
A105: Water Treatment | I105: 0
A106: Water Distribution | I106: =G106-H106 -> 0 | J106: =IF(I106=0,"",I106/H106) -> 
A107: Water Storage | I107: 0
A108: Waste water management | C108: =SUM(C109:C112) -> 0 | D108: =SUM(D109:D112) -> 0 | E108: 0 | F108: 0 | G108: 0 | H108: 0 | I108: 0 | K108: 0
A109: Public Toilets | I109: 0
A110: Sewerage | C110: 0 | D110: 0 | E110: 0 | F110: 0 | G110: 0 | H110: 0 | I110: 0 | K110: 0
A111: Storm Water Management | C111: 0 | D111: 0 | E111: 0 | F111: 0 | G111: 0 | H111: 0 | I111: =G111-H111 -> 0 | J111: =IF(I111=0,"",I111/H111) ->  | K111: 0
A112: Waste Water Treatment | I112: 0
A113: Waste management | C113: =SUM(C114:C117) -> 28760271.75 | D113: 32356608 | E113: 32356608 | F113: 2538971.24 | G113: 22281666.03 | H113: 24267438 | I113: -1985771.97 | J113: -0.08182866152 | K113: =SUM(K114:K117) -> 32356608
A114: Recycling | I114: =G114-H114 -> 0 | J114: =IF(I114=0,"",I114/H114) -> 
A115: Solid Waste Disposal (Landfill Sites) | C115: 28760271.75 | D115: 32356608 | E115: 32356608 | F115: 2538971.24 | G115: 22281666.03 | H115: 24267438 | I115: =G115-H115 -> -1985771.97 | J115: =IF(I115=0,"",I115/H115) -> -0.08182866152 | K115: 32356608
A116: Solid Waste Removal | I116: 0
A117: Street Cleaning | I117: =G117-H117 -> 0 | J117: =IF(I117=0,"",I117/H117) -> 
A118: Other | C118: =SUM(C119:C124) -> 0 | D118: =SUM(D119:D124) -> 0 | E118: 0 | F118: 0 | G118: 0 | H118: 0 | I118: 0 | K118: 0
A119: Abattoirs | I119: 0
A120: Air Transport | I120: 0
A121: Forestry | I121: =G121-H121 -> 0 | J121: =IF(I121=0,"",I121/H121) -> 
A122: Licensing and Regulation | I122: 0
A123: Markets | I123: 0
A124: Tourism | I124: =G124-H124 -> 0 | J124: =IF(I124=0,"",I124/H124) -> 
A125: ="Total "&A5 -> Total Revenue - Functional | B125: 2 | C125: =C6+C26+C75+C99+C118 -> 733458645.1 | D125: 762006586 | E125: 924888162 | F125: 135676848.1 | G125: 617731148.9 | H125: 668074282.4 | I125: =G125-H125 -> -50343133.49 | J125: =IF(I125=0,"",I125/H125) -> -0.07535559266 | K125: =K6+K26+K75+K99+K118 -> 924888162
A127: Expenditure - Functional
A128: =A6 -> Municipal governance and administration | C128: =C129+C132+C146 -> 520142006.9 | D128: 526887673 | E128: 559305191 | F128: 36089007.69 | G128: 408579019.6 | H128: 419789228.2 | I128: =G128-H128 -> -11210208.56 | J128: =IF(I128=0,"",I128/H128) -> -0.02670437402 | K128: =K129+K132+K146 -> 559305191
A129: Executive and council | C129: =SUM(C130:C131) -> 44140866.14 | D129: 100541904 | E129: 115566651 | F129: 12186233.29 | G129: 69981215.76 | H129: 83138830.8 | I129: -13157615.04 | J129: -0.1582607659 | K129: 115566651
A130: Mayor and Council | C130: 36814838.11 | D130: 51291345 | E130: 52491345 | F130: 3329730.79 | G130: 29324577.93 | H130: 39698835 | I130: -10374257.07 | J130: -0.2613239676 | K130: 52491345
A131: Municipal Manager, Town Secretary and Chief Executive | C131: 7326028.03 | D131: 49250559 | E131: 63075306 | F131: 8856502.5 | G131: 40656637.83 | H131: 43439995.8 | I131: -2783357.97 | J131: -0.06407362429 | K131: 63075306
A132: Finance and administration | C132: =SUM(C133:C145) -> 476001140.8 | D132: 426345769 | E132: 443738540 | F132: 23902774.4 | G132: 338597803.9 | H132: 336650397.4 | I132: 1947406.48 | J132: 0.005784655224 | K132: =SUM(K133:K145) -> 443738540
A133: Administrative and Corporate Support | C133: 297137807.9 | D133: 255123058 | E133: 262899429 | F133: 11749413.65 | G133: 101866715.4 | H133: 202133527.4 | I133: -100266812 | J133: -0.4960424591 | K133: 262899429
A134: Asset Management | C134: 0 | D134: 0 | E134: 0 | F134: 0 | G134: 0 | H134: 0 | I134: 0 | K134: 0
A135: Finance | C135: 139624830.4 | D135: 130315398 | E135: 138275398 | F135: 8844123.83 | G135: 204853139.6 | H135: 103083733 | I135: 101769406.6 | J135: 0.9872499146 | K135: 138275398
A136: Fleet Management | I136: 0
A137: Human Resources | I137: 0
A138: Information Technology | I138: 0
A139: Legal Services | I139: 0
A140: Marketing, Customer Relations, Publicity and Media Co-ordination | I140: 0
A141: Property Services | I141: 0
A142: Risk Management | I142: 0
A143: Security Services | C143: 39238502.4 | D143: 40907313 | E143: 42563713 | F143: 3309236.92 | G143: 31877948.88 | H143: 31433137 | I143: 444811.88 | J143: 0.01415104958 | K143: 42563713
A144: Supply Chain Management | I144: 0
A145: Valuation Service | I145: 0
A146: Internal audit | C146: =SUM(C147:C147) -> 0 | D146: 0 | E146: 0 | F146: 0 | G146: 0 | H146: 0 | I146: 0 | K146: =SUM(K147:K147) -> 0
A147: Governance Function | I147: 0
A148: Community and public safety | C148: =C149+C171+C177+C186+C189 -> 9020665.94 | D148: 11448420 | E148: 13889420 | F148: 602247.86 | G148: 8543611.35 | H148: 10312868 | I148: -1769256.65 | J148: -0.1715581592 | K148: =K149+K171+K177+K186+K189 -> 13889420
A149: Community and social services | C149: =SUM(C150:C170) -> 9020665.94 | D149: 11448420 | E149: 13889420 | F149: 602247.86 | G149: 8543611.35 | H149: 10312868 | I149: -1769256.65 | J149: -0.1715581592 | K149: =SUM(K150:K170) -> 13889420
A150: Aged Care | I150: 0
A151: Agricultural | I151: 0
A152: Animal Care and Diseases | I152: 0
A153: Cemeteries, Funeral Parlours and Crematoriums | C153: 5516565.12 | D153: 6875545 | E153: 9416545 | F153: 309294 | G153: 5725011.64 | H153: 6923130 | I153: -1198118.36 | J153: -0.1730602141 | K153: 9416545
A154: Child Care Facilities | I154: 0
A155: Community Halls and Facilities | I155: 0
A156: Consumer Protection | I156: 0
A157: Cultural Matters | I157: =G157-H157 -> 0 | J157: =IF(I157=0,"",I157/H157) -> 
A158: Disaster Management | I158: =G158-H158 -> 0 | J158: =IF(I158=0,"",I158/H158) -> 
A159: Education | I159: =G159-H159 -> 0 | J159: =IF(I159=0,"",I159/H159) -> 
A160: =A38 -> Indigenous and Customary Law | I160: 0
A161: Industrial Promotion | I161: 0
A162: Language Policy | I162: 0
A163: Libraries and Archives | C163: 3504100.82 | D163: 4572875 | E163: 4472875 | F163: 292953.86 | G163: 2818599.71 | H163: 3389738 | I163: -571138.29 | J163: -0.1684903937 | K163: 4472875
A164: Literacy Programmes | I164: 0
A165: Media Services | I165: 0
A166: Museums and Art Galleries | I166: 0
A167: Population Development | I167: 0
A168: Provincial Cultural Matters | I168: 0
A169: Theatres | I169: 0
A170: Zoo's | I170: 0
A171: Sport and recreation | C171: =SUM(C172:C176) -> 0 | D171: 0 | E171: 0 | F171: 0 | G171: 0 | H171: 0 | I171: =G171-H171 -> 0 | J171: =IF(I171=0,"",I171/H171) ->  | K171: 0
A172: Beaches and Jetties | I172: 0
A173: Casinos, Racing, Gambling, Wagering | I173: 0
A174: Community Parks (including Nurseries) | I174: 0
A175: Recreational Facilities | I175: 0
A176: Sports Grounds and Stadiums | I176: 0
A177: Public safety | C177: =SUM(C178:C185) -> 0 | D177: 0 | E177: 0 | F177: 0 | G177: 0 | H177: 0 | I177: 0 | K177: 0
A178: Civil Defence | I178: 0
A179: Cleansing | I179: 0
A180: Control of Public Nuisances | I180: =G180-H180 -> 0 | J180: =IF(I180=0,"",I180/H180) -> 
A181: Fencing and Fences | I181: 0
A182: Fire Fighting and Protection | I182: 0
A183: Licensing and Control of Animals | I183: =G183-H183 -> 0 | J183: =IF(I183=0,"",I183/H183) -> 
A184: Police Forces, Traffic and Street Parking Control | I184: =G184-H184 -> 0 | J184: =IF(I184=0,"",I184/H184) -> 
A185: Pounds | I185: 0
A186: Housing | C186: =SUM(C187:C188) -> 0 | D186: 0 | E186: 0 | F186: 0 | G186: 0 | H186: 0 | I186: =G186-H186 -> 0 | J186: =IF(I186=0,"",I186/H186) ->  | K186: =SUM(K187:K188) -> 0
A187: Housing | I187: =G187-H187 -> 0 | J187: =IF(I187=0,"",I187/H187) -> 
A188: Informal Settlements | I188: =G188-H188 -> 0 | J188: =IF(I188=0,"",I188/H188) -> 
A189: Health | C189: =SUM(C190:C196) -> 0 | D189: 0 | E189: 0 | F189: 0 | G189: 0 | H189: 0 | I189: 0 | K189: 0
A190: Ambulance | I190: 0
A191: Health Services | I191: 0
A192: =A70 -> Laboratory Services | I192: 0
A193: Food Control | I193: =G193-H193 -> 0 | J193: =IF(I193=0,"",I193/H193) -> 
A194: Health Surveillance and Prevention of Communicable Diseases including immunizations | I194: =G194-H194 -> 0 | J194: =IF(I194=0,"",I194/H194) -> 
A195: Vector Control | I195: 0
A196: Chemical Safety | I196: 0
A197: Economic and environmental services | C197: =C198+C209+C214 -> 32974927.49 | D197: 52621175 | E197: 62469022 | F197: 5618408.22 | G197: 30974901.43 | H197: 46105317.8 | I197: -15130416.37 | J197: -0.3281707424 | K197: =K198+K209+K214 -> 62469022
A198: Planning and development | C198: =SUM(C199:C208) -> 10355148.05 | D198: 15059884 | E198: 13301355 | F198: 1085073.9 | G198: 6522512.51 | H198: 10591696.4 | I198: -4069183.89 | J198: -0.3841862282 | K198: 13301355
A199: Billboards | I199: 0
A200: Corporate Wide Strategic Planning (IDPs, LEDs) | I200: 0
A201: Central City Improvement District | I201: 0
... 54 more rows

Sheet C3-FinPerf V
A1: =muni& " - "&S71C& " - "&date -> LIM476 Tubatse Fetakgomo - Table C3 Monthly Budget Statement - Financial Performance (revenue and expenditure by municipal vote) - M09 March
A2: =Vdesc -> Vote Description | B2: =head27 -> Ref | C2: =Head1 -> 2019/20 | D2: =Head2 -> Budget Year 2020/21
C3: =Head5 -> Audited Outcome | D3: =Head6 -> Original Budget | E3: =Head7 -> Adjusted Budget | F3: =Head38 -> Monthly actual | G3: =Head39 -> YearTD actual | H3: =Head40 -> YearTD budget | I3: =Head41 -> YTD variance | J3: =Head41 -> YTD variance | K3: =Head8 -> Full Year Forecast
A4: R thousands | J4: %
A5: Revenue by Vote | B5: 1
A6: ='Org structure'!A2 -> Vote 01 - Corporate Services | C6: ='C3C'!C6 -> 135727.93 | D6: ='C3C'!D6 -> 410774 | E6: ='C3C'!E6 -> 410774 | F6: ='C3C'!F6 -> 260.87 | G6: ='C3C'!G6 -> 69514.84 | H6: ='C3C'!H6 -> 308070 | I6: =G6-H6 -> -238555.16 | J6: =IF(I6=0,"",I6/H6) -> -0.7743537508 | K6: ='C3C'!K6 -> 410774
A7: ='Org structure'!A3 -> Vote 02 - Municipal Manager | C7: ='C3C'!C9 -> 0 | D7: ='C3C'!D9 -> 0 | E7: ='C3C'!E9 -> 0 | F7: ='C3C'!F9 -> 0 | G7: ='C3C'!G9 -> 0 | H7: ='C3C'!H9 -> 0 | I7: 0 | K7: ='C3C'!K9 -> 0
A8: ='Org structure'!A4 -> Vote 03 - Budget And Treasury | C8: ='C3C'!C11 -> 584678058.4 | D8: ='C3C'!D11 -> 618170554 | E8: ='C3C'!E11 -> 722893554 | F8: ='C3C'!F11 -> 123437026.4 | G8: ='C3C'!G11 -> 533928982.5 | H8: ='C3C'!H11 -> 536933945 | I8: -3004962.48 | J8: -0.00559652171 | K8: ='C3C'!K11 -> 722893554
A9: ='Org structure'!A5 -> Vote 04 - Technical Services | C9: ='C3C'!C13 -> 108376630.1 | D9: ='C3C'!D13 -> 83797000 | E9: ='C3C'!E13 -> 141323355 | F9: ='C3C'!F13 -> 8434697.62 | G9: ='C3C'!G13 -> 53421471.2 | H9: ='C3C'!H13 -> 85858289 | I9: -32436817.8 | J9: -0.3777948312 | K9: ='C3C'!K13 -> 141323355
A10: ='Org structure'!A6 -> Vote 05 - Community Services | C10: ='C3C'!C18 -> 39974221.67 | D10: ='C3C'!D18 -> 58486560 | E10: ='C3C'!E18 -> 58486560 | F10: ='C3C'!F18 -> 3826645.9 | G10: ='C3C'!G18 -> 30103816.61 | H10: ='C3C'!H18 -> 43864848 | I10: -13761031.39 | J10: -0.3137143298 | K10: ='C3C'!K18 -> 58486560
A11: ='Org structure'!A7 -> Vote 06 - Development And Planning | C11: ='C3C'!C24 -> 0 | D11: ='C3C'!D24 -> 1137299 | E11: ='C3C'!E24 -> 1137299 | F11: ='C3C'!F24 -> 0 | G11: ='C3C'!G24 -> 0 | H11: ='C3C'!H24 -> 852957 | I11: -852957 | J11: -1 | K11: ='C3C'!K24 -> 1137299
A12: ='Org structure'!A8 -> Vote 07 - Local Economic Development And Tourism | C12: ='C3C'!C27 -> 294006.94 | D12: ='C3C'!D27 -> 4399 | E12: ='C3C'!E27 -> 636620 | F12: ='C3C'!F27 -> -21782.74 | G12: ='C3C'!G27 -> 207363.74 | H12: ='C3C'!H27 -> 256173.4 | I12: -48809.66 | J12: -0.1905336776 | K12: ='C3C'!K27 -> 636620
A13: ='Org structure'!A9 -> Vote 08 - | C13: ='C3C'!C29 -> 0 | D13: ='C3C'!D29 -> 0 | E13: ='C3C'!E29 -> 0 | F13: ='C3C'!F29 -> 0 | G13: ='C3C'!G29 -> 0 | H13: ='C3C'!H29 -> 0 | I13: =G13-H13 -> 0 | J13: =IF(I13=0,"",I13/H13) ->  | K13: ='C3C'!K29 -> 0
A14: ='Org structure'!A10 -> Vote 09 - | C14: ='C3C'!C30 -> 0 | D14: ='C3C'!D30 -> 0 | E14: ='C3C'!E30 -> 0 | F14: ='C3C'!F30 -> 0 | G14: ='C3C'!G30 -> 0 | H14: ='C3C'!H30 -> 0 | I14: 0 | K14: ='C3C'!K30 -> 0
A15: ='Org structure'!A11 -> Vote 10 - | C15: ='C3C'!C31 -> 0 | D15: ='C3C'!D31 -> 0 | E15: ='C3C'!E31 -> 0 | F15: ='C3C'!F31 -> 0 | G15: ='C3C'!G31 -> 0 | H15: ='C3C'!H31 -> 0 | I15: 0 | K15: ='C3C'!K31 -> 0
A16: ='Org structure'!A12 -> Vote 11 - | C16: ='C3C'!C32 -> 0 | D16: ='C3C'!D32 -> 0 | E16: ='C3C'!E32 -> 0 | F16: ='C3C'!F32 -> 0 | G16: ='C3C'!G32 -> 0 | H16: ='C3C'!H32 -> 0 | I16: 0 | K16: ='C3C'!K32 -> 0
A17: ='Org structure'!A13 -> Vote 12 - | C17: ='C3C'!C33 -> 0 | D17: ='C3C'!D33 -> 0 | E17: ='C3C'!E33 -> 0 | F17: ='C3C'!F33 -> 0 | G17: ='C3C'!G33 -> 0 | H17: ='C3C'!H33 -> 0 | I17: 0 | K17: ='C3C'!K33 -> 0
A18: ='Org structure'!A14 -> Vote 13 - | C18: ='C3C'!C34 -> 0 | D18: ='C3C'!D34 -> 0 | E18: ='C3C'!E34 -> 0 | F18: ='C3C'!F34 -> 0 | G18: ='C3C'!G34 -> 0 | H18: ='C3C'!H34 -> 0 | I18: 0 | K18: ='C3C'!K34 -> 0
A19: ='Org structure'!A15 -> Vote 14 - | C19: ='C3C'!C35 -> 0 | D19: ='C3C'!D35 -> 0 | E19: ='C3C'!E35 -> 0 | F19: ='C3C'!F35 -> 0 | G19: ='C3C'!G35 -> 0 | H19: ='C3C'!H35 -> 0 | I19: 0 | K19: ='C3C'!K35 -> 0
A20: ='Org structure'!A16 -> Vote 15 - Other | C20: ='C3C'!C36 -> 0 | D20: ='C3C'!D36 -> 0 | E20: ='C3C'!E36 -> 0 | F20: ='C3C'!F36 -> 0 | G20: ='C3C'!G36 -> 0 | H20: ='C3C'!H36 -> 0 | I20: 0 | K20: ='C3C'!K36 -> 0
A21: Total Revenue by Vote | B21: 2 | C21: =SUM(C6:C20) -> 733458645.1 | D21: =SUM(D6:D20) -> 762006586 | E21: 924888162 | F21: 135676848.1 | G21: 617731148.9 | H21: 668074282.4 | I21: -50343133.49 | J21: -0.07535559266 | K21: =SUM(K6:K20) -> 924888162
A23: Expenditure by Vote | B23: 1
A24: ='Org structure'!A2 -> Vote 01 - Corporate Services | C24: ='C3C'!C40 -> 199642492.8 | D24: ='C3C'!D40 -> 178231380 | E24: ='C3C'!E40 -> 182750099 | F24: ='C3C'!F40 -> 12557509.12 | G24: ='C3C'!G40 -> 101336376.9 | H24: ='C3C'!H40 -> 142951616.6 | I24: =G24-H24 -> -41615239.74 | J24: =IF(I24=0,"",I24/H24) -> -0.2911141597 | K24: ='C3C'!K40 -> 182750099
A25: ='Org structure'!A3 -> Vote 02 - Municipal Manager | C25: ='C3C'!C43 -> 7326028.03 | D25: ='C3C'!D43 -> 49250559 | E25: ='C3C'!E43 -> 63075306 | F25: ='C3C'!F43 -> 8856502.5 | G25: ='C3C'!G43 -> 40656637.83 | H25: ='C3C'!H43 -> 43439995.8 | I25: -2783357.97 | J25: -0.06407362429 | K25: ='C3C'!K43 -> 63075306
A26: ='Org structure'!A4 -> Vote 03 - Budget And Treasury | C26: ='C3C'!C45 -> 139624830.4 | D26: ='C3C'!D45 -> 130315398 | E26: ='C3C'!E45 -> 138275398 | F26: ='C3C'!F45 -> 8844123.83 | G26: ='C3C'!G45 -> 204853139.6 | H26: ='C3C'!H45 -> 103083733 | I26: 101769406.6 | J26: 0.9872499146 | K26: ='C3C'!K45 -> 138275398
A27: ='Org structure'!A5 -> Vote 04 - Technical Services | C27: ='C3C'!C47 -> 140012726.2 | D27: ='C3C'!D47 -> 136772903 | E27: ='C3C'!E47 -> 147879279 | F27: ='C3C'!F47 -> 6002838.18 | G27: ='C3C'!G47 -> 41277535.44 | H27: ='C3C'!H47 -> 109722444.4 | I27: -68444908.96 | J27: -0.6238004388 | K27: ='C3C'!K47 -> 147879279
A28: ='Org structure'!A6 -> Vote 05 - Community Services | C28: ='C3C'!C52 -> 69228942.62 | D28: ='C3C'!D52 -> 77218742 | E28: ='C3C'!E52 -> 89335174 | F28: ='C3C'!F52 -> 6315390.82 | G28: ='C3C'!G52 -> 56769863.97 | H28: ='C3C'!H52 -> 65401095.8 | I28: -8631231.83 | J28: -0.1319738106 | K28: ='C3C'!K52 -> 89335174
A29: ='Org structure'!A7 -> Vote 06 - Development And Planning | C29: ='C3C'!C58 -> 10367494.22 | D29: ='C3C'!D58 -> 20236020 | E29: ='C3C'!E58 -> 25324640 | F29: ='C3C'!F58 -> 535471.66 | G29: ='C3C'!G58 -> 8156909.27 | H29: ='C3C'!H58 -> 18172643 | I29: -10015733.73 | J29: -0.5511434814 | K29: ='C3C'!K58 -> 25324640
A30: ='Org structure'!A8 -> Vote 07 - Local Economic Development And Tourism | C30: ='C3C'!C61 -> 10355148.05 | D30: ='C3C'!D61 -> 15059884 | E30: ='C3C'!E61 -> 13301355 | F30: ='C3C'!F61 -> 1085073.9 | G30: ='C3C'!G61 -> 6522512.51 | H30: ='C3C'!H61 -> 10591696.4 | I30: -4069183.89 | J30: -0.3841862282 | K30: ='C3C'!K61 -> 13301355
A31: ='Org structure'!A9 -> Vote 08 - | C31: ='C3C'!C63 -> 0 | D31: ='C3C'!D63 -> 0 | E31: ='C3C'!E63 -> 0 | F31: ='C3C'!F63 -> 0 | G31: ='C3C'!G63 -> 0 | H31: ='C3C'!H63 -> 0 | I31: =G31-H31 -> 0 | J31: =IF(I31=0,"",I31/H31) ->  | K31: ='C3C'!K63 -> 0
A32: ='Org structure'!A10 -> Vote 09 - | C32: ='C3C'!C64 -> 0 | D32: ='C3C'!D64 -> 0 | E32: ='C3C'!E64 -> 0 | F32: ='C3C'!F64 -> 0 | G32: ='C3C'!G64 -> 0 | H32: ='C3C'!H64 -> 0 | I32: 0 | K32: ='C3C'!K64 -> 0
A33: ='Org structure'!A11 -> Vote 10 - | C33: ='C3C'!C65 -> 0 | D33: ='C3C'!D65 -> 0 | E33: ='C3C'!E65 -> 0 | F33: ='C3C'!F65 -> 0 | G33: ='C3C'!G65 -> 0 | H33: ='C3C'!H65 -> 0 | I33: 0 | J33: =IF(I33=0,"",I33/H33) ->  | K33: ='C3C'!K65 -> 0
A34: ='Org structure'!A12 -> Vote 11 - | C34: ='C3C'!C66 -> 0 | D34: ='C3C'!D66 -> 0 | E34: ='C3C'!E66 -> 0 | F34: ='C3C'!F66 -> 0 | G34: ='C3C'!G66 -> 0 | H34: ='C3C'!H66 -> 0 | I34: 0 | J34: =IF(I34=0,"",I34/H34) ->  | K34: ='C3C'!K66 -> 0
A35: ='Org structure'!A13 -> Vote 12 - | C35: ='C3C'!C67 -> 0 | D35: ='C3C'!D67 -> 0 | E35: ='C3C'!E67 -> 0 | F35: ='C3C'!F67 -> 0 | G35: ='C3C'!G67 -> 0 | H35: ='C3C'!H67 -> 0 | I35: 0 | J35: =IF(I35=0,"",I35/H35) ->  | K35: ='C3C'!K67 -> 0
A36: ='Org structure'!A14 -> Vote 13 - | C36: ='C3C'!C68 -> 0 | D36: ='C3C'!D68 -> 0 | E36: ='C3C'!E68 -> 0 | F36: ='C3C'!F68 -> 0 | G36: ='C3C'!G68 -> 0 | H36: ='C3C'!H68 -> 0 | I36: 0 | J36: =IF(I36=0,"",I36/H36) ->  | K36: ='C3C'!K68 -> 0
A37: ='Org structure'!A15 -> Vote 14 - | C37: ='C3C'!C69 -> 0 | D37: ='C3C'!D69 -> 0 | E37: ='C3C'!E69 -> 0 | F37: ='C3C'!F69 -> 0 | G37: ='C3C'!G69 -> 0 | H37: ='C3C'!H69 -> 0 | I37: 0 | J37: =IF(I37=0,"",I37/H37) ->  | K37: ='C3C'!K69 -> 0
A38: ='Org structure'!A16 -> Vote 15 - Other | C38: ='C3C'!C70 -> 0 | D38: ='C3C'!D70 -> 0 | E38: ='C3C'!E70 -> 0 | F38: ='C3C'!F70 -> 0 | G38: ='C3C'!G70 -> 0 | H38: ='C3C'!H70 -> 0 | I38: 0 | K38: ='C3C'!K70 -> 0
A39: Total Expenditure by Vote | B39: 2 | C39: =SUM(C24:C38) -> 576557662.3 | D39: =SUM(D24:D38) -> 607084886 | E39: 659941251 | F39: 44196910.01 | G39: 459572975.5 | H39: 493363225 | I39: -33790249.52 | J39: =IF(I39=0,"",I39/H39) -> -0.06848959916 | K39: =SUM(K24:K38) -> 659941251
A40: =result -> Surplus/ (Deficit) for the year | B40: 2 | C40: =C21-C39 -> 156900982.8 | D40: 154921700 | E40: 264946911 | F40: 91479938.05 | G40: 158158173.4 | H40: 174711057.4 | I40: =I21-I39 -> -16552883.97 | J40: =IF(I40=0,"",I40/H40) -> -0.09474434084 | K40: =K21-K39 -> 264946911
A41: =head27a -> References
A42: 1. Insert 'Vote'; e.g. Department, if different to standard classification structure
A43: 2. Must reconcile to Monthly Budget Statement - Financial Performance Statement (standard classification)

Sheet C3C
A1: =muni& " - "&S71C& " - "&"A"& " - "&date -> LIM476 Tubatse Fetakgomo - Table C3 Monthly Budget Statement - Financial Performance (revenue and expenditure by municipal vote) - A - M09 March
A2: =Vdesc -> Vote Description | B2: =head27 -> Ref | C2: =Head1 -> 2019/20 | D2: =Head2 -> Budget Year 2020/21 | L2: =Head4 -> 
A3: R thousand | C3: =Head5 -> Audited Outcome | D3: =Head6 -> Original Budget | E3: =Head7 -> Adjusted Budget | F3: =Head38 -> Monthly actual | G3: =Head39 -> YearTD actual | H3: =Head40 -> YearTD budget | I3: =Head41 -> YTD variance | J3: =Head41 -> YTD variance | K3: =Head8 -> Full Year Forecast | L3: =Head12 -> Forecast 2010/11 | M3: =Head13 -> Forecast 2011/12 | N3: =Head14 -> Forecast 2012/13 | O3: =Head15 -> Forecast 2013/14 | P3: =Head16 -> Forecast 2014/15 | Q3: =Head17 -> Forecast 2015/16 | R3: =Head18 -> Forecast 2016/17 | S3: =Head19 -> Forecast 2017/18 | T3: =Head20 -> Forecast 2018/19 | U3: =Head21 -> Forecast 2019/20 | V3: =Head22 -> Forecast 2020/21 | W3: =Head23 -> Forecast 2021/22
J4: %
A5: Revenue by Vote | B5: 1
A6: ='Org structure'!A2 -> Vote 01 - Corporate Services | C6: =SUM(C7:C8) -> 135727.93 | D6: 410774 | E6: 410774 | F6: 260.87 | G6: 69514.84 | H6: 308070 | I6: =G6-H6 -> -238555.16 | J6: =IF(I6=0,"",I6/H6) -> -0.7743537508 | K6: =SUM(K7:K8) -> 410774
A7: ='Org structure'!E3 -> 01.1 - Corporate Services Administration | C7: 135727.93 | D7: 410774 | E7: 410774 | F7: 260.87 | G7: 69514.84 | H7: 308070 | I7: =G7-H7 -> -238555.16 | J7: =IF(I7=0,"",I7/H7) -> -0.7743537508 | K7: 410774
A8: ='Org structure'!E4 -> 01.2 - Executive Support | C8: 0 | D8: 0 | E8: 0 | F8: 0 | G8: 0 | H8: 0 | I8: =G8-H8 -> 0 | J8: =IF(I8=0,"",I8/H8) ->  | K8: 0
A9: ='Org structure'!A3 -> Vote 02 - Municipal Manager | C9: =SUM(C10:C10) -> 0 | D9: 0 | E9: 0 | F9: 0 | G9: 0 | H9: 0 | I9: 0 | K9: =SUM(K10:K10) -> 0
A10: ='Org structure'!E6 -> 02.1 - Municipal Manager Administration | C10: 0 | D10: 0 | E10: 0 | F10: 0 | G10: 0 | H10: 0 | I10: =G10-H10 -> 0 | J10: =IF(I10=0,"",I10/H10) ->  | K10: 0
A11: ='Org structure'!A4 -> Vote 03 - Budget And Treasury | C11: =SUM(C12:C12) -> 584678058.4 | D11: 618170554 | E11: 722893554 | F11: 123437026.4 | G11: 533928982.5 | H11: 536933945 | I11: -3004962.48 | J11: -0.00559652171 | K11: =SUM(K12:K12) -> 722893554
A12: ='Org structure'!E8 -> 03.1 - Finance Services Administration | C12: 584678058.4 | D12: 618170554 | E12: 722893554 | F12: 123437026.4 | G12: 533928982.5 | H12: 536933945 | I12: =G12-H12 -> -3004962.48 | J12: =IF(I12=0,"",I12/H12) -> -0.00559652171 | K12: 722893554
A13: ='Org structure'!A5 -> Vote 04 - Technical Services | C13: =SUM(C14:C17) -> 108376630.1 | D13: 83797000 | E13: 141323355 | F13: 8434697.62 | G13: 53421471.2 | H13: 85858289 | I13: -32436817.8 | J13: -0.3777948312 | K13: =SUM(K14:K17) -> 141323355
A14: ='Org structure'!E10 -> 04.1 - Technical Services Administration | C14: 108376630.1 | D14: 83797000 | E14: 141323355 | F14: 8434697.62 | G14: 53421471.2 | H14: 85858289 | I14: =G14-H14 -> -32436817.8 | J14: =IF(I14=0,"",I14/H14) -> -0.3777948312 | K14: 141323355
A15: ='Org structure'!E11 -> 04.2 - Sewer Disposal | C15: 0 | D15: 0 | E15: 0 | F15: 0 | G15: 0 | H15: 0 | I15: =G15-H15 -> 0 | J15: =IF(I15=0,"",I15/H15) ->  | K15: 0
A16: ='Org structure'!E12 -> 04.3 - Roads | C16: 0 | D16: 0 | E16: 0 | F16: 0 | G16: 0 | H16: 0 | I16: =G16-H16 -> 0 | J16: =IF(I16=0,"",I16/H16) ->  | K16: 0
A17: ='Org structure'!E13 -> 04.4 - Storm Water | C17: 0 | D17: 0 | E17: 0 | F17: 0 | G17: 0 | H17: 0 | I17: =G17-H17 -> 0 | J17: =IF(I17=0,"",I17/H17) ->  | K17: 0
A18: ='Org structure'!A6 -> Vote 05 - Community Services | C18: =SUM(C19:C23) -> 39974221.67 | D18: 58486560 | E18: 58486560 | F18: 3826645.9 | G18: 30103816.61 | H18: 43864848 | I18: -13761031.39 | J18: -0.3137143298 | K18: =SUM(K19:K23) -> 58486560
A19: ='Org structure'!E15 -> 05.1 - Community Services Administration | C19: 1786000 | D19: 1052000 | E19: 1052000 | F19: 43111.99 | G19: 1052000 | H19: 788994 | I19: =G19-H19 -> 263006 | J19: =IF(I19=0,"",I19/H19) -> 0.3333434728 | K19: 1052000
A20: ='Org structure'!E16 -> 05.2 - Protection Services | C20: 8807387.24 | D20: 24917737 | E20: 24917737 | F20: 1233578.67 | G20: 6711626.9 | H20: 18688275 | I20: =G20-H20 -> -11976648.1 | J20: =IF(I20=0,"",I20/H20) -> -0.6408642906 | K20: 24917737
A21: ='Org structure'!E17 -> 05.3 - Cemeteries | C21: 610644.5 | D21: 149059 | E21: 149059 | F21: 9054.78 | G21: 55804.4 | H21: 111780 | I21: =G21-H21 -> -55975.6 | J21: =IF(I21=0,"",I21/H21) -> -0.5007657899 | K21: 149059
A22: ='Org structure'!E18 -> 05.4 - Libraries | C22: 9918.18 | D22: 11156 | E22: 11156 | F22: 1929.22 | G22: 2719.28 | H22: 8361 | I22: =G22-H22 -> -5641.72 | J22: =IF(I22=0,"",I22/H22) -> -0.6747661763 | K22: 11156
A23: ='Org structure'!E19 -> 05.5 - Refuse Removal Services | C23: 28760271.75 | D23: 32356608 | E23: 32356608 | F23: 2538971.24 | G23: 22281666.03 | H23: 24267438 | I23: =G23-H23 -> -1985771.97 | J23: =IF(I23=0,"",I23/H23) -> -0.08182866152 | K23: 32356608
A24: ='Org structure'!A7 -> Vote 06 - Development And Planning | C24: =SUM(C25:C26) -> 0 | D24: 1137299 | E24: 1137299 | F24: 0 | G24: 0 | H24: 852957 | I24: -852957 | J24: -1 | K24: =SUM(K25:K26) -> 1137299
A25: ='Org structure'!E21 -> 06.1 - Dvp Services Administration | C25: 0 | D25: 1137299 | E25: 1137299 | F25: 0 | G25: 0 | H25: 852957 | I25: =G25-H25 -> -852957 | J25: =IF(I25=0,"",I25/H25) -> -1 | K25: 1137299
A26: ='Org structure'!E22 -> 06.2 - Municipal Buildings | C26: 0 | D26: 0 | E26: 0 | F26: 0 | G26: 0 | H26: 0 | I26: =G26-H26 -> 0 | J26: =IF(I26=0,"",I26/H26) ->  | K26: 0
A27: ='Org structure'!A8 -> Vote 07 - Local Economic Development And Tourism | C27: =SUM(C28:C28) -> 294006.94 | D27: 4399 | E27: 636620 | F27: -21782.74 | G27: 207363.74 | H27: 256173.4 | I27: =G27-H27 -> -48809.66 | J27: =IF(I27=0,"",I27/H27) -> -0.1905336776 | K27: =SUM(K28:K28) -> 636620
A28: ='Org structure'!E24 -> 07.1 - Economic & Land Development Admini | C28: 294006.94 | D28: 4399 | E28: 636620 | F28: -21782.74 | G28: 207363.74 | H28: 256173.4 | I28: =G28-H28 -> -48809.66 | J28: =IF(I28=0,"",I28/H28) -> -0.1905336776 | K28: 636620
A29: ='Org structure'!A9 -> Vote 08 - | C29: 0 | D29: 0 | E29: 0 | F29: 0 | G29: 0 | H29: 0 | I29: 0 | K29: 0
A30: ='Org structure'!A10 -> Vote 09 - | C30: 0 | D30: 0 | E30: 0 | F30: 0 | G30: 0 | H30: 0 | I30: 0 | K30: 0
A31: ='Org structure'!A11 -> Vote 10 - | C31: 0 | D31: 0 | E31: 0 | F31: 0 | G31: 0 | H31: 0 | I31: 0 | K31: 0
A32: ='Org structure'!A12 -> Vote 11 - | C32: 0 | D32: 0 | E32: 0 | F32: 0 | G32: 0 | H32: 0 | I32: 0 | K32: 0
A33: ='Org structure'!A13 -> Vote 12 - | C33: 0 | D33: 0 | E33: 0 | F33: 0 | G33: 0 | H33: 0 | I33: 0 | K33: 0
A34: ='Org structure'!A14 -> Vote 13 - | C34: 0 | D34: 0 | E34: 0 | F34: 0 | G34: 0 | H34: 0 | I34: =G34-H34 -> 0 | J34: =IF(I34=0,"",I34/H34) ->  | K34: 0
A35: ='Org structure'!A15 -> Vote 14 - | C35: 0 | D35: 0 | E35: 0 | F35: 0 | G35: 0 | H35: 0 | I35: 0 | K35: 0
A36: ='Org structure'!A16 -> Vote 15 - Other | C36: 0 | D36: 0 | E36: 0 | F36: 0 | G36: 0 | H36: 0 | I36: 0 | K36: 0
A37: Total Revenue by Vote | B37: 2 | C37: =C6+C9+C11+C13+C18+C24+C27+C29+C30+C31+C32+C33+C34+C35+C36 -> 733458645.1 | D37: 762006586 | E37: 924888162 | F37: 135676848.1 | G37: 617731148.9 | H37: 668074282.4 | I37: -50343133.49 | J37: -0.07535559266 | K37: =K6+K9+K11+K13+K18+K24+K27+K29+K30+K31+K32+K33+K34+K35+K36 -> 924888162
I38: 0
A39: Expenditure by Vote | B39: 1 | I39: 0
A40: ='Org structure'!A2 -> Vote 01 - Corporate Services | C40: =SUM(C41:C42) -> 199642492.8 | D40: 178231380 | E40: 182750099 | F40: 12557509.12 | G40: 101336376.9 | H40: 142951616.6 | I40: -41615239.74 | J40: -0.2911141597 | K40: =SUM(K41:K42) -> 182750099
A41: ='Org structure'!E3 -> 01.1 - Corporate Services Administration | C41: 162827654.6 | D41: 126940035 | E41: 130258754 | F41: 9227778.33 | G41: 72011798.93 | H41: 103252781.6 | I41: =G41-H41 -> -31240982.67 | J41: =IF(I41=0,"",I41/H41) -> -0.302567952 | K41: 130258754
A42: ='Org structure'!E4 -> 01.2 - Executive Support | C42: 36814838.11 | D42: 51291345 | E42: 52491345 | F42: 3329730.79 | G42: 29324577.93 | H42: 39698835 | I42: =G42-H42 -> -10374257.07 | J42: =IF(I42=0,"",I42/H42) -> -0.2613239676 | K42: 52491345
A43: ='Org structure'!A3 -> Vote 02 - Municipal Manager | C43: =SUM(C44:C44) -> 7326028.03 | D43: 49250559 | E43: 63075306 | F43: 8856502.5 | G43: 40656637.83 | H43: 43439995.8 | I43: -2783357.97 | J43: -0.06407362429 | K43: =SUM(K44:K44) -> 63075306
A44: ='Org structure'!E6 -> 02.1 - Municipal Manager Administration | C44: 7326028.03 | D44: 49250559 | E44: 63075306 | F44: 8856502.5 | G44: 40656637.83 | H44: 43439995.8 | I44: =G44-H44 -> -2783357.97 | J44: =IF(I44=0,"",I44/H44) -> -0.06407362429 | K44: 63075306
A45: ='Org structure'!A4 -> Vote 03 - Budget And Treasury | C45: =SUM(C46:C46) -> 139624830.4 | D45: 130315398 | E45: 138275398 | F45: 8844123.83 | G45: 204853139.6 | H45: 103083733 | I45: 101769406.6 | J45: 0.9872499146 | K45: =SUM(K46:K46) -> 138275398
A46: ='Org structure'!E8 -> 03.1 - Finance Services Administration | C46: 139624830.4 | D46: 130315398 | E46: 138275398 | F46: 8844123.83 | G46: 204853139.6 | H46: 103083733 | I46: =G46-H46 -> 101769406.6 | J46: =IF(I46=0,"",I46/H46) -> 0.9872499146 | K46: 138275398
A47: ='Org structure'!A5 -> Vote 04 - Technical Services | C47: =SUM(C48:C51) -> 140012726.2 | D47: 136772903 | E47: 147879279 | F47: 6002838.18 | G47: 41277535.44 | H47: 109722444.4 | I47: =G47-H47 -> -68444908.96 | J47: =IF(I47=0,"",I47/H47) -> -0.6238004388 | K47: =SUM(K48:K51) -> 147879279
A48: ='Org structure'!E10 -> 04.1 - Technical Services Administration | C48: 117392946.7 | D48: 99211612 | E48: 98711612 | F48: 1469503.86 | G48: 16825146.52 | H48: 74208823 | I48: =G48-H48 -> -57383676.48 | J48: =IF(I48=0,"",I48/H48) -> -0.7732729635 | K48: 98711612
A49: ='Org structure'!E11 -> 04.2 - Sewer Disposal | C49: 0 | D49: 0 | E49: 0 | F49: 0 | G49: 0 | H49: 0 | I49: =G49-H49 -> 0 | J49: =IF(I49=0,"",I49/H49) ->  | K49: 0
A50: ='Org structure'!E12 -> 04.3 - Roads | C50: 22619779.44 | D50: 37561291 | E50: 49167667 | F50: 4533334.32 | G50: 24452388.92 | H50: 35513621.4 | I50: =G50-H50 -> -11061232.48 | J50: =IF(I50=0,"",I50/H50) -> -0.3114645042 | K50: 49167667
A51: ='Org structure'!E13 -> 04.4 - Storm Water | C51: 0 | D51: 0 | E51: 0 | F51: 0 | G51: 0 | H51: 0 | I51: =G51-H51 -> 0 | J51: =IF(I51=0,"",I51/H51) ->  | K51: 0
A52: ='Org structure'!A6 -> Vote 05 - Community Services | C52: =SUM(C53:C57) -> 69228942.62 | D52: 77218742 | E52: 89335174 | F52: 6315390.82 | G52: 56769863.97 | H52: 65401095.8 | I52: -8631231.83 | J52: -0.1319738106 | K52: =SUM(K53:K57) -> 89335174
A53: ='Org structure'!E15 -> 05.1 - Community Services Administration | C53: 6549712.37 | D53: 8735391 | E53: 8604423 | F53: 516659.8 | G53: 4872860.68 | H53: 6499279.8 | I53: =G53-H53 -> -1626419.12 | J53: =IF(I53=0,"",I53/H53) -> -0.2502460534 | K53: 8604423
A54: ='Org structure'!E16 -> 05.2 - Protection Services | C54: 39238502.4 | D54: 40907313 | E54: 42563713 | F54: 3309236.92 | G54: 31877948.88 | H54: 31433137 | I54: =G54-H54 -> 444811.88 | J54: =IF(I54=0,"",I54/H54) -> 0.01415104958 | K54: 42563713
A55: ='Org structure'!E17 -> 05.3 - Cemeteries | C55: 5516565.12 | D55: 6875545 | E55: 9416545 | F55: 309294 | G55: 5725011.64 | H55: 6923130 | I55: =G55-H55 -> -1198118.36 | J55: =IF(I55=0,"",I55/H55) -> -0.1730602141 | K55: 9416545
A56: ='Org structure'!E18 -> 05.4 - Libraries | C56: 3504100.82 | D56: 4572875 | E56: 4472875 | F56: 292953.86 | G56: 2818599.71 | H56: 3389738 | I56: =G56-H56 -> -571138.29 | J56: =IF(I56=0,"",I56/H56) -> -0.1684903937 | K56: 4472875
A57: ='Org structure'!E19 -> 05.5 - Refuse Removal Services | C57: 14420061.91 | D57: 16127618 | E57: 24277618 | F57: 1887246.24 | G57: 11475443.06 | H57: 17155811 | I57: =G57-H57 -> -5680367.94 | J57: =IF(I57=0,"",I57/H57) -> -0.3311046001 | K57: 24277618
A58: ='Org structure'!A7 -> Vote 06 - Development And Planning | C58: =SUM(C59:C60) -> 10367494.22 | D58: 20236020 | E58: 25324640 | F58: 535471.66 | G58: 8156909.27 | H58: 18172643 | I58: -10015733.73 | J58: -0.5511434814 | K58: =SUM(K59:K60) -> 25324640
A59: ='Org structure'!E21 -> 06.1 - Dvp Services Administration | C59: 10367494.22 | D59: 20236020 | E59: 25324640 | F59: 535471.66 | G59: 8156909.27 | H59: 18172643 | I59: =G59-H59 -> -10015733.73 | J59: =IF(I59=0,"",I59/H59) -> -0.5511434814 | K59: 25324640
A60: ='Org structure'!E22 -> 06.2 - Municipal Buildings | C60: 0 | D60: 0 | E60: 0 | F60: 0 | G60: 0 | H60: 0 | I60: =G60-H60 -> 0 | J60: =IF(I60=0,"",I60/H60) ->  | K60: 0
A61: ='Org structure'!A8 -> Vote 07 - Local Economic Development And Tourism | C61: =SUM(C62:C62) -> 10355148.05 | D61: 15059884 | E61: 13301355 | F61: 1085073.9 | G61: 6522512.51 | H61: 10591696.4 | I61: -4069183.89 | J61: -0.3841862282 | K61: =SUM(K62:K62) -> 13301355
A62: ='Org structure'!E24 -> 07.1 - Economic & Land Development Admini | C62: 10355148.05 | D62: 15059884 | E62: 13301355 | F62: 1085073.9 | G62: 6522512.51 | H62: 10591696.4 | I62: =G62-H62 -> -4069183.89 | J62: =IF(I62=0,"",I62/H62) -> -0.3841862282 | K62: 13301355
A63: ='Org structure'!A9 -> Vote 08 - | C63: 0 | D63: 0 | E63: 0 | F63: 0 | G63: 0 | H63: 0 | I63: 0 | K63: 0
A64: ='Org structure'!A10 -> Vote 09 - | C64: 0 | D64: 0 | E64: 0 | F64: 0 | G64: 0 | H64: 0 | I64: =G64-H64 -> 0 | J64: =IF(I64=0,"",I64/H64) ->  | K64: 0
A65: ='Org structure'!A11 -> Vote 10 - | C65: 0 | D65: 0 | E65: 0 | F65: 0 | G65: 0 | H65: 0 | I65: 0 | K65: 0
A66: ='Org structure'!A12 -> Vote 11 - | C66: 0 | D66: 0 | E66: 0 | F66: 0 | G66: 0 | H66: 0 | I66: 0 | K66: 0
A67: ='Org structure'!A13 -> Vote 12 - | C67: 0 | D67: 0 | E67: 0 | F67: 0 | G67: 0 | H67: 0 | I67: 0 | K67: 0
A68: ='Org structure'!A14 -> Vote 13 - | C68: 0 | D68: 0 | E68: 0 | F68: 0 | G68: 0 | H68: 0 | I68: 0 | K68: 0
A69: ='Org structure'!A15 -> Vote 14 - | C69: 0 | D69: 0 | E69: 0 | F69: 0 | G69: 0 | H69: 0 | I69: 0 | K69: 0
A70: ='Org structure'!A16 -> Vote 15 - Other | C70: 0 | D70: 0 | E70: 0 | F70: 0 | G70: 0 | H70: 0 | I70: =G70-H70 -> 0 | J70: =IF(I70=0,"",I70/H70) ->  | K70: 0
A71: Total Expenditure by Vote | B71: 2 | C71: =C40+C43+C45+C47+C52+C58+C61+C63+C64+C65+C66+C67+C68+C69+C70 -> 576557662.3 | D71: 607084886 | E71: 659941251 | F71: 44196910.01 | G71: 459572975.5 | H71: 493363225 | I71: -33790249.52 | J71: -0.06848959916 | K71: =K40+K43+K45+K47+K52+K58+K61+K63+K64+K65+K66+K67+K68+K69+K70 -> 659941251
I72: 0 | L72: =#REF!-#REF! ->  | M72: =#REF!-#REF! ->  | N72: =#REF!-#REF! ->  | O72: =#REF!-#REF! ->  | P72: =#REF!-#REF! ->  | Q72: =#REF!-#REF! ->  | R72: =#REF!-#REF! ->  | S72: =#REF!-#REF! ->  | T72: =#REF!-#REF! ->  | U72: =#REF!-#REF! ->  | V72: =#REF!-#REF! ->  | W72: =#REF!-#REF! -> 
A73: =result -> Surplus/ (Deficit) for the year | B73: 2 | C73: =C37-C71 -> 156900982.8 | D73: 154921700 | E73: 264946911 | F73: 91479938.05 | G73: 158158173.4 | H73: 174711057.4 | I73: -16552883.97 | J73: -0.09474434084 | K73: =K37-K71 -> 264946911
A74: =head27a -> References
A75: 1. Insert 'Vote'; e.g. Department, if different to standard structure
A76: 2. Must reconcile to Financial Performance ('Revenue and Expenditure by Standard Classification' and 'Revenue and Expenditure')
A77: 3. Assign share in 'associate' to relevant Vote
A79: check revenue
A80: check expenditure

Sheet C4-FinPerf RE
A1: =muni& " - "&S71B& " - "&date -> LIM476 Tubatse Fetakgomo - Table C4 Monthly Budget Statement - Financial Performance (revenue and expenditure) - M09 March
A2: =desc -> Description | B2: =head27 -> Ref | C2: =Head1 -> 2019/20 | D2: =Head2 -> Budget Year 2020/21
C3: =Head5 -> Audited Outcome | D3: =Head6 -> Original Budget | E3: =Head7 -> Adjusted Budget | F3: =Head38 -> Monthly actual | G3: =Head39 -> YearTD actual | H3: =Head40 -> YearTD budget | I3: =Head41 -> YTD variance | J3: =Head41 -> YTD variance | K3: =Head8 -> Full Year Forecast
A4: R thousands | J4: %
A5: Revenue By Source
A6: Property rates | C6: 112040267.7 | D6: 121787199 | E6: 121787199 | F6: 9282087.83 | G6: 91106400.79 | H6: 91340370 | I6: =G6-H6 -> -233969.21 | J6: =IF(I6=0,"",I6/H6) -> -0.00256150933 | K6: 121787199
A7: Service charges - electricity revenue | C7: 0 | D7: 0 | E7: 0 | F7: 0 | G7: 0 | H7: 0 | I7: 0 | K7: 0
A8: Service charges - water revenue | C8: 0 | D8: 0 | E8: 0 | F8: 0 | G8: 0 | H8: 0 | I8: 0 | K8: 0
A9: Service charges - sanitation revenue | I9: 0
A10: Service charges - refuse revenue | C10: 21779433.75 | D10: 25921465 | E10: 25921465 | F10: 1952028.42 | G10: 17155280.55 | H10: 19441098 | I10: -2285817.45 | J10: -0.1175765613 | K10: 25921465
A12: Rental of facilities and equipment | C12: 309317.78 | D12: 281159 | E12: 281159 | F12: 32669.26 | G12: 320253.91 | H12: 210852 | I12: 109401.91 | J12: 0.5188564016 | K12: 281159
A13: Interest earned - external investments | C13: 9951564.51 | D13: 10485868 | E13: 10485868 | F13: 355427.57 | G13: 4504882.87 | H13: 7864398 | I13: -3359515.13 | J13: -0.4271802025 | K13: 10485868
A14: Interest earned - outstanding debtors | C14: 32880547.32 | D14: 34928763 | E14: 34928763 | F14: 1101177.14 | G14: 19175315.4 | H14: 26196561 | I14: -7021245.6 | J14: -0.2680216537 | K14: 34928763
A15: Dividends received | C15: 0 | D15: 0 | E15: 0 | F15: 0 | G15: 0 | H15: 0 | I15: 0 | K15: 0
A16: Fines, penalties and forfeits | C16: 1915468.18 | D16: 3419303 | E16: 3419303 | F16: 1929.22 | G16: 12469.28 | H16: 2564469 | I16: -2551999.72 | J16: -0.9951376757 | K16: 3419303
A17: Licences and permits | C17: 3252480.77 | D17: 16528706 | E17: 16528706 | F17: 818176.06 | G17: 3111347.32 | H17: 12396510 | I17: -9285162.68 | J17: -0.7490142532 | K17: 16528706
A18: Agency services | C18: 3649356.47 | D18: 4980884 | E18: 4980884 | F18: 415402.61 | G18: 3590529.58 | H18: 3735657 | I18: -145127.42 | J18: -0.03884923589 | K18: 4980884
A19: Transfers and subsidies | C19: 420867989.5 | D19: 456109000 | E19: 560832000 | F19: 113263237.9 | G19: 424700031.2 | H19: 415387838 | I19: 9312193.2 | J19: 0.02241806897 | K19: 560832000
A20: Other revenue | C20: 965588.96 | D20: 3763940 | E20: 4347529 | F20: 20014.44 | G20: 633166.81 | H20: 3056321.6 | I20: -2423154.79 | J20: -0.792833709 | K20: 4347529
A21: Gains | C21: 17470000 | D21: 0 | E21: 0 | F21: 0 | G21: 0 | H21: 0 | I21: 0 | K21: 0
A22: Total Revenue (excluding capital transfers and contributions) | C22: =SUM(C6:C10)+SUM(C12:C21) -> 625082014.9 | D22: 678206287 | E22: 783512876 | F22: 127242150.4 | G22: 564309677.7 | H22: 582194074.6 | I22: -17884396.89 | J22: -0.03071896069 | K22: =SUM(K6:K10)+SUM(K12:K21) -> 783512876
A24: Expenditure By Type
A25: Employee related costs | C25: 175835152.2 | D25: 200681339 | E25: 199255586 | F25: 14627091.25 | G25: 138026380.7 | H25: 150001693.8 | I25: =G25-H25 -> -11975313.14 | J25: =IF(I25=0,"",I25/H25) -> -0.07983451944 | K25: 199255586
A26: Remuneration of councillors | C26: 31961761.23 | D26: 35684835 | E26: 35684835 | F26: 2502090.06 | G26: 22220910.54 | H26: 26763687 | I26: -4542776.46 | J26: -0.169736571 | K26: 35684835
A27: Debt impairment | C27: 92970717.64 | D27: 41688529 | E27: 41688529 | F27: 865269.9 | G27: 149874519.7 | H27: 31266405 | I27: 118608114.7 | J27: 3.793468252 | K27: 41688529
A28: Depreciation & asset impairment | C28: 105980217.8 | D28: 89877203 | E28: 89677203 | F28: 0 | G28: 0 | H28: 67327921 | I28: -67327921 | J28: -1 | K28: 89677203
A29: Finance charges | C29: 842599.41 | D29: 954967 | E29: 1354967 | F29: 2071.5 | G29: 2071.5 | H29: 996229 | I29: -994157.5 | J29: -0.9979206588 | K29: 1354967
A30: Bulk purchases | I30: 0
A31: Other materials | C31: 1787552.27 | D31: 6657370 | E31: 9757370 | F31: 47403.97 | G31: 5772256.89 | H31: 6876380.36 | I31: -1104123.47 | J31: -0.1605675388 | K31: 9757370
A32: Contracted services | C32: 98064389.98 | D32: 145508224 | E32: 192717623 | F32: 19734388.42 | G32: 99766853.83 | H32: 137846339.2 | I32: -38079485.4 | J32: -0.2762458953 | K32: 192717623
A33: Transfers and subsidies | C33: 845054.87 | D33: 1371624 | E33: 1721624 | F33: 11382.61 | G33: 443516.72 | H33: 1168736 | I33: -725219.28 | J33: -0.6205159078 | K33: 1721624
A34: Other expenditure | C34: 64582304.38 | D34: 84660795 | E34: 88083514 | F34: 6407212.3 | G34: 43466465.61 | H34: 71115833.61 | I34: -27649368 | J34: -0.3887934177 | K34: 88083514
A35: Losses | C35: 3687912.51 | D35: 0 | E35: 0 | F35: 0 | G35: 0 | H35: 0 | I35: 0 | K35: 0
A36: Total Expenditure | C36: =SUM(C25:C35) -> 576557662.3 | D36: =SUM(D25:D35) -> 607084886 | E36: =SUM(E25:E35) -> 659941251 | F36: 44196910.01 | G36: 459572975.5 | H36: 493363225 | I36: -33790249.52 | J36: -0.06848959916 | K36: 659941251
A38: Surplus/(Deficit) | C38: =C22-C36 -> 48524352.68 | D38: 71121401 | E38: 123571625 | F38: 83045240.43 | G38: 104736702.2 | H38: 88830849.6 | I38: =I22-I36 -> 15905852.63 | J38: 0.1790577564 | K38: =K22-K36 -> 123571625
A39: Transfers and subsidies - capital (monetary allocations) (National / Provincial and District) | C39: 108376630.1 | D39: 83797000 | E39: 113066057 | F39: 5586283.22 | G39: 40957372.49 | H39: 74555369.8 | I39: =G39-H39 -> -33597997.31 | J39: -0.4506449019 | K39: 113066057
A40: Transfers and subsidies - capital (monetary allocations) (National / Provincial Departmental Agencies, Households, Non-profit Institutions, Private Enterprises, Public Corporatons, Higher Educational Institutions) | C40: 0 | D40: 3299 | E40: 51931 | F40: 0 | G40: 0 | H40: 21918.8 | I40: =G40-H40 -> -21918.8 | J40: -1 | K40: 51931
A41: Transfers and subsidies - capital (in-kind - all) | C41: 0 | D41: 0 | E41: 28257298 | F41: 2848414.4 | G41: 12464098.71 | H41: 11302919.2 | I41: =G41-H41 -> 1161179.51 | J41: 0.1027327091 | K41: 28257298
A42: Surplus/(Deficit) after capital transfers & contributions | C42: =C38+SUM(C39:C41) -> 156900982.8 | D42: 154921700 | E42: 264946911 | F42: 91479938.05 | G42: 158158173.4 | H42: 174711057.4 | K42: =K38+SUM(K39:K41) -> 264946911
A43: Taxation | I43: =G43-H43 -> 0 | J43: =IF(I43=0,"",I43/H43) -> 
A44: Surplus/(Deficit) after taxation | C44: =C42-C43 -> 156900982.8 | D44: 154921700 | E44: 264946911 | F44: 91479938.05 | G44: 158158173.4 | H44: 174711057.4 | K44: =K42-K43 -> 264946911
A45: Attributable to minorities
A46: Surplus/(Deficit) attributable to municipality | C46: =SUM(C44:C45) -> 156900982.8 | D46: 154921700 | E46: 264946911 | F46: 91479938.05 | G46: 158158173.4 | H46: 174711057.4 | K46: =SUM(K44:K45) -> 264946911
A47: Share of surplus/ (deficit) of associate
A48: Surplus/ (Deficit) for the year | C48: =C46+C47 -> 156900982.8 | D48: 154921700 | E48: 264946911 | F48: 91479938.05 | G48: 158158173.4 | H48: 174711057.4 | K48: =K46+K47 -> 264946911
A49: =head27a -> References
A50: 1. Material variances to be explained on Table SC1
A53: =A22&" including capital transfers/contributions etc" -> Total Revenue (excluding capital transfers and contributions) including capital transfers/contributions etc | C53: =C22+SUM(C39:C41) -> 733458645.1 | D53: 762006586 | E53: 924888162 | F53: 135676848.1 | G53: 617731148.9 | H53: 668074282.4 | K53: =K22+SUM(K39:K41) -> 924888162

Sheet C5-Capex
A1: =muni& " - "&S71D& " - "&date -> LIM476 Tubatse Fetakgomo - Table C5 Monthly Budget Statement - Capital Expenditure (municipal vote, functional classification and funding) - M09 March
A2: =Vdesc -> Vote Description | B2: =head27 -> Ref | C2: =Head1 -> 2019/20 | D2: =Head2 -> Budget Year 2020/21
C3: =Head5 -> Audited Outcome | D3: =Head6 -> Original Budget | E3: =Head7 -> Adjusted Budget | F3: =Head38 -> Monthly actual | G3: =Head39 -> YearTD actual | H3: =Head40 -> YearTD budget | I3: =Head41 -> YTD variance | J3: =Head41 -> YTD variance | K3: =Head8 -> Full Year Forecast
A4: R thousands | B4: 1 | J4: %
A5: Multi-Year expenditure appropriation | B5: 2
A6: ='Org structure'!A2 -> Vote 01 - Corporate Services | C6: ='C5C'!C7 -> 2620328 | D6: ='C5C'!D7 -> 17536000 | E6: ='C5C'!E7 -> 72950000 | F6: ='C5C'!F7 -> 0 | G6: ='C5C'!G7 -> 60128796.29 | H6: ='C5C'!H7 -> 50771842 | I6: =G6-H6 -> 9356954.29 | J6: =IF(I6=0,"",I6/H6) -> 0.1842941662 | K6: ='C5C'!K7 -> 72950000
A7: ='Org structure'!A3 -> Vote 02 - Municipal Manager | C7: ='C5C'!C10 -> 0 | D7: ='C5C'!D10 -> 1150000 | E7: ='C5C'!E10 -> 1450000 | F7: ='C5C'!F10 -> 0 | G7: ='C5C'!G10 -> 0 | H7: ='C5C'!H10 -> 1072506 | I7: -1072506 | J7: -1 | K7: ='C5C'!K10 -> 1450000
A8: ='Org structure'!A4 -> Vote 03 - Budget And Treasury | C8: ='C5C'!C12 -> 0 | D8: ='C5C'!D12 -> 0 | E8: ='C5C'!E12 -> 0 | F8: ='C5C'!F12 -> 0 | G8: ='C5C'!G12 -> 0 | H8: ='C5C'!H12 -> 0 | I8: 0 | K8: ='C5C'!K12 -> 0
A9: ='Org structure'!A5 -> Vote 04 - Technical Services | C9: ='C5C'!C14 -> 38583236.19 | D9: ='C5C'!D14 -> 30000000 | E9: ='C5C'!E14 -> 72057298 | F9: ='C5C'!F14 -> 5536578.79 | G9: ='C5C'!G14 -> 15025206.97 | H9: ='C5C'!H14 -> 39322946.2 | I9: -24297739.23 | J9: -0.6179023084 | K9: ='C5C'!K14 -> 72057298
A10: ='Org structure'!A6 -> Vote 05 - Community Services | C10: ='C5C'!C19 -> 26130678.55 | D10: ='C5C'!D19 -> 33803250 | E10: ='C5C'!E19 -> 22700358 | F10: ='C5C'!F19 -> 2308221.07 | G10: ='C5C'!G19 -> 9327627.01 | H10: ='C5C'!H19 -> 20911330.2 | I10: -11583703.19 | J10: -0.5539438706 | K10: ='C5C'!K19 -> 22700358
A11: ='Org structure'!A7 -> Vote 06 - Development And Planning | C11: ='C5C'!C25 -> 0 | D11: ='C5C'!D25 -> 0 | E11: ='C5C'!E25 -> 0 | F11: ='C5C'!F25 -> 0 | G11: ='C5C'!G25 -> 0 | H11: ='C5C'!H25 -> 0 | I11: 0 | K11: ='C5C'!K25 -> 0
A12: ='Org structure'!A8 -> Vote 07 - Local Economic Development And Tourism | C12: ='C5C'!C28 -> 0 | D12: ='C5C'!D28 -> 0 | E12: ='C5C'!E28 -> 0 | F12: ='C5C'!F28 -> 0 | G12: ='C5C'!G28 -> 0 | H12: ='C5C'!H28 -> 0 | I12: 0 | K12: ='C5C'!K28 -> 0
A13: ='Org structure'!A9 -> Vote 08 - | C13: ='C5C'!C30 -> 0 | D13: ='C5C'!D30 -> 0 | E13: ='C5C'!E30 -> 0 | F13: ='C5C'!F30 -> 0 | G13: ='C5C'!G30 -> 0 | H13: ='C5C'!H30 -> 0 | I13: =G13-H13 -> 0 | J13: =IF(I13=0,"",I13/H13) ->  | K13: ='C5C'!K30 -> 0
A14: ='Org structure'!A10 -> Vote 09 - | C14: ='C5C'!C31 -> 0 | D14: ='C5C'!D31 -> 0 | E14: ='C5C'!E31 -> 0 | F14: ='C5C'!F31 -> 0 | G14: ='C5C'!G31 -> 0 | H14: ='C5C'!H31 -> 0 | I14: 0 | K14: ='C5C'!K31 -> 0
A15: ='Org structure'!A11 -> Vote 10 - | C15: ='C5C'!C32 -> 0 | D15: ='C5C'!D32 -> 0 | E15: ='C5C'!E32 -> 0 | F15: ='C5C'!F32 -> 0 | G15: ='C5C'!G32 -> 0 | H15: ='C5C'!H32 -> 0 | I15: 0 | K15: ='C5C'!K32 -> 0
A16: ='Org structure'!A12 -> Vote 11 - | C16: ='C5C'!C33 -> 0 | D16: ='C5C'!D33 -> 0 | E16: ='C5C'!E33 -> 0 | F16: ='C5C'!F33 -> 0 | G16: ='C5C'!G33 -> 0 | H16: ='C5C'!H33 -> 0 | I16: 0 | K16: ='C5C'!K33 -> 0
A17: ='Org structure'!A13 -> Vote 12 - | C17: ='C5C'!C34 -> 0 | D17: ='C5C'!D34 -> 0 | E17: ='C5C'!E34 -> 0 | F17: ='C5C'!F34 -> 0 | G17: ='C5C'!G34 -> 0 | H17: ='C5C'!H34 -> 0 | I17: 0 | K17: ='C5C'!K34 -> 0
A18: ='Org structure'!A14 -> Vote 13 - | C18: ='C5C'!C35 -> 0 | D18: ='C5C'!D35 -> 0 | E18: ='C5C'!E35 -> 0 | F18: ='C5C'!F35 -> 0 | G18: ='C5C'!G35 -> 0 | H18: ='C5C'!H35 -> 0 | I18: =G18-H18 -> 0 | J18: =IF(I18=0,"",I18/H18) ->  | K18: ='C5C'!K35 -> 0
A19: ='Org structure'!A15 -> Vote 14 - | C19: ='C5C'!C36 -> 0 | D19: ='C5C'!D36 -> 0 | E19: ='C5C'!E36 -> 0 | F19: ='C5C'!F36 -> 0 | G19: ='C5C'!G36 -> 0 | H19: ='C5C'!H36 -> 0 | I19: =G19-H19 -> 0 | J19: =IF(I19=0,"",I19/H19) ->  | K19: ='C5C'!K36 -> 0
A20: ='Org structure'!A16 -> Vote 15 - Other | C20: ='C5C'!C37 -> 0 | D20: ='C5C'!D37 -> 0 | E20: ='C5C'!E37 -> 0 | F20: ='C5C'!F37 -> 0 | G20: ='C5C'!G37 -> 0 | H20: ='C5C'!H37 -> 0 | I20: =G20-H20 -> 0 | J20: =IF(I20=0,"",I20/H20) ->  | K20: ='C5C'!K37 -> 0
A21: Total Capital Multi-year expenditure | B21: 4,7 | C21: =SUM(C6:C20) -> 67334242.74 | D21: =SUM(D6:D20) -> 82489250 | E21: 169157656 | F21: 7844799.86 | G21: 84481630.27 | H21: 112078624.4 | I21: -27596994.13 | J21: =IF(I21=0,"",I21/H21) -> -0.2462288798 | K21: =SUM(K6:K20) -> 169157656
A23: Single Year expenditure appropriation | B23: 2
A24: ='C5C'!A42 -> Vote 01 - Corporate Services | C24: ='C5C'!C42 -> 0 | D24: ='C5C'!D42 -> 0 | E24: ='C5C'!E42 -> 0 | F24: ='C5C'!F42 -> 0 | G24: ='C5C'!G42 -> 0 | H24: ='C5C'!H42 -> 0 | I24: =G24-H24 -> 0 | J24: =IF(I24=0,"",I24/H24) ->  | K24: ='C5C'!K42 -> 0
A25: ='C5C'!A45 -> Vote 02 - Municipal Manager | C25: ='C5C'!C45 -> 0 | D25: ='C5C'!D45 -> 0 | E25: ='C5C'!E45 -> 0 | F25: ='C5C'!F45 -> 0 | G25: ='C5C'!G45 -> 0 | H25: ='C5C'!H45 -> 0 | I25: 0 | K25: ='C5C'!K45 -> 0
A26: ='C5C'!A47 -> Vote 03 - Budget And Treasury | C26: ='C5C'!C47 -> 0 | D26: ='C5C'!D47 -> 0 | E26: ='C5C'!E47 -> 0 | F26: ='C5C'!F47 -> 0 | G26: ='C5C'!G47 -> 0 | H26: ='C5C'!H47 -> 0 | I26: 0 | K26: ='C5C'!K47 -> 0
A27: ='C5C'!A49 -> Vote 04 - Technical Services | C27: ='C5C'!C49 -> 18402737.02 | D27: ='C5C'!D49 -> 66603902 | E27: ='C5C'!E49 -> 96755850 | F27: ='C5C'!F49 -> 2517772.11 | G27: ='C5C'!G49 -> 22331308.9 | H27: ='C5C'!H49 -> 62013722.2 | I27: -39682413.3 | J27: -0.6398972984 | K27: ='C5C'!K49 -> 96755850
A28: ='C5C'!A54 -> Vote 05 - Community Services | C28: ='C5C'!C54 -> 0 | D28: ='C5C'!D54 -> 1000000 | E28: ='C5C'!E54 -> 400000 | F28: ='C5C'!F54 -> 0 | G28: ='C5C'!G54 -> 327945.51 | H28: ='C5C'!H54 -> 510006 | I28: -182060.49 | J28: -0.3569771532 | K28: ='C5C'!K54 -> 400000
A29: ='C5C'!A60 -> Vote 06 - Development And Planning | C29: ='C5C'!C60 -> 47826.09 | D29: ='C5C'!D60 -> 800000 | E29: ='C5C'!E60 -> 1200000 | F29: ='C5C'!F60 -> 0 | G29: ='C5C'!G60 -> 650434.78 | H29: ='C5C'!H60 -> 760003 | I29: -109568.22 | J29: -0.1441681414 | K29: ='C5C'!K60 -> 1200000
A30: ='C5C'!A63 -> Vote 07 - Local Economic Development And Tourism | C30: ='C5C'!C63 -> 0 | D30: ='C5C'!D63 -> 0 | E30: ='C5C'!E63 -> 0 | F30: ='C5C'!F63 -> 0 | G30: ='C5C'!G63 -> 0 | H30: ='C5C'!H63 -> 0 | I30: 0 | K30: ='C5C'!K63 -> 0
A31: ='Org structure'!A9 -> Vote 08 - | C31: ='C5C'!C65 -> 0 | D31: ='C5C'!D65 -> 0 | E31: ='C5C'!E65 -> 0 | F31: ='C5C'!F65 -> 0 | G31: ='C5C'!G65 -> 0 | H31: ='C5C'!H65 -> 0 | I31: ='C5C'!I65 -> 0 | J31: =IF(I31=0,"",I31/H31) ->  | K31: ='C5C'!K65 -> 0
A32: ='Org structure'!A10 -> Vote 09 - | C32: ='C5C'!C66 -> 0 | D32: ='C5C'!D66 -> 0 | E32: ='C5C'!E66 -> 0 | F32: ='C5C'!F66 -> 0 | G32: ='C5C'!G66 -> 0 | H32: ='C5C'!H66 -> 0 | I32: ='C5C'!I66 -> 0 | K32: ='C5C'!K66 -> 0
A33: ='Org structure'!A11 -> Vote 10 - | C33: ='C5C'!C67 -> 0 | D33: ='C5C'!D67 -> 0 | E33: ='C5C'!E67 -> 0 | F33: ='C5C'!F67 -> 0 | G33: ='C5C'!G67 -> 0 | H33: ='C5C'!H67 -> 0 | I33: ='C5C'!I67 -> 0 | K33: ='C5C'!K67 -> 0
A34: ='Org structure'!A12 -> Vote 11 - | C34: ='C5C'!C68 -> 0 | D34: ='C5C'!D68 -> 0 | E34: ='C5C'!E68 -> 0 | F34: ='C5C'!F68 -> 0 | G34: ='C5C'!G68 -> 0 | H34: ='C5C'!H68 -> 0 | I34: ='C5C'!I68 -> 0 | K34: ='C5C'!K68 -> 0
A35: ='Org structure'!A13 -> Vote 12 - | C35: ='C5C'!C69 -> 0 | D35: ='C5C'!D69 -> 0 | E35: ='C5C'!E69 -> 0 | F35: ='C5C'!F69 -> 0 | G35: ='C5C'!G69 -> 0 | H35: ='C5C'!H69 -> 0 | I35: ='C5C'!I69 -> 0 | K35: ='C5C'!K69 -> 0
A36: ='Org structure'!A14 -> Vote 13 - | C36: ='C5C'!C70 -> 0 | D36: ='C5C'!D70 -> 0 | E36: ='C5C'!E70 -> 0 | F36: ='C5C'!F70 -> 0 | G36: ='C5C'!G70 -> 0 | H36: ='C5C'!H70 -> 0 | I36: ='C5C'!I70 -> 0 | K36: ='C5C'!K70 -> 0
A37: ='Org structure'!A15 -> Vote 14 - | C37: ='C5C'!C71 -> 0 | D37: ='C5C'!D71 -> 0 | E37: ='C5C'!E71 -> 0 | F37: ='C5C'!F71 -> 0 | G37: ='C5C'!G71 -> 0 | H37: ='C5C'!H71 -> 0 | I37: ='C5C'!I71 -> 0 | K37: ='C5C'!K71 -> 0
A38: ='Org structure'!A16 -> Vote 15 - Other | C38: ='C5C'!C72 -> 0 | D38: ='C5C'!D72 -> 0 | E38: ='C5C'!E72 -> 0 | F38: ='C5C'!F72 -> 0 | G38: ='C5C'!G72 -> 0 | H38: ='C5C'!H72 -> 0 | I38: ='C5C'!I72 -> 0 | K38: ='C5C'!K72 -> 0
A39: Total Capital single-year expenditure | B39: 4 | C39: =SUM(C24:C38) -> 18450563.11 | D39: 68403902 | E39: 98355850 | F39: 2517772.11 | G39: 23309689.19 | H39: 63283731.2 | I39: -39974042.01 | J39: -0.6316637981 | K39: =SUM(K24:K38) -> 98355850
A40: Total Capital Expenditure | C40: =C39+C21 -> 85784805.85 | D40: 150893152 | E40: 267513506 | F40: 10362571.97 | G40: 107791319.5 | H40: 175362355.6 | I40: -67571036.14 | J40: =IF(I40=0,"",I40/H40) -> -0.3853223567 | K40: =K39+K21 -> 267513506
A42: Capital Expenditure - Functional Classification
A43: Governance and administration | C43: =SUM(C44:C46) -> 53097302.92 | D43: 66689250 | E43: 129000358 | F43: 2757360.67 | G43: 79802360.13 | H43: 90485657.2 | I43: =G43-H43 -> -10683297.07 | J43: =IF(I43=0,"",I43/H43) -> -0.118066193 | K43: =SUM(K44:K46) -> 129000358
A44: Executive and council | C44: 0 | D44: 1150000 | E44: 1450000 | F44: 0 | G44: 0 | H44: 1072506 | I44: -1072506 | J44: =IF(I44=0,"",I44/H44) -> -1 | K44: 1450000
A45: Finance and administration | C45: 53097302.92 | D45: 65539250 | E45: 127550358 | F45: 2757360.67 | G45: 79802360.13 | H45: 89413151.2 | I45: -9610791.07 | J45: -0.1074874439 | K45: 127550358
A46: Internal audit | I46: 0
A47: Community and public safety | C47: =SUM(C48:C52) -> 1921018.26 | D47: 3900000 | E47: 1000000 | F47: 0 | G47: 420445.51 | H47: 1765018 | I47: -1344572.49 | J47: -0.7617896758 | K47: =SUM(K48:K52) -> 1000000
A48: Community and social services | C48: 1921018.26 | D48: 3900000 | E48: 1000000 | F48: 0 | G48: 420445.51 | H48: 1765018 | I48: -1344572.49 | J48: -0.7617896758 | K48: 1000000
A49: Sport and recreation | I49: 0
A50: Public safety | I50: 0
A51: Housing | I51: 0
A52: Health | I52: 0
A53: Economic and environmental services | C53: =SUM(C54:C56) -> 30391539.67 | D53: 74603902 | E53: 126623048 | F53: 6494206.64 | G53: 26457509.16 | H53: 76760622.4 | I53: -50303113.24 | J53: -0.6553244576 | K53: =SUM(K54:K56) -> 126623048
A54: Planning and development | C54: 0 | D54: 0 | E54: 0 | F54: 0 | G54: 0 | H54: 0 | I54: 0 | K54: 0
A55: Road transport | C55: 30391539.67 | D55: 74603902 | E55: 126623048 | F55: 6494206.64 | G55: 26457509.16 | H55: 76760622.4 | I55: -50303113.24 | J55: -0.6553244576 | K55: 126623048
A56: Environmental protection | I56: 0
A57: Trading services | C57: =SUM(C58:C61) -> 374945 | D57: 5700000 | E57: 10890100 | F57: 1111004.66 | G57: 1111004.66 | H57: 6351058 | I57: -5240053.34 | J57: -0.8250677824 | K57: =SUM(K58:K61) -> 10890100
A58: Energy sources | I58: 0
A59: Water management | I59: 0
A60: Waste water management | C60: 0 | D60: 0 | E60: 8990100 | F60: 1111004.66 | G60: 1111004.66 | H60: 3596040 | I60: -2485035.34 | J60: -0.691047747 | K60: 8990100
A61: Waste management | C61: 374945 | D61: 5700000 | E61: 1900000 | F61: 0 | G61: 0 | H61: 2755018 | I61: -2755018 | J61: -1 | K61: 1900000
A62: Other | I62: 0
A63: Total Capital Expenditure - Functional Classification | B63: 3 | C63: =C43+C47+C53+C57+C62 -> 85784805.85 | D63: =D43+D47+D53+D57+D62 -> 150893152 | E63: 267513506 | F63: 10362571.97 | G63: 107791319.5 | H63: 175362355.6 | I63: -67571036.14 | J63: -0.3853223567 | K63: =K43+K47+K53+K57+K62 -> 267513506
A65: Funded by:
A66: National Government | C66: 59207763.39 | D66: 79607152 | E66: 109056208 | F66: 3650339.12 | G66: 30361781.85 | H66: 71485001.4 | I66: =G66-H66 -> -41123219.55 | J66: =IF(I66=0,"",I66/H66) -> -0.5752705987 | K66: 109056208
A67: Provincial Government | C67: 11406731.18 | D67: 0 | E67: 28257298 | F67: 3896434.48 | G67: 3896434.48 | H67: 11302919.2 | I67: -7406484.72 | J67: -0.6552718452 | K67: 28257298
A68: District Municipality | I68: 0
A69: ='C4-FinPerf RE'!A40 -> Transfers and subsidies - capital (monetary allocations) (National / Provincial Departmental Agencies, Households, Non-profit Institutions, Private Enterprises, Public Corporatons, Higher Educational Institutions) | I69: 0
A70: Transfers recognised - capital | C70: =SUM(C66:C69) -> 70614494.57 | D70: 79607152 | E70: 137313506 | F70: 7546773.6 | G70: 34258216.33 | H70: 82787920.6 | I70: -48529704.27 | J70: -0.5861930571 | K70: =SUM(K66:K69) -> 137313506
A72: Borrowing | B72: 6 | I72: 0
A73: Internally generated funds | C73: 15170311.28 | D73: 71286000 | E73: 130200000 | F73: 2815798.37 | G73: 73533103.13 | H73: 92574435 | I73: -19041331.87 | J73: -0.2056867198 | K73: 130200000
A74: Total Capital Funding | C74: =+C70+C72+C73 -> 85784805.85 | D74: 150893152 | E74: 267513506 | F74: 10362571.97 | G74: 107791319.5 | H74: 175362355.6 | I74: -67571036.14 | J74: -0.3853223567 | K74: =+K70+K72+K73 -> 267513506
A75: =head27a -> References
A76: 1. Municipalities may choose to appropriate for capital expenditure for three years or for one year (if one year appropriation projected expenditure required for yr2 and yr3).
A77: 2. Include capital component of PPP unitary payment
A78: 3. Capital expenditure by functional classification must reconcile to the total of multi-year and single year appropriations
A79: 4. Include expenditure on investment property, intangible and biological assets
A81: 6. Include finance leases and PPP capital funding component of unitary payment - total borrowing/repayments to reconcile to changes in Table SA17
A86: check balance | C86: =C40-C74 -> 0 | D86: =D40-D74 -> 0 | E86: 0 | F86: 0 | G86: 0 | H86: 0 | K86: 0

Sheet C5C
A1: =muni& " - "&S71D& " - "&"A"& " - "&date -> LIM476 Tubatse Fetakgomo - Table C5 Monthly Budget Statement - Capital Expenditure (municipal vote, functional classification and funding) - A - M09 March
A2: =Vdesc -> Vote Description | B2: =head27 -> Ref | C2: =Head1 -> 2019/20 | D2: =Head2 -> Budget Year 2020/21 | L2: =Head4 -> 
A3: R thousand | C3: =Head5 -> Audited Outcome | D3: =Head6 -> Original Budget | E3: =Head7 -> Adjusted Budget | F3: =Head38 -> Monthly actual | G3: =Head39 -> YearTD actual | H3: =Head40 -> YearTD budget | I3: =Head41 -> YTD variance | J3: =Head41 -> YTD variance | K3: =Head8 -> Full Year Forecast | L3: =Head12 -> Forecast 2010/11 | M3: =Head13 -> Forecast 2011/12 | N3: =Head14 -> Forecast 2012/13 | O3: =Head15 -> Forecast 2013/14 | P3: =Head16 -> Forecast 2014/15 | Q3: =Head17 -> Forecast 2015/16 | R3: =Head18 -> Forecast 2016/17 | S3: =Head19 -> Forecast 2017/18 | T3: =Head20 -> Forecast 2018/19 | U3: =Head21 -> Forecast 2019/20 | V3: =Head22 -> Forecast 2020/21 | W3: =Head23 -> Forecast 2021/22
J4: %
A5: Capital expenditure - Municipal Vote
A6: Expenditure of multi-year capital appropriation | B6: 1
A7: ='Org structure'!A2 -> Vote 01 - Corporate Services | C7: =SUM(C8:C9) -> 2620328 | D7: 17536000 | E7: 72950000 | F7: 0 | G7: 60128796.29 | H7: 50771842 | I7: =G7-H7 -> 9356954.29 | J7: =IF(I7=0,"",I7/H7) -> 0.1842941662 | K7: =SUM(K8:K9) -> 72950000
A8: ='Org structure'!E3 -> 01.1 - Corporate Services Administration | C8: 2620328 | D8: 17536000 | E8: 72950000 | F8: 0 | G8: 60128796.29 | H8: 50771842 | I8: =G8-H8 -> 9356954.29 | J8: =IF(I8=0,"",I8/H8) -> 0.1842941662 | K8: 72950000
A9: ='Org structure'!E4 -> 01.2 - Executive Support | I9: =G9-H9 -> 0 | J9: =IF(I9=0,"",I9/H9) ->  | K9: 0
A10: ='Org structure'!A3 -> Vote 02 - Municipal Manager | C10: =SUM(C11:C11) -> 0 | D10: 1150000 | E10: 1450000 | F10: 0 | G10: 0 | H10: 1072506 | I10: -1072506 | J10: -1 | K10: =SUM(K11:K11) -> 1450000
A11: ='Org structure'!E6 -> 02.1 - Municipal Manager Administration | C11: 0 | D11: 1150000 | E11: 1450000 | F11: 0 | G11: 0 | H11: 1072506 | I11: =G11-H11 -> -1072506 | J11: =IF(I11=0,"",I11/H11) -> -1 | K11: 1450000
A12: ='Org structure'!A4 -> Vote 03 - Budget And Treasury | C12: =SUM(C13:C13) -> 0 | D12: 0 | E12: 0 | F12: 0 | G12: 0 | H12: 0 | I12: 0 | K12: =SUM(K13:K13) -> 0
A13: ='Org structure'!E8 -> 03.1 - Finance Services Administration | C13: 0 | D13: 0 | E13: 0 | F13: 0 | G13: 0 | H13: 0 | I13: =G13-H13 -> 0 | J13: =IF(I13=0,"",I13/H13) ->  | K13: 0
A14: ='Org structure'!A5 -> Vote 04 - Technical Services | C14: =SUM(C15:C18) -> 38583236.19 | D14: 30000000 | E14: 72057298 | F14: 5536578.79 | G14: 15025206.97 | H14: 39322946.2 | I14: -24297739.23 | J14: -0.6179023084 | K14: =SUM(K15:K18) -> 72057298
A15: ='Org structure'!E10 -> 04.1 - Technical Services Administration | C15: 26594433.54 | D15: 22000000 | E15: 33200000 | F15: 449139.6 | G15: 9788002.05 | H15: 20980006 | I15: =G15-H15 -> -11192003.95 | J15: =IF(I15=0,"",I15/H15) -> -0.5334604742 | K15: 33200000
A16: ='Org structure'!E11 -> 04.2 - Sewer Disposal | C16: 0 | D16: 0 | E16: 3262314 | F16: 1111004.66 | G16: 1111004.66 | H16: 1304925.6 | I16: =G16-H16 -> -193920.94 | J16: =IF(I16=0,"",I16/H16) -> -0.1486068938 | K16: 3262314
A17: ='Org structure'!E12 -> 04.3 - Roads | C17: 11988802.65 | D17: 8000000 | E17: 29867198 | F17: 3976434.53 | G17: 4126200.26 | H17: 14746900.2 | I17: =G17-H17 -> -10620699.94 | J17: =IF(I17=0,"",I17/H17) -> -0.7201988076 | K17: 29867198
A18: ='Org structure'!E13 -> 04.4 - Storm Water | C18: 0 | D18: 0 | E18: 5727786 | F18: 0 | G18: 0 | H18: 2291114.4 | I18: =G18-H18 -> -2291114.4 | J18: =IF(I18=0,"",I18/H18) -> -1 | K18: 5727786
A19: ='Org structure'!A6 -> Vote 05 - Community Services | C19: =SUM(C20:C24) -> 26130678.55 | D19: 33803250 | E19: 22700358 | F19: 2308221.07 | G19: 9327627.01 | H19: 20911330.2 | I19: -11583703.19 | J19: -0.5539438706 | K19: =SUM(K20:K24) -> 22700358
A20: ='Org structure'!E15 -> 05.1 - Community Services Administration | C20: 21986915.97 | D20: 23503250 | E20: 18600358 | F20: 2308221.07 | G20: 9206127.01 | H20: 15666288.2 | I20: =G20-H20 -> -6460161.19 | J20: =IF(I20=0,"",I20/H20) -> -0.4123606758 | K20: 18600358
A21: ='Org structure'!E16 -> 05.2 - Protection Services | C21: 1847799.32 | D21: 1700000 | E21: 1600000 | F21: 0 | G21: 29000 | H21: 1235012 | I21: =G21-H21 -> -1206012 | J21: =IF(I21=0,"",I21/H21) -> -0.9765184468 | K21: 1600000
A22: ='Org structure'!E17 -> 05.3 - Cemeteries | C22: 1921018.26 | D22: 2900000 | E22: 600000 | F22: 0 | G22: 92500 | H22: 1255012 | I22: =G22-H22 -> -1162512 | J22: =IF(I22=0,"",I22/H22) -> -0.9262955255 | K22: 600000
A23: ='Org structure'!E18 -> 05.4 - Libraries | I23: =G23-H23 -> 0 | J23: =IF(I23=0,"",I23/H23) ->  | K23: 0
A24: ='Org structure'!E19 -> 05.5 - Refuse Removal Services | C24: 374945 | D24: 5700000 | E24: 1900000 | F24: 0 | G24: 0 | H24: 2755018 | I24: =G24-H24 -> -2755018 | J24: =IF(I24=0,"",I24/H24) -> -1 | K24: 1900000
A25: ='Org structure'!A7 -> Vote 06 - Development And Planning | C25: =SUM(C26:C27) -> 0 | D25: 0 | E25: 0 | F25: 0 | G25: 0 | H25: 0 | I25: 0 | K25: =SUM(K26:K27) -> 0
A26: ='Org structure'!E21 -> 06.1 - Dvp Services Administration | I26: =G26-H26 -> 0 | J26: =IF(I26=0,"",I26/H26) ->  | K26: 0
A27: ='Org structure'!E22 -> 06.2 - Municipal Buildings | I27: =G27-H27 -> 0 | J27: =IF(I27=0,"",I27/H27) ->  | K27: 0
A28: ='Org structure'!A8 -> Vote 07 - Local Economic Development And Tourism | C28: =SUM(C29:C29) -> 0 | D28: 0 | E28: 0 | F28: 0 | G28: 0 | H28: 0 | I28: =G28-H28 -> 0 | J28: =IF(I28=0,"",I28/H28) ->  | K28: =SUM(K29:K29) -> 0
A29: ='Org structure'!E24 -> 07.1 - Economic & Land Development Admini | C29: 0 | D29: 0 | E29: 0 | F29: 0 | G29: 0 | H29: 0 | I29: =G29-H29 -> 0 | J29: =IF(I29=0,"",I29/H29) ->  | K29: 0
A30: ='Org structure'!A9 -> Vote 08 - | C30: 0 | D30: 0 | E30: 0 | F30: 0 | G30: 0 | H30: 0 | I30: 0 | K30: 0
A31: ='Org structure'!A10 -> Vote 09 - | C31: 0 | D31: 0 | E31: 0 | F31: 0 | G31: 0 | H31: 0 | I31: 0 | K31: 0
A32: ='Org structure'!A11 -> Vote 10 - | C32: 0 | D32: 0 | E32: 0 | F32: 0 | G32: 0 | H32: 0 | I32: 0 | K32: 0
A33: ='Org structure'!A12 -> Vote 11 - | C33: 0 | D33: 0 | E33: 0 | F33: 0 | G33: 0 | H33: 0 | I33: 0 | K33: 0
A34: ='Org structure'!A13 -> Vote 12 - | C34: 0 | D34: 0 | E34: 0 | F34: 0 | G34: 0 | H34: 0 | I34: 0 | K34: 0
A35: ='Org structure'!A14 -> Vote 13 - | C35: 0 | D35: 0 | E35: 0 | F35: 0 | G35: 0 | H35: 0 | I35: =G35-H35 -> 0 | J35: =IF(I35=0,"",I35/H35) ->  | K35: 0
A36: ='Org structure'!A15 -> Vote 14 - | C36: 0 | D36: 0 | E36: 0 | F36: 0 | G36: 0 | H36: 0 | I36: 0 | K36: 0
A37: ='Org structure'!A16 -> Vote 15 - Other | C37: 0 | D37: 0 | E37: 0 | F37: 0 | G37: 0 | H37: 0 | I37: 0 | K37: 0
A38: Total multi-year capital expenditure | C38: =C7+C10+C12+C14+C19+C25+C28+C30+C31+C32+C33+C34+C35+C36+C37 -> 67334242.74 | D38: 82489250 | E38: 169157656 | F38: 7844799.86 | G38: 84481630.27 | H38: 112078624.4 | I38: -27596994.13 | J38: -0.2462288798 | K38: =K7+K10+K12+K14+K19+K25+K28+K30+K31+K32+K33+K34+K35+K36+K37 -> 169157656
I39: 0
A40: Capital expenditure - Municipal Vote
A41: Expenditue of single-year capital appropriation | B41: 1 | I41: 0
A42: ='Org structure'!A2 -> Vote 01 - Corporate Services | C42: =SUM(C43:C44) -> 0 | D42: 0 | E42: 0 | F42: 0 | G42: 0 | H42: 0 | I42: 0 | K42: =SUM(K43:K44) -> 0
A43: ='Org structure'!E3 -> 01.1 - Corporate Services Administration | C43: 0 | D43: 0 | E43: 0 | F43: 0 | G43: 0 | H43: 0 | I43: 0 | K43: 0
A44: ='Org structure'!E4 -> 01.2 - Executive Support | C44: 0 | D44: 0 | E44: 0 | F44: 0 | G44: 0 | H44: 0 | I44: 0 | K44: 0
A45: ='Org structure'!A3 -> Vote 02 - Municipal Manager | C45: =SUM(C46:C46) -> 0 | D45: 0 | E45: 0 | F45: 0 | G45: 0 | H45: 0 | I45: 0 | K45: =SUM(K46:K46) -> 0
A46: ='Org structure'!E6 -> 02.1 - Municipal Manager Administration | C46: 0 | D46: 0 | E46: 0 | F46: 0 | G46: 0 | H46: 0 | I46: 0 | K46: 0
A47: ='Org structure'!A4 -> Vote 03 - Budget And Treasury | C47: =SUM(C48:C48) -> 0 | D47: 0 | E47: 0 | F47: 0 | G47: 0 | H47: 0 | I47: 0 | K47: =SUM(K48:K48) -> 0
A48: ='Org structure'!E8 -> 03.1 - Finance Services Administration | C48: 0 | D48: 0 | E48: 0 | F48: 0 | G48: 0 | H48: 0 | I48: 0 | K48: 0
A49: ='Org structure'!A5 -> Vote 04 - Technical Services | C49: =SUM(C50:C53) -> 18402737.02 | D49: 66603902 | E49: 96755850 | F49: 2517772.11 | G49: 22331308.9 | H49: 62013722.2 | I49: =G49-H49 -> -39682413.3 | J49: =IF(I49=0,"",I49/H49) -> -0.6398972984 | K49: =SUM(K50:K53) -> 96755850
A50: ='Org structure'!E10 -> 04.1 - Technical Services Administration | C50: 0 | D50: 0 | E50: 0 | F50: 0 | G50: 0 | H50: 0 | I50: 0 | K50: 0
A51: ='Org structure'!E11 -> 04.2 - Sewer Disposal | C51: 0 | D51: 0 | E51: 0 | F51: 0 | G51: 0 | H51: 0 | I51: 0 | K51: 0
A52: ='Org structure'!E12 -> 04.3 - Roads | C52: 18402737.02 | D52: 66603902 | E52: 96755850 | F52: 2517772.11 | G52: 22331308.9 | H52: 62013722.2 | I52: -39682413.3 | J52: -0.6398972984 | K52: 96755850
A53: ='Org structure'!E13 -> 04.4 - Storm Water | C53: 0 | D53: 0 | E53: 0 | F53: 0 | G53: 0 | H53: 0 | I53: 0 | K53: 0
A54: ='Org structure'!A6 -> Vote 05 - Community Services | C54: =SUM(C55:C59) -> 0 | D54: 1000000 | E54: 400000 | F54: 0 | G54: 327945.51 | H54: 510006 | I54: -182060.49 | J54: -0.3569771532 | K54: =SUM(K55:K59) -> 400000
A55: ='Org structure'!E15 -> 05.1 - Community Services Administration | C55: 0 | D55: 0 | E55: 0 | F55: 0 | G55: 0 | H55: 0 | I55: 0 | K55: 0
A56: ='Org structure'!E16 -> 05.2 - Protection Services | C56: 0 | D56: 0 | E56: 0 | F56: 0 | G56: 0 | H56: 0 | I56: 0 | K56: 0
A57: ='Org structure'!E17 -> 05.3 - Cemeteries | C57: 0 | D57: 1000000 | E57: 400000 | F57: 0 | G57: 327945.51 | H57: 510006 | I57: -182060.49 | J57: -0.3569771532 | K57: 400000
A58: ='Org structure'!E18 -> 05.4 - Libraries | C58: 0 | D58: 0 | E58: 0 | F58: 0 | G58: 0 | H58: 0 | I58: 0 | K58: 0
A59: ='Org structure'!E19 -> 05.5 - Refuse Removal Services | C59: 0 | D59: 0 | E59: 0 | F59: 0 | G59: 0 | H59: 0 | I59: 0 | K59: 0
A60: ='Org structure'!A7 -> Vote 06 - Development And Planning | C60: =SUM(C61:C62) -> 47826.09 | D60: 800000 | E60: 1200000 | F60: 0 | G60: 650434.78 | H60: 760003 | I60: -109568.22 | J60: -0.1441681414 | K60: =SUM(K61:K62) -> 1200000
A61: ='Org structure'!E21 -> 06.1 - Dvp Services Administration | C61: 47826.09 | D61: 800000 | E61: 1200000 | F61: 0 | G61: 650434.78 | H61: 760003 | I61: -109568.22 | J61: -0.1441681414 | K61: 1200000
A62: ='Org structure'!E22 -> 06.2 - Municipal Buildings | C62: 0 | D62: 0 | E62: 0 | F62: 0 | G62: 0 | H62: 0 | I62: 0 | K62: 0
A63: ='Org structure'!A8 -> Vote 07 - Local Economic Development And Tourism | C63: =SUM(C64:C64) -> 0 | D63: 0 | E63: 0 | F63: 0 | G63: 0 | H63: 0 | I63: 0 | K63: =SUM(K64:K64) -> 0
A64: ='Org structure'!E24 -> 07.1 - Economic & Land Development Admini | C64: 0 | D64: 0 | E64: 0 | F64: 0 | G64: 0 | H64: 0 | I64: 0 | K64: 0
A65: ='Org structure'!A9 -> Vote 08 - | C65: 0 | D65: 0 | E65: 0 | F65: 0 | G65: 0 | H65: 0 | I65: 0 | K65: 0
A66: ='Org structure'!A10 -> Vote 09 - | C66: 0 | D66: 0 | E66: 0 | F66: 0 | G66: 0 | H66: 0 | I66: =G66-H66 -> 0 | J66: =IF(I66=0,"",I66/H66) ->  | K66: 0
A67: ='Org structure'!A11 -> Vote 10 - | C67: 0 | D67: 0 | E67: 0 | F67: 0 | G67: 0 | H67: 0 | I67: 0 | K67: 0
A68: ='Org structure'!A12 -> Vote 11 - | C68: 0 | D68: 0 | E68: 0 | F68: 0 | G68: 0 | H68: 0 | I68: 0 | K68: 0
A69: ='Org structure'!A13 -> Vote 12 - | C69: 0 | D69: 0 | E69: 0 | F69: 0 | G69: 0 | H69: 0 | I69: 0 | K69: 0
A70: ='Org structure'!A14 -> Vote 13 - | C70: 0 | D70: 0 | E70: 0 | F70: 0 | G70: 0 | H70: 0 | I70: 0 | K70: 0
A71: ='Org structure'!A15 -> Vote 14 - | C71: 0 | D71: 0 | E71: 0 | F71: 0 | G71: 0 | H71: 0 | I71: 0 | K71: 0
A72: ='Org structure'!A16 -> Vote 15 - Other | C72: 0 | D72: 0 | E72: 0 | F72: 0 | G72: 0 | H72: 0 | I72: =G72-H72 -> 0 | J72: =IF(I72=0,"",I72/H72) ->  | K72: 0
A73: Total single-year capital expenditure | C73: =C42+C45+C47+C49+C54+C60+C63+C65+C66+C67+C68+C69+C70+C71+C72 -> 18450563.11 | D73: 68403902 | E73: 98355850 | F73: 2517772.11 | G73: 23309689.19 | H73: 63283731.2 | I73: -39974042.01 | J73: -0.6316637981 | K73: =K42+K45+K47+K49+K54+K60+K63+K65+K66+K67+K68+K69+K70+K71+K72 -> 98355850
A74: Total Capital Expenditure | C74: =C38+C73 -> 85784805.85 | D74: 150893152 | E74: 267513506 | F74: 10362571.97 | G74: 107791319.5 | H74: 175362355.6 | I74: -67571036.14 | J74: -0.3853223567 | K74: =K38+K73 -> 267513506
A75: =head27a -> References
A76: 1. Insert 'Vote'; e.g. Department, if different to standard structure

Sheet C6-FinPos
A1: =muni& " - "&S71E& " - "&date -> LIM476 Tubatse Fetakgomo - Table C6 Monthly Budget Statement - Financial Position - M09 March
A2: =desc -> Description | B2: =head27 -> Ref | C2: =Head1 -> 2019/20 | D2: =Head2 -> Budget Year 2020/21
C3: =Head5 -> Audited Outcome | D3: =Head6 -> Original Budget | E3: =Head7 -> Adjusted Budget | F3: =Head39 -> YearTD actual | G3: =Head8 -> Full Year Forecast
A4: R thousands | B4: 1
A5: ASSETS
A6: Current assets
A7: Cash | C7: 72713930.28 | D7: 47571836 | E7: -416200282 | F7: 253142542.5 | G7: -416200282
A8: Call investment deposits | C8: 140649268.9 | D8: 103548298 | E8: 530003764 | F8: 55146375.92 | G8: 530003764
A9: Consumer debtors | C9: 26587675.01 | D9: 282871838 | E9: 268015432 | F9: -64571251.24 | G9: 268015432
A10: Other debtors | C10: 31970466.83 | D10: 30553582 | E10: 28702102 | F10: 27109947.08 | G10: 28702102
A11: Current portion of long-term receivables
A12: Inventory | C12: 0 | D12: 0 | E12: 0 | F12: 0 | G12: 0
A13: Total current assets | C13: =SUM(C7:C12) -> 271921341 | D13: =SUM(D7:D12) -> 464545554 | E13: =SUM(E7:E12) -> 410521016 | F13: =SUM(F7:F12) -> 270827614.3 | G13: =SUM(G7:G12) -> 410521016
A15: Non current assets
A16: Long-term receivables | C16: 0 | D16: 0 | E16: 0 | F16: 0 | G16: 0
A17: Investments | C17: 0 | D17: 0 | E17: 0 | F17: 0 | G17: 0
A18: Investment property | C18: 61650000.33 | D18: 15320001 | E18: 15320001 | F18: 61650000.33 | G18: 15320001
A19: Investments in Associate
A20: Property, plant and equipment | C20: 2075901091 | D20: 3957837994 | E20: 4075837136 | F20: 2182949476 | G20: 4075837136
A22: Biological
A23: Intangible | C23: 165245.28 | D23: 2725776 | E23: 1339776 | F23: 908180.06 | G23: 1339776
A24: Other non-current assets | C24: 182878540.2 | D24: 20130540 | E24: 20130540 | F24: 182878540.2 | G24: 20130540
A25: Total non current assets | C25: =SUM(C16:C20)+SUM(C22:C24) -> 2320594877 | D25: =SUM(D16:D20)+SUM(D22:D24) -> 3996014311 | E25: =SUM(E16:E20)+SUM(E22:E24) -> 4112627453 | F25: =SUM(F16:F20)+SUM(F22:F24) -> 2428386196 | G25: =SUM(G16:G20)+SUM(G22:G24) -> 4112627453
A26: TOTAL ASSETS | C26: =C13+C25 -> 2592516218 | D26: =D13+D25 -> 4460559865 | E26: =E13+E25 -> 4523148469 | F26: =F13+F25 -> 2699213811 | G26: =G13+G25 -> 4523148469
A28: LIABILITIES
A29: Current liabilities
A30: Bank overdraft | C30: 0 | D30: 0 | E30: 0 | F30: 0 | G30: 0
A31: Borrowing | C31: 0 | D31: 0 | E31: 0 | F31: 0 | G31: 0
A32: Consumer deposits | C32: 0 | D32: 0 | E32: 0 | F32: 0 | G32: 0
A33: Trade and other payables | C33: 241343142.1 | D33: 256099222 | E33: -37983216 | F33: 201711599.8 | G33: -37983216
A34: Provisions | C34: 17374984.18 | D34: 18994999 | E34: 18994999 | F34: 17374984.18 | G34: 18994999
A35: Total current liabilities | C35: =SUM(C30:C34) -> 258718126.3 | D35: =SUM(D30:D34) -> 275094221 | E35: =SUM(E30:E34) -> -18988217 | F35: =SUM(F30:F34) -> 219086584 | G35: =SUM(G30:G34) -> -18988217
A37: Non current liabilities
A38: Borrowing | C38: 8578315.94 | D38: 57580706 | E38: 9566022 | F38: -2910894.71 | G38: 9566022
A39: Provisions | C39: 3162872 | D39: -582445 | E39: -582445 | F39: 3162872 | G39: -582445
A40: Total non current liabilities | C40: =SUM(C38:C39) -> 11741187.94 | D40: =SUM(D38:D39) -> 56998261 | E40: =SUM(E38:E39) -> 8983577 | F40: =SUM(F38:F39) -> 251977.29 | G40: =SUM(G38:G39) -> 8983577
A41: TOTAL LIABILITIES | C41: =C35+C40 -> 270459314.2 | D41: =D35+D40 -> 332092482 | E41: =E35+E40 -> -10004640 | F41: =F35+F40 -> 219338561.3 | G41: =G35+G40 -> -10004640
A43: NET ASSETS | B43: 2 | C43: =C26-C41 -> 2322056904 | D43: =D26-D41 -> 4128467383 | E43: =E26-E41 -> 4533153109 | F43: =F26-F41 -> 2479875249 | G43: =G26-G41 -> 4533153109
A45: COMMUNITY WEALTH/EQUITY
A46: Accumulated Surplus/(Deficit) | C46: 2197295690 | D46: 4159247167 | E46: 4348212287 | F46: 2389582462 | G46: 4348212287
A47: Reserves | C47: 0 | D47: 0 | E47: 0 | F47: 0 | G47: 0
A48: TOTAL COMMUNITY WEALTH/EQUITY | B48: 2 | C48: =SUM(C46:C47) -> 2197295690 | D48: =SUM(D46:D47) -> 4159247167 | E48: =SUM(E46:E47) -> 4348212287 | F48: =SUM(F46:F47) -> 2389582462 | G48: =SUM(G46:G47) -> 4348212287
A49: =head27a -> References
A50: 1. Material variances to be explained in Table SC1
A51: 2. Net assets must balance with Total Community Wealth/Equity
A54: check balance | C54: =C43-C48 -> 124761213.3 | D54: =D43-D48 -> -30779784 | E54: =E43-E48 -> 184940822 | F54: =F43-F48 -> 90292787.57 | G54: =G43-G48 -> 184940822

Sheet C7-CFlow
A1: =muni& " - "&S71F& " - "&date -> LIM476 Tubatse Fetakgomo - Table C7 Monthly Budget Statement - Cash Flow - M09 March
A2: =desc -> Description | B2: =head27 -> Ref | C2: =Head1 -> 2019/20 | D2: =Head2 -> Budget Year 2020/21
C3: =Head5 -> Audited Outcome | D3: =Head6 -> Original Budget | E3: =Head7 -> Adjusted Budget | F3: =Head38 -> Monthly actual | G3: =Head39 -> YearTD actual | H3: =Head40 -> YearTD budget | I3: =Head41 -> YTD variance | J3: =Head41 -> YTD variance | K3: =Head8 -> Full Year Forecast
A4: R thousands | B4: 1 | J4: %
A5: CASH FLOW FROM OPERATING ACTIVITIES
A6: Receipts
A7: Property rates | C7: 0 | D7: 0 | E7: 31593349 | F7: 15913873.94 | G7: 201884507.2 | H7: 23695011.72 | I7: =G7-H7 -> 178189495.5 | J7: =IF(I7=0,"",I7/H7) -> 7.52012692 | K7: 31593349
A8: Service charges | C8: 0 | D8: 0 | E8: 9356464 | F8: 940306.81 | G8: 5929740.42 | H8: 7017347.97 | I8: -1087607.55 | J8: =IF(I8=0,"",I8/H8) -> -0.1549884023 | K8: 9356464
A9: Other revenue | C9: 0 | D9: 0 | E9: -970118445 | F9: 125078807.5 | G9: 228724687.8 | H9: -727588833.8 | I9: 956313521.5 | J9: =IF(I9=0,"",I9/H9) -> -1.31435981 | K9: -970118445
A10: Transfers and Subsidies - Operational | C10: 0 | D10: 0 | E10: 557280000 | F10: 316000 | G10: -581113.15 | H10: 417960000 | I10: -418541113.1 | J10: =IF(I10=0,"",I10/H10) -> -1.001390356 | K10: 557280000
A11: Transfers and Subsidies - Capital | C11: 0 | D11: 0 | E11: 0 | F11: 0 | G11: 49297000 | H11: 0 | I11: 49297000 | J11: =IF(I11=0,"",I11/H11) ->  | K11: 0
A12: Interest | C12: 0 | D12: 0 | E12: 0 | F12: 355427.57 | G12: 2488122.38 | H12: 0 | I12: 2488122.38 | K12: 0
A13: Dividends | I13: 0
A14: Payments
A15: Suppliers and employees | C15: 0 | D15: 0 | E15: -618182563 | F15: -30471434.59 | G15: -325754212.2 | H15: -463636922.1 | I15: =H15-G15 -> -137882709.9 | J15: 0.297393722 | K15: -618182563
A16: Finance charges | I16: =H16-G16 -> 0
A17: Transfers and Grants | I17: =H17-G17 -> 0
A18: NET CASH FROM/(USED) OPERATING ACTIVITIES | C18: =SUM(C7:C13)+SUM(C15:C17) -> 0 | D18: 0 | E18: -990071195 | F18: 112132981.2 | G18: 161988732.5 | H18: -742553396.2 | I18: =H18-G18 -> -904542128.6 | J18: 1.218150955 | K18: =SUM(K7:K13)+SUM(K15:K17) -> -990071195
A20: CASH FLOWS FROM INVESTING ACTIVITIES
A21: Receipts
A22: Proceeds on disposal of PPE | I22: =G22-H22 -> 0 | J22: =IF(I22=0,"",I22/H22) -> 
A24: Decrease (increase) in non-current receivables | C24: 0 | D24: 0 | E24: 0 | F24: 0 | G24: 0 | H24: 0 | I24: =G24-H24 -> 0 | K24: 0
A25: Decrease (increase) in non-current investments | C25: 0 | D25: 0 | E25: 0 | F25: 0 | G25: 0 | H25: 0 | I25: =G25-H25 -> 0 | K25: 0
A26: Payments
A27: Capital assets | C27: 0 | D27: 0 | E27: -116620354 | F27: -10362571.97 | G27: -104766889.6 | H27: -87465265.38 | I27: =H27-G27 -> 17301624.26 | J27: -0.1978113733 | K27: -116620354
A28: NET CASH FROM/(USED) INVESTING ACTIVITIES | C28: =SUM(C22:C25)+C27 -> 0 | D28: =SUM(D22:D25)+D27 -> 0 | E28: -116620354 | F28: -10362571.97 | G28: -104766889.6 | H28: -87465265.38 | I28: =H28-G28 -> 17301624.26 | J28: -0.1978113733 | K28: =SUM(K22:K25)+K27 -> -116620354
A30: CASH FLOWS FROM FINANCING ACTIVITIES
A31: Receipts
A32: Short term loans | I32: =G32-H32 -> 0 | J32: =IF(I32=0,"",I32/H32) -> 
A33: Borrowing long term/refinancing | C33: 0 | D33: 0 | E33: -40000000 | F33: 0 | G33: 0 | H33: -29999999.97 | I33: =G33-H33 -> 29999999.97 | J33: -1 | K33: -40000000
A34: Increase (decrease) in consumer deposits | C34: 0 | D34: 0 | E34: 0 | F34: 0 | G34: 0 | H34: 0 | I34: =G34-H34 -> 0 | K34: 0
A35: Payments
A36: Repayment of borrowing | C36: 0 | D36: 0 | E36: 0 | F36: 0 | G36: 0 | H36: 0 | I36: =H36-G36 -> 0 | K36: 0
A37: NET CASH FROM/(USED) FINANCING ACTIVITIES | C37: =SUM(C32:C34)+C36 -> 0 | D37: 0 | E37: -40000000 | F37: 0 | G37: 0 | H37: -29999999.97 | I37: =H37-G37 -> -29999999.97 | J37: 1 | K37: =SUM(K32:K34)+K36 -> -40000000
A39: NET INCREASE/ (DECREASE) IN CASH HELD | C39: =C18+C28+C37 -> 0 | D39: 0 | E39: -1146691549 | F39: 101770409.3 | G39: 57221842.82 | H39: -860018661.5 | K39: =K18+K28+K37 -> -1146691549
A40: Cash/cash equivalents at beginning: | C40: 94178554.5 | D40: 180581894 | E40: 224843049 | G40: 213363199.1
A41: Cash/cash equivalents at month/year end: | C41: =C39+C40 -> 94178554.5 | D41: =D39+D40 -> 180581894 | E41: =E39+E40 -> -921848500 | G41: =G39+G40 -> 270585042 | H41: =H39+H40 -> -860018661.5 | K41: =K39+K40 -> -1146691549
A42: References
A43: 1. Material variances to be explained in Table SC1

Sheet SC1
A1: =muni& " - "&S71G& " - "&date -> LIM476 Tubatse Fetakgomo - Supporting Table SC1 Material variance explanations - M09 March
A2: =head27 -> Ref | B2: =desc -> Description
C3: Variance | D3: Reasons for material deviations | E3: Remedial or corrective steps/remarks
B4: R thousands
A5: 1 | B5: ='C4-FinPerf RE'!A5 -> Revenue By Source
B7: Property rates | C7: -233969.21 | D7: Variance less than 10%
B8: Refuse | C8: -2285817.45 | D8: No longer billing for properties on un-proclaimed areas.
B9: Interest on Investment | C9: =-3360000 -> -3360000 | D9: Amount realised only when more funds are invested
B10: Intereston on Outstanding Debtors | C10: -7021245.6 | D10: No longer billing for properties on un-proclaimed areas.
B11: Other revenue | C11: -2423154.79 | D11: Other revenue items not yet collected,I.E tender advert,burila fees,etc
A14: 2 | B14: ='C4-FinPerf RE'!A24 -> Expenditure By Type
B16: Employee costs | C16: -11975313.14 | D16: Vacant Posts | E16: Posts has been advertised
B17: Remuneration of councillors | C17: -4542776.46 | D17: Unpaid upper limits of councilloors
B18: Depreciation and Debt impairment | C18: -67327921 | D18: intergration not yet done between Asset System and Solar system | E18: sevice provider busy with intergration
B19: Other expenditure | C19: -27649368 | D19: Most projects not yet implimented | E19: Departments to submit SDBIP,S
A23: 3 | B23: =RIGHT('C5-Capex'!A40,19) -> Capital Expenditure
B25: Capital Expenditure | C25: -67571036.14 | D25: projects not yet implimented | E25: Departments to submit SDBIP,S
A28: 4 | B28: Financial Position
B29: Client elected not to populate this sheet
A33: 5 | B33: Cash Flow
B34: Client elected not to populate this sheet
A38: 6 | B38: Measureable performance
B39: Client elected not to populate this sheet
A43: 7 | B43: Municipal Entities
B44: Client elected not to populate this sheet
A49: =head27a -> References
A50: 1. Revenue for each source, vote and standard classification
A51: 2. Expenditure for each type, vote and standard classification
A52: 3. Capital expenditure for each vote and standard classification
A53: 4. Explain any material variances between the annual budget and the expected financial position based on current trends
A54: 5. Cash receipts by source and cash payments by type where not explained under revenue and expenditure
A55: 6. For Sept, Dec, Mar and Jun statements explain any material variances in achievement of measurable performance objectives

Sheet SC2
A1: =muni& " - "&S71H& " - "&Head57 -> LIM476 Tubatse Fetakgomo - Supporting Table SC2 Monthly Budget Statement - performance indicators - M09 March
A2: Description of financial indicator | B2: Basis of calculation | C2: =head27 -> Ref | D2: =Head1 -> 2019/20 | E2: =Head2 -> Budget Year 2020/21
D3: =Head5 -> Audited Outcome | E3: =Head6 -> Original Budget | F3: =Head7 -> Adjusted Budget | G3: =Head39 -> YearTD actual | H3: =Head8 -> Full Year Forecast
A5: Borrowing Management
A7: Capital Charges to Operating Expenditure | B7: Interest & principal paid/Operating Expenditure | D7: =IF(ISERROR((D42-D43)/D45),0,((D42-D43)/D45)) -> 0.001461431293 | E7: =IF(ISERROR((E42+E44)/E45),0,((E42+E44)/E45)) -> 0.1496202131 | F7: =IF(ISERROR((F42+F44)/F45),0,((F42+F44)/F45)) -> 0.1379398088 | G7: =IF(ISERROR((G42+G44)/G45),0,((G42+G44)/G45)) -> 4.507445195e-06 | H7: =IF(ISERROR((H42+H44)/H45),0,((H42+H44)/H45)) -> 0.05612590809
A8: Borrowed funding of 'own' capital expenditure | B8: Borrowings/Capital expenditure excl. transfers and grants | D8: =IF(ISERROR(D47/D46),0,(D47/D46)) -> 0 | E8: =IF(ISERROR(E47/E46),0,(E47/E46)) -> 0 | F8: =IF(ISERROR(F47/F46),0,(F47/F46)) -> 0 | G8: =IF(ISERROR(G47/G46),0,(G47/G46)) -> 0 | H8: =IF(ISERROR(H47/H46),0,(H47/H46)) -> 0
A9: Safety of Capital
A10: Debt to Equity | B10: Loans, Accounts Payable, Overdraft & Tax Provision/ Funds & Reserves | D10: =IF(ISERROR(D48/D49),0,(D48/D49)) -> 0.1137404761 | E10: =IF(ISERROR(E48/E49),0,(E48/E49)) -> 0.07541747711 | F10: =IF(ISERROR(F48/F49),0,(F48/F49)) -> -0.006535374109 | G10: =IF(ISERROR(G48/G49),0,(G48/G49)) -> 0.08319474563 | H10: =IF(ISERROR(H48/H49),0,(H48/H49)) -> -0.006535374109
A11: Gearing | B11: Long Term Borrowing/ Funds & Reserves | D11: =IF(ISERROR(D51/D50),0,(D51/D50)) -> 0 | E11: =IF(ISERROR(E51/E50),0,(E51/E50)) -> 0 | F11: =IF(ISERROR(F51/F50),0,(F51/F50)) -> 0 | G11: =IF(ISERROR(G51/G50),0,(G51/G50)) -> 0 | H11: =IF(ISERROR(H51/H50),0,(H51/H50)) -> 0
A12: Liquidity
A13: Current Ratio | B13: Current assets/current liabilities | C13: 1 | D13: =IF(ISERROR(D52/D53),0,(D52/D53)) -> 1.051033203 | E13: =IF(ISERROR(E52/E53),0,(E52/E53)) -> 1.688677982 | F13: =IF(ISERROR(F52/F53),0,(F52/F53)) -> -21.61977694 | G13: =IF(ISERROR(G52/G53),0,(G52/G53)) -> 1.236167041 | H13: =IF(ISERROR(H52/H53),0,(H52/H53)) -> -21.61977694
A14: Liquidity Ratio | B14: Monetary Assets/Current Liabilities | D14: =IF(ISERROR(D54/D53),0,(D54/D53)) -> 0.8246936626 | E14: =IF(ISERROR(E54/E53),0,(E54/E53)) -> 0.5493395443 | F14: =IF(ISERROR(F54/F53),0,(F54/F53)) -> -5.993373785 | G14: =IF(ISERROR(G54/G53),0,(G54/G53)) -> 1.407155622 | H14: =IF(ISERROR(H54/H53),0,(H54/H53)) -> -5.993373785
A15: Revenue Management
A16: Annual Debtors Collection Rate (Payment Level %) | B16: Last 12 Mths Receipts/ Last 12 Mths Billing
A17: Outstanding Debtors to Revenue | B17: Total Outstanding Debtors to Annual Revenue | D17: =IF(ISERROR(D59/D55),0,(D59/D55)) -> 0.09368073379 | E17: =IF(ISERROR(E59/E55),0,(E59/E55)) -> 0.4621387711 | F17: =IF(ISERROR(F59/F55),0,(F59/F55)) -> 0.3787015416 | G17: =IF(ISERROR(G59/G55),0,(G59/G55)) -> -0.06638430217 | H17: =IF(ISERROR(H59/H55),0,(H59/H55)) -> 0.3787015416
A18: Longstanding Debtors Recovered | B18: Debtors > 12 Mths Recovered/Total Debtors > 12 Months Old | D18: =IF(ISERROR(D64/D63),0,(D64/D63)) -> 0 | E18: =IF(ISERROR(E64/E63),0,(E64/E63)) -> 0 | F18: =IF(ISERROR(F64/F63),0,(F64/F63)) -> 0 | G18: =IF(ISERROR(G64/G63),0,(G64/G63)) -> 0 | H18: =IF(ISERROR(H64/H63),0,(H64/H63)) -> 0
A19: Creditors Management
A20: Creditors System Efficiency | B20: % of Creditors Paid Within Terms (within MFMA s 65(e))
A21: Funding of Provisions
A22: Percentage Of Provisions Not Funded | B22: Unfunded Provisions/Total Provisions
A23: Other Indicators
A24: Electricity Distribution Losses | B24: % Volume (units purchased and generated less units sold)/units purchased and generated | C24: 2
A25: Water Distribution Losses | B25: % Volume (units purchased and own source less units sold)/Total units purchased and own source | C25: 2
A26: Employee costs | B26: Employee costs/Total Revenue - capital revenue | D26: =IF(ISERROR(D40/D55),0,(D40/D55)) -> 0.2812993304 | E26: =IF(ISERROR(E40/E55),0,(E40/E55)) -> 0.2959001455 | F26: =IF(ISERROR(F40/F55),0,(F40/F55)) -> 0.2543105443 | G26: =IF(ISERROR(G40/G55),0,(G40/G55)) -> 0.2445933255 | H26: =IF(ISERROR(H40/H55),0,(H40/H55)) -> 0.2543105443
A27: Repairs & Maintenance | B27: R&M/Total Revenue - capital revenue | D27: =IF(ISERROR(D41/D55),0,(D41/D55)) -> 0.01680165049 | E27: =IF(ISERROR(E41/E55),0,(E41/E55)) -> 0.04704826778 | F27: =IF(ISERROR(F41/F55),0,(F41/F55)) -> 0.06560253516 | G27: =IF(ISERROR(G41/G55),0,(G41/G55)) -> 0.03349964007 | H27: =IF(ISERROR(H41/H55),0,(H41/H55)) -> 0.06560253516
A28: Interest & Depreciation | B28: I&D/Total Revenue - capital revenue | D28: =IF(ISERROR((D42+D44)/D55),0,((D42+D44)/D55)) -> 0.1708940821 | E28: =IF(ISERROR((E42+E44)/E55),0,((E42+E44)/E55)) -> 0.1339300029 | F28: =IF(ISERROR((F42+F44)/F55),0,((F42+F44)/F55)) -> 0.1161846509 | G28: =IF(ISERROR((G42+G44)/G55),0,((G42+G44)/G55)) -> 3.670856769e-06 | H28: =IF(ISERROR((H42+H44)/H55),0,((H42+H44)/H55)) -> 0.04727401825
A29: IDP regulation financial viability indicators
A30: i. Debt coverage | B30: (Total Operating Revenue - Operating Grants)/Debt service payments due within financial year)
A31: ii. O/S Service Debtors to Revenue | B31: Total outstanding service debtors/annual revenue received for services
A32: iii. Cost coverage | B32: (Available cash + Investments)/monthly fixed operational expenditure
A33: References
A34: 1. Consumer debtors > 12 months old are excluded from current assets.
A35: 2. Material variances to be explained.
A37: Calculations
A38: ='C6-FinPos'!A38 -> Borrowing | D38: ='C6-FinPos'!C38 -> 8578315.94 | E38: ='C6-FinPos'!D38 -> 57580706 | F38: ='C6-FinPos'!E38 -> 9566022 | G38: ='C6-FinPos'!F38 -> -2910894.71 | H38: 0
A39: Total Assets | D39: ='C6-FinPos'!C26 -> 2592516218 | E39: ='C6-FinPos'!D26 -> 4460559865 | F39: ='C6-FinPos'!E26 -> 4523148469 | G39: ='C6-FinPos'!F26 -> 2699213811 | H39: ='C6-FinPos'!G26 -> 4523148469
A40: ='C4-FinPerf RE'!A25 -> Employee related costs | D40: ='C4-FinPerf RE'!C25 -> 175835152.2 | E40: ='C4-FinPerf RE'!D25 -> 200681339 | F40: ='C4-FinPerf RE'!E25 -> 199255586 | G40: ='C4-FinPerf RE'!G25 -> 138026380.7 | H40: ='C4-FinPerf RE'!K25 -> 199255586
A41: =A27 -> Repairs & Maintenance | D41: 10502409.54 | E41: 31908431 | F41: 51400431 | G41: 18904171.09 | H41: 51400431
A42: Interest (finance charges) | D42: ='C4-FinPerf RE'!C29 -> 842599.41 | E42: ='C4-FinPerf RE'!D29 -> 954967 | F42: ='C4-FinPerf RE'!E29 -> 1354967 | G42: ='C4-FinPerf RE'!G29 -> 2071.5 | H42: ='C4-FinPerf RE'!K29 -> 1354967
A43: Principal paid | D43: =-'C7-CFlow'!C36 -> 0 | E43: =-'C7-CFlow'!D36 -> 0 | F43: =-'C7-CFlow'!E36 -> 0 | G43: =-'C7-CFlow'!G36 -> 0 | H43: =-'C7-CFlow'!K36 -> 0
A44: Depreciation | D44: ='C4-FinPerf RE'!C28 -> 105980217.8 | E44: ='C4-FinPerf RE'!D28 -> 89877203 | F44: ='C4-FinPerf RE'!E28 -> 89677203 | H44: ='C4-FinPerf RE'!K26 -> 35684835
A45: Operating expenditure | D45: ='C4-FinPerf RE'!C36 -> 576557662.3 | E45: ='C4-FinPerf RE'!D36 -> 607084886 | F45: ='C4-FinPerf RE'!E36 -> 659941251 | G45: ='C4-FinPerf RE'!G36 -> 459572975.5 | H45: ='C4-FinPerf RE'!K36 -> 659941251
A46: ='C5-Capex'!A40 -> Total Capital Expenditure | D46: ='C5-Capex'!C40 -> 85784805.85 | E46: ='C5-Capex'!D40 -> 150893152 | F46: ='C5-Capex'!E40 -> 267513506 | G46: ='C5-Capex'!G40 -> 107791319.5 | H46: ='C5-Capex'!K40 -> 267513506
A47: Borrowed funding for capital | D47: ='C5-Capex'!C72 -> 0 | E47: ='C5-Capex'!D72 -> 0 | F47: ='C5-Capex'!E72 -> 0 | G47: ='C5-Capex'!G72 -> 0 | H47: ='C5-Capex'!K72 -> 0
A48: Debt | D48: ='C6-FinPos'!C30+'C6-FinPos'!C31+'C6-FinPos'!C33+'C6-FinPos'!C38 -> 249921458 | E48: ='C6-FinPos'!D30+'C6-FinPos'!D31+'C6-FinPos'!D33+'C6-FinPos'!D38 -> 313679928 | F48: ='C6-FinPos'!E30+'C6-FinPos'!E31+'C6-FinPos'!E33+'C6-FinPos'!E38 -> -28417194 | G48: ='C6-FinPos'!F30+'C6-FinPos'!F31+'C6-FinPos'!F33+'C6-FinPos'!F38 -> 198800705.1 | H48: ='C6-FinPos'!G30+'C6-FinPos'!G31+'C6-FinPos'!G33+'C6-FinPos'!G38 -> -28417194
A49: Equity | D49: ='C6-FinPos'!C48 -> 2197295690 | E49: ='C6-FinPos'!D48 -> 4159247167 | F49: ='C6-FinPos'!E48 -> 4348212287 | G49: ='C6-FinPos'!F48 -> 2389582462 | H49: ='C6-FinPos'!G48 -> 4348212287
A50: ='C6-FinPos'!A47 -> Reserves | D50: ='C6-FinPos'!C47 -> 0 | E50: ='C6-FinPos'!D47 -> 0 | F50: ='C6-FinPos'!E47 -> 0 | G50: ='C6-FinPos'!F47 -> 0 | H50: ='C6-FinPos'!G47 -> 0
A51: ='C6-FinPos'!A38 -> Borrowing | D51: ='C6-FinPos'!C38 -> 8578315.94 | E51: ='C6-FinPos'!D38 -> 57580706 | F51: ='C6-FinPos'!E38 -> 9566022 | G51: ='C6-FinPos'!F38 -> -2910894.71 | H51: ='C6-FinPos'!G38 -> 9566022
A52: ='C6-FinPos'!A6 -> Current assets | D52: ='C6-FinPos'!C13 -> 271921341 | E52: ='C6-FinPos'!D13 -> 464545554 | F52: ='C6-FinPos'!E13 -> 410521016 | G52: ='C6-FinPos'!F13 -> 270827614.3 | H52: ='C6-FinPos'!G13 -> 410521016
A53: ='C6-FinPos'!A29 -> Current liabilities | D53: ='C6-FinPos'!C35 -> 258718126.3 | E53: ='C6-FinPos'!D35 -> 275094221 | F53: ='C6-FinPos'!E35 -> -18988217 | G53: ='C6-FinPos'!F35 -> 219086584 | H53: ='C6-FinPos'!G35 -> -18988217
A54: Monetary assets | D54: ='C6-FinPos'!C7+'C6-FinPos'!C8 -> 213363199.1 | E54: ='C6-FinPos'!D7+'C6-FinPos'!D8 -> 151120134 | F54: ='C6-FinPos'!E7+'C6-FinPos'!E8 -> 113803482 | G54: ='C6-FinPos'!F7+'C6-FinPos'!F8 -> 308288918.4 | H54: ='C6-FinPos'!G7+'C6-FinPos'!G8 -> 113803482
A55: ='C4-FinPerf RE'!A22 -> Total Revenue (excluding capital transfers and contributions) | D55: ='C4-FinPerf RE'!C22 -> 625082014.9 | E55: ='C4-FinPerf RE'!D22 -> 678206287 | F55: ='C4-FinPerf RE'!E22 -> 783512876 | G55: ='C4-FinPerf RE'!G22 -> 564309677.7 | H55: ='C4-FinPerf RE'!K22 -> 783512876
A56: ='C4-FinPerf RE'!A19 -> Transfers and subsidies | D56: ='C4-FinPerf RE'!C19 -> 420867989.5 | E56: ='C4-FinPerf RE'!D19 -> 456109000 | F56: ='C4-FinPerf RE'!E19 -> 560832000 | G56: ='C4-FinPerf RE'!G19 -> 424700031.2 | H56: ='C4-FinPerf RE'!K19 -> 560832000
A57: ='C4-FinPerf RE'!A39 -> Transfers and subsidies - capital (monetary allocations) (National / Provincial and District) | D57: ='C4-FinPerf RE'!C39 -> 108376630.1 | E57: ='C4-FinPerf RE'!D39 -> 83797000 | F57: ='C4-FinPerf RE'!E39 -> 113066057 | G57: ='C4-FinPerf RE'!G39 -> 40957372.49 | H57: ='C4-FinPerf RE'!K39 -> 113066057
A58: Debt service payments | D58: ='C7-CFlow'!C12+'C7-CFlow'!C36 -> 0 | E58: ='C7-CFlow'!D12+'C7-CFlow'!D36 -> 0 | F58: ='C7-CFlow'!E12+'C7-CFlow'!E36 -> 0 | G58: ='C7-CFlow'!G16+'C7-CFlow'!G36 -> 0 | H58: ='C7-CFlow'!K16+'C7-CFlow'!K36 -> 0
A59: Outstanding debtors (receivables) | D59: ='C6-FinPos'!C9+'C6-FinPos'!C10+'C6-FinPos'!C11+'C6-FinPos'!C16 -> 58558141.84 | E59: ='C6-FinPos'!D9+'C6-FinPos'!D10+'C6-FinPos'!D11+'C6-FinPos'!D16 -> 313425420 | F59: ='C6-FinPos'!E9+'C6-FinPos'!E10+'C6-FinPos'!E11+'C6-FinPos'!E16 -> 296717534 | G59: ='C6-FinPos'!F9+'C6-FinPos'!F10+'C6-FinPos'!F11+'C6-FinPos'!F16 -> -37461304.16 | H59: ='C6-FinPos'!G9+'C6-FinPos'!G10+'C6-FinPos'!G11+'C6-FinPos'!G16 -> 296717534
A60: Annual services revenue | D60: =SUM('C4-FinPerf RE'!C7:C11) -> 21779433.75 | E60: =SUM('C4-FinPerf RE'!D7:D11) -> 25921465 | F60: =SUM('C4-FinPerf RE'!E7:E11) -> 25921465 | G60: =SUM('C4-FinPerf RE'!G7:G11) -> 17155280.55
A61: Cash + investments | B61: Including LT investments | D61: ='C6-FinPos'!C7+'C6-FinPos'!C8+'C6-FinPos'!C17-'C6-FinPos'!C30 -> 213363199.1 | E61: ='C6-FinPos'!D7+'C6-FinPos'!D8+'C6-FinPos'!D17-'C6-FinPos'!D30 -> 151120134 | F61: ='C6-FinPos'!E7+'C6-FinPos'!E8+'C6-FinPos'!E17-'C6-FinPos'!E30 -> 113803482 | G61: ='C6-FinPos'!F7+'C6-FinPos'!F8+'C6-FinPos'!F17-'C6-FinPos'!F30 -> 308288918.4 | H61: ='C6-FinPos'!G7+'C6-FinPos'!G8+'C6-FinPos'!G17-'C6-FinPos'!G30 -> 113803482
A62: Fixed operational expend. (monthly)
A63: Longstanding debtors outstanding | D63: ='C6-FinPos'!C16 -> 0 | E63: ='C6-FinPos'!D16 -> 0 | F63: ='C6-FinPos'!E16 -> 0 | G63: ='C6-FinPos'!F16 -> 0 | H63: ='C6-FinPos'!G16 -> 0
A64: Longstanding debtors recovered
A65: Attorney collections

Sheet SC3
A1: =muni& " - "&S71I& " - "&Head57 -> LIM476 Tubatse Fetakgomo - Supporting Table SC3 Monthly Budget Statement - aged debtors - M09 March
A2: =desc -> Description | C2: =Head2 -> Budget Year 2020/21
A3: R thousands | B3: NT Code | C3: 0-30 Days | D3: 31-60 Days | E3: 61-90 Days | F3: 91-120 Days | G3: 121-150 Dys | H3: 151-180 Dys | I3: 181 Dys-1 Yr | J3: Over 1Yr | K3: Total | L3: Total over 90 days | M3: Actual Bad Debts Written Off against Debtors | N3: Impairment - Bad Debts i.t.o Council Policy
A4: Debtors Age Analysis By Income Source
A5: Trade and Other Receivables from Exchange Transactions - Water | B5: 1200 | K5: =SUM(C5:J5) -> 0 | L5: =SUM(F5:J5) -> 0
A6: Trade and Other Receivables from Exchange Transactions - Electricity | B6: 1300 | K6: =SUM(C6:J6) -> 0 | L6: =SUM(F6:J6) -> 0
A7: Receivables from Non-exchange Transactions - Property Rates | B7: 1400 | C7: 9042512 | D7: 5826004 | E7: 4565385 | F7: 3403813 | G7: 3201165 | H7: 3132293 | I7: 30708867 | J7: 169393958 | K7: =SUM(C7:J7) -> 229273997 | L7: 209840096
A8: Receivables from Exchange Transactions - Waste Water Management | B8: 1500 | C8: 0 | D8: 0 | E8: 0 | F8: 0 | G8: 0 | H8: 0 | I8: 0 | J8: 0 | K8: 0 | L8: 0
A9: Receivables from Exchange Transactions - Waste Management | B9: 1600 | C9: 1758425 | D9: 1652482 | E9: 1502708 | F9: 1465594 | G9: 1451454 | H9: 1433322 | I9: 8463695 | J9: 73109727 | K9: 90837407 | L9: =SUM(F9:J9) -> 85923792
A10: Receivables from Exchange Transactions - Property Rental Debtors | B10: 1700 | C10: 0 | D10: 0 | E10: 0 | F10: 0 | G10: 0 | H10: 0 | I10: 0 | J10: 0 | K10: 0 | L10: =SUM(F10:J10) -> 0
A11: Interest on Arrear Debtor Accounts | B11: 1810 | C11: 2031779 | D11: 1973657 | E11: 1955310 | F11: 1925283 | G11: 1892002 | H11: 2458050 | I11: 13656671 | J11: 75800055 | K11: 101692807 | L11: 95732061
A12: Recoverable unauthorised, irregular, fruitless and wasteful expenditure | B12: 1820 | C12: 0 | D12: 0 | E12: 0 | F12: 0 | G12: 0 | H12: 0 | I12: 0 | J12: 0 | K12: 0 | L12: 0
A13: Other | B13: 1900 | C13: 176353 | D13: 307924 | E13: 93358 | F13: 230751 | G13: 136645 | H13: 151978 | I13: 524580 | J13: 4269584 | K13: 5891173 | L13: =SUM(F13:J13) -> 5313538
A14: Total By Income Source | B14: 2000 | C14: =SUM(C5:C13) -> 13009069 | D14: 9760067 | E14: 8116761 | F14: 7025441 | G14: 6681266 | H14: 7175643 | I14: 53353813 | J14: 322573324 | K14: 427695384 | L14: =SUM(L5:L13) -> 396809487 | M14: 0 | N14: 0
A15: =Head1&" - totals only" -> 2019/20 - totals only | K15: =SUM(C15:J15) -> 0 | L15: =SUM(F15:J15) -> 0
A16: Debtors Age Analysis By Customer Group
A17: Organs of State | B17: 2200 | C17: 1156679 | D17: 1116817 | E17: 876608 | F17: 835122 | G17: 645963 | H17: 1229712 | I17: 17050625 | J17: 67144040 | K17: =SUM(C17:J17) -> 90055566 | L17: =SUM(F17:J17) -> 86905462
A18: Commercial | B18: 2300 | C18: 6702874 | D18: 4032750 | E18: 3167255 | F18: 2444010 | G18: 2372994 | H18: 2357467 | I18: 13976835 | J18: 74881217 | K18: =SUM(C18:J18) -> 109935402 | L18: =SUM(F18:J18) -> 96032523
A19: Households | B19: 2400 | C19: 5020680 | D19: 4430143 | E19: 3983524 | F19: 3605076 | G19: 3561903 | H19: 3501223 | I19: 22042748 | J19: 178519060 | K19: =SUM(C19:J19) -> 224664357 | L19: =SUM(F19:J19) -> 211230010
A20: Other | B20: 2500 | C20: 128836 | D20: 180357 | E20: 89374 | F20: 141233 | G20: 100406 | H20: 87241 | I20: 283605 | J20: 2029007 | K20: =SUM(C20:J20) -> 3040059 | L20: =SUM(F20:J20) -> 2641492
A21: Total By Customer Group | B21: 2600 | C21: =SUM(C17:C20) -> 13009069 | D21: 9760067 | E21: 8116761 | F21: 7025441 | G21: 6681266 | H21: 7175643 | I21: 53353813 | J21: =SUM(J17:J20) -> 322573324 | K21: =SUM(K17:K20) -> 427695384 | L21: =SUM(L17:L20) -> 396809487 | M21: =SUM(M17:M20) -> 0 | N21: =SUM(N17:N20) -> 0
A22: Notes
A23: Material increases in value of debtors' categories compared to previous month to be explained
A24: Bad debts = amounts actually written off in the month
A25: Total by Income Source must reconcile with Total by Customer Group
C26: =C14-C21 -> 0 | D26: =D14-D21 -> 0 | E26: =E14-E21 -> 0 | F26: 0 | G26: 0 | H26: 0 | I26: 0 | J26: =J14-J21 -> 0 | K26: 0
C27: =IF(C26=0,"","MUST AGREE") ->  | D27: =IF(D26=0,"","MUST AGREE") -> 

Sheet SC4
A1: =muni& " - "&S71J& " - "&Head57 -> LIM476 Tubatse Fetakgomo - Supporting Table SC4 Monthly Budget Statement - aged creditors - M09 March
A2: =desc -> Description | B2: NT Code | C2: =Head2 -> Budget Year 2020/21 | L2: Prior year totals for chart (same period)
C3: 0 - 30 Days | D3: 31 - 60 Days | E3: 61 - 90 Days | F3: 91 - 120 Days | G3: 121 - 150 Days | H3: 151 - 180 Days | I3: 181 Days - 1 Year | J3: Over 1 Year | K3: Total
A4: R thousands
A5: Creditors Age Analysis By Customer Type
A6: Bulk Electricity | B6: 0100 | K6: =SUM(C6:J6) -> 0
A7: Bulk Water | B7: 0200 | K7: =SUM(C7:J7) -> 0
A8: PAYE deductions | B8: 0300 | K8: 0
A9: VAT (output less input) | B9: 0400 | K9: 0
A10: Pensions / Retirement deductions | B10: 0500 | K10: 0
A11: Loan repayments | B11: 0600 | K11: 0
A12: Trade Creditors | B12: 0700 | C12: =4612148 -> 4612148 | D12: =911161 -> 911161 | E12: =270055 -> 270055 | F12: 2242786 | K12: 8036150
A13: Auditor General | B13: 0800 | K13: 0
A14: Other | B14: 0900 | K14: =SUM(C14:J14) -> 0
A15: Total By Customer Type | B15: 1000 | C15: =SUM(C6:C14) -> 4612148 | D15: =SUM(D6:D14) -> 911161 | E15: 270055 | F15: 2242786 | G15: 0 | H15: 0 | I15: 0 | J15: 0 | K15: =SUM(K6:K14) -> 8036150 | L15: =SUM(L6:L14) -> 0
A16: Notes
A17: Material increases in value of creditors' categories compared to previous month to be explained

Sheet SC5
A1: =muni& " - "&S71K& " - "&Head57 -> LIM476 Tubatse Fetakgomo - Supporting Table SC5 Monthly Budget Statement - investment portfolio - M09 March
A2: Investments by maturity Name of institution & investment ID | B2: Ref | C2: Period of Investment | D2: Type of Investment | E2: Capital Guarantee (Yes/ No) | F2: Variable or Fixed interest rate | G2: Interest Rate ᶟ | H2: Commission Paid (Rands) | I2: Commission Recipient | J2: Expiry date of investment | K2: Opening balance | L2: Interest to be realised | M2: Partial / Premature Withdrawal (4) | N2: Investment Top Up | O2: Closing Balance
A3: R thousands | C3: Yrs/Months
A4: Municipality
A5: FNB | C5: MONTHS | D5: CALL | E5: YES | F5: VARIABLE | K5: 82255.29 | L5: 18.94 | O5: =SUM(K5:N5) -> 82274.23
A6: STANDARD BANK | C6: MONTHS | D6: CALL | E6: YES | F6: VARIABLE | K6: 153763379.7 | L6: 451600.94 | O6: =K6+L6 -> 154214980.6
A7: STANDARD BANK | C7: MONTHS | D7: CALL | E7: YES | F7: VARIABLE | K7: 12474155.29 | L7: 23601.8 | O7: =K7+L7 -> 12497757.09
A10: Municipality sub-total | K10: =SUM(K5:K7) -> 166319790.3 | L10: =SUM(L5:L7) -> 475221.68 | M10: 0 | N10: 0 | O10: 166795012
A12: Entities
O13: =SUM(K13:N13) -> 0
O14: 0
O15: 0
O16: 0
O17: 0
O18: 0
O19: 0
A20: Entities sub-total | K20: =SUM(K13:K19) -> 0 | M20: =SUM(M13:M19) -> 0 | N20: =SUM(N13:N19) -> 0 | O20: =SUM(O13:O19) -> 0
A22: TOTAL INVESTMENTS AND INTEREST | B22: 2 | K22: =K10+K20 -> 166319790.3 | M22: =M10+M20 -> 0 | N22: =N10+N20 -> 0 | O22: =O10+O20 -> 166795012
A23: =head27a -> References
A24: 2. List investments in expiry date order
A25: 3. If 'variable' is selected in column F, input interest rate range
A26: 4. Withdrawals to be entered as negative

Sheet SC6
A1: =muni& " - "&S71L& " - "&Head57 -> LIM476 Tubatse Fetakgomo - Supporting Table SC6 Monthly Budget Statement - transfers and grant receipts - M09 March
A2: =desc -> Description | B2: =head27 -> Ref | C2: =Head1 -> 2019/20 | D2: =Head2 -> Budget Year 2020/21
C3: =Head5 -> Audited Outcome | D3: =Head6 -> Original Budget | E3: =Head7 -> Adjusted Budget | F3: =Head38 -> Monthly actual | G3: =Head39 -> YearTD actual | H3: =Head40 -> YearTD budget | I3: =Head41 -> YTD variance | J3: =Head41 -> YTD variance | K3: =Head8 -> Full Year Forecast
A4: R thousands | J4: %
A5: RECEIPTS: | B5: 1,2
A7: Operating Transfers and Grants
A8: National Government: | C8: =SUM(C9:C15) -> 420867989.5 | D8: 456109000 | E8: 560832000 | F8: 113263237.9 | G8: 424700031.2 | H8: 415387838 | I8: =G8-H8 -> 9312193.2 | J8: =IF(H8=0,"",I8/H8) -> 0.02241806897 | K8: =SUM(K9:K15) -> 560832000
A9: Equitable Share | C9: 415485989.5 | D9: 452557000 | E9: 557280000 | F9: 113139000 | G9: 421513000 | H9: 412723847 | I9: 8789153 | J9: 0.02129548138 | K9: 557280000
A10: Expanded Public Works Programme Integrated Grant | C10: 1786000 | D10: 1052000 | E10: 1052000 | F10: 43111.99 | G10: 1052000 | H10: 788994 | I10: 263006 | J10: 0.3333434728 | K10: 1052000
A11: Integrated National Electrification Programme Grant | C11: 0 | D11: 0 | E11: 0 | F11: 0 | G11: 0 | H11: 0 | I11: 0 | K11: 0
A12: Local Government Financial Management Grant | C12: 3000000 | D12: 2500000 | E12: 2500000 | F12: 81125.9 | G12: 2135031.2 | H12: 1874997 | I12: 260034.2 | J12: 0.1386851286 | K12: 2500000
A13: Municipal Demarcation Transition Grant | C13: 0 | D13: 0 | E13: 0 | F13: 0 | G13: 0 | H13: 0 | I13: 0 | K13: 0
A14: Municipal Disaster Relief Grant | B14: 3 | C14: 596000 | D14: 0 | E14: 0 | F14: 0 | G14: 0 | H14: 0 | I14: 0 | K14: 0
A15: Municipal Infrastructure Grant | C15: 0 | D15: 0 | E15: 0 | F15: 0 | G15: 0 | H15: 0 | I15: 0 | K15: 0
A16: Other transfers and grants [insert description] | I16: =G16-H16 -> 0 | J16: =IF(I16=0,"",I16/H16) -> 
A17: Provincial Government: | C17: =SUM(C18:C18) -> 0 | D17: 0 | E17: 0 | F17: 0 | G17: 0 | H17: 0 | I17: =G17-H17 -> 0 | J17: =IF(H17=0,"",I17/H17) ->  | K17: =SUM(K18:K18) -> 0
A18: Municipal Systems Improvement | C18: 0 | D18: 0 | E18: 0 | F18: 0 | G18: 0 | H18: 0 | I18: =G18-H18 -> 0 | J18: =IF(H18=0,"",I18/H18) ->  | K18: 0
A19: Other transfers and grants [insert description] | I19: =G19-H19 -> 0
A20: District Municipality: | C20: =SUM(C21:C21) -> 0 | D20: 0 | E20: 0 | F20: 0 | G20: 0 | H20: 0 | I20: 0 | K20: =SUM(K21:K21) -> 0
A21: [insert description] | I21: 0
A22: Other grant providers: | C22: =SUM(C23:C24) -> 0 | D22: 0 | E22: 0 | F22: 0 | G22: 0 | H22: 0 | I22: =G22-H22 -> 0 | J22: =IF(H22=0,"",I22/H22) ->  | K22: =SUM(K23:K24) -> 0
A23: Limpopo Appeal Tribunals | C23: 0 | D23: 0 | E23: 0 | F23: 0 | G23: 0 | H23: 0 | I23: =G23-H23 -> 0 | J23: =IF(H23=0,"",I23/H23) ->  | K23: 0
A24: Unspecified | C24: 0 | D24: 0 | E24: 0 | F24: 0 | G24: 0 | H24: 0 | I24: =G24-H24 -> 0 | J24: =IF(H24=0,"",I24/H24) ->  | K24: 0
A25: Total Operating Transfers and Grants | B25: 5 | C25: =C8+C17+C20+C22 -> 420867989.5 | D25: 456109000 | E25: 560832000 | F25: 113263237.9 | G25: 424700031.2 | H25: 415387838 | I25: 9312193.2 | J25: 0.02241806897 | K25: =K8+K17+K20+K22 -> 560832000
A27: Capital Transfers and Grants
A28: =A8 -> National Government: | C28: =SUM(C29:C32) -> 108376630.1 | D28: 83797000 | E28: 113066057 | F28: 5586283.22 | G28: 40957372.49 | H28: 74555369.8 | I28: =G28-H28 -> -33597997.31 | J28: =IF(H28=0,"",I28/H28) -> -0.4506449019 | K28: =SUM(K29:K32) -> 113066057
A29: Integrated National Electrification Programme | C29: 0 | D29: 0 | E29: 0 | F29: 0 | G29: 0 | H29: 0 | I29: 0 | K29: 0
A30: Integrated National Electrification Programme Grant | C30: 31297285.3 | D30: 0 | E30: 0 | F30: 0 | G30: 0 | H30: 0 | I30: 0 | K30: 0
A31: Municipal Infrastructure Grant | C31: 55099942.73 | D31: 83797000 | E31: 113066057 | F31: 5586283.22 | G31: 40957372.49 | H31: 74555369.8 | I31: -33597997.31 | J31: -0.4506449019 | K31: 113066057
A32: Water Services Infrastructure Grant | C32: 21979402.1 | D32: 0 | E32: 0 | F32: 0 | G32: 0 | H32: 0 | I32: 0 | K32: 0
A33: =A17 -> Provincial Government: | C33: =SUM(C34:C34) -> 0 | D33: 0 | E33: 28257298 | F33: 2848414.4 | G33: 12464098.71 | H33: 11302919.2 | I33: 1161179.51 | J33: 0.1027327091 | K33: =SUM(K34:K34) -> 28257298
A34: Specify (Add grant description) | C34: 0 | D34: 0 | E34: 28257298 | F34: 2848414.4 | G34: 12464098.71 | H34: 11302919.2 | I34: 1161179.51 | J34: 0.1027327091 | K34: 28257298
A35: =A20 -> District Municipality: | C35: =SUM(C36:C36) -> 0 | D35: 0 | E35: 0 | F35: 0 | G35: 0 | H35: 0 | I35: =G35-H35 -> 0 | J35: =IF(I35=0,"",I35/H35) ->  | K35: =SUM(K36:K36) -> 0
A36: [insert description] | I36: 0
A37: =A22 -> Other grant providers: | C37: =SUM(C38:C38) -> 0 | D37: 0 | E37: 0 | F37: 0 | G37: 0 | H37: 0 | I37: 0 | K37: =SUM(K38:K38) -> 0
A38: [insert description] | I38: 0 | J38: =IF(I38=0,"",I38/H38) -> 
A39: Total Capital Transfers and Grants | B39: 5 | C39: =C28+C33+C35+C37 -> 108376630.1 | D39: 83797000 | E39: 141323355 | F39: 8434697.62 | G39: 53421471.2 | H39: 85858289 | I39: -32436817.8 | J39: -0.3777948312 | K39: =K28+K33+K35+K37 -> 141323355
A41: TOTAL RECEIPTS OF TRANSFERS & GRANTS | B41: 5 | C41: =C25+C39 -> 529244619.6 | D41: 539906000 | E41: 702155355 | F41: 121697935.5 | G41: 478121502.4 | H41: 501246127 | I41: -23124624.6 | J41: -0.04613427088 | K41: =K25+K39 -> 702155355
A42: =head27a -> References
A43: 1. Each grant is listed by name as gazetted together with the name of the transferring department or municipality, donor or other organisation
A44: 2. Grant expenditure must be separately listed for each grant received
A45: 3. Replacement of RSC levies
A46: 4. Housing subsidies for housing where ownership transferred
A47: 5. Total recurrent/capital grants and subsidies must reconcile to the 'Financial Performance' Statement

Sheet SC7(1)
A1: =muni& " - "&S71M& " - "&Head57 -> LIM476 Tubatse Fetakgomo - Supporting Table SC7(1) Monthly Budget Statement - transfers and grant expenditure - M09 March
A2: =desc -> Description | B2: =head27 -> Ref | C2: =Head1 -> 2019/20 | D2: =Head2 -> Budget Year 2020/21
C3: =Head5 -> Audited Outcome | D3: =Head6 -> Original Budget | E3: =Head7 -> Adjusted Budget | F3: =Head38 -> Monthly actual | G3: =Head39 -> YearTD actual | H3: =Head40 -> YearTD budget | I3: =Head41 -> YTD variance | J3: =Head41 -> YTD variance | K3: =Head8 -> Full Year Forecast
A4: R thousands | J4: %
A5: EXPENDITURE
A7: Operating expenditure of Transfers and Grants
A8: ='SC6'!A8 -> National Government: | C8: =SUM(C9:C15) -> 452855544.4 | D8: 510498939 | E8: 554741157 | F8: 42145919.74 | G8: 447983375.4 | H8: 415614053.6 | I8: 32369321.73 | J8: =IF(I8=0,"",I8/H8) -> 0.07788312605 | K8: =SUM(K9:K15) -> 554741157
I9: =G9-H9 -> 0
A10: Equitable Share | C10: 447802388.3 | D10: 502757088 | E10: 547392930 | F10: 41752514.29 | G10: 442398263.1 | H10: 409895081.2 | I10: =G10-H10 -> 32503181.89 | J10: =IF(H10=0,"",I10/H10) -> 0.07929634528 | K10: 547392930
A11: Expanded Public Works Programme Integrated Grant | C11: 2018236.88 | D11: 1052000 | E11: 1052000 | F11: 0 | G11: 1010451.59 | H11: 789003 | I11: 221448.59 | J11: 0.2806688821 | K11: 1052000
A12: Local Government Financial Management Grant | C12: 2912305.21 | D12: 2500000 | E12: 2500000 | F12: 81125.9 | G12: 1870466.37 | H12: 1875006 | I12: -4539.63 | J12: -0.002421128252 | K12: 2500000
A13: Municipal Demarcation Transition Grant | C13: 0 | D13: 0 | E13: 0 | F13: 0 | G13: 0 | H13: 0 | I13: 0 | K13: 0
A14: Municipal Disaster Relief Grant | C14: 93717.47 | D14: 0 | E14: 0 | F14: 0 | G14: 0 | H14: 70000.02 | I14: -70000.02 | J14: -1 | K14: 0
A15: Municipal Infrastructure Grant | C15: 28896.52 | D15: 4189851 | E15: 3796227 | F15: 312279.55 | G15: 2704194.3 | H15: 2984963.4 | I15: -280769.1 | J15: -0.09406115331 | K15: 3796227
A16: ='SC6'!A17 -> Provincial Government: | C16: =SUM(C17:C18) -> 0 | D16: 0 | E16: 0 | F16: 0 | G16: 0 | H16: 0 | I16: 0 | K16: =SUM(K17:K18) -> 0
I17: =G17-H17 -> 0
A18: Municipal Systems Improvement | C18: 0 | D18: 0 | E18: 0 | F18: 0 | H18: 0 | I18: =G18-H18 -> 0 | J18: =IF(H18=0,"",I18/H18) ->  | K18: 0
A19: ='SC6'!A20 -> District Municipality: | C19: =SUM(C20:C20) -> 0 | D19: 0 | E19: 0 | F19: 0 | G19: 0 | H19: 0 | I19: 0 | K19: =SUM(K20:K20) -> 0
I20: 0
A21: ='SC6'!A22 -> Other grant providers: | C21: =SUM(C22:C22) -> 0 | D21: 0 | E21: 0 | F21: 0 | G21: 0 | H21: 0 | I21: 0 | K21: =SUM(K22:K22) -> 0
I22: 0
A23: Skill Development and Training | C23: 0 | D23: 0 | E23: 0 | F23: 0 | G23: 0 | H23: 0 | I23: =G23-H23 -> 0 | J23: =IF(H23=0,"",I23/H23) ->  | K23: 0
A24: Total operating expenditure of Transfers and Grants: | C24: =C8+C16+C19+C21 -> 452855544.4 | D24: 510498939 | E24: 554741157 | F24: 42145919.74 | G24: 447983375.4 | H24: 415614053.6 | I24: 32369321.73 | J24: 0.07788312605 | K24: =K8+K16+K19+K21 -> 554741157
A26: Capital expenditure of Transfers and Grants
A27: ='SC6'!A28 -> National Government: | C27: =SUM(C28:C31) -> 59207763.39 | D27: 79607152 | E27: 109056208 | F27: 3650339.12 | G27: 30361781.85 | H27: 71485001.4 | I27: -41123219.55 | J27: =IF(I27=0,"",I27/H27) -> -0.5752705987 | K27: =SUM(K28:K31) -> 109056208
A28: Integrated National Electrification Programme | C28: 0 | D28: 0 | F28: 0 | G28: 0 | H28: 0 | I28: =G28-H28 -> 0 | J28: =IF(H28=0,"",I28/H28) ->  | K28: 0
A29: Integrated National Electrification Programme Grant | C29: 17938110.4 | D29: 0 | E29: 0 | F29: 0 | G29: 0 | H29: 0 | I29: =G29-H29 -> 0 | J29: =IF(H29=0,"",I29/H29) ->  | K29: 0
A30: Municipal Infrastructure Grant | C30: 41269652.99 | D30: 79607152 | E30: 109056208 | F30: 3650339.12 | G30: 30361781.85 | H30: 71485001.4 | I30: =G30-H30 -> -41123219.55 | J30: =IF(H30=0,"",I30/H30) -> -0.5752705987 | K30: 109056208
A31: Water Services Infrastructure Grant | C31: 0 | D31: 0 | E31: 0 | F31: 0 | G31: 0 | H31: 0 | I31: =G31-H31 -> 0 | J31: =IF(H31=0,"",I31/H31) ->  | K31: 0
A32: ='SC6'!A33 -> Provincial Government: | C32: =SUM(C33:C33) -> 11406731.18 | D32: 0 | E32: 28257298 | F32: 3896434.48 | G32: 3896434.48 | H32: 11302919.2 | I32: =G32-H32 -> -7406484.72 | J32: -0.6552718452 | K32: =SUM(K33:K33) -> 28257298
A33: Specify (Add grant description) | C33: 11406731.18 | D33: 0 | E33: 28257298 | F33: 3896434.48 | G33: 3896434.48 | H33: 11302919.2 | I33: =G33-H33 -> -7406484.72 | J33: =IF(H33=0,"",I33/H33) -> -0.6552718452 | K33: 28257298
A34: ='SC6'!A35 -> District Municipality: | C34: =SUM(C35:C35) -> 0 | D34: 0 | E34: 0 | F34: 0 | G34: 0 | H34: 0 | I34: 0 | K34: =SUM(K35:K35) -> 0
I35: 0
A36: ='SC6'!A37 -> Other grant providers: | C36: =SUM(C37:C37) -> 0 | D36: 0 | E36: 0 | F36: 0 | G36: 0 | H36: 0 | I36: 0 | K36: =SUM(K37:K37) -> 0
I37: 0
A38: Total capital expenditure of Transfers and Grants | C38: =C27+C32+C34+C36 -> 70614494.57 | D38: 79607152 | E38: 137313506 | F38: 7546773.6 | G38: 34258216.33 | H38: 82787920.6 | I38: -48529704.27 | J38: =IF(I38=0,"",I38/H38) -> -0.5861930571 | K38: =K27+K32+K34+K36 -> 137313506
A40: TOTAL EXPENDITURE OF TRANSFERS AND GRANTS | C40: =C24+C38 -> 523470039 | D40: 590106091 | E40: 692054663 | F40: 49692693.34 | G40: 482241591.7 | H40: 498401974.2 | I40: -16160382.54 | J40: =IF(I40=0,"",I40/H40) -> -0.03242439512 | K40: =K24+K38 -> 692054663
A41: =head27a -> References

Sheet SC7(2)
A1: =muni& " - "&S71T& " - "&Head57 -> LIM476 Tubatse Fetakgomo - Supporting Table SC7(2) Monthly Budget Statement - Expenditure against approved rollovers - M09 March
A2: =desc -> Description | B2: =head27 -> Ref | C2: =Head2 -> Budget Year 2020/21
C3: ="Approved Rollover " &Head1 -> Approved Rollover 2019/20 | D3: =Head38 -> Monthly actual | E3: =Head39 -> YearTD actual | F3: =Head41 -> YTD variance | G3: =Head41 -> YTD variance
A4: R thousands | G4: %
A5: EXPENDITURE
A7: Operating expenditure of Approved Roll-overs
A8: ='SC6'!A8 -> National Government: | C8: =SUM(C9:C9) -> 29269057.23 | D8: =SUM(D9:D9) -> 1132567 | E8: =SUM(E9:E9) -> 15679809.35 | F8: =SUM(F9:F9) -> -13589247.88 | G8: =IF(F8=0,"",F8/C8) -> -0.4642871744
A9: Municipal Infrustructure Grant | C9: 29269057.23 | D9: =1132567 -> 1132567 | E9: =8030472.95+7649336.4 -> 15679809.35 | F9: =E9-C9 -> -13589247.88 | G9: =IF(F9=0,"",F9/C9) -> -0.4642871744
A10: Distress Mining Town | C10: 28257298 | D10: =1111004.66+872318.37+1470958.73+442152.72 -> 3896434.48 | E10: 3896434.48
A14: ='SC6'!A17 -> Provincial Government: | C14: =SUM(C15:C15) -> 0 | D14: =SUM(D15:D15) -> 0 | E14: =SUM(E15:E15) -> 0 | F14: =SUM(F15:F15) -> 0
F15: =C15-E15 -> 0
A16: ='SC6'!A20 -> District Municipality: | C16: =SUM(C17:C17) -> 0 | D16: =SUM(D17:D17) -> 0 | E16: =SUM(E17:E17) -> 0 | F16: =SUM(F17:F17) -> 0
F17: =C17-E17 -> 0
A18: ='SC6'!A22 -> Other grant providers: | C18: =SUM(C19:C19) -> 0 | D18: =SUM(D19:D19) -> 0 | E18: =SUM(E19:E19) -> 0 | F18: =SUM(F19:F19) -> 0
F19: =C19-E19 -> 0
A20: Total operating expenditure of Approved Roll-overs | C20: =C8+C14+C16+C18+C10 -> 57526355.23 | D20: =D8+D14+D16+D18 -> 1132567 | E20: =E8+E14+E16+E18+E10 -> 19576243.83 | F20: =F8+F14+F16+F18 -> -13589247.88 | G20: -0.2362264709
A22: Capital expenditure of Approved Roll-overs
A23: ='SC6'!A28 -> National Government: | C23: =SUM(C24:C24) -> 0 | D23: =SUM(D24:D24) -> 0 | E23: =SUM(E24:E24) -> 0 | F23: =SUM(F24:F24) -> 0
F24: =C24-E24 -> 0
A25: ='SC6'!A33 -> Provincial Government: | C25: =SUM(C26:C26) -> 0 | D25: =SUM(D26:D26) -> 0 | E25: =SUM(E26:E26) -> 0 | F25: =SUM(F26:F26) -> 0
F26: =C26-E26 -> 0
A27: ='SC6'!A35 -> District Municipality: | C27: =SUM(C28:C28) -> 0 | D27: =SUM(D28:D28) -> 0 | E27: =SUM(E28:E28) -> 0 | F27: =SUM(F28:F28) -> 0
F28: =C28-E28 -> 0
A29: ='SC6'!A37 -> Other grant providers: | C29: =SUM(C30:C30) -> 0 | D29: =SUM(D30:D30) -> 0 | E29: =SUM(E30:E30) -> 0 | F29: =SUM(F30:F30) -> 0
F30: =C30-E30 -> 0
A31: Total capital expenditure of Approved Roll-overs | C31: =C23+C25+C27+C29 -> 0 | D31: =D23+D25+D27+D29 -> 0 | E31: =E23+E25+E27+E29 -> 0 | F31: =F23+F25+F27+F29 -> 0
A33: TOTAL EXPENDITURE OF APPROVED ROLL-OVERS | C33: =C20+C31 -> 57526355.23 | D33: =D20+D31 -> 1132567 | E33: =E20+E31 -> 19576243.83 | F33: =F20+F31 -> -13589247.88 | G33: -0.2362264709
A34: =head27a -> References

Sheet SC8
A1: =muni& " - "&S71N& " - "&Head57 -> LIM476 Tubatse Fetakgomo - Supporting Table SC8 Monthly Budget Statement - councillor and staff benefits - M09 March
A2: Summary of Employee and Councillor remuneration | B2: =head27 -> Ref | C2: =Head1 -> 2019/20 | D2: =Head2 -> Budget Year 2020/21
C3: =Head5 -> Audited Outcome | D3: =Head6 -> Original Budget | E3: =Head7 -> Adjusted Budget | F3: =Head38 -> Monthly actual | G3: =Head39 -> YearTD actual | H3: =Head40 -> YearTD budget | I3: =Head41 -> YTD variance | J3: =Head41 -> YTD variance | K3: =Head8 -> Full Year Forecast
A4: R thousands | J4: %
B5: 1 | C5: A | D5: B | E5: C | K5: D
A6: Councillors (Political Office Bearers plus Other)
A7: Basic Salaries and Wages | C7: 19870243.87 | D7: 22608199 | E7: 22608199 | F7: 1602944.71 | G7: 14426502.39 | H7: 16956171 | I7: =G7-H7 -> -2529668.61 | J7: =IF(I7=0,"",I7/H7) -> -0.1491886706 | K7: 22608199
A8: Pension and UIF Contributions | C8: 0 | D8: 0 | E8: 0 | F8: 0 | G8: 0 | H8: 0 | I8: 0 | K8: 0
A9: Medical Aid Contributions | C9: 0 | D9: 0 | E9: 0 | F9: 0 | G9: 0 | H9: 0 | I9: 0 | K9: 0
A10: Motor Vehicle Allowance | I10: =G10-H10 -> 0 | J10: =IF(I10=0,"",I10/H10) -> 
A11: Cellphone Allowance | C11: 3645609.68 | D11: 3955154 | E11: 3955154 | F11: 364800 | G11: 2985300 | H11: 2966382 | I11: =G11-H11 -> 18918 | J11: =IF(I11=0,"",I11/H11) -> 0.006377465883 | K11: 3955154
A12: Housing Allowances | I12: =G12-H12 -> 0 | J12: =IF(I12=0,"",I12/H12) -> 
A13: Other benefits and allowances | C13: 8445907.68 | D13: 9121482 | E13: 9121482 | F13: 534345.35 | G13: 4809108.15 | H13: 6841134 | I13: -2032025.85 | J13: -0.2970305581 | K13: 9121482
A14: Sub Total - Councillors | C14: =SUM(C7:C13) -> 31961761.23 | D14: 35684835 | E14: 35684835 | F14: 2502090.06 | G14: 22220910.54 | H14: 26763687 | I14: -4542776.46 | J14: -0.169736571 | K14: 35684835
A15: % increase | B15: 4 | D15: =IF(D14=0,"",(D14/C14)-1) -> 0.1164852507 | E15: =IF(E14=0,"",(E14/C14)-1) -> 0.1164852507 | K15: =IF(K14=0,"",(K14/C14)-1) -> 0.1164852507
A17: Senior Managers of the Municipality | B17: 3
A18: Basic Salaries and Wages | C18: 5133866.25 | D18: 7167350 | E18: 6137350 | F18: 367939.22 | G18: 3500874.65 | H18: 4963556 | I18: =G18-H18 -> -1462681.35 | J18: =IF(I18=0,"",I18/H18) -> -0.2946841639 | K18: 6137350
A19: Pension and UIF Contributions | C19: 9666.8 | D19: 87713 | E19: 87713 | F19: 892.32 | G19: 8477.04 | H19: 65835 | I19: -57357.96 | J19: -0.8712380952 | K19: 87713
A20: Medical Aid Contributions | C20: 0 | D20: 24424 | E20: 24424 | F20: 0 | G20: 0 | H20: 18324 | I20: -18324 | J20: -1 | K20: 24424
A21: Overtime | C21: 0 | D21: 0 | E21: 0 | F21: 0 | G21: 0 | H21: 0 | I21: 0 | K21: 0
A22: Performance Bonus | C22: 0 | D22: 191284 | E22: 191284 | F22: 55921.38 | G22: 108551.89 | H22: 143487 | I22: =G22-H22 -> -34935.11 | J22: =IF(I22=0,"",I22/H22) -> -0.2434723006 | K22: 191284
A23: Motor Vehicle Allowance | C23: 1035114.78 | D23: 1621127 | E23: 1621127 | F23: 80547.49 | G23: 804836.5 | H23: 1215891 | I23: =G23-H23 -> -411054.5 | J23: =IF(I23=0,"",I23/H23) -> -0.338068544 | K23: 1621127
A24: Cellphone Allowance | C24: 215665.12 | D24: 317114 | E24: 402114 | F24: 24716.91 | G24: 219711.76 | H24: 271870 | I24: =G24-H24 -> -52158.24 | J24: =IF(I24=0,"",I24/H24) -> -0.1918499283 | K24: 402114
A25: Housing Allowances | C25: 343134.08 | D25: 381007 | E25: 421007 | F25: 26595.16 | G25: 239356.44 | H25: 301768 | I25: =G25-H25 -> -62411.56 | J25: =IF(I25=0,"",I25/H25) -> -0.206819676 | K25: 421007
A26: Other benefits and allowances | C26: 229058.09 | D26: 362779 | E26: 387779 | F26: 9849.32 | G26: 128557.35 | H26: 282187 | I26: -153629.65 | J26: -0.5444249735 | K26: 387779
A27: Payments in lieu of leave | C27: 0 | D27: 0 | E27: 0 | F27: 0 | G27: 0 | H27: 0 | I27: 0 | K27: 0
A28: Long service awards | C28: 0 | D28: 366516 | E28: 366516 | F28: 0 | G28: 456908.43 | H28: 274896 | I28: 182012.43 | J28: 0.6621137812 | K28: 366516
A29: Post-retirement benefit obligations | B29: 2 | C29: 4703688.64 | D29: 0 | E29: 0 | F29: 0 | G29: 0 | H29: 0 | I29: 0 | K29: 0
A30: Sub Total - Senior Managers of Municipality | C30: =SUM(C18:C29) -> 11670193.76 | D30: 10519314 | E30: 9639314 | F30: =SUM(F18:F29) -> 566461.8 | G30: =SUM(G18:G29) -> 5467274.06 | H30: =SUM(H18:H29) -> 7537814 | I30: -2070539.94 | J30: =IF(I30=0,"",I30/H30) -> -0.2746870565 | K30: 9639314
A31: % increase | B31: 4 | D31: =IF(D30=0,"",(D30/C30)-1) -> -0.09861702245 | E31: =IF(E30=0,"",(E30/C30)-1) -> -0.174022797 | K31: =IF(K30=0,"",(K30/C30)-1) -> -0.174022797
A33: Other Municipal Staff
A34: Basic Salaries and Wages | C34: 100637297.6 | D34: 112990166 | E34: 112545013 | F34: 8938844.73 | G34: 81434148.63 | H34: 84564642.8 | I34: =G34-H34 -> -3130494.17 | J34: =IF(I34=0,"",I34/H34) -> -0.03701894866 | K34: 112545013
A35: Pension and UIF Contributions | C35: 21289691.46 | D35: 25187267 | E35: 24867267 | F35: 1841404.26 | G35: 16669376.12 | H35: 18762532 | I35: -2093155.88 | J35: -0.1115604163 | K35: 24867267
A36: Medical Aid Contributions | C36: 9009899.26 | D36: 11255072 | E36: 11255072 | F36: 771369.61 | G36: 6845863.96 | H36: 8441352 | I36: -1595488.04 | J36: -0.1890085901 | K36: 11255072
A37: Overtime | C37: 4341921.94 | D37: 3583278 | E37: 3698778 | F37: 277160.7 | G37: 3073232 | H37: 2793690 | I37: 279542 | J37: 0.1000619253 | K37: 3698778
A38: Performance Bonus | C38: 8437477.59 | D38: 10026925 | E38: 10026925 | F38: 384900.97 | G38: 6681500.08 | H38: 7520274 | I38: -838773.92 | J38: -0.1115350212 | K38: 10026925
A39: Motor Vehicle Allowance | C39: 17384032.03 | D39: 19374504 | E39: 19480904 | F39: 1431335.24 | G39: 13073666.16 | H39: 14573492 | I39: =G39-H39 -> -1499825.84 | J39: =IF(I39=0,"",I39/H39) -> -0.1029146508 | K39: 19480904
A40: Cellphone Allowance | C40: 1832716.75 | D40: 2613971 | E40: 2613971 | F40: 159414.16 | G40: 1439314.07 | H40: 1960551 | I40: =G40-H40 -> -521236.93 | J40: =IF(I40=0,"",I40/H40) -> -0.2658624693 | K40: 2613971
A41: Housing Allowances | C41: 1606464.11 | D41: 2225228 | E41: 2225228 | F41: 149871.22 | G41: 1320870.19 | H41: 1668978 | I41: =G41-H41 -> -348107.81 | J41: =IF(I41=0,"",I41/H41) -> -0.2085754336 | K41: 2225228
A42: Other benefits and allowances | C42: 1092597.7 | D42: 1589340 | E42: 1529008 | F42: 89436.52 | G42: 807794.71 | H42: 1167998.2 | I42: -360203.49 | J42: -0.3083938742 | K42: 1529008
A43: Payments in lieu of leave | I43: 0
A44: Long service awards | C44: 539257.76 | D44: 72063 | E44: 72063 | F44: 0 | G44: 303308.06 | H44: 54054 | I44: 249254.06 | J44: 4.611204721 | K44: 72063
A45: Post-retirement benefit obligations | B45: 2 | C45: -2106847.65 | D45: 1244211 | E45: 1302043 | F45: 0 | G45: 754544.66 | H45: 956315.8 | I45: -201771.14 | J45: -0.2109879812 | K45: 1302043
A46: Sub Total - Other Municipal Staff | C46: =SUM(C34:C45) -> 164064508.6 | D46: 190162025 | E46: 189616272 | F46: =SUM(F34:F45) -> 14043737.41 | G46: =SUM(G34:G45) -> 132403618.6 | H46: =SUM(H34:H45) -> 142463879.8 | I46: -10060261.16 | J46: =IF(I46=0,"",I46/H46) -> -0.07061622338 | K46: 189616272
A47: % increase | B47: 4 | D47: =IF(D46=0,"",(D46/C46)-1) -> 0.159068629 | E47: =IF(E46=0,"",(E46/C46)-1) -> 0.1557421752 | K47: =IF(K46=0,"",(K46/C46)-1) -> 0.1557421752
A49: Total Parent Municipality | C49: =C14+C30+C46 -> 207696463.6 | D49: =D14+D30+D46 -> 236366174 | E49: 234940421 | F49: 17112289.27 | G49: 160091803.2 | H49: 176765380.8 | I49: =G49-H49 -> -16673577.56 | J49: =IF(I49=0,"",I49/H49) -> -0.09432603536 | K49: 234940421
D50: =IF(D49=0,"",(D49/C49)-1) -> 0.1380365845 | E50: =IF(E49=0,"",(E49/C49)-1) -> 0.1311719852 | K50: =IF(K49=0,"",(K49/C49)-1) -> 0.1311719852
A51: Unpaid salary, allowances & benefits in arrears:
A53: Board Members of Entities
A54: Basic Salaries and Wages | I54: =G54-H54 -> 0 | J54: =IF(I54=0,"",I54/H54) -> 
A55: Pension and UIF Contributions | I55: 0
A56: Medical Aid Contributions | I56: 0
A57: Overtime | I57: =G57-H57 -> 0 | J57: =IF(I57=0,"",I57/H57) -> 
A58: Performance Bonus | I58: =G58-H58 -> 0 | J58: =IF(I58=0,"",I58/H58) -> 
A59: Motor Vehicle Allowance | I59: =G59-H59 -> 0 | J59: =IF(I59=0,"",I59/H59) -> 
A60: Cellphone Allowance | I60: =G60-H60 -> 0 | J60: =IF(I60=0,"",I60/H60) -> 
A61: Housing Allowances | I61: =G61-H61 -> 0 | J61: =IF(I61=0,"",I61/H61) -> 
A62: Other benefits and allowances | I62: 0
A63: Board Fees | I63: =G63-H63 -> 0 | J63: =IF(I63=0,"",I63/H63) -> 
A64: Payments in lieu of leave | I64: 0
A65: Long service awards | I65: 0
A66: Post-retirement benefit obligations | I66: 0
A67: Sub Total - Board Members of Entities | B67: 2 | C67: =SUM(C54:C66) -> 0 | D67: 0 | E67: 0 | F67: =SUM(F54:F66) -> 0 | G67: =SUM(G54:G66) -> 0 | H67: =SUM(H54:H66) -> 0 | I67: 0 | J67: =IF(I67=0,"",I67/H67) ->  | K67: 0
A68: % increase | B68: 4 | D68: =IF(D67=0,"",(D67/C67)-1) ->  | E68: =IF(E67=0,"",(E67/C67)-1) ->  | K68: =IF(K67=0,"",(K67/C67)-1) -> 
A70: Senior Managers of Entities
A71: Basic Salaries and Wages | I71: =G71-H71 -> 0 | J71: =IF(I71=0,"",I71/H71) -> 
A72: Pension and UIF Contributions | I72: 0
A73: Medical Aid Contributions | I73: 0
A74: Overtime | I74: 0
A75: Performance Bonus | I75: =G75-H75 -> 0 | J75: =IF(I75=0,"",I75/H75) -> 
A76: Motor Vehicle Allowance | I76: =G76-H76 -> 0 | J76: =IF(I76=0,"",I76/H76) -> 
A77: Cellphone Allowance | I77: =G77-H77 -> 0 | J77: =IF(I77=0,"",I77/H77) -> 
A78: Housing Allowances | I78: =G78-H78 -> 0 | J78: =IF(I78=0,"",I78/H78) -> 
A79: Other benefits and allowances | I79: 0
A80: Payments in lieu of leave | I80: 0
A81: Long service awards | I81: 0
A82: Post-retirement benefit obligations | B82: 2 | I82: 0
A83: Sub Total - Senior Managers of Entities | C83: =SUM(C71:C82) -> 0 | D83: 0 | E83: 0 | F83: =SUM(F71:F82) -> 0 | G83: =SUM(G71:G82) -> 0 | H83: =SUM(H71:H82) -> 0 | I83: 0 | J83: =IF(I83=0,"",I83/H83) ->  | K83: 0
A84: % increase | B84: 4 | D84: =IF(D83=0,"",(D83/C83)-1) ->  | E84: =IF(E83=0,"",(E83/C83)-1) ->  | K84: =IF(K83=0,"",(K83/C83)-1) -> 
A86: Other Staff of Entities
A87: Basic Salaries and Wages | I87: =G87-H87 -> 0 | J87: =IF(I87=0,"",I87/H87) -> 
A88: Pension and UIF Contributions | I88: 0
A89: Medical Aid Contributions | I89: =G89-H89 -> 0 | J89: =IF(I89=0,"",I89/H89) -> 
A90: Overtime | I90: =G90-H90 -> 0 | J90: =IF(I90=0,"",I90/H90) -> 
A91: Performance Bonus | I91: =G91-H91 -> 0 | J91: =IF(I91=0,"",I91/H91) -> 
A92: Motor Vehicle Allowance | I92: =G92-H92 -> 0 | J92: =IF(I92=0,"",I92/H92) -> 
A93: Cellphone Allowance | I93: 0
A94: Housing Allowances | I94: 0
A95: Other benefits and allowances | I95: 0
A96: Payments in lieu of leave | I96: 0
A97: Long service awards | I97: 0
A98: Post-retirement benefit obligations | I98: 0
A99: Sub Total - Other Staff of Entities | C99: =SUM(C87:C98) -> 0 | D99: 0 | E99: 0 | F99: 0 | G99: 0 | H99: 0 | I99: 0 | J99: =IF(I99=0,"",I99/H99) ->  | K99: =SUM(K87:K98) -> 0
A100: % increase | B100: 4 | D100: =IF(D99=0,"",(D99/C99)-1) ->  | E100: =IF(E99=0,"",(E99/C99)-1) ->  | K100: =IF(K99=0,"",(K99/C99)-1) -> 
A102: Total Municipal Entities | C102: =C67+C83+C99 -> 0 | D102: 0 | E102: 0 | F102: 0 | G102: 0 | H102: 0 | I102: =G102-H102 -> 0 | J102: =IF(I102=0,"",I102/H102) ->  | K102: =K67+K83+K99 -> 0
A104: TOTAL SALARY, ALLOWANCES & BENEFITS | C104: =C49+C102 -> 207696463.6 | D104: 236366174 | E104: 234940421 | F104: 17112289.27 | G104: 160091803.2 | H104: 176765380.8 | I104: =G104-H104 -> -16673577.56 | J104: =IF(I104=0,"",I104/H104) -> -0.09432603536 | K104: =K49+K102 -> 234940421
A105: % increase | B105: 4 | D105: =IF(D104=0,"",(D104/C104)-1) -> 0.1380365845 | E105: =IF(E104=0,"",(E104/C104)-1) -> 0.1311719852 | K105: =IF(K104=0,"",(K104/C104)-1) -> 0.1311719852
A106: TOTAL MANAGERS AND STAFF | C106: =C30+C46+C83+C99 -> 175734702.3 | D106: 200681339 | E106: 199255586 | F106: 14610199.21 | G106: 137870892.7 | H106: 150001693.8 | I106: -12130801.1 | J106: =IF(I106=0,"",I106/H106) -> -0.08087109414 | K106: =K30+K46+K83+K99 -> 199255586
A107: =head27a -> References
A108: 1. Include 'Loans and advances' where applicable if any reportable amounts until phased compliance with s164 of MFMA achieved
A109: 2. If benefits in kind are provided (e.g. provision of living quarters) the full market value must be shown as the cost to the municipality
A110: 3. s57 of the Systems Act
A111: 4. B/A, C/A, D/A
A112: Column Definitions:
A113: A. Audited actual 2005/06 (audited financial statements). If audited amounts unavailable, unaudited amounts must be provided with a note stating these are unaudited
A114: B. The original budget approved by council for the 2006/07 budget year.
A115: C. The budget for 2006/07 budget year as adjusted by council resolution in terms of section 28 of the MFMA.
A116: D. An estimate of final actual amounts (pre audit - 2006/07 budget year) at the time of preparing the budget for the 2007/08 budget year. This may differ from C.

Sheet SC9
A1: =muni& " - "&S71O& " - "&Head57 -> LIM476 Tubatse Fetakgomo - Supporting Table SC9 Monthly Budget Statement - actuals and revised targets for cash receipts - M09 March
A2: =desc -> Description | B2: =head27 -> Ref | C2: =Head2 -> Budget Year 2020/21 | O2: ='Template names'!B5 -> 2020/21 Medium Term Revenue & Expenditure Framework
C3: July | D3: August | E3: Sept | F3: October | G3: Nov | H3: Dec | I3: January | J3: Feb | K3: March | L3: April | M3: May | N3: June | O3: =Head9 -> Budget Year 2020/21 | P3: =Head10 -> Budget Year +1 2021/22 | Q3: =Head11 -> Budget Year +2 2022/23
A4: R thousands | B4: 1 | C4: Outcome | D4: Outcome | E4: Outcome | F4: Outcome | G4: Outcome | H4: Outcome | I4: Outcome | J4: Outcome | K4: Outcome | L4: Budget | M4: Budget | N4: Budget
A5: Cash Receipts By Source
A6: Property rates | C6: 0 | D6: 0 | E6: 5494837.09 | F6: 6080104.25 | G6: 153960961.7 | H6: 6946547.41 | I6: 5845846.26 | J6: 7642336.62 | K6: 15913873.94 | L6: 2632779.08 | M6: 2632779.08 | N6: =O6-SUM(C6:M6) -> -175556716.4 | O6: 31593349 | P6: 103011354 | Q6: 107337830
A7: Service charges - electricity revenue | N7: 0
A8: Service charges - water revenue | N8: 0
A9: Service charges - sanitation revenue | N9: 0
A10: Service charges - refuse | C10: 0 | D10: 0 | E10: 636678.15 | F10: 910786.05 | G10: 994852.45 | H10: 689263.08 | I10: 748674.44 | J10: 1009179.44 | K10: 940306.81 | L10: 779705.33 | M10: 779705.33 | N10: 1867312.92 | O10: 9356464 | P10: 18212357 | Q10: 18977277
A12: Rental of facilities and equipment | C12: 0 | D12: 0 | E12: 0 | F12: 0 | G12: 3341.65 | H12: 930 | I12: 0 | J12: 0 | K12: 0 | L12: 0 | M12: 0 | N12: -4271.65 | O12: 0 | P12: 31159 | Q12: 32468
A13: Interest earned - external investments | C13: 0 | D13: 0 | E13: 665791.99 | F13: 0 | G13: 520447.4 | H13: 465048.44 | I13: 481406.98 | J13: 0 | K13: 355427.57 | L13: 0 | M13: 0 | N13: -2488122.38 | O13: 0 | P13: 7284868 | Q13: 7590832
A14: Interest earned - outstanding debtors | N14: 0
A15: Dividends received | N15: 0
A16: Fines, penalties and forfeits | C16: 0 | D16: 0 | E16: 0 | F16: 0 | G16: 890.06 | H16: 950 | I16: 450 | J16: 0 | K16: 1929.22 | L16: 0 | M16: 0 | N16: -4219.28 | O16: 0 | P16: 3419303 | Q16: 3562913
A17: Licences and permits | C17: 0 | D17: 0 | E17: 357366.95 | F17: 315162.6 | G17: 718307.81 | H17: 0 | I17: 341053.04 | J17: 303473.04 | K17: 818176.06 | L17: 0 | M17: 0 | N17: -2853539.5 | O17: 0 | P17: 16528706 | Q17: 17222912
A18: Agency services | C18: 0 | D18: 0 | E18: 511997.62 | F18: 705148 | G18: 857270.56 | H18: 0 | I18: 427560.53 | J18: 242140.16 | K18: 415402.61 | L18: 0 | M18: 0 | N18: -3159519.48 | O18: 0 | P18: 4980884 | Q18: 5190081
A19: Transfers and Subsidies - Operational | C19: 0 | D19: 0 | E19: -1370113.15 | F19: 0 | G19: 0 | H19: 0 | I19: 0 | J19: 473000 | K19: 316000 | L19: 46440000 | M19: 46440000 | N19: 464981113.1 | O19: 557280000 | P19: 482685000 | Q19: 501248074
A20: Other revenue | C20: 0 | D20: 0 | E20: 3963684.2 | F20: 104512190.3 | G20: -140390359.2 | H20: 114858609.3 | I20: 6129310.85 | J20: 9786402.75 | K20: 123843299.6 | L20: -80843203.75 | M20: -80843203.75 | N20: -1031135175 | O20: -970118445 | P20: -38106263 | Q20: -20336950
A21: Cash Receipts by Source | C21: =SUM(C6:C10)+SUM(C12:C20) -> 0 | D21: =SUM(D6:D10)+SUM(D12:D20) -> 0 | E21: 10260242.85 | F21: 112523391.2 | G21: 16665712.43 | H21: 122961348.2 | I21: 13974302.1 | J21: 19456532.01 | K21: 142604415.8 | L21: -30990719.34 | M21: -30990719.34 | N21: -748353138 | O21: -371888632 | P21: 598047368 | Q21: 640825437
N22: =O22-SUM(C22:M22) -> 0
A23: Other Cash Flows by Source | N23: 0
A24: ='C4-FinPerf RE'!A39 -> Transfers and subsidies - capital (monetary allocations) (National / Provincial and District) | C24: 0 | D24: 0 | E24: 0 | F24: 0 | G24: 0 | H24: 49297000 | I24: 0 | J24: 0 | K24: 0 | L24: 0 | M24: 0 | N24: -49297000 | O24: 0 | P24: 119240000 | Q24: 106588000
A25: ='C4-FinPerf RE'!A40 -> Transfers and subsidies - capital (monetary allocations) (National / Provincial Departmental Agencies, Households, Non-profit Institutions, Private Enterprises, Public Corporatons, Higher Educational Institutions) | N25: 0
A26: Proceeds on Disposal of Fixed and Intangible Assets | N26: 0
A27: Short term loans | N27: 0
A28: Borrowing long term/refinancing | C28: 0 | D28: 0 | E28: 0 | F28: 0 | G28: 0 | H28: 0 | I28: 0 | J28: 0 | K28: 0 | L28: -3333333.33 | M28: -3333333.33 | N28: -33333333.34 | O28: -40000000 | P28: 0 | Q28: 0
A29: Increase (decrease) in consumer deposits | C29: 0 | D29: 0 | E29: 0 | F29: 0 | G29: 0 | H29: 0 | I29: 0 | J29: 0 | K29: 0 | L29: 0 | M29: 0 | N29: 0 | O29: 0 | P29: 0 | Q29: 0
A31: Decrease (increase) in non-current receivables | C31: 0 | D31: 0 | E31: 0 | F31: 0 | G31: 0 | H31: 0 | I31: 0 | J31: 0 | K31: 0 | L31: 0 | M31: 0 | N31: 0 | O31: 0 | P31: 0 | Q31: 0
A32: Decrease (increase) in non-current investments | C32: 0 | D32: 0 | E32: 0 | F32: 0 | G32: 0 | H32: 0 | I32: 0 | J32: 0 | K32: 0 | L32: 0 | M32: 0 | N32: 0 | O32: 0 | P32: 0 | Q32: 0
A33: Total Cash Receipts by Source | C33: =SUM(C21:C29)+SUM(C31:C32) -> 0 | D33: =SUM(D21:D29)+SUM(D31:D32) -> 0 | E33: 10260242.85 | F33: 112523391.2 | G33: 16665712.43 | H33: 172258348.2 | I33: 13974302.1 | J33: 19456532.01 | K33: 142604415.8 | L33: -34324052.67 | M33: -34324052.67 | N33: -830983471.3 | O33: -411888632 | P33: 717287368 | Q33: 747413437
N34: =O34-SUM(C34:M34) -> 0
A35: Cash Payments by Type | N35: 0
A36: Employee related costs | C36: 0 | D36: 0 | E36: 12778018 | F36: 5201147.55 | G36: 6604872.42 | H36: -4707574.7 | I36: -7350993.23 | J36: 14885151.07 | K36: -14567931.03 | L36: 18126905.99 | M36: 18126905.99 | N36: 168426369.9 | O36: 217522872 | P36: 17390465 | Q36: 18120865
A37: Remuneration of councillors | N37: 0
A38: Interest paid | N38: 0
A39: Bulk purchases - Electricity | N39: 0
A40: Bulk purchases - Water & Sewer | N40: 0
A41: Other materials | N41: 0
A42: Contracted services | N42: 0
A43: Grants and subsidies paid - other municipalities | N43: 0
A44: Grants and subsidies paid - other | N44: 0
A45: General expenses | C45: 0 | D45: 0 | E45: 54605725.85 | F45: 44998937.3 | G45: 32554519.89 | H45: 101523787.5 | I45: 9322653.09 | J45: 24866532.83 | K45: 45039365.62 | L45: 33388307.58 | M45: 33388307.58 | N45: 20971553.71 | O45: 400659691 | P45: 35124135 | Q45: 36599349
A46: Cash Payments by Type | B46: =SUM(B36:B45) -> 0 | C46: =SUM(C36:C45) -> 0 | D46: =SUM(D36:D45) -> 0 | E46: 67383743.85 | F46: 50200084.85 | G46: 39159392.31 | H46: 96816212.85 | I46: 1971659.86 | J46: 39751683.9 | K46: 30471434.59 | L46: 51515213.57 | M46: 51515213.57 | N46: 189397923.7 | O46: 618182563 | P46: 52514600 | Q46: 54720214
N47: =O47-SUM(C47:M47) -> 0
A48: Other Cash Flows/Payments by Type
A49: Capital assets | C49: 0 | D49: 0 | E49: 9093970.77 | F49: 8819403.54 | G49: 8563242.36 | H49: 50647477.96 | I49: 6521739.13 | J49: 10758483.91 | K49: 10362571.97 | L49: 9718362.82 | M49: 9718362.82 | N49: =O49-SUM(C49:M49) -> -7583261.28 | O49: 116620354 | P49: 200914002 | Q49: 156889613
A50: Repayment of borrowing | C50: 0 | D50: 0 | E50: 0 | F50: 0 | G50: 0 | H50: 0 | I50: 0 | J50: 0 | K50: 0 | L50: 0 | M50: 0 | N50: =O50-SUM(C50:M50) -> 0 | O50: 0 | P50: 37200000 | Q50: 37800000
A51: Other Cash Flows/Payments | N51: =O51-SUM(C51:M51) -> 0
A52: Total Cash Payments by Type | B52: =SUM(B46:B51) -> 0 | C52: 0 | D52: 0 | E52: 76477714.62 | F52: 59019488.39 | G52: 47722634.67 | H52: 147463690.8 | I52: 8493398.99 | J52: 50510167.81 | K52: 40834006.56 | L52: 61233576.39 | M52: 61233576.39 | N52: 181814662.4 | O52: 734802917 | P52: 290628602 | Q52: 249409827
N53: =O53-SUM(C53:M53) -> 0
A54: NET INCREASE/(DECREASE) IN CASH HELD | B54: =B33-B52 -> 0 | C54: 0 | D54: 0 | E54: -66217471.77 | F54: 53503902.82 | G54: -31056922.24 | H54: 24794657.44 | I54: 5480903.11 | J54: -31053635.8 | K54: 101770409.3 | L54: -95557629.06 | M54: -95557629.06 | N54: -1012798134 | O54: -1146691549 | P54: 426658766 | Q54: 498003610
A55: Cash/cash equivalents at the month/year beginning: | C55: 213363199.1 | D55: =C56 -> 213363199.1 | E55: =D56 -> 213363199.1 | F55: 147145727.4 | G55: 200649630.2 | H55: 169592707.9 | I55: 194387365.4 | J55: 199868268.5 | K55: 168814632.7 | L55: 270585042 | M55: 175027412.9 | N55: 79469783.84 | O55: =C55 -> 213363199.1 | P55: =O56 -> -933328349.9 | Q55: =P56 -> -506669583.9
A56: Cash/cash equivalents at the month/year end: | C56: =C54+C55 -> 213363199.1 | D56: =D54+D55 -> 213363199.1 | E56: =E54+E55 -> 147145727.4 | F56: 200649630.2 | G56: 169592707.9 | H56: 194387365.4 | I56: 199868268.5 | J56: 168814632.7 | K56: 270585042 | L56: 175027412.9 | M56: 79469783.84 | N56: -933328349.9 | O56: =O54+O55 -> -933328349.9 | P56: =P54+P55 -> -506669583.9 | Q56: =Q54+Q55 -> -8665973.86
A57: =head27a -> References
A58: 1. Replace 'budget' heading with adjusted budget, or 'outcome' only for month/s complete
A59: 2. Total of monthly amounts must always agree to the approved or adjusted budget
A60: 3. Amend 'cash-at-beginning' when prior year actual known (as part of the adjustments budget)
E65: =E46+E64 -> 67383743.85 | F65: 50200084.85 | G65: 39159392.31 | H65: 96816212.85 | I65: 1971659.86 | J65: 39751683.9 | K65: 30471434.59 | L65: 51515213.57 | N65: =N46+N64 -> 189397923.7 | O65: 618182563 | P65: 52514600
E66: =E54-E64 -> -66217471.77 | F66: 53503902.82 | G66: -31056922.24 | H66: 24794657.44 | I66: 5480903.11 | J66: -31053635.8 | K66: 101770409.3 | L66: -95557629.06 | M66: =M54-M64 -> -95557629.06 | N66: =N54-N64 -> -1012798134 | O66: -1146691549 | P66: 426658766

Sheet SC10
A1: =muni& " - "&S71P& " - "&Head57 -> LIM476 Tubatse Fetakgomo - NOT REQUIRED - municipality does not have entities or this is the parent municipality's budget - M09 March
A2: =desc -> Description | B2: =head27 -> Ref | C2: =Head1 -> 2019/20 | D2: =Head2 -> Budget Year 2020/21
C3: =Head5 -> Audited Outcome | D3: =Head6 -> Original Budget | E3: =Head7 -> Adjusted Budget | F3: =Head38 -> Monthly actual | G3: =Head39 -> YearTD actual | H3: =Head40 -> YearTD budget | I3: =Head41 -> YTD variance | J3: =Head41 -> YTD variance | K3: =Head8 -> Full Year Forecast
A4: R thousands | B4: 1 | J4: %
A5: ='C4-FinPerf RE'!A5 -> Revenue By Source
A6: ='C4-FinPerf RE'!A6 -> Property rates | I6: =G6-H6 -> 0 | J6: =IF(I6=0,"",I6/H6) -> 
A7: ='C4-FinPerf RE'!A7 -> Service charges - electricity revenue | I7: 0 | J7: =IF(I7=0,"",I7/H7) -> 
A8: ='C4-FinPerf RE'!A8 -> Service charges - water revenue | I8: 0
A9: ='C4-FinPerf RE'!A9 -> Service charges - sanitation revenue | I9: 0
A10: ='C4-FinPerf RE'!A10 -> Service charges - refuse revenue | I10: 0
A12: ='C4-FinPerf RE'!A12 -> Rental of facilities and equipment | I12: 0
A13: ='C4-FinPerf RE'!A13 -> Interest earned - external investments | I13: 0
A14: ='C4-FinPerf RE'!A14 -> Interest earned - outstanding debtors | I14: 0
A15: ='C4-FinPerf RE'!A15 -> Dividends received | I15: 0
A16: ='C4-FinPerf RE'!A16 -> Fines, penalties and forfeits | I16: 0
A17: ='C4-FinPerf RE'!A17 -> Licences and permits | I17: 0
A18: ='C4-FinPerf RE'!A18 -> Agency services | I18: 0
A19: ='C4-FinPerf RE'!A19 -> Transfers and subsidies | I19: 0
A20: ='C4-FinPerf RE'!A20 -> Other revenue | I20: 0
A21: ='C4-FinPerf RE'!A21 -> Gains | I21: 0
A22: Total Revenue (excluding capital transfers and contributions) | C22: =SUM(C6:C10)+SUM(C12:C21) -> 0 | D22: 0 | E22: 0 | F22: 0 | G22: 0 | H22: 0 | I22: =G22-H22 -> 0 | K22: =SUM(K6:K10)+SUM(K12:K21) -> 0
A24: Expenditure By Type
A25: ='C4-FinPerf RE'!A25 -> Employee related costs | I25: =G25-H25 -> 0 | J25: =IF(I25=0,"",I25/H25) -> 
A26: ='C4-FinPerf RE'!A26 -> Remuneration of councillors | I26: 0
A27: ='C4-FinPerf RE'!A27 -> Debt impairment | I27: 0
A28: ='C4-FinPerf RE'!A28 -> Depreciation & asset impairment | I28: 0
A29: ='C4-FinPerf RE'!A29 -> Finance charges | I29: 0
A30: ='C4-FinPerf RE'!A30 -> Bulk purchases | I30: 0
A31: ='C4-FinPerf RE'!A31 -> Other materials | I31: 0
A32: ='C4-FinPerf RE'!A32 -> Contracted services | I32: 0
A33: ='C4-FinPerf RE'!A33 -> Transfers and subsidies | I33: 0
A34: ='C4-FinPerf RE'!A34 -> Other expenditure | I34: 0
A35: ='C4-FinPerf RE'!A35 -> Losses | I35: 0
A36: Total Expenditure | C36: =SUM(C25:C35) -> 0 | D36: 0 | E36: 0 | F36: 0 | G36: 0 | H36: 0 | I36: 0 | K36: =SUM(K25:K35) -> 0
I37: 0
A38: ='C4-FinPerf RE'!A38 -> Surplus/(Deficit) | C38: =C22-C36 -> 0 | D38: 0 | E38: 0 | F38: 0 | G38: 0 | H38: 0 | I38: 0 | K38: =K22-K36 -> 0
A39: ='C4-FinPerf RE'!A39 -> Transfers and subsidies - capital (monetary allocations) (National / Provincial and District) | I39: 0
A40: ='C4-FinPerf RE'!A40 -> Transfers and subsidies - capital (monetary allocations) (National / Provincial Departmental Agencies, Households, Non-profit Institutions, Private Enterprises, Public Corporatons, Higher Educational Institutions) | I40: 0
A41: ='C4-FinPerf RE'!A41 -> Transfers and subsidies - capital (in-kind - all) | I41: 0
A42: ='C4-FinPerf RE'!A42 -> Surplus/(Deficit) after capital transfers & contributions | C42: =C38+SUM(C39:C41) -> 0 | D42: =D38+SUM(D39:D41) -> 0 | E42: 0 | F42: 0 | G42: 0 | H42: 0 | I42: 0 | K42: 0
A43: ='C4-FinPerf RE'!A43 -> Taxation | I43: 0
A44: ='C4-FinPerf RE'!A44 -> Surplus/(Deficit) after taxation | C44: =C42-C43 -> 0 | D44: 0 | E44: 0 | F44: 0 | G44: 0 | H44: 0 | I44: 0 | K44: =K42-K43 -> 0
A45: =head27a -> References
A46: 1. Votes (consolidated) are revenue sources and expenditure type

Sheet SC11
A1: =muni& " - "&S71Q& " - "&Head57 -> LIM476 Tubatse Fetakgomo - NOT REQUIRED - municipality does not have entities or this is the parent municipality's budget - M09 March
A2: =desc -> Description | B2: =head27 -> Ref | C2: =Head1 -> 2019/20 | D2: =Head2 -> Budget Year 2020/21
C3: =Head5 -> Audited Outcome | D3: =Head6 -> Original Budget | E3: =Head7 -> Adjusted Budget | F3: =Head38 -> Monthly actual | G3: =Head39 -> YearTD actual | H3: =Head40 -> YearTD budget | I3: =Head41 -> YTD variance | J3: =Head41 -> YTD variance | K3: =Head8 -> Full Year Forecast
A4: R thousands | J4: %
A5: Revenue By Municipal Entity
A6: Insert name of municipal entity | I6: =G6-H6 -> 0 | J6: =IF(I6=0,"",I6/H6) -> 
I7: 0 | J7: =IF(I7=0,"",I7/H7) -> 
I8: 0
I9: 0
I10: 0
I11: 0
I12: 0
I13: 0
I14: 0
I15: 0
A16: Total Operating Revenue | B16: 1 | C16: =SUM(C6:C15) -> 0 | D16: 0 | E16: 0 | F16: 0 | G16: 0 | H16: 0 | I16: 0 | K16: =SUM(K6:K15) -> 0
A18: Expenditure By Municipal Entity
A19: =A6 -> Insert name of municipal entity | I19: 0 | J19: =IF(I19=0,"",I19/H19) -> 
A20: =IF(A7="","",A7) ->  | I20: 0
A21: =IF(A8="","",A8) ->  | I21: 0
I22: 0
I23: 0
I24: 0
I25: 0
I26: 0
I27: 0
I28: 0
A29: Total Operating Expenditure | B29: 2 | C29: =SUM(C19:C28) -> 0 | D29: 0 | E29: 0 | F29: 0 | G29: 0 | H29: 0 | I29: 0 | K29: =SUM(K19:K28) -> 0
A31: =Head42 -> Surplus/ (Deficit) for the yr/period | C31: =C16-C29 -> 0 | D31: =D16-D29 -> 0 | E31: 0 | F31: 0 | G31: 0 | H31: 0 | I31: =I16+I29 -> 0 | K31: 0
A32: Capital Expenditure By Municipal Entity
A33: =$A$6 -> Insert name of municipal entity | I33: 0
A34: =IF(A7="","",A7) ->  | I34: 0
A35: =IF(A8="","",A8) ->  | I35: 0
I36: 0
I37: 0
I38: 0
I39: 0
I40: 0
I41: 0
A43: Total Capital Expenditure | B43: 3 | C43: =SUM(C32:C42) -> 0 | D43: =SUM(D32:D42) -> 0 | E43: 0 | F43: 0 | G43: 0 | H43: =SUM(H32:H42) -> 0 | I43: =G43-H43 -> 0 | K43: 0
A44: =head27a -> References
A45: 1. Must reconcile to the sum of all municipal entity monthly revenue reports
A46: 2. Must reconcile to the sum of all municipal entity monthly expenditure reports
A47: 3. YTD = Year to date; FAV - favourable variance or unfavourable variance
A48: 4. Material variances to be explained
A49: 5. Insert additional 'Adjustment' Budget column for each Adjustment made by an entity

Sheet SC12
A1: =muni& " - "&S71R& " - "&Head57 -> LIM476 Tubatse Fetakgomo - Supporting Table SC12 Monthly Budget Statement - capital expenditure trend - M09 March
A2: Month | B2: =Head1 -> 2019/20 | C2: =Head2 -> Budget Year 2020/21
B3: =Head5 -> Audited Outcome | C3: =Head6 -> Original Budget | D3: =Head7 -> Adjusted Budget | E3: =Head38 -> Monthly actual | F3: =Head39 -> YearTD actual | G3: =Head40 -> YearTD budget | H3: =Head41 -> YTD variance | I3: =Head41 -> YTD variance | J3: % spend of Original Budget
A4: R thousands | I4: %
A5: Monthly expenditure performance trend
A6: July | B6: 2299415.46 | C6: 12574429.32 | D6: 12574446 | E6: 220000 | F6: =IF(E6>0,E6,"") -> 220000 | G6: =IF(D6>0,D6,C6) -> 12574446 | H6: =IF(F6="",0,G6-F6) -> 12354446 | I6: =IF(F6="","",IF(H6=0,"",H6/G6)) -> 0.9825041994 | J6: =IF(F6="","",F6/$C$18) -> 0.001457985317
A7: August | B7: 3893918.24 | C7: 12574429.32 | D7: 12574446 | E7: 2804429.82 | F7: =IF(E7>0,E7+F6,"") -> 3024429.82 | G7: =IF(D7>0,D7+D6,C7+C6) -> 25148892 | H7: 22124462.18 | I7: 0.879739043 | J7: 0.0200435194
A8: September | B8: 3543531.59 | C8: 12574429.32 | D8: 17755846 | E8: 9093970.77 | F8: =IF(E8>0,E8+F7,"") -> 12118400.59 | G8: =IF(D8>0,D8+G7,C8+G7) -> 42904738 | H8: 30786337.41 | I8: 0.7175509943 | J8: 0.08031113692
A9: October | B9: 9295615.02 | C9: 12574429.32 | D9: 17755846 | E9: 8819403.54 | F9: 20937804.13 | G9: =IF(D9>0,D9+G8,C9+G8) -> 60660584 | H9: 39722779.87 | I9: 0.6548367531 | J9: 0.1387591408
A10: November | B10: 5090889.02 | C10: 12574429.32 | D10: 17755846 | E10: 8563242.36 | F10: 29501046.49 | G10: 78416430 | H10: 48915383.51 | I10: 0.6237899827 | J10: 0.1955095119
A11: December | B11: 11709689.16 | C11: 12574429.32 | D11: 17755846 | E11: 50647477.96 | F11: 80148524.45 | G11: 96172276 | H11: 16023751.55 | I11: 0.1666150809 | J11: 0.5311607809
A12: January | B12: 4789337.78 | C12: 12574429.32 | D12: 17755846 | E12: 6521739.13 | F12: 86670263.58 | G12: 113928122 | H12: 27257858.42 | I12: 0.2392548735 | J12: 0.5743816895
A13: February | B13: 14338429.68 | C13: 12574429.32 | D13: 30717116.8 | E13: 10758483.91 | F13: 97428747.49 | G13: 144645238.8 | H13: 47216491.31 | I13: 0.3264296267 | J13: 0.6456803785
A14: March | B14: 14444081.82 | C14: 12574429.32 | D14: 30717116.8 | E14: 10362571.97 | F14: 107791319.5 | G14: 175362355.6 | H14: 67571036.14 | I14: 0.3853223567 | J14: 0.7143552774
A15: April | B15: 1069145.39 | C15: 12574429.32 | D15: 30717116.8 | E15: 0 | G15: 206079472.4 | H15: 0
A16: May | B16: 1801994.47 | C16: 12574429.32 | D16: 30717116.8 | E16: 0 | G16: 236796589.2 | H16: 0
A17: June | B17: 691252.29 | C17: 12574429.48 | D17: 30716916.8 | E17: 0 | G17: 267513506 | H17: =IF(F17="",0,G17-F17) -> 0 | I17: =IF(F17="","",IF(H17=0,"",H17/G17)) ->  | J17: =IF(F17="","",F17/$C$18) -> 
A18: Total Capital expenditure | B18: =SUM(B6:B17) -> 72967299.92 | C18: =SUM(C6:C17) -> 150893152 | D18: =SUM(D6:D17) -> 267513506 | E18: =SUM(E6:E17) -> 107791319.5

Sheet SC13a
A1: =muni& " - "&S71Sa& " - "&Head57 -> LIM476 Tubatse Fetakgomo - Supporting Table SC13a Monthly Budget Statement - capital expenditure on new assets by asset class - M09 March
A2: =desc -> Description | B2: =head27 -> Ref | C2: =Head1 -> 2019/20 | D2: =Head2 -> Budget Year 2020/21
C3: =Head5 -> Audited Outcome | D3: =Head6 -> Original Budget | E3: =Head7 -> Adjusted Budget | F3: =Head38 -> Monthly actual | G3: =Head39 -> YearTD actual | H3: =Head40 -> YearTD budget | I3: =Head41 -> YTD variance | J3: =Head41 -> YTD variance | K3: =Head8 -> Full Year Forecast
A4: R thousands | B4: 1 | J4: %
A5: Capital expenditure on new assets by Asset Class/Sub-class
A7: Infrastructure | C7: =C8+C13+C17+C27+C38+C45+C53+C63+C69 -> 56985973.21 | D7: 97203902 | E7: 168513148 | F7: 8054350.9 | G7: 37206750.14 | H7: 101426668.4 | I7: =H7-G7 -> 64219918.26 | J7: =IF(I7=0,"",I7/H7) -> 0.6331660033 | K7: =K8+K13+K17+K27+K38+K45+K53+K63+K69 -> 168513148
A8: Roads Infrastructure | C8: =SUM(C9:C12) -> 29809468.2 | D8: 71103902 | E8: 124723048 | F8: 6494206.64 | G8: 26307743.43 | H8: 74775610.4 | I8: 48467866.97 | J8: 0.6481774834 | K8: =SUM(K9:K12) -> 124723048
A9: Roads | C9: 3054491.8 | D9: 38761072 | E9: 66270421 | F9: 2660359.37 | G9: 11103207.25 | H9: 40074558.6 | I9: 28971351.35 | J9: 0.7229362559 | K9: 66270421
A10: Road Structures | C10: 26754976.4 | D10: 32342830 | E10: 58452627 | F10: 3833847.27 | G10: 15204536.18 | H10: 34701051.8 | I10: 19496515.62 | J10: 0.5618422096 | K10: 58452627
A11: Road Furniture | C11: 0 | D11: 0 | E11: 0 | F11: 0 | G11: 0 | H11: 0 | I11: 0 | K11: 0
A12: Capital Spares | I12: 0
A13: Storm water Infrastructure | C13: =SUM(C14:C16) -> 2855696.79 | D13: 0 | E13: 5727786 | F13: 0 | G13: 0 | H13: 2291114.4 | I13: 2291114.4 | J13: 1 | K13: =SUM(K14:K16) -> 5727786
A14: Drainage Collection | C14: 2855696.79 | D14: 0 | E14: 0 | F14: 0 | G14: 0 | H14: 0 | I14: 0 | K14: 0
A15: Storm water Conveyance | C15: 0 | D15: 0 | E15: 5727786 | F15: 0 | G15: 0 | H15: 2291114.4 | I15: 2291114.4 | J15: 1 | K15: 5727786
A16: Attenuation | I16: 0
A17: Electrical Infrastructure | C17: =SUM(C18:C26) -> 23738736.75 | D17: 25100000 | E17: 34700000 | F17: 449139.6 | G17: 9788002.05 | H17: 22665012 | I17: 12877009.95 | J17: 0.5681448547 | K17: =SUM(K18:K26) -> 34700000
A18: Power Plants | C18: 0 | D18: 0 | E18: 0 | F18: 0 | G18: 0 | H18: 0 | I18: 0 | K18: 0
A19: HV Substations | I19: 0
A20: HV Switching Station | C20: 0 | D20: 3100000 | E20: 1500000 | F20: 0 | G20: 0 | H20: 1685006 | I20: 1685006 | J20: 1 | K20: 1500000
A21: HV Transmission Conductors | I21: 0
A22: MV Substations | I22: 0
A23: MV Switching Stations | I23: 0
A24: MV Networks | I24: 0
A25: LV Networks | C25: 23738736.75 | D25: 22000000 | E25: 33200000 | F25: 449139.6 | G25: 9788002.05 | H25: 20980006 | I25: 11192003.95 | J25: 0.5334604742 | K25: 33200000
A26: Capital Spares | I26: 0
A27: Water Supply Infrastructure | C27: =SUM(C28:C37) -> 0 | D27: 0 | E27: 0 | F27: 0 | G27: 0 | H27: 0 | I27: 0 | K27: =SUM(K28:K37) -> 0
A28: Dams and Weirs | I28: 0
A29: Boreholes | I29: 0
A30: Reservoirs | I30: 0
A31: Pump Stations | I31: 0
A32: Water Treatment Works | C32: 0 | D32: 0 | E32: 0 | F32: 0 | G32: 0 | H32: 0 | I32: 0 | K32: 0
A33: Bulk Mains | I33: 0
A34: Distribution | C34: 0 | D34: 0 | E34: 0 | F34: 0 | G34: 0 | H34: 0 | I34: 0 | K34: 0
A35: Distribution Points | I35: 0
A36: PRV Stations | I36: 0
A37: Capital Spares | I37: 0
A38: Sanitation Infrastructure | C38: =SUM(C39:C44) -> 0 | D38: 0 | E38: 3262314 | F38: 1111004.66 | G38: 1111004.66 | H38: 1304925.6 | I38: =H38-G38 -> 193920.94 | J38: =IF(I38=0,"",I38/H38) -> 0.1486068938 | K38: =SUM(K39:K44) -> 3262314
A39: Pump Station | I39: 0
A40: Reticulation | C40: 0 | D40: 0 | E40: 3262314 | F40: 1111004.66 | G40: 1111004.66 | H40: 1304925.6 | I40: =H40-G40 -> 193920.94 | J40: =IF(I40=0,"",I40/H40) -> 0.1486068938 | K40: 3262314
A41: Waste Water Treatment Works | I41: =H41-G41 -> 0 | J41: =IF(I41=0,"",I41/H41) -> 
A42: Outfall Sewers | I42: =H42-G42 -> 0 | J42: =IF(I42=0,"",I42/H42) -> 
A43: Toilet Facilities | I43: 0
A44: Capital Spares | C44: 0 | D44: 0 | E44: 0 | F44: 0 | G44: 0 | H44: 0 | I44: 0 | K44: 0
A45: Solid Waste Infrastructure | C45: =SUM(C46:C52) -> 582071.47 | D45: 1000000 | E45: 100000 | F45: 0 | G45: 0 | H45: 390006 | I45: =H45-G45 -> 390006 | J45: =IF(I45=0,"",I45/H45) -> 1 | K45: =SUM(K46:K52) -> 100000
A46: Landfill Sites | C46: 582071.47 | D46: 0 | E46: 0 | F46: 0 | G46: 0 | H46: 0 | I46: 0 | K46: 0
A47: Waste Transfer Stations | C47: 0 | D47: 1000000 | E47: 100000 | F47: 0 | G47: 0 | H47: 390006 | I47: 390006 | J47: 1 | K47: 100000
A48: Waste Processing Facilities | I48: =H48-G48 -> 0 | J48: =IF(I48=0,"",I48/H48) -> 
A49: Waste Drop-off Points | I49: 0
A50: Waste Separation Facilities | I50: 0
A51: Electricity Generation Facilities | C51: 0 | D51: 0 | E51: 0 | F51: 0 | G51: 0 | H51: 0 | I51: 0 | K51: 0
A52: Capital Spares | C52: 0 | D52: 0 | E52: 0 | F52: 0 | G52: 0 | H52: 0 | I52: 0 | K52: 0
A53: Rail Infrastructure | C53: =SUM(C54:C62) -> 0 | D53: 0 | E53: 0 | F53: 0 | G53: 0 | H53: 0 | I53: 0 | K53: =SUM(K54:K62) -> 0
A54: Rail Lines | I54: 0
A55: Rail Structures | I55: 0
A56: Rail Furniture | I56: 0
A57: Drainage Collection | I57: 0
A58: Storm water Conveyance | I58: 0
A59: Attenuation | I59: 0
A60: MV Substations | I60: 0
A61: LV Networks | I61: 0
A62: Capital Spares | I62: 0
A63: Coastal Infrastructure | C63: =SUM(C64:C68) -> 0 | D63: 0 | E63: 0 | F63: 0 | G63: 0 | H63: 0 | I63: 0 | K63: =SUM(K64:K68) -> 0
A64: Sand Pumps | I64: 0
A65: Piers | I65: 0
A66: Revetments | I66: 0
A67: Promenades | I67: 0
A68: Capital Spares | I68: 0
A69: Information and Communication Infrastructure | C69: =SUM(C70:C73) -> 0 | D69: 0 | E69: 0 | F69: 0 | G69: 0 | H69: 0 | I69: =H69-G69 -> 0 | J69: =IF(I69=0,"",I69/H69) ->  | K69: =SUM(K70:K73) -> 0
A70: Data Centres | C70: 0 | D70: 0 | E70: 0 | F70: 0 | G70: 0 | H70: 0 | I70: =H70-G70 -> 0 | K70: 0
A71: Core Layers | I71: =H71-G71 -> 0
A72: Distribution Layers | I72: =H72-G72 -> 0
A73: Capital Spares | I73: =H73-G73 -> 0
A75: Community Assets | C75: =+C76+C99 -> 21986915.97 | D75: 26303250 | E75: 19200358 | F75: 2308221.07 | G75: 9394072.52 | H75: 16886303.2 | I75: =H75-G75 -> 7492230.68 | J75: 0.4436868503 | K75: =+K76+K99 -> 19200358
A76: Community Facilities | C76: =SUM(C77:C98) -> 0 | D76: 2800000 | E76: 600000 | F76: 0 | G76: 187945.51 | H76: 1220015 | I76: =H76-G76 -> 1032069.49 | J76: =IF(I76=0,"",I76/H76) -> 0.8459481974 | K76: =SUM(K77:K98) -> 600000
A77: Halls | I77: 0
A78: Centres | I78: 0
A79: Crèches | I79: 0
A80: Clinics/Care Centres | I80: 0
A81: Fire/Ambulance Stations | I81: 0
A82: Testing Stations | I82: 0
A83: Museums | I83: 0
A84: Galleries | I84: 0
A85: Theatres | I85: 0
A86: Libraries | C86: 0 | D86: 0 | E86: 0 | F86: 0 | G86: 0 | H86: 0 | I86: 0 | K86: 0
A87: Cemeteries/Crematoria | C87: 0 | D87: 1600000 | E87: 300000 | F87: 0 | G87: 0 | H87: 680006 | I87: 680006 | J87: 1 | K87: 300000
A88: Police | I88: =H88-G88 -> 0 | J88: =IF(I88=0,"",I88/H88) -> 
A89: Purls | C89: 0 | D89: 500000 | E89: 200000 | F89: 0 | G89: 187945.51 | H89: 255003 | I89: 67057.49 | J89: 0.2629674553 | K89: 200000
A90: Public Open Space | I90: 0
A91: Nature Reserves | I91: 0
A92: Public Ablution Facilities | I92: 0
A93: Markets | C93: 0 | D93: 0 | E93: 0 | F93: 0 | G93: 0 | H93: 0 | I93: 0 | K93: 0
A94: Stalls | C94: 0 | D94: 0 | E94: 0 | F94: 0 | G94: 0 | H94: 0 | I94: 0 | K94: 0
A95: Abattoirs | I95: 0
A96: Airports | I96: 0
A97: Taxi Ranks/Bus Terminals | C97: 0 | D97: 700000 | E97: 100000 | F97: 0 | G97: 0 | H97: 285006 | I97: 285006 | J97: 1 | K97: 100000
A98: Capital Spares | I98: 0
A99: Sport and Recreation Facilities | C99: =SUM(C100:C102) -> 21986915.97 | D99: 23503250 | E99: 18600358 | F99: 2308221.07 | G99: 9206127.01 | H99: 15666288.2 | I99: 6460161.19 | J99: 0.4123606758 | K99: =SUM(K100:K102) -> 18600358
A100: Indoor Facilities | I100: 0
A101: Outdoor Facilities | C101: 21986915.97 | D101: 23503250 | E101: 18600358 | F101: 2308221.07 | G101: 9206127.01 | H101: 15666288.2 | I101: 6460161.19 | J101: 0.4123606758 | K101: 18600358
A102: Capital Spares | I102: 0
A103: Heritage assets | C103: =SUM(C104:C108) -> 0 | D103: 0 | E103: 0 | F103: 0 | G103: 0 | H103: 0 | I103: 0 | K103: =SUM(K104:K108) -> 0
A104: Monuments | I104: 0
A105: Historic Buildings | I105: 0
A106: Works of Art | I106: 0
A107: Conservation Areas | I107: 0
A108: Other Heritage | I108: 0
I109: 0
A110: Investment properties | C110: =+C111+C114 -> 0 | D110: 0 | E110: 0 | F110: 0 | G110: 0 | H110: 0 | I110: 0 | K110: =+K111+K114 -> 0
A111: Revenue Generating | C111: =SUM(C112:C113) -> 0 | D111: 0 | E111: 0 | F111: 0 | G111: 0 | H111: 0 | I111: 0 | K111: =SUM(K112:K113) -> 0
A112: Improved Property | I112: 0
A113: Unimproved Property | I113: 0
A114: Non-revenue Generating | C114: =SUM(C115:C116) -> 0 | D114: 0 | E114: 0 | F114: 0 | G114: 0 | H114: 0 | I114: 0 | K114: =SUM(K115:K116) -> 0
A115: Improved Property | I115: 0
A116: Unimproved Property | I116: 0
A117: Other assets | C117: =+C118+C130 -> 1847799.32 | D117: 13150000 | E117: 67650000 | F117: 0 | G117: 59262175.58 | H117: 46662506 | I117: -12599669.58 | J117: -0.2700169935 | K117: =+K118+K130 -> 67650000
A118: Operational Buildings | C118: =SUM(C119:C129) -> 1847799.32 | D118: 13150000 | E118: 67650000 | F118: 0 | G118: 59262175.58 | H118: 46662506 | I118: -12599669.58 | J118: -0.2700169935 | K118: =SUM(K119:K129) -> 67650000
A119: Municipal Offices | C119: 1847799.32 | D119: 13000000 | E119: 67500000 | F119: 0 | G119: 59262175.58 | H119: 46550006 | I119: -12712169.58 | J119: -0.2730863145 | K119: 67500000
A120: Pay/Enquiry Points | C120: 0 | D120: 0 | E120: 0 | F120: 0 | G120: 0 | H120: 0 | I120: 0 | J120: =IF(I120=0,"",I120/H120) ->  | K120: 0
A121: Building Plan Offices | I121: 0
A122: Workshops | I122: 0
A123: Yards | C123: 0 | D123: 150000 | E123: 150000 | F123: 0 | G123: 0 | H123: 112500 | I123: 112500 | J123: 1 | K123: 150000
A124: Stores | I124: 0
A125: Laboratories | I125: 0
A126: Training Centres | I126: 0
A127: Manufacturing Plant | I127: 0
A128: Depots | I128: 0
A129: Capital Spares | I129: 0
A130: Housing | C130: =SUM(C131:C133) -> 0 | D130: 0 | E130: 0 | F130: 0 | G130: 0 | H130: 0 | I130: 0 | K130: =SUM(K131:K133) -> 0
A131: Staff Housing | I131: 0
A132: Social Housing | C132: 0 | D132: 0 | E132: 0 | F132: 0 | G132: 0 | H132: 0 | I132: 0 | K132: 0
A133: Capital Spares | I133: 0
A135: Biological or Cultivated Assets | C135: =SUM(C136:C136) -> 0 | D135: 0 | E135: 0 | F135: 0 | G135: 0 | H135: 0 | I135: =H135-G135 -> 0 | K135: =SUM(K136) -> 0
A136: Biological or Cultivated Assets | I136: =H136-G136 -> 0
A138: Intangible Assets | C138: =SUM(C139:C140) -> 47826.09 | D138: 2500000 | E138: 1900000 | F138: 0 | G138: 650434.78 | H138: 1635015 | I138: =H138-G138 -> 984580.22 | J138: 0.6021842124 | K138: =SUM(K139:K140) -> 1900000
A139: Servitudes | I139: 0
A140: Licences and Rights | C140: =SUM(C141:C146) -> 47826.09 | D140: 2500000 | E140: 1900000 | F140: 0 | G140: 650434.78 | H140: 1635015 | I140: 984580.22 | J140: 0.6021842124 | K140: =SUM(K141:K146) -> 1900000
A141: Water Rights | I141: 0
A142: Effluent Licenses | I142: 0
A143: Solid Waste Licenses | I143: 0
A144: Computer Software and Applications | C144: 47826.09 | D144: 2500000 | E144: 1900000 | F144: 0 | G144: 650434.78 | H144: 1635015 | I144: 984580.22 | J144: 0.6021842124 | K144: 1900000
A145: Load Settlement Software Applications | I145: 0
A146: Unspecified | C146: 0 | D146: 0 | E146: 0 | F146: 0 | G146: 0 | H146: 0 | I146: 0 | K146: 0
A148: Computer Equipment | C148: =SUM(C149:C149) -> 0 | D148: 0 | E148: 0 | F148: 0 | G148: 0 | H148: 0 | I148: =H148-G148 -> 0 | J148: =IF(I148=0,"",I148/H148) ->  | K148: =SUM(K149) -> 0
A149: Computer Equipment | C149: 0 | D149: 0 | E149: 0 | F149: 0 | G149: 0 | H149: 0 | I149: =H149-G149 -> 0 | J149: =IF(I149=0,"",I149/H149) ->  | K149: 0
A151: Furniture and Office Equipment | C151: =SUM(C152:C152) -> 2620328 | D151: 2550000 | E151: 3250000 | F151: 0 | G151: 383799.09 | H151: 2402518 | I151: =H151-G151 -> 2018718.91 | J151: =IF(I151=0,"",I151/H151) -> 0.8402513155 | K151: =SUM(K152) -> 3250000
A152: Furniture and Office Equipment | C152: 2620328 | D152: 2550000 | E152: 3250000 | F152: 0 | G152: 383799.09 | H152: 2402518 | I152: =H152-G152 -> 2018718.91 | J152: =IF(I152=0,"",I152/H152) -> 0.8402513155 | K152: 3250000
J153: =IF(I153=0,"",I153/H153) -> 
A154: Machinery and Equipment | C154: =SUM(C155:C155) -> 0 | D154: 0 | E154: 0 | F154: 0 | G154: 0 | H154: 0 | I154: =H154-G154 -> 0 | J154: =IF(I154=0,"",I154/H154) ->  | K154: =SUM(K155) -> 0
A155: Machinery and Equipment | C155: 0 | D155: 0 | E155: 0 | F155: 0 | G155: 0 | H155: 0 | I155: =H155-G155 -> 0 | J155: =IF(I155=0,"",I155/H155) ->  | K155: 0
A157: Transport Assets | C157: =SUM(C158:C158) -> 0 | D157: 0 | E157: 0 | F157: 0 | G157: 0 | H157: 0 | I157: =H157-G157 -> 0 | J157: =IF(I157=0,"",I157/H157) ->  | K157: =SUM(K158) -> 0
A158: Transport Assets | C158: 0 | D158: 0 | E158: 0 | F158: 0 | G158: 0 | H158: 0 | I158: =H158-G158 -> 0 | J158: =IF(I158=0,"",I158/H158) ->  | K158: 0
A160: Land | C160: =SUM(C161:C161) -> 0 | D160: 0 | E160: 0 | F160: 0 | G160: 0 | H160: 0 | I160: =H160-G160 -> 0 | J160: =IF(I160=0,"",I160/H160) ->  | K160: =SUM(K161) -> 0
A161: Land | C161: 0 | D161: 0 | E161: 0 | F161: 0 | G161: 0 | H161: 0 | I161: =H161-G161 -> 0 | J161: =IF(I161=0,"",I161/H161) ->  | K161: 0
A163: Zoo's, Marine and Non-biological Animals | C163: =SUM(C164:C164) -> 0 | D163: 0 | E163: 0 | F163: 0 | G163: 0 | H163: 0 | I163: =H163-G163 -> 0 | J163: =IF(I163=0,"",I163/H163) ->  | K163: =SUM(K164) -> 0
A164: Zoo's, Marine and Non-biological Animals | I164: =H164-G164 -> 0 | J164: =IF(I164=0,"",I164/H164) -> 
J165: =IF(I165=0,"",I165/H165) -> 
A166: Total Capital Expenditure on new assets | B166: 1 | C166: =C7+C75+C103+C110+C117+C135+C138+C148+C151+C154+C157+C160+C163 -> 83488842.59 | D166: 141707152 | E166: 260513506 | F166: 10362571.97 | G166: 106897232.1 | H166: 169013010.6 | I166: =H166-G166 -> 62115778.49 | J166: =IF(I166=0,"",I166/H166) -> 0.3675206913 | K166: =K7+K75+K103+K110+K117+K135+K138+K148+K151+K154+K157+K160+K163 -> 260513506
A168: =head27a -> References
A169: 1. Total Capital Expenditure on new assets (SC13a) plus Total Capital Expenditure on renewal of existing assets (SC13b) plus Total Capital Expenditure on upgrading of existing assets (SC13e) must reconcile to total capital expenditure in Table C5
A171: check balance | C171: =C166+SC13b!C166+SC13e!C166-'C5-Capex'!C40 -> 0 | D171: =D166+SC13b!D166+SC13e!D166-'C5-Capex'!D40 -> 0 | E171: =E166+SC13b!E166+SC13e!E166-'C5-Capex'!E40 -> 0 | F171: =F166+SC13b!F166+SC13e!F166-'C5-Capex'!F40 -> 0 | G171: =G166+SC13b!G166+SC13e!G166-'C5-Capex'!G40 -> 0 | H171: =H166+SC13b!H166+SC13e!H166-'C5-Capex'!H40 -> 0 | K171: =K166+SC13b!K166+SC13e!K166-'C5-Capex'!K40 -> 0

Sheet SC13b
A1: =muni& " - "&S71Sb& " - "&Head57 -> LIM476 Tubatse Fetakgomo - Supporting Table SC13b Monthly Budget Statement - capital expenditure on renewal of existing assets by asset class - M09 March
A2: =desc -> Description | B2: =head27 -> Ref | C2: =Head1 -> 2019/20 | D2: =Head2 -> Budget Year 2020/21
C3: =Head5 -> Audited Outcome | D3: =Head6 -> Original Budget | E3: =Head7 -> Adjusted Budget | F3: =Head38 -> Monthly actual | G3: =Head39 -> YearTD actual | H3: =Head40 -> YearTD budget | I3: =Head41 -> YTD variance | J3: =Head41 -> YTD variance | K3: =Head8 -> Full Year Forecast
A4: R thousands | B4: 1 | J4: %
A5: Capital expenditure on renewal of existing assets by Asset Class/Sub-class
A7: Infrastructure | C7: =C8+C13+C17+C27+C38+C45+C53+C63+C69 -> 0 | D7: 650000 | E7: 650000 | F7: 0 | G7: 294335.73 | H7: 487512 | I7: =H7-G7 -> 193176.27 | J7: =IF(I7=0,"",I7/H7) -> 0.3962492616 | K7: =K8+K13+K17+K27+K38+K45+K53+K63+K69 -> 650000
A8: Roads Infrastructure | C8: =SUM(C9:C12) -> 0 | D8: 0 | E8: 0 | F8: 0 | G8: 0 | H8: 0 | I8: 0 | K8: =SUM(K9:K12) -> 0
A9: Roads | I9: 0
A10: Road Structures | I10: 0
A11: Road Furniture | I11: 0
A12: Capital Spares | I12: 0
A13: Storm water Infrastructure | C13: =SUM(C14:C16) -> 0 | D13: 0 | E13: 0 | F13: 0 | G13: 0 | H13: 0 | I13: 0 | K13: =SUM(K14:K16) -> 0
A14: Drainage Collection | I14: 0
A15: Storm water Conveyance | I15: 0
A16: Attenuation | I16: 0
A17: Electrical Infrastructure | C17: =SUM(C18:C26) -> 0 | D17: 0 | E17: 0 | F17: 0 | G17: 0 | H17: 0 | I17: 0 | K17: =SUM(K18:K26) -> 0
A18: Power Plants | I18: 0
A19: HV Substations | I19: 0
A20: HV Switching Station | I20: 0
A21: HV Transmission Conductors | I21: 0
A22: MV Substations | I22: 0
A23: MV Switching Stations | I23: 0
A24: MV Networks | I24: 0
A25: LV Networks | I25: 0
A26: Capital Spares | I26: 0
A27: Water Supply Infrastructure | C27: =SUM(C28:C37) -> 0 | D27: 650000 | E27: 650000 | F27: 0 | G27: 294335.73 | H27: 487512 | I27: 193176.27 | J27: 0.3962492616 | K27: =SUM(K28:K37) -> 650000
A28: Dams and Weirs | I28: 0
A29: Boreholes | C29: 0 | D29: 650000 | E29: 650000 | F29: 0 | G29: 294335.73 | H29: 487512 | I29: 193176.27 | J29: 0.3962492616 | K29: 650000
A30: Reservoirs | I30: 0
A31: Pump Stations | I31: 0
A32: Water Treatment Works | I32: 0
A33: Bulk Mains | I33: 0
A34: Distribution | I34: 0
A35: Distribution Points | I35: 0
A36: PRV Stations | I36: 0
A37: Capital Spares | I37: 0
A38: Sanitation Infrastructure | C38: =SUM(C39:C44) -> 0 | D38: 0 | E38: 0 | F38: 0 | G38: 0 | H38: 0 | I38: 0 | K38: =SUM(K39:K44) -> 0
A39: Pump Station | I39: 0
A40: Reticulation | I40: 0
A41: Waste Water Treatment Works | I41: 0
A42: Outfall Sewers | I42: 0
A43: Toilet Facilities | I43: 0
A44: Capital Spares | I44: 0
A45: Solid Waste Infrastructure | C45: =SUM(C46:C52) -> 0 | D45: 0 | E45: 0 | F45: 0 | G45: 0 | H45: 0 | I45: 0 | K45: =SUM(K46:K52) -> 0
A46: Landfill Sites | C46: 0 | D46: 0 | E46: 0 | F46: 0 | G46: 0 | H46: 0 | I46: 0 | K46: 0
A47: Waste Transfer Stations | I47: 0
A48: Waste Processing Facilities | I48: 0
A49: Waste Drop-off Points | I49: 0
A50: Waste Separation Facilities | I50: 0
A51: Electricity Generation Facilities | I51: 0
A52: Capital Spares | I52: 0
A53: Rail Infrastructure | C53: =SUM(C54:C62) -> 0 | D53: 0 | E53: 0 | F53: 0 | G53: 0 | H53: 0 | I53: 0 | K53: =SUM(K54:K62) -> 0
A54: Rail Lines | I54: 0
A55: Rail Structures | I55: 0
A56: Rail Furniture | I56: 0
A57: Drainage Collection | I57: 0
A58: Storm water Conveyance | I58: 0
A59: Attenuation | I59: 0
A60: MV Substations | I60: 0
A61: LV Networks | I61: 0
A62: Capital Spares | I62: 0
A63: Coastal Infrastructure | C63: =SUM(C64:C68) -> 0 | D63: 0 | E63: 0 | F63: 0 | G63: 0 | H63: 0 | I63: 0 | K63: =SUM(K64:K68) -> 0
A64: Sand Pumps | I64: 0
A65: Piers | I65: 0
A66: Revetments | I66: 0
A67: Promenades | I67: 0
A68: Capital Spares | I68: 0
A69: Information and Communication Infrastructure | C69: =SUM(C70:C73) -> 0 | D69: 0 | E69: 0 | F69: 0 | G69: 0 | H69: 0 | I69: 0 | K69: =SUM(K70:K73) -> 0
A70: Data Centres | I70: 0
A71: Core Layers | I71: 0
A72: Distribution Layers | I72: 0
A73: Capital Spares | I73: 0
A75: Community Assets | C75: =+C76+C99 -> 1921018.26 | D75: 700000 | E75: 2000000 | F75: 0 | G75: 29000 | H75: 1195006 | I75: 1166006 | J75: 0.9757323394 | K75: =+K76+K99 -> 2000000
A76: Community Facilities | C76: =SUM(C77:C98) -> 1921018.26 | D76: 700000 | E76: 2000000 | F76: 0 | G76: 29000 | H76: 1195006 | I76: 1166006 | J76: 0.9757323394 | K76: =SUM(K77:K98) -> 2000000
A77: Halls | I77: 0
A78: Centres | I78: 0
A79: Crèches | I79: 0
A80: Clinics/Care Centres | I80: 0
A81: Fire/Ambulance Stations | C81: 0 | D81: 0 | E81: 500000 | F81: 0 | G81: 0 | H81: 350000 | I81: 350000 | J81: 1 | K81: 500000
A82: Testing Stations | C82: 0 | D82: 700000 | E82: 1500000 | F82: 0 | G82: 29000 | H82: 845006 | I82: 816006 | J82: 0.9656807171 | K82: 1500000
A83: Museums | I83: 0
A84: Galleries | I84: 0
A85: Theatres | I85: 0
A86: Libraries | C86: 0 | D86: 0 | E86: 0 | F86: 0 | G86: 0 | H86: 0 | I86: 0 | K86: 0
A87: Cemeteries/Crematoria | C87: 1921018.26 | D87: 0 | E87: 0 | F87: 0 | G87: 0 | H87: 0 | I87: 0 | K87: 0
A88: Police | I88: 0
A89: Purls | C89: 0 | D89: 0 | E89: 0 | F89: 0 | G89: 0 | H89: 0 | I89: 0 | K89: 0
A90: Public Open Space | I90: 0
A91: Nature Reserves | I91: 0
A92: Public Ablution Facilities | I92: 0
A93: Markets | I93: 0
A94: Stalls | I94: 0
A95: Abattoirs | I95: 0
A96: Airports | I96: 0
A97: Taxi Ranks/Bus Terminals | C97: 0 | D97: 0 | E97: 0 | F97: 0 | G97: 0 | H97: 0 | I97: 0 | K97: 0
A98: Capital Spares | I98: 0
A99: Sport and Recreation Facilities | C99: =SUM(C100:C102) -> 0 | D99: 0 | E99: 0 | F99: 0 | G99: 0 | H99: 0 | I99: 0 | K99: =SUM(K100:K102) -> 0
A100: Indoor Facilities | I100: 0
A101: Outdoor Facilities | I101: =H101-G101 -> 0 | J101: =IF(I101=0,"",I101/H101) -> 
A102: Capital Spares | I102: 0
A103: Heritage assets | C103: =SUM(C104:C108) -> 0 | D103: 0 | E103: 0 | F103: 0 | G103: 0 | H103: 0 | I103: 0 | K103: =SUM(K104:K108) -> 0
A104: Monuments | I104: 0
A105: Historic Buildings | I105: 0
A106: Works of Art | I106: 0
A107: Conservation Areas | I107: 0
A108: Other Heritage | I108: 0
I109: 0
A110: Investment properties | C110: =+C111+C114 -> 0 | D110: 0 | E110: 0 | F110: 0 | G110: 0 | H110: 0 | I110: 0 | K110: =+K111+K114 -> 0
A111: Revenue Generating | C111: =SUM(C112:C113) -> 0 | D111: 0 | E111: 0 | F111: 0 | G111: 0 | H111: 0 | I111: 0 | K111: =SUM(K112:K113) -> 0
A112: Improved Property | I112: 0
A113: Unimproved Property | I113: 0
A114: Non-revenue Generating | C114: =SUM(C115:C116) -> 0 | D114: 0 | E114: 0 | F114: 0 | G114: 0 | H114: 0 | I114: 0 | K114: =SUM(K115:K116) -> 0
A115: Improved Property | I115: 0
A116: Unimproved Property | I116: =H116-G116 -> 0 | J116: =IF(I116=0,"",I116/H116) -> 
A117: Other assets | C117: =+C118+C130 -> 0 | D117: 0 | E117: 1000000 | F117: 0 | G117: 0 | H117: 700000 | I117: 700000 | J117: 1 | K117: =+K118+K130 -> 1000000
A118: Operational Buildings | C118: =SUM(C119:C129) -> 0 | D118: 0 | E118: 1000000 | F118: 0 | G118: 0 | H118: 700000 | I118: 700000 | J118: 1 | K118: =SUM(K119:K129) -> 1000000
A119: Municipal Offices | C119: 0 | D119: 0 | E119: 1000000 | F119: 0 | G119: 0 | H119: 700000 | I119: 700000 | J119: 1 | K119: 1000000
A120: Pay/Enquiry Points | I120: 0
A121: Building Plan Offices | I121: 0
A122: Workshops | I122: 0
A123: Yards | I123: 0
A124: Stores | I124: 0
A125: Laboratories | I125: 0
A126: Training Centres | I126: 0
A127: Manufacturing Plant | I127: 0
A128: Depots | I128: 0
A129: Capital Spares | I129: 0
A130: Housing | C130: =SUM(C131:C133) -> 0 | D130: 0 | E130: 0 | F130: 0 | G130: 0 | H130: 0 | I130: 0 | K130: =SUM(K131:K133) -> 0
A131: Staff Housing | I131: 0
A132: Social Housing | I132: 0
A133: Capital Spares | I133: 0
A135: Biological or Cultivated Assets | C135: =SUM(C136:C136) -> 0 | D135: 0 | E135: 0 | F135: 0 | G135: 0 | H135: 0 | I135: =H135-G135 -> 0 | K135: =SUM(K136) -> 0
A136: Biological or Cultivated Assets | I136: =H136-G136 -> 0
J137: =IF(I137=0,"",I137/H137) -> 
A138: Intangible Assets | C138: =SUM(C139:C140) -> 0 | D138: 386000 | E138: 0 | F138: 0 | G138: 0 | H138: 19303 | I138: =H138-G138 -> 19303 | J138: 1 | K138: =SUM(K139:K140) -> 0
A139: Servitudes | I139: 0
A140: Licences and Rights | C140: =SUM(C141:C146) -> 0 | D140: 386000 | E140: 0 | F140: 0 | G140: 0 | H140: 19303 | I140: 19303 | J140: 1 | K140: =SUM(K141:K146) -> 0
A141: Water Rights | I141: 0
A142: Effluent Licenses | I142: 0
A143: Solid Waste Licenses | I143: 0
A144: Computer Software and Applications | C144: 0 | D144: 386000 | E144: 0 | F144: 0 | G144: 0 | H144: 19303 | I144: 19303 | J144: 1 | K144: 0
A145: Load Settlement Software Applications | I145: 0
A146: Unspecified | I146: 0
A148: Computer Equipment | C148: =SUM(C149:C149) -> 0 | D148: 400000 | E148: 1200000 | F148: 0 | G148: 338251.62 | H148: 620006 | I148: =H148-G148 -> 281754.38 | J148: =IF(I148=0,"",I148/H148) -> 0.4544381506 | K148: =SUM(K149) -> 1200000
A149: Computer Equipment | C149: 0 | D149: 400000 | E149: 1200000 | F149: 0 | G149: 338251.62 | H149: 620006 | I149: =H149-G149 -> 281754.38 | J149: =IF(I149=0,"",I149/H149) -> 0.4544381506 | K149: 1200000
A151: Furniture and Office Equipment | C151: =SUM(C152:C152) -> 0 | D151: 0 | E151: 0 | F151: 0 | G151: 0 | H151: 0 | I151: =H151-G151 -> 0 | J151: =IF(I151=0,"",I151/H151) ->  | K151: =SUM(K152) -> 0
A152: Furniture and Office Equipment | I152: =H152-G152 -> 0 | J152: =IF(I152=0,"",I152/H152) -> 
J153: =IF(I153=0,"",I153/H153) -> 
A154: Machinery and Equipment | C154: =SUM(C155:C155) -> 0 | D154: 0 | E154: 0 | F154: 0 | G154: 0 | H154: 0 | I154: =H154-G154 -> 0 | J154: =IF(I154=0,"",I154/H154) ->  | K154: =SUM(K155) -> 0
A155: Machinery and Equipment | I155: =H155-G155 -> 0 | J155: =IF(I155=0,"",I155/H155) -> 
A157: Transport Assets | C157: =SUM(C158:C158) -> 0 | D157: 0 | E157: 0 | F157: 0 | G157: 0 | H157: 0 | I157: =H157-G157 -> 0 | J157: =IF(I157=0,"",I157/H157) ->  | K157: =SUM(K158) -> 0
A158: Transport Assets | I158: =H158-G158 -> 0 | J158: =IF(I158=0,"",I158/H158) -> 
A160: Land | C160: =SUM(C161:C161) -> 0 | D160: 0 | E160: 0 | F160: 0 | G160: 0 | H160: 0 | I160: =H160-G160 -> 0 | J160: =IF(I160=0,"",I160/H160) ->  | K160: =SUM(K161) -> 0
A161: Land | I161: =H161-G161 -> 0 | J161: =IF(I161=0,"",I161/H161) -> 
J162: .
A163: Zoo's, Marine and Non-biological Animals | C163: =SUM(C164:C164) -> 0 | D163: 0 | E163: 0 | F163: 0 | G163: 0 | H163: 0 | I163: =H163-G163 -> 0 | J163: =IF(I163=0,"",I163/H163) ->  | K163: =SUM(K164) -> 0
A164: Zoo's, Marine and Non-biological Animals | I164: =H164-G164 -> 0 | J164: =IF(I164=0,"",I164/H164) -> 
J165: =IF(I165=0,"",I165/H165) -> 
A166: Total Capital Expenditure on renewal of existing assets | B166: 1 | C166: =C7+C75+C103+C110+C117+C135+C138+C148+C151+C154+C157+C160+C163 -> 1921018.26 | D166: 2136000 | E166: 4850000 | F166: 0 | G166: 661587.35 | H166: 3021827 | I166: =H166-G166 -> 2360239.65 | J166: =IF(I166=0,"",I166/H166) -> 0.7810637902 | K166: =K7+K75+K103+K110+K117+K135+K138+K148+K151+K154+K157+K160+K163 -> 4850000
A168: =head27a -> References
A169: 1. Total Capital Expenditure on new assets (SC13a) plus Total Capital Expenditure on renewal of existing assets (SC13b) plus Total Capital Expenditure on upgrading of existing assets (SC13e) must reconcile to total capital expenditure in Table C5
A171: check balance | C171: =C166+SC13a!C166+SC13e!C166-'C5-Capex'!C40 -> 0 | D171: =D166+SC13a!D166+SC13e!D166-'C5-Capex'!D40 -> 0 | E171: =E166+SC13a!E166+SC13e!E166-'C5-Capex'!E40 -> 0 | F171: =F166+SC13a!F166+SC13e!F166-'C5-Capex'!F40 -> 0 | G171: =G166+SC13a!G166+SC13e!G166-'C5-Capex'!G40 -> 0 | H171: =H166+SC13a!H166+SC13e!H166-'C5-Capex'!H40 -> 0 | K171: =K166+SC13a!K166+SC13e!K166-'C5-Capex'!K40 -> 0

Sheet SC13c
A1: =muni& " - "&S71Sc& " - "&Head57 -> LIM476 Tubatse Fetakgomo - Supporting Table SC13c Monthly Budget Statement - expenditure on repairs and maintenance by asset class - M09 March
A2: =desc -> Description | B2: =head27 -> Ref | C2: =Head1 -> 2019/20 | D2: =Head2 -> Budget Year 2020/21
C3: =Head5 -> Audited Outcome | D3: =Head6 -> Original Budget | E3: =Head7 -> Adjusted Budget | F3: =Head38 -> Monthly actual | G3: =Head39 -> YearTD actual | H3: =Head40 -> YearTD budget | I3: =Head41 -> YTD variance | J3: =Head41 -> YTD variance | K3: =Head8 -> Full Year Forecast
A4: R thousands | B4: 1 | J4: %
A5: Repairs and maintenance expenditure by Asset Class/Sub-class
A7: Infrastructure | C7: =C8+C13+C17+C27+C38+C45+C53+C63+C69 -> 893606.74 | D7: 4709802 | E7: 6709802 | F7: 175212.5 | G7: 2339510.27 | H7: 4332365 | I7: =H7-G7 -> 1992854.73 | J7: =IF(I7=0,"",I7/H7) -> 0.4599923437 | K7: =K8+K13+K17+K27+K38+K45+K53+K63+K69 -> 6709802
A8: Roads Infrastructure | C8: =SUM(C9:C12) -> 658567.17 | D8: 3135000 | E8: 5135000 | F8: 119300 | G8: 1800465.76 | H8: 3151250 | I8: 1350784.24 | J8: 0.4286502943 | K8: =SUM(K9:K12) -> 5135000
A9: Roads | C9: 0 | D9: 0 | E9: 0 | F9: 0 | G9: 0 | H9: 0 | I9: 0 | K9: 0
A10: Road Structures | C10: 0 | D10: 0 | E10: 0 | F10: 0 | G10: 0 | H10: 0 | I10: 0 | K10: 0
A11: Road Furniture | C11: 658567.17 | D11: 3135000 | E11: 5135000 | F11: 119300 | G11: 1800465.76 | H11: 3151250 | I11: 1350784.24 | J11: 0.4286502943 | K11: 5135000
A12: Capital Spares | I12: 0
A13: Storm water Infrastructure | C13: =SUM(C14:C16) -> 0 | D13: 0 | E13: 0 | F13: 0 | G13: 0 | H13: 0 | I13: 0 | K13: =SUM(K14:K16) -> 0
A14: Drainage Collection | I14: 0
A15: Storm water Conveyance | I15: 0
A16: Attenuation | I16: 0
A17: Electrical Infrastructure | C17: =SUM(C18:C26) -> 0 | D17: 1045000 | E17: 1045000 | F17: 55912.5 | G17: 340264.71 | H17: 783756 | I17: 443491.29 | J17: 0.5658537734 | K17: =SUM(K18:K26) -> 1045000
A18: Power Plants | I18: 0
A19: HV Substations | I19: 0
A20: HV Switching Station | I20: 0
A21: HV Transmission Conductors | I21: 0
A22: MV Substations | I22: 0
A23: MV Switching Stations | I23: 0
A24: MV Networks | I24: 0
A25: LV Networks | C25: 0 | D25: 1045000 | E25: 1045000 | F25: 55912.5 | G25: 340264.71 | H25: 783756 | I25: 443491.29 | J25: 0.5658537734 | K25: 1045000
A26: Capital Spares | I26: 0
A27: Water Supply Infrastructure | C27: =SUM(C28:C37) -> 53039.57 | D27: 200000 | E27: 200000 | F27: 0 | G27: 188450 | H27: 150003 | I27: -38447 | J27: -0.2563082072 | K27: =SUM(K28:K37) -> 200000
A28: Dams and Weirs | I28: 0
A29: Boreholes | C29: 53039.57 | D29: 200000 | E29: 200000 | F29: 0 | G29: 188450 | H29: 150003 | I29: -38447 | J29: -0.2563082072 | K29: 200000
A30: Reservoirs | I30: 0
A31: Pump Stations | I31: 0
A32: Water Treatment Works | I32: 0
A33: Bulk Mains | I33: 0
A34: Distribution | I34: 0
A35: Distribution Points | I35: 0
A36: PRV Stations | I36: 0
A37: Capital Spares | I37: 0
A38: Sanitation Infrastructure | C38: =SUM(C39:C44) -> 0 | D38: 0 | E38: 0 | F38: 0 | G38: 0 | H38: 0 | I38: 0 | K38: =SUM(K39:K44) -> 0
A39: Pump Station | I39: 0
A40: Reticulation | I40: 0
A41: Waste Water Treatment Works | C41: 0 | D41: 0 | E41: 0 | F41: 0 | G41: 0 | H41: 0 | I41: 0 | K41: 0
A42: Outfall Sewers | I42: 0
A43: Toilet Facilities | I43: 0
A44: Capital Spares | I44: 0
A45: Solid Waste Infrastructure | C45: =SUM(C46:C52) -> 182000 | D45: 329802 | E45: 329802 | F45: 0 | G45: 10329.8 | H45: 247356 | I45: 237026.2 | J45: 0.9582391371 | K45: =SUM(K46:K52) -> 329802
A46: Landfill Sites | C46: 182000 | D46: 329802 | E46: 329802 | F46: 0 | G46: 10329.8 | H46: 247356 | I46: 237026.2 | J46: 0.9582391371 | K46: 329802
A47: Waste Transfer Stations | I47: 0
A48: Waste Processing Facilities | I48: 0
A49: Waste Drop-off Points | I49: 0
A50: Waste Separation Facilities | I50: 0
A51: Electricity Generation Facilities | I51: 0
A52: Capital Spares | I52: 0
A53: Rail Infrastructure | C53: =SUM(C54:C62) -> 0 | D53: 0 | E53: 0 | F53: 0 | G53: 0 | H53: 0 | I53: 0 | K53: =SUM(K54:K62) -> 0
A54: Rail Lines | I54: 0
A55: Rail Structures | I55: 0
A56: Rail Furniture | I56: 0
A57: Drainage Collection | I57: 0
A58: Storm water Conveyance | I58: 0
A59: Attenuation | I59: 0
A60: MV Substations | I60: 0
A61: LV Networks | I61: 0
A62: Capital Spares | I62: 0
A63: Coastal Infrastructure | C63: =SUM(C64:C68) -> 0 | D63: 0 | E63: 0 | F63: 0 | G63: 0 | H63: 0 | I63: 0 | K63: =SUM(K64:K68) -> 0
A64: Sand Pumps | I64: 0
A65: Piers | I65: 0
A66: Revetments | I66: 0
A67: Promenades | I67: 0
A68: Capital Spares | I68: 0
A69: Information and Communication Infrastructure | C69: =SUM(C70:C73) -> 0 | D69: 0 | E69: 0 | F69: 0 | G69: 0 | H69: 0 | I69: 0 | K69: =SUM(K70:K73) -> 0
A70: Data Centres | I70: 0
A71: Core Layers | I71: 0
A72: Distribution Layers | I72: 0
A73: Capital Spares | I73: 0
A75: Community Assets | C75: =+C76+C99 -> 0 | D75: 2424719 | E75: 3624719 | F75: 0 | G75: 332752.6 | H75: 2298558 | I75: 1965805.4 | J75: 0.8552341947 | K75: =+K76+K99 -> 3624719
A76: Community Facilities | C76: =SUM(C77:C98) -> 0 | D76: 1111407 | E76: 1611407 | F76: 0 | G76: 11222.6 | H76: 1033562 | I76: 1022339.4 | J76: 0.9891418222 | K76: =SUM(K77:K98) -> 1611407
A77: Halls | C77: 0 | D77: 0 | E77: 500000 | F77: 0 | G77: 0 | H77: 200000 | I77: 200000 | J77: 1 | K77: 500000
A78: Centres | I78: 0
A79: Crèches | I79: 0
A80: Clinics/Care Centres | I80: 0
A81: Fire/Ambulance Stations | I81: 0
A82: Testing Stations | I82: 0
A83: Museums | I83: 0
A84: Galleries | I84: 0
A85: Theatres | I85: 0
A86: Libraries | C86: 0 | D86: 0 | E86: 0 | F86: 0 | G86: 0 | H86: 0 | I86: 0 | K86: 0
A87: Cemeteries/Crematoria | C87: 0 | D87: 1000000 | E87: 1000000 | F87: 0 | G87: 11222.6 | H87: 750006 | I87: 738783.4 | J87: 0.985036653 | K87: 1000000
A88: Police | I88: 0
A89: Purls | C89: 0 | D89: 0 | E89: 0 | F89: 0 | G89: 0 | H89: 0 | I89: 0 | K89: 0
A90: Public Open Space | I90: 0
A91: Nature Reserves | I91: 0
A92: Public Ablution Facilities | C92: 0 | D92: 0 | E92: 0 | F92: 0 | G92: 0 | H92: 0 | I92: 0 | K92: 0
A93: Markets | C93: 0 | D93: 0 | E93: 0 | F93: 0 | G93: 0 | H93: 0 | I93: 0 | K93: 0
A94: Stalls | C94: 0 | D94: 111407 | E94: 111407 | F94: 0 | G94: 0 | H94: 83556 | I94: 83556 | J94: 1 | K94: 111407
A95: Abattoirs | I95: 0
A96: Airports | I96: 0
A97: Taxi Ranks/Bus Terminals | I97: 0
A98: Capital Spares | I98: 0
A99: Sport and Recreation Facilities | C99: =SUM(C100:C102) -> 0 | D99: 1313312 | E99: 2013312 | F99: 0 | G99: 321530 | H99: 1264996 | I99: 943466 | J99: 0.7458252832 | K99: =SUM(K100:K102) -> 2013312
A100: Indoor Facilities | I100: 0
A101: Outdoor Facilities | C101: 0 | D101: 1313312 | E101: 2013312 | F101: 0 | G101: 321530 | H101: 1264996 | I101: =H101-G101 -> 943466 | J101: =IF(I101=0,"",I101/H101) -> 0.7458252832 | K101: 2013312
A102: Capital Spares | I102: 0
A103: Heritage assets | C103: =SUM(C104:C108) -> 0 | D103: 0 | E103: 0 | F103: 0 | G103: 0 | H103: 0 | I103: 0 | K103: =SUM(K104:K108) -> 0
A104: Monuments | I104: 0
A105: Historic Buildings | I105: 0
A106: Works of Art | C106: 0 | D106: 0 | E106: 0 | F106: 0 | G106: 0 | H106: 0 | I106: 0 | K106: 0
A107: Conservation Areas | I107: 0
A108: Other Heritage | C108: 0 | D108: 0 | E108: 0 | F108: 0 | G108: 0 | H108: 0 | I108: 0 | K108: 0
I109: 0
A110: Investment properties | C110: =+C111+C114 -> 0 | D110: 0 | E110: 0 | F110: 0 | G110: 0 | H110: 0 | I110: 0 | K110: =+K111+K114 -> 0
A111: Revenue Generating | C111: =SUM(C112:C113) -> 0 | D111: 0 | E111: 0 | F111: 0 | G111: 0 | H111: 0 | I111: 0 | K111: =SUM(K112:K113) -> 0
A112: Improved Property | C112: 0 | D112: 0 | E112: 0 | F112: 0 | G112: 0 | H112: 0 | I112: 0 | K112: 0
A113: Unimproved Property | I113: 0
A114: Non-revenue Generating | C114: =SUM(C115:C116) -> 0 | D114: 0 | E114: 0 | F114: 0 | G114: 0 | H114: 0 | I114: 0 | K114: =SUM(K115:K116) -> 0
A115: Improved Property | I115: 0
A116: Unimproved Property | I116: =H116-G116 -> 0 | J116: =IF(I116=0,"",I116/H116) -> 
A117: Other assets | C117: =+C118+C130 -> 1959492.21 | D117: 2500000 | E117: 4000000 | F117: 340500 | G117: 1153215.9 | H117: 2475006 | I117: 1321790.1 | J117: 0.5340553114 | K117: =+K118+K130 -> 4000000
A118: Operational Buildings | C118: =SUM(C119:C129) -> 1959492.21 | D118: 2500000 | E118: 4000000 | F118: 340500 | G118: 1153215.9 | H118: 2475006 | I118: 1321790.1 | J118: 0.5340553114 | K118: =SUM(K119:K129) -> 4000000
A119: Municipal Offices | C119: 1959492.21 | D119: 2500000 | E119: 4000000 | F119: 340500 | G119: 1153215.9 | H119: 2475006 | I119: 1321790.1 | J119: 0.5340553114 | K119: 4000000
A120: Pay/Enquiry Points | I120: 0
A121: Building Plan Offices | I121: 0
A122: Workshops | I122: 0
A123: Yards | I123: 0
A124: Stores | I124: 0
A125: Laboratories | I125: 0
A126: Training Centres | I126: 0
A127: Manufacturing Plant | I127: 0
A128: Depots | I128: 0
A129: Capital Spares | I129: 0
A130: Housing | C130: =SUM(C131:C133) -> 0 | D130: 0 | E130: 0 | F130: 0 | G130: 0 | H130: 0 | I130: 0 | K130: =SUM(K131:K133) -> 0
A131: Staff Housing | I131: 0
A132: Social Housing | I132: 0
A133: Capital Spares | I133: 0
A135: Biological or Cultivated Assets | C135: =SUM(C136:C136) -> 0 | D135: 0 | E135: 0 | F135: 0 | G135: 0 | H135: 0 | I135: =H135-G135 -> 0 | K135: =SUM(K136) -> 0
A136: Biological or Cultivated Assets | I136: =H136-G136 -> 0
J137: =IF(I137=0,"",I137/H137) -> 
A138: Intangible Assets | C138: =SUM(C139:C140) -> 0 | D138: 0 | E138: 0 | F138: 0 | G138: 0 | H138: 0 | I138: =H138-G138 -> 0 | K138: =SUM(K139:K140) -> 0
A139: Servitudes | I139: 0
A140: Licences and Rights | C140: =SUM(C141:C146) -> 0 | D140: 0 | E140: 0 | F140: 0 | G140: 0 | H140: 0 | I140: 0 | K140: =SUM(K141:K146) -> 0
A141: Water Rights | I141: 0
A142: Effluent Licenses | I142: 0
A143: Solid Waste Licenses | I143: 0
A144: Computer Software and Applications | C144: 0 | D144: 0 | E144: 0 | F144: 0 | G144: 0 | H144: 0 | I144: 0 | K144: 0
A145: Load Settlement Software Applications | I145: 0
A146: Unspecified | C146: 0 | D146: 0 | E146: 0 | F146: 0 | G146: 0 | H146: 0 | I146: 0 | K146: 0
A148: Computer Equipment | C148: =SUM(C149:C149) -> 83118.84 | D148: 409000 | E148: 2409000 | F148: 0 | G148: 27586.96 | H148: 1106756 | I148: =H148-G148 -> 1079169.04 | J148: =IF(I148=0,"",I148/H148) -> 0.9750740362 | K148: =SUM(K149) -> 2409000
A149: Computer Equipment | C149: 83118.84 | D149: 409000 | E149: 2409000 | F149: 0 | G149: 27586.96 | H149: 1106756 | I149: =H149-G149 -> 1079169.04 | J149: =IF(I149=0,"",I149/H149) -> 0.9750740362 | K149: 2409000
A151: Furniture and Office Equipment | C151: =SUM(C152:C152) -> 0 | D151: 0 | E151: 0 | F151: 0 | G151: 0 | H151: 0 | I151: =H151-G151 -> 0 | J151: =IF(I151=0,"",I151/H151) ->  | K151: =SUM(K152) -> 0
A152: Furniture and Office Equipment | C152: 0 | D152: 0 | E152: 0 | F152: 0 | G152: 0 | H152: 0 | I152: =H152-G152 -> 0 | J152: =IF(I152=0,"",I152/H152) ->  | K152: 0
J153: =IF(I153=0,"",I153/H153) -> 
A154: Machinery and Equipment | C154: =SUM(C155:C155) -> 6691692.2 | D154: 17864910 | E154: 29656910 | F154: 3340343.22 | G154: 12193172.74 | H154: 20215505 | I154: =H154-G154 -> 8022332.26 | J154: =IF(I154=0,"",I154/H154) -> 0.3968405568 | K154: =SUM(K155) -> 29656910
A155: Machinery and Equipment | C155: 6691692.2 | D155: 17864910 | E155: 29656910 | F155: 3340343.22 | G155: 12193172.74 | H155: 20215505 | I155: =H155-G155 -> 8022332.26 | J155: =IF(I155=0,"",I155/H155) -> 0.3968405568 | K155: 29656910
A157: Transport Assets | C157: =SUM(C158:C158) -> 874499.55 | D157: 4000000 | E157: 5000000 | F157: 0 | G157: 2857932.62 | H157: 3400006 | I157: =H157-G157 -> 542073.38 | J157: =IF(I157=0,"",I157/H157) -> 0.1594330657 | K157: =SUM(K158) -> 5000000
A158: Transport Assets | C158: 874499.55 | D158: 4000000 | E158: 5000000 | F158: 0 | G158: 2857932.62 | H158: 3400006 | I158: =H158-G158 -> 542073.38 | J158: =IF(I158=0,"",I158/H158) -> 0.1594330657 | K158: 5000000
A160: Land | C160: =SUM(C161:C161) -> 0 | D160: 0 | E160: 0 | F160: 0 | G160: 0 | H160: 0 | I160: =H160-G160 -> 0 | J160: =IF(I160=0,"",I160/H160) ->  | K160: =SUM(K161) -> 0
A161: Land | I161: =H161-G161 -> 0 | J161: =IF(I161=0,"",I161/H161) -> 
A163: Zoo's, Marine and Non-biological Animals | C163: =SUM(C164:C164) -> 0 | D163: 0 | E163: 0 | F163: 0 | G163: 0 | H163: 0 | I163: =H163-G163 -> 0 | J163: =IF(I163=0,"",I163/H163) ->  | K163: =SUM(K164) -> 0
A164: Zoo's, Marine and Non-biological Animals | I164: =H164-G164 -> 0 | J164: =IF(I164=0,"",I164/H164) -> 
J165: =IF(I165=0,"",I165/H165) -> 
A166: Total Repairs and Maintenance Expenditure | B166: 1 | C166: =C7+C75+C103+C110+C117+C135+C138+C148+C151+C154+C157+C160+C163 -> 10502409.54 | D166: 31908431 | E166: 51400431 | F166: 3856055.72 | G166: 18904171.09 | H166: 33828196 | I166: 14924024.91 | J166: 0.441171173 | K166: =K7+K75+K103+K110+K117+K135+K138+K148+K151+K154+K157+K160+K163 -> 51400431

Sheet SC13d
A1: =muni& " - "&S71Sd& " - "&Head57 -> LIM476 Tubatse Fetakgomo - Supporting Table SC13d Monthly Budget Statement - depreciation by asset class - M09 March
A2: =desc -> Description | B2: =head27 -> Ref | C2: =Head1 -> 2019/20 | D2: =Head2 -> Budget Year 2020/21
C3: =Head5 -> Audited Outcome | D3: =Head6 -> Original Budget | E3: =Head7 -> Adjusted Budget | F3: =Head38 -> Monthly actual | G3: =Head39 -> YearTD actual | H3: =Head40 -> YearTD budget | I3: =Head41 -> YTD variance | J3: =Head41 -> YTD variance | K3: =Head8 -> Full Year Forecast
A4: R thousands | B4: 1 | J4: %
A5: Depreciation by Asset Class/Sub-class
A7: Infrastructure | C7: =C8+C13+C17+C27+C38+C45+C53+C63+C69 -> 89562011.17 | D7: 71091311 | E7: 71091311 | F7: 0 | G7: 0 | H7: 53318484 | I7: =H7-G7 -> 53318484 | J7: =IF(I7=0,"",I7/H7) -> 1 | K7: =K8+K13+K17+K27+K38+K45+K53+K63+K69 -> 71091311
A8: Roads Infrastructure | C8: =SUM(C9:C12) -> 89562011.17 | D8: 71091311 | E8: 71091311 | F8: 0 | G8: 0 | H8: 53318484 | I8: 53318484 | J8: 1 | K8: =SUM(K9:K12) -> 71091311
A9: Roads | C9: 89562011.17 | D9: 71091311 | E9: 71091311 | F9: 0 | G9: 0 | H9: 53318484 | I9: 53318484 | J9: 1 | K9: 71091311
A10: Road Structures | C10: 0 | D10: 0 | E10: 0 | F10: 0 | G10: 0 | H10: 0 | I10: 0 | K10: 0
A11: Road Furniture | C11: 0 | D11: 0 | E11: 0 | F11: 0 | G11: 0 | H11: 0 | I11: 0 | K11: 0
A12: Capital Spares | C12: 0 | D12: 0 | E12: 0 | F12: 0 | G12: 0 | H12: 0 | I12: 0 | K12: 0
A13: Storm water Infrastructure | C13: =SUM(C14:C16) -> 0 | D13: 0 | E13: 0 | F13: 0 | G13: 0 | H13: 0 | I13: 0 | K13: =SUM(K14:K16) -> 0
A14: Drainage Collection | C14: 0 | D14: 0 | E14: 0 | F14: 0 | G14: 0 | H14: 0 | I14: 0 | K14: 0
A15: Storm water Conveyance | C15: 0 | D15: 0 | E15: 0 | F15: 0 | G15: 0 | H15: 0 | I15: 0 | K15: 0
A16: Attenuation | C16: 0 | D16: 0 | E16: 0 | F16: 0 | G16: 0 | H16: 0 | I16: 0 | K16: 0
A17: Electrical Infrastructure | C17: =SUM(C18:C26) -> 0 | D17: 0 | E17: 0 | F17: 0 | G17: 0 | H17: 0 | I17: 0 | K17: =SUM(K18:K26) -> 0
A18: Power Plants | C18: 0 | D18: 0 | E18: 0 | F18: 0 | G18: 0 | H18: 0 | I18: 0 | K18: 0
A19: HV Substations | C19: 0 | D19: 0 | E19: 0 | F19: 0 | G19: 0 | H19: 0 | I19: 0 | K19: 0
A20: HV Switching Station | C20: 0 | D20: 0 | E20: 0 | F20: 0 | G20: 0 | H20: 0 | I20: 0 | K20: 0
A21: HV Transmission Conductors | C21: 0 | D21: 0 | E21: 0 | F21: 0 | G21: 0 | H21: 0 | I21: 0 | K21: 0
A22: MV Substations | C22: 0 | D22: 0 | E22: 0 | F22: 0 | G22: 0 | H22: 0 | I22: 0 | K22: 0
A23: MV Switching Stations | C23: 0 | D23: 0 | E23: 0 | F23: 0 | G23: 0 | H23: 0 | I23: 0 | K23: 0
A24: MV Networks | C24: 0 | D24: 0 | E24: 0 | F24: 0 | G24: 0 | H24: 0 | I24: 0 | K24: 0
A25: LV Networks | C25: 0 | D25: 0 | E25: 0 | F25: 0 | G25: 0 | H25: 0 | I25: 0 | K25: 0
A26: Capital Spares | C26: 0 | D26: 0 | E26: 0 | F26: 0 | G26: 0 | H26: 0 | I26: 0 | K26: 0
A27: Water Supply Infrastructure | C27: =SUM(C28:C37) -> 0 | D27: 0 | E27: 0 | F27: 0 | G27: 0 | H27: 0 | I27: 0 | K27: =SUM(K28:K37) -> 0
A28: Dams and Weirs | C28: 0 | D28: 0 | E28: 0 | F28: 0 | G28: 0 | H28: 0 | I28: 0 | K28: 0
A29: Boreholes | C29: 0 | D29: 0 | E29: 0 | F29: 0 | G29: 0 | H29: 0 | I29: 0 | K29: 0
A30: Reservoirs | C30: 0 | D30: 0 | E30: 0 | F30: 0 | G30: 0 | H30: 0 | I30: 0 | K30: 0
A31: Pump Stations | C31: 0 | D31: 0 | E31: 0 | F31: 0 | G31: 0 | H31: 0 | I31: 0 | K31: 0
A32: Water Treatment Works | C32: 0 | D32: 0 | E32: 0 | F32: 0 | G32: 0 | H32: 0 | I32: 0 | K32: 0
A33: Bulk Mains | C33: 0 | D33: 0 | E33: 0 | F33: 0 | G33: 0 | H33: 0 | I33: 0 | K33: 0
A34: Distribution | C34: 0 | D34: 0 | E34: 0 | F34: 0 | G34: 0 | H34: 0 | I34: 0 | K34: 0
A35: Distribution Points | C35: 0 | D35: 0 | E35: 0 | F35: 0 | G35: 0 | H35: 0 | I35: 0 | K35: 0
A36: PRV Stations | C36: 0 | D36: 0 | E36: 0 | F36: 0 | G36: 0 | H36: 0 | I36: 0 | K36: 0
A37: Capital Spares | C37: 0 | D37: 0 | E37: 0 | F37: 0 | G37: 0 | H37: 0 | I37: 0 | K37: 0
A38: Sanitation Infrastructure | C38: =SUM(C39:C44) -> 0 | D38: 0 | E38: 0 | F38: 0 | G38: 0 | H38: 0 | I38: 0 | K38: =SUM(K39:K44) -> 0
A39: Pump Station | C39: 0 | D39: 0 | E39: 0 | F39: 0 | G39: 0 | H39: 0 | I39: 0 | K39: 0
A40: Reticulation | C40: 0 | D40: 0 | E40: 0 | F40: 0 | G40: 0 | H40: 0 | I40: 0 | K40: 0
A41: Waste Water Treatment Works | C41: 0 | D41: 0 | E41: 0 | F41: 0 | G41: 0 | H41: 0 | I41: 0 | K41: 0
A42: Outfall Sewers | C42: 0 | D42: 0 | E42: 0 | F42: 0 | G42: 0 | H42: 0 | I42: 0 | K42: 0
A43: Toilet Facilities | C43: 0 | D43: 0 | E43: 0 | F43: 0 | G43: 0 | H43: 0 | I43: 0 | K43: 0
A44: Capital Spares | C44: 0 | D44: 0 | E44: 0 | F44: 0 | G44: 0 | H44: 0 | I44: 0 | K44: 0
A45: Solid Waste Infrastructure | C45: =SUM(C46:C52) -> 0 | D45: 0 | E45: 0 | F45: 0 | G45: 0 | H45: 0 | I45: 0 | K45: =SUM(K46:K52) -> 0
A46: Landfill Sites | C46: 0 | D46: 0 | E46: 0 | F46: 0 | G46: 0 | H46: 0 | I46: 0 | K46: 0
A47: Waste Transfer Stations | C47: 0 | D47: 0 | E47: 0 | F47: 0 | G47: 0 | H47: 0 | I47: 0 | K47: 0
A48: Waste Processing Facilities | C48: 0 | D48: 0 | E48: 0 | F48: 0 | G48: 0 | H48: 0 | I48: 0 | K48: 0
A49: Waste Drop-off Points | C49: 0 | D49: 0 | E49: 0 | F49: 0 | G49: 0 | H49: 0 | I49: 0 | K49: 0
A50: Waste Separation Facilities | C50: 0 | D50: 0 | E50: 0 | F50: 0 | G50: 0 | H50: 0 | I50: 0 | K50: 0
A51: Electricity Generation Facilities | C51: 0 | D51: 0 | E51: 0 | F51: 0 | G51: 0 | H51: 0 | I51: 0 | K51: 0
A52: Capital Spares | C52: 0 | D52: 0 | E52: 0 | F52: 0 | G52: 0 | H52: 0 | I52: 0 | K52: 0
A53: Rail Infrastructure | C53: =SUM(C54:C62) -> 0 | D53: 0 | E53: 0 | F53: 0 | G53: 0 | H53: 0 | I53: 0 | K53: =SUM(K54:K62) -> 0
A54: Rail Lines | C54: 0 | D54: 0 | E54: 0 | F54: 0 | G54: 0 | H54: 0 | I54: 0 | K54: 0
A55: Rail Structures | I55: 0
A56: Rail Furniture | I56: 0
A57: Drainage Collection | I57: 0
A58: Storm water Conveyance | I58: 0
A59: Attenuation | I59: 0
A60: MV Substations | I60: 0
A61: LV Networks | I61: 0
A62: Capital Spares | I62: 0
A63: Coastal Infrastructure | C63: =SUM(C64:C68) -> 0 | D63: 0 | E63: 0 | F63: 0 | G63: 0 | H63: 0 | I63: 0 | K63: =SUM(K64:K68) -> 0
A64: Sand Pumps | C64: 0 | D64: 0 | E64: 0 | F64: 0 | G64: 0 | H64: 0 | I64: 0 | K64: 0
A65: Piers | C65: 0 | D65: 0 | E65: 0 | F65: 0 | G65: 0 | H65: 0 | I65: 0 | K65: 0
A66: Revetments | C66: 0 | D66: 0 | E66: 0 | F66: 0 | G66: 0 | H66: 0 | I66: 0 | K66: 0
A67: Promenades | C67: 0 | D67: 0 | E67: 0 | F67: 0 | G67: 0 | H67: 0 | I67: 0 | K67: 0
A68: Capital Spares | I68: 0
A69: Information and Communication Infrastructure | C69: =SUM(C70:C73) -> 0 | D69: 0 | E69: 0 | F69: 0 | G69: 0 | H69: 0 | I69: 0 | K69: =SUM(K70:K73) -> 0
A70: Data Centres | I70: 0
A71: Core Layers | I71: 0
A72: Distribution Layers | I72: 0
A73: Capital Spares | I73: 0
A75: Community Assets | C75: =+C76+C99 -> 5923839.89 | D75: 3389134 | E75: 3389134 | F75: 0 | G75: 0 | H75: 2541852 | I75: 2541852 | J75: 1 | K75: =+K76+K99 -> 3389134
A76: Community Facilities | C76: =SUM(C77:C98) -> 5923839.89 | D76: 3389134 | E76: 3389134 | F76: 0 | G76: 0 | H76: 2541852 | I76: 2541852 | J76: 1 | K76: =SUM(K77:K98) -> 3389134
A77: Halls | C77: 0 | D77: 3389134 | E77: 3389134 | F77: 0 | G77: 0 | H77: 2541852 | I77: 2541852 | J77: 1 | K77: 3389134
A78: Centres | C78: 5923839.89 | D78: 0 | E78: 0 | F78: 0 | G78: 0 | H78: 0 | I78: 0 | K78: 0
A79: Crèches | C79: 0 | D79: 0 | E79: 0 | F79: 0 | G79: 0 | H79: 0 | I79: 0 | K79: 0
A80: Clinics/Care Centres | C80: 0 | D80: 0 | E80: 0 | F80: 0 | G80: 0 | H80: 0 | I80: 0 | K80: 0
A81: Fire/Ambulance Stations | C81: 0 | D81: 0 | E81: 0 | F81: 0 | G81: 0 | H81: 0 | I81: 0 | K81: 0
A82: Testing Stations | C82: 0 | D82: 0 | E82: 0 | F82: 0 | G82: 0 | H82: 0 | I82: 0 | K82: 0
A83: Museums | C83: 0 | D83: 0 | E83: 0 | F83: 0 | G83: 0 | H83: 0 | I83: 0 | K83: 0
A84: Galleries | C84: 0 | D84: 0 | E84: 0 | F84: 0 | G84: 0 | H84: 0 | I84: 0 | K84: 0
A85: Theatres | C85: 0 | D85: 0 | E85: 0 | F85: 0 | G85: 0 | H85: 0 | I85: 0 | K85: 0
A86: Libraries | C86: 0 | D86: 0 | E86: 0 | F86: 0 | G86: 0 | H86: 0 | I86: 0 | K86: 0
A87: Cemeteries/Crematoria | C87: 0 | D87: 0 | E87: 0 | F87: 0 | G87: 0 | H87: 0 | I87: 0 | K87: 0
A88: Police | C88: 0 | D88: 0 | E88: 0 | F88: 0 | G88: 0 | H88: 0 | I88: 0 | K88: 0
A89: Purls | C89: 0 | D89: 0 | E89: 0 | F89: 0 | G89: 0 | H89: 0 | I89: 0 | K89: 0
A90: Public Open Space | C90: 0 | D90: 0 | E90: 0 | F90: 0 | G90: 0 | H90: 0 | I90: 0 | K90: 0
A91: Nature Reserves | C91: 0 | D91: 0 | E91: 0 | F91: 0 | G91: 0 | H91: 0 | I91: 0 | K91: 0
A92: Public Ablution Facilities | C92: 0 | D92: 0 | E92: 0 | F92: 0 | G92: 0 | H92: 0 | I92: 0 | K92: 0
A93: Markets | C93: 0 | D93: 0 | E93: 0 | F93: 0 | G93: 0 | H93: 0 | I93: 0 | K93: 0
A94: Stalls | C94: 0 | D94: 0 | E94: 0 | F94: 0 | G94: 0 | H94: 0 | I94: 0 | K94: 0
A95: Abattoirs | C95: 0 | D95: 0 | E95: 0 | F95: 0 | G95: 0 | H95: 0 | I95: 0 | K95: 0
A96: Airports | C96: 0 | D96: 0 | E96: 0 | F96: 0 | G96: 0 | H96: 0 | I96: 0 | K96: 0
A97: Taxi Ranks/Bus Terminals | C97: 0 | D97: 0 | E97: 0 | F97: 0 | G97: 0 | H97: 0 | I97: 0 | K97: 0
A98: Capital Spares | C98: 0 | D98: 0 | E98: 0 | F98: 0 | G98: 0 | H98: 0 | I98: 0 | K98: 0
A99: Sport and Recreation Facilities | C99: =SUM(C100:C102) -> 0 | D99: 0 | E99: 0 | F99: 0 | G99: 0 | H99: 0 | I99: 0 | K99: =SUM(K100:K102) -> 0
A100: Indoor Facilities | C100: 0 | D100: 0 | E100: 0 | F100: 0 | G100: 0 | H100: 0 | I100: 0 | K100: 0
A101: Outdoor Facilities | C101: 0 | D101: 0 | E101: 0 | F101: 0 | G101: 0 | H101: 0 | I101: =H101-G101 -> 0 | J101: =IF(I101=0,"",I101/H101) ->  | K101: 0
A102: Capital Spares | I102: 0
A103: Heritage assets | C103: =SUM(C104:C108) -> 0 | D103: 0 | E103: 0 | F103: 0 | G103: 0 | H103: 0 | I103: 0 | K103: =SUM(K104:K108) -> 0
A104: Monuments | I104: 0
A105: Historic Buildings | I105: 0
A106: Works of Art | I106: 0
A107: Conservation Areas | I107: 0
A108: Other Heritage | C108: 0 | D108: 0 | E108: 0 | F108: 0 | G108: 0 | H108: 0 | I108: 0 | K108: 0
I109: 0
A110: Investment properties | C110: =+C111+C114 -> 0 | D110: 0 | E110: 0 | F110: 0 | G110: 0 | H110: 0 | I110: 0 | K110: =+K111+K114 -> 0
A111: Revenue Generating | C111: =SUM(C112:C113) -> 0 | D111: 0 | E111: 0 | F111: 0 | G111: 0 | H111: 0 | I111: 0 | K111: =SUM(K112:K113) -> 0
A112: Improved Property | C112: 0 | D112: 0 | E112: 0 | F112: 0 | G112: 0 | H112: 0 | I112: 0 | K112: 0
A113: Unimproved Property | C113: 0 | D113: 0 | E113: 0 | F113: 0 | G113: 0 | H113: 0 | I113: 0 | K113: 0
A114: Non-revenue Generating | C114: =SUM(C115:C116) -> 0 | D114: 0 | E114: 0 | F114: 0 | G114: 0 | H114: 0 | I114: 0 | K114: =SUM(K115:K116) -> 0
A115: Improved Property | I115: 0
A116: Unimproved Property | I116: =H116-G116 -> 0 | J116: =IF(I116=0,"",I116/H116) -> 
A117: Other assets | C117: =+C118+C130 -> 2204080.84 | D117: 5490000 | E117: 5490000 | F117: 0 | G117: 0 | H117: 4117500 | I117: 4117500 | J117: 1 | K117: =+K118+K130 -> 5490000
A118: Operational Buildings | C118: =SUM(C119:C129) -> 2204080.84 | D118: 5490000 | E118: 5490000 | F118: 0 | G118: 0 | H118: 4117500 | I118: 4117500 | J118: 1 | K118: =SUM(K119:K129) -> 5490000
A119: Municipal Offices | C119: 2204080.84 | D119: 5490000 | E119: 5490000 | F119: 0 | G119: 0 | H119: 4117500 | I119: 4117500 | J119: 1 | K119: 5490000
A120: Pay/Enquiry Points | C120: 0 | D120: 0 | E120: 0 | F120: 0 | G120: 0 | H120: 0 | I120: 0 | K120: 0
A121: Building Plan Offices | C121: 0 | D121: 0 | E121: 0 | F121: 0 | G121: 0 | H121: 0 | I121: 0 | K121: 0
A122: Workshops | C122: 0 | D122: 0 | E122: 0 | F122: 0 | G122: 0 | H122: 0 | I122: 0 | K122: 0
A123: Yards | C123: 0 | D123: 0 | E123: 0 | F123: 0 | G123: 0 | H123: 0 | I123: 0 | K123: 0
A124: Stores | C124: 0 | D124: 0 | E124: 0 | F124: 0 | G124: 0 | H124: 0 | I124: 0 | K124: 0
A125: Laboratories | C125: 0 | D125: 0 | E125: 0 | F125: 0 | G125: 0 | H125: 0 | I125: 0 | K125: 0
A126: Training Centres | C126: 0 | D126: 0 | E126: 0 | F126: 0 | G126: 0 | H126: 0 | I126: 0 | K126: 0
A127: Manufacturing Plant | C127: 0 | D127: 0 | E127: 0 | F127: 0 | G127: 0 | H127: 0 | I127: 0 | K127: 0
A128: Depots | C128: 0 | D128: 0 | E128: 0 | F128: 0 | G128: 0 | H128: 0 | I128: 0 | K128: 0
A129: Capital Spares | C129: 0 | D129: 0 | E129: 0 | F129: 0 | G129: 0 | H129: 0 | I129: 0 | K129: 0
A130: Housing | C130: =SUM(C131:C133) -> 0 | D130: 0 | E130: 0 | F130: 0 | G130: 0 | H130: 0 | I130: 0 | K130: =SUM(K131:K133) -> 0
A131: Staff Housing | C131: 0 | D131: 0 | E131: 0 | F131: 0 | G131: 0 | H131: 0 | I131: 0 | K131: 0
A132: Social Housing | C132: 0 | D132: 0 | E132: 0 | F132: 0 | G132: 0 | H132: 0 | I132: 0 | K132: 0
A133: Capital Spares | C133: 0 | D133: 0 | E133: 0 | F133: 0 | G133: 0 | H133: 0 | I133: 0 | K133: 0
A135: Biological or Cultivated Assets | C135: =SUM(C136:C136) -> 0 | D135: 0 | E135: 0 | F135: 0 | G135: 0 | H135: 0 | I135: =H135-G135 -> 0 | K135: =SUM(K136) -> 0
A136: Biological or Cultivated Assets | I136: =H136-G136 -> 0
J137: =IF(I137=0,"",I137/H137) -> 
A138: Intangible Assets | C138: =SUM(C139:C140) -> 30232.18 | D138: 200000 | E138: 0 | F138: 0 | G138: 0 | H138: 70003 | I138: =H138-G138 -> 70003 | J138: 1 | K138: =SUM(K139:K140) -> 0
A139: Servitudes | C139: 0 | D139: 0 | E139: 0 | F139: 0 | G139: 0 | H139: 0 | I139: 0 | K139: 0
A140: Licences and Rights | C140: =SUM(C141:C146) -> 30232.18 | D140: 200000 | E140: 0 | F140: 0 | G140: 0 | H140: 70003 | I140: 70003 | J140: 1 | K140: =SUM(K141:K146) -> 0
A141: Water Rights | C141: 0 | D141: 200000 | E141: 0 | F141: 0 | G141: 0 | H141: 70003 | I141: 70003 | J141: 1 | K141: 0
A142: Effluent Licenses | C142: 0 | D142: 0 | E142: 0 | F142: 0 | G142: 0 | H142: 0 | I142: 0 | K142: 0
A143: Solid Waste Licenses | C143: 0 | D143: 0 | E143: 0 | F143: 0 | G143: 0 | H143: 0 | I143: 0 | K143: 0
A144: Computer Software and Applications | C144: 30232.18 | D144: 0 | E144: 0 | F144: 0 | G144: 0 | H144: 0 | I144: 0 | K144: 0
A145: Load Settlement Software Applications | I145: 0
A146: Unspecified | C146: 0 | D146: 0 | E146: 0 | F146: 0 | G146: 0 | H146: 0 | I146: 0 | K146: 0
A148: Computer Equipment | C148: =SUM(C149:C149) -> 1401887.75 | D148: 381407 | E148: 381407 | F148: 0 | G148: 0 | H148: 286056 | I148: =H148-G148 -> 286056 | J148: =IF(I148=0,"",I148/H148) -> 1 | K148: =SUM(K149) -> 381407
A149: Computer Equipment | C149: 1401887.75 | D149: 381407 | E149: 381407 | F149: 0 | G149: 0 | H149: 286056 | I149: =H149-G149 -> 286056 | J149: =IF(I149=0,"",I149/H149) -> 1 | K149: 381407
A151: Furniture and Office Equipment | C151: =SUM(C152:C152) -> 997796.15 | D151: 1500000 | E151: 1500000 | F151: 0 | G151: 0 | H151: 1125000 | I151: =H151-G151 -> 1125000 | J151: =IF(I151=0,"",I151/H151) -> 1 | K151: =SUM(K152) -> 1500000
A152: Furniture and Office Equipment | C152: 997796.15 | D152: 1500000 | E152: 1500000 | F152: 0 | G152: 0 | H152: 1125000 | I152: =H152-G152 -> 1125000 | J152: =IF(I152=0,"",I152/H152) -> 1 | K152: 1500000
J153: =IF(I153=0,"",I153/H153) -> 
A154: Machinery and Equipment | C154: =SUM(C155:C155) -> 5860369.77 | D154: 5500000 | E154: 5500000 | F154: 0 | G154: 0 | H154: 4125006 | I154: =H154-G154 -> 4125006 | J154: =IF(I154=0,"",I154/H154) -> 1 | K154: =SUM(K155) -> 5500000
A155: Machinery and Equipment | C155: 5860369.77 | D155: 5500000 | E155: 5500000 | F155: 0 | G155: 0 | H155: 4125006 | I155: =H155-G155 -> 4125006 | J155: =IF(I155=0,"",I155/H155) -> 1 | K155: 5500000
A157: Transport Assets | C157: =SUM(C158:C158) -> 0 | D157: 2325351 | E157: 2325351 | F157: 0 | G157: 0 | H157: 1744020 | I157: =H157-G157 -> 1744020 | J157: =IF(I157=0,"",I157/H157) -> 1 | K157: =SUM(K158) -> 2325351
A158: Transport Assets | C158: 0 | D158: 2325351 | E158: 2325351 | F158: 0 | G158: 0 | H158: 1744020 | I158: =H158-G158 -> 1744020 | J158: =IF(I158=0,"",I158/H158) -> 1 | K158: 2325351
A160: Land | C160: =SUM(C161:C161) -> 0 | D160: 0 | E160: 0 | F160: 0 | G160: 0 | H160: 0 | I160: =H160-G160 -> 0 | J160: =IF(I160=0,"",I160/H160) ->  | K160: =SUM(K161) -> 0
A161: Land | C161: 0 | D161: 0 | E161: 0 | F161: 0 | G161: 0 | H161: 0 | I161: =H161-G161 -> 0 | J161: =IF(I161=0,"",I161/H161) ->  | K161: 0
A163: Zoo's, Marine and Non-biological Animals | C163: =SUM(C164:C164) -> 0 | D163: 0 | E163: 0 | F163: 0 | G163: 0 | H163: 0 | I163: =H163-G163 -> 0 | J163: =IF(I163=0,"",I163/H163) ->  | K163: =SUM(K164) -> 0
A164: Zoo's, Marine and Non-biological Animals | I164: =H164-G164 -> 0 | J164: =IF(I164=0,"",I164/H164) -> 
J165: =IF(I165=0,"",I165/H165) -> 
A166: Total Depreciation | B166: 1 | C166: =C7+C75+C103+C110+C117+C135+C138+C148+C151+C154+C157+C160+C163 -> 105980217.8 | D166: 89877203 | E166: 89677203 | F166: 0 | G166: 0 | H166: 67327921 | I166: 67327921 | J166: 1 | K166: =K7+K75+K103+K110+K117+K135+K138+K148+K151+K154+K157+K160+K163 -> 89677203

Sheet SC13e
A1: =muni& " - "&S71Se& " - "&Head57 -> LIM476 Tubatse Fetakgomo - Supporting Table SC13e Monthly Budget Statement - capital expenditure on upgrading of existing assets by asset class - M09 March
A2: =desc -> Description | B2: =head27 -> Ref | C2: =Head1 -> 2019/20 | D2: =Head2 -> Budget Year 2020/21
C3: =Head5 -> Audited Outcome | D3: =Head6 -> Original Budget | E3: =Head7 -> Adjusted Budget | F3: =Head38 -> Monthly actual | G3: =Head39 -> YearTD actual | H3: =Head40 -> YearTD budget | I3: =Head41 -> YTD variance | J3: =Head41 -> YTD variance | K3: =Head8 -> Full Year Forecast
A4: R thousands | B4: 1 | J4: %
A5: Capital expenditure on upgrading of existing assets by Asset Class/Sub-class
A7: Infrastructure | C7: =C8+C13+C17+C27+C38+C45+C53+C63+C69 -> 374945 | D7: 5300000 | E7: 1500000 | F7: 0 | G7: 0 | H7: 2455012 | I7: =H7-G7 -> 2455012 | J7: =IF(I7=0,"",I7/H7) -> 1 | K7: =K8+K13+K17+K27+K38+K45+K53+K63+K69 -> 1500000
A8: Roads Infrastructure | C8: =SUM(C9:C12) -> 0 | D8: 0 | E8: 0 | F8: 0 | G8: 0 | H8: 0 | I8: 0 | K8: =SUM(K9:K12) -> 0
A9: Roads | I9: 0
A10: Road Structures | I10: 0
A11: Road Furniture | I11: 0
A12: Capital Spares | I12: 0
A13: Storm water Infrastructure | C13: =SUM(C14:C16) -> 0 | D13: 0 | E13: 0 | F13: 0 | G13: 0 | H13: 0 | I13: 0 | K13: =SUM(K14:K16) -> 0
A14: Drainage Collection | I14: 0
A15: Storm water Conveyance | I15: 0
A16: Attenuation | I16: 0
A17: Electrical Infrastructure | C17: =SUM(C18:C26) -> 0 | D17: 0 | E17: 0 | F17: 0 | G17: 0 | H17: 0 | I17: 0 | K17: =SUM(K18:K26) -> 0
A18: Power Plants | I18: 0
A19: HV Substations | I19: 0
A20: HV Switching Station | I20: 0
A21: HV Transmission Conductors | I21: 0
A22: MV Substations | I22: 0
A23: MV Switching Stations | I23: 0
A24: MV Networks | I24: 0
A25: LV Networks | I25: 0
A26: Capital Spares | I26: 0
A27: Water Supply Infrastructure | C27: =SUM(C28:C37) -> 0 | D27: 0 | E27: 0 | F27: 0 | G27: 0 | H27: 0 | I27: 0 | K27: =SUM(K28:K37) -> 0
A28: Dams and Weirs | I28: 0
A29: Boreholes | I29: 0
A30: Reservoirs | I30: 0
A31: Pump Stations | I31: 0
A32: Water Treatment Works | I32: 0
A33: Bulk Mains | I33: 0
A34: Distribution | I34: 0
A35: Distribution Points | I35: 0
A36: PRV Stations | I36: 0
A37: Capital Spares | I37: 0
A38: Sanitation Infrastructure | C38: =SUM(C39:C44) -> 0 | D38: 0 | E38: 0 | F38: 0 | G38: 0 | H38: 0 | I38: 0 | K38: =SUM(K39:K44) -> 0
A39: Pump Station | I39: 0
A40: Reticulation | I40: 0
A41: Waste Water Treatment Works | I41: 0
A42: Outfall Sewers | I42: 0
A43: Toilet Facilities | I43: 0
A44: Capital Spares | I44: 0
A45: Solid Waste Infrastructure | C45: =SUM(C46:C52) -> 374945 | D45: 5300000 | E45: 1500000 | F45: 0 | G45: 0 | H45: 2455012 | I45: 2455012 | J45: 1 | K45: =SUM(K46:K52) -> 1500000
A46: Landfill Sites | C46: 374945 | D46: 5300000 | E46: 1500000 | F46: 0 | G46: 0 | H46: 2455012 | I46: 2455012 | J46: 1 | K46: 1500000
A47: Waste Transfer Stations | I47: 0
A48: Waste Processing Facilities | I48: 0
A49: Waste Drop-off Points | I49: 0
A50: Waste Separation Facilities | I50: 0
A51: Electricity Generation Facilities | I51: 0
A52: Capital Spares | I52: 0
A53: Rail Infrastructure | C53: =SUM(C54:C62) -> 0 | D53: 0 | E53: 0 | F53: 0 | G53: 0 | H53: 0 | I53: 0 | K53: =SUM(K54:K62) -> 0
A54: Rail Lines | I54: 0
A55: Rail Structures | I55: 0
A56: Rail Furniture | I56: 0
A57: Drainage Collection | I57: 0
A58: Storm water Conveyance | I58: 0
A59: Attenuation | I59: 0
A60: MV Substations | I60: 0
A61: LV Networks | I61: 0
A62: Capital Spares | I62: 0
A63: Coastal Infrastructure | C63: =SUM(C64:C68) -> 0 | D63: 0 | E63: 0 | F63: 0 | G63: 0 | H63: 0 | I63: 0 | K63: =SUM(K64:K68) -> 0
A64: Sand Pumps | I64: 0
A65: Piers | I65: 0
A66: Revetments | I66: 0
A67: Promenades | I67: 0
A68: Capital Spares | I68: 0
A69: Information and Communication Infrastructure | C69: =SUM(C70:C73) -> 0 | D69: 0 | E69: 0 | F69: 0 | G69: 0 | H69: 0 | I69: 0 | K69: =SUM(K70:K73) -> 0
A70: Data Centres | I70: 0
A71: Core Layers | I71: 0
A72: Distribution Layers | I72: 0
A73: Capital Spares | I73: 0
A75: Community Assets | C75: =+C76+C99 -> 0 | D75: 500000 | E75: 200000 | F75: 0 | G75: 140000 | H75: 255003 | I75: 115003 | J75: 0.4509868511 | K75: =+K76+K99 -> 200000
A76: Community Facilities | C76: =SUM(C77:C98) -> 0 | D76: 500000 | E76: 200000 | F76: 0 | G76: 140000 | H76: 255003 | I76: 115003 | J76: 0.4509868511 | K76: =SUM(K77:K98) -> 200000
A77: Halls | I77: 0
A78: Centres | I78: 0
A79: Crèches | I79: 0
A80: Clinics/Care Centres | I80: 0
A81: Fire/Ambulance Stations | I81: 0
A82: Testing Stations | I82: 0
A83: Museums | I83: 0
A84: Galleries | I84: 0
A85: Theatres | I85: 0
A86: Libraries | I86: 0
A87: Cemeteries/Crematoria | I87: 0
A88: Police | I88: 0
A89: Purls | C89: 0 | D89: 500000 | E89: 200000 | F89: 0 | G89: 140000 | H89: 255003 | I89: 115003 | J89: 0.4509868511 | K89: 200000
A90: Public Open Space | I90: 0
A91: Nature Reserves | I91: 0
A92: Public Ablution Facilities | I92: 0
A93: Markets | I93: 0
A94: Stalls | I94: 0
A95: Abattoirs | I95: 0
A96: Airports | I96: 0
A97: Taxi Ranks/Bus Terminals | I97: 0
A98: Capital Spares | I98: 0
A99: Sport and Recreation Facilities | C99: =SUM(C100:C102) -> 0 | D99: 0 | E99: 0 | F99: 0 | G99: 0 | H99: 0 | I99: 0 | K99: =SUM(K100:K102) -> 0
A100: Indoor Facilities | I100: 0
A101: Outdoor Facilities | C101: 0 | D101: 0 | E101: 0 | F101: 0 | G101: 0 | H101: 0 | I101: =H101-G101 -> 0 | J101: =IF(I101=0,"",I101/H101) ->  | K101: 0
A102: Capital Spares | I102: 0
A103: Heritage assets | C103: =SUM(C104:C108) -> 0 | D103: 0 | E103: 0 | F103: 0 | G103: 0 | H103: 0 | I103: 0 | K103: =SUM(K104:K108) -> 0
A104: Monuments | I104: 0
A105: Historic Buildings | I105: 0
A106: Works of Art | I106: 0
A107: Conservation Areas | I107: 0
A108: Other Heritage | C108: 0 | D108: 0 | E108: 0 | F108: 0 | G108: 0 | H108: 0 | I108: 0 | K108: 0
I109: 0
A110: Investment properties | C110: =+C111+C114 -> 0 | D110: 0 | E110: 0 | F110: 0 | G110: 0 | H110: 0 | I110: 0 | K110: =+K111+K114 -> 0
A111: Revenue Generating | C111: =SUM(C112:C113) -> 0 | D111: 0 | E111: 0 | F111: 0 | G111: 0 | H111: 0 | I111: 0 | K111: =SUM(K112:K113) -> 0
A112: Improved Property | I112: 0
A113: Unimproved Property | I113: 0
A114: Non-revenue Generating | C114: =SUM(C115:C116) -> 0 | D114: 0 | E114: 0 | F114: 0 | G114: 0 | H114: 0 | I114: 0 | K114: =SUM(K115:K116) -> 0
A115: Improved Property | I115: 0
A116: Unimproved Property | I116: =H116-G116 -> 0 | J116: =IF(I116=0,"",I116/H116) -> 
A117: Other assets | C117: =+C118+C130 -> 0 | D117: 650000 | E117: 250000 | F117: 0 | G117: 0 | H117: 327503 | I117: 327503 | J117: 1 | K117: =+K118+K130 -> 250000
A118: Operational Buildings | C118: =SUM(C119:C129) -> 0 | D118: 650000 | E118: 250000 | F118: 0 | G118: 0 | H118: 327503 | I118: 327503 | J118: 1 | K118: =SUM(K119:K129) -> 250000
A119: Municipal Offices | C119: 0 | D119: 650000 | E119: 250000 | F119: 0 | G119: 0 | H119: 327503 | I119: 327503 | J119: 1 | K119: 250000
A120: Pay/Enquiry Points | I120: 0
A121: Building Plan Offices | I121: 0
A122: Workshops | I122: 0
A123: Yards | I123: 0
A124: Stores | I124: 0
A125: Laboratories | I125: 0
A126: Training Centres | I126: 0
A127: Manufacturing Plant | I127: 0
A128: Depots | I128: 0
A129: Capital Spares | I129: 0
A130: Housing | C130: =SUM(C131:C133) -> 0 | D130: 0 | E130: 0 | F130: 0 | G130: 0 | H130: 0 | I130: 0 | K130: =SUM(K131:K133) -> 0
A131: Staff Housing | I131: 0
A132: Social Housing | I132: 0
A133: Capital Spares | I133: 0
A135: Biological or Cultivated Assets | C135: =SUM(C136:C136) -> 0 | D135: 0 | E135: 0 | F135: 0 | G135: 0 | H135: 0 | I135: =H135-G135 -> 0 | K135: =SUM(K136) -> 0
A136: Biological or Cultivated Assets | I136: =H136-G136 -> 0
J137: =IF(I137=0,"",I137/H137) -> 
A138: Intangible Assets | C138: =SUM(C139:C140) -> 0 | D138: 600000 | E138: 200000 | F138: 0 | G138: 92500 | H138: 290000 | I138: =H138-G138 -> 197500 | J138: 0.6810344828 | K138: =SUM(K139:K140) -> 200000
A139: Servitudes | I139: 0
A140: Licences and Rights | C140: =SUM(C141:C146) -> 0 | D140: 600000 | E140: 200000 | F140: 0 | G140: 92500 | H140: 290000 | I140: 197500 | J140: 0.6810344828 | K140: =SUM(K141:K146) -> 200000
A141: Water Rights | I141: 0
A142: Effluent Licenses | I142: 0
A143: Solid Waste Licenses | I143: 0
A144: Computer Software and Applications | C144: 0 | D144: 600000 | E144: 200000 | F144: 0 | G144: 92500 | H144: 290000 | I144: 197500 | J144: 0.6810344828 | K144: 200000
A145: Load Settlement Software Applications | I145: 0
A146: Unspecified | I146: 0
A148: Computer Equipment | C148: =SUM(C149:C149) -> 0 | D148: 0 | E148: 0 | F148: 0 | G148: 0 | H148: 0 | I148: =H148-G148 -> 0 | J148: =IF(I148=0,"",I148/H148) ->  | K148: =SUM(K149) -> 0
A149: Computer Equipment | I149: =H149-G149 -> 0 | J149: =IF(I149=0,"",I149/H149) -> 
A151: Furniture and Office Equipment | C151: =SUM(C152:C152) -> 0 | D151: 0 | E151: 0 | F151: 0 | G151: 0 | H151: 0 | I151: =H151-G151 -> 0 | J151: =IF(I151=0,"",I151/H151) ->  | K151: =SUM(K152) -> 0
A152: Furniture and Office Equipment | I152: =H152-G152 -> 0 | J152: =IF(I152=0,"",I152/H152) -> 
J153: =IF(I153=0,"",I153/H153) -> 
A154: Machinery and Equipment | C154: =SUM(C155:C155) -> 0 | D154: 0 | E154: 0 | F154: 0 | G154: 0 | H154: 0 | I154: =H154-G154 -> 0 | J154: =IF(I154=0,"",I154/H154) ->  | K154: =SUM(K155) -> 0
A155: Machinery and Equipment | I155: =H155-G155 -> 0 | J155: =IF(I155=0,"",I155/H155) -> 
A157: Transport Assets | C157: =SUM(C158:C158) -> 0 | D157: 0 | E157: 0 | F157: 0 | G157: 0 | H157: 0 | I157: =H157-G157 -> 0 | J157: =IF(I157=0,"",I157/H157) ->  | K157: =SUM(K158) -> 0
A158: Transport Assets | I158: =H158-G158 -> 0 | J158: =IF(I158=0,"",I158/H158) -> 
A160: Land | C160: =SUM(C161:C161) -> 0 | D160: 0 | E160: 0 | F160: 0 | G160: 0 | H160: 0 | I160: =H160-G160 -> 0 | J160: =IF(I160=0,"",I160/H160) ->  | K160: =SUM(K161) -> 0
A161: Land | I161: =H161-G161 -> 0 | J161: =IF(I161=0,"",I161/H161) -> 
J162: .
A163: Zoo's, Marine and Non-biological Animals | C163: =SUM(C164:C164) -> 0 | D163: 0 | E163: 0 | F163: 0 | G163: 0 | H163: 0 | I163: =H163-G163 -> 0 | J163: =IF(I163=0,"",I163/H163) ->  | K163: =SUM(K164) -> 0
A164: Zoo's, Marine and Non-biological Animals | I164: =H164-G164 -> 0 | J164: =IF(I164=0,"",I164/H164) -> 
J165: =IF(I165=0,"",I165/H165) -> 
A166: Total Capital Expenditure on upgrading of existing assets | B166: 1 | C166: =C7+C75+C103+C110+C117+C135+C138+C148+C151+C154+C157+C160+C163 -> 374945 | D166: 7050000 | E166: 2150000 | F166: 0 | G166: 232500 | H166: 3327518 | I166: =H166-G166 -> 3095018 | J166: =IF(I166=0,"",I166/H166) -> 0.9301281015 | K166: =K7+K75+K103+K110+K117+K135+K138+K148+K151+K154+K157+K160+K163 -> 2150000
A168: =head27a -> References
A169: 1. Total Capital Expenditure on new assets (SC13a) plus Total Capital Expenditure on renewal of existing assets (SC13b) plus Total Capital Expenditure on upgrading of existing assets (SC13e) must reconcile to total capital expenditure in Table C5
A171: check balance | C171: =C166+SC13a!C166+SC13b!C166-'C5-Capex'!C40 -> 0 | D171: =D166+SC13a!D166+SC13b!D166-'C5-Capex'!D40 -> 0 | E171: =E166+SC13a!E166+SC13b!E166-'C5-Capex'!E40 -> 0 | F171: =F166+SC13a!F166+SC13b!F166-'C5-Capex'!F40 -> 0 | G171: =G166+SC13a!G166+SC13b!G166-'C5-Capex'!G40 -> 0 | H171: =H166+SC13a!H166+SC13b!H166-'C5-Capex'!H40 -> 0 | K171: =K166+SC13a!K166+SC13b!K166-'C5-Capex'!K40 -> 0

Sheet SC71charts
A1: ='Template names'!B102 -> Chart C1 2020/21 Capital Expenditure Monthly Trend: actual v target
A2: Month | B2: ='SC12'!B2 -> 2019/20 | C2: ='SC12'!C3 -> Original Budget | D2: ='SC12'!D3 -> Adjusted Budget | E2: ='SC12'!E3 -> Monthly actual
A3: =LEFT('SC12'!A6,3) -> Jul | B3: ='SC12'!B6 -> 2299415.46 | C3: ='SC12'!C6 -> 12574429.32 | D3: ='SC12'!D6 -> 12574446 | E3: ='SC12'!E6 -> 220000
A4: =LEFT('SC12'!A7,3) -> Aug | B4: ='SC12'!B7 -> 3893918.24 | C4: ='SC12'!C7 -> 12574429.32 | D4: ='SC12'!D7 -> 12574446 | E4: ='SC12'!E7 -> 2804429.82
A5: =LEFT('SC12'!A8,3) -> Sep | B5: ='SC12'!B8 -> 3543531.59 | C5: ='SC12'!C8 -> 12574429.32 | D5: ='SC12'!D8 -> 17755846 | E5: ='SC12'!E8 -> 9093970.77
A6: =LEFT('SC12'!A9,3) -> Oct | B6: ='SC12'!B9 -> 9295615.02 | C6: ='SC12'!C9 -> 12574429.32 | D6: ='SC12'!D9 -> 17755846 | E6: ='SC12'!E9 -> 8819403.54
A7: =LEFT('SC12'!A10,3) -> Nov | B7: ='SC12'!B10 -> 5090889.02 | C7: ='SC12'!C10 -> 12574429.32 | D7: ='SC12'!D10 -> 17755846 | E7: ='SC12'!E10 -> 8563242.36
A8: =LEFT('SC12'!A11,3) -> Dec | B8: ='SC12'!B11 -> 11709689.16 | C8: ='SC12'!C11 -> 12574429.32 | D8: ='SC12'!D11 -> 17755846 | E8: ='SC12'!E11 -> 50647477.96
A9: =LEFT('SC12'!A12,3) -> Jan | B9: ='SC12'!B12 -> 4789337.78 | C9: ='SC12'!C12 -> 12574429.32 | D9: ='SC12'!D12 -> 17755846 | E9: ='SC12'!E12 -> 6521739.13
A10: =LEFT('SC12'!A13,3) -> Feb | B10: ='SC12'!B13 -> 14338429.68 | C10: ='SC12'!C13 -> 12574429.32 | D10: ='SC12'!D13 -> 30717116.8 | E10: ='SC12'!E13 -> 10758483.91
A11: =LEFT('SC12'!A14,3) -> Mar | B11: ='SC12'!B14 -> 14444081.82 | C11: ='SC12'!C14 -> 12574429.32 | D11: ='SC12'!D14 -> 30717116.8 | E11: ='SC12'!E14 -> 10362571.97
A12: =LEFT('SC12'!A15,3) -> Apr | B12: ='SC12'!B15 -> 1069145.39 | C12: ='SC12'!C15 -> 12574429.32 | D12: ='SC12'!D15 -> 30717116.8 | E12: ='SC12'!E15 -> 0
A13: =LEFT('SC12'!A16,3) -> May | B13: ='SC12'!B16 -> 1801994.47 | C13: ='SC12'!C16 -> 12574429.32 | D13: ='SC12'!D16 -> 30717116.8 | E13: ='SC12'!E16 -> 0
A14: =LEFT('SC12'!A17,3) -> Jun | B14: ='SC12'!B17 -> 691252.29 | C14: ='SC12'!C17 -> 12574429.48 | D14: ='SC12'!D17 -> 30716916.8 | E14: ='SC12'!E17 -> 0
A26: ='Template names'!B103 -> Chart C2 2020/21 Capital Expenditure: YTD actual v YTD target
A27: Month | B27: ='SC12'!F3 -> YearTD actual | C27: ='SC12'!G3 -> YearTD budget
A28: =LEFT('SC12'!A6,3) -> Jul | B28: ='SC12'!F6 -> 220000 | C28: ='SC12'!G6 -> 12574446
A29: =LEFT('SC12'!A7,3) -> Aug | B29: ='SC12'!F7 -> 3024429.82 | C29: ='SC12'!G7 -> 25148892
A30: =LEFT('SC12'!A8,3) -> Sep | B30: ='SC12'!F8 -> 12118400.59 | C30: ='SC12'!G8 -> 42904738
A31: =LEFT('SC12'!A9,3) -> Oct | B31: ='SC12'!F9 -> 20937804.13 | C31: ='SC12'!G9 -> 60660584
A32: =LEFT('SC12'!A10,3) -> Nov | B32: ='SC12'!F10 -> 29501046.49 | C32: ='SC12'!G10 -> 78416430
A33: =LEFT('SC12'!A11,3) -> Dec | B33: ='SC12'!F11 -> 80148524.45 | C33: ='SC12'!G11 -> 96172276
A34: =LEFT('SC12'!A12,3) -> Jan | B34: ='SC12'!F12 -> 86670263.58 | C34: ='SC12'!G12 -> 113928122
A35: =LEFT('SC12'!A13,3) -> Feb | B35: ='SC12'!F13 -> 97428747.49 | C35: ='SC12'!G13 -> 144645238.8
A36: =LEFT('SC12'!A14,3) -> Mar | B36: ='SC12'!F14 -> 107791319.5 | C36: ='SC12'!G14 -> 175362355.6
A37: =LEFT('SC12'!A15,3) -> Apr | B37: ='SC12'!F15 ->  | C37: ='SC12'!G15 -> 206079472.4
A38: =LEFT('SC12'!A16,3) -> May | B38: ='SC12'!F16 ->  | C38: ='SC12'!G16 -> 236796589.2
A39: =LEFT('SC12'!A17,3) -> Jun | B39: ='SC12'!F17 ->  | C39: ='SC12'!G17 -> 267513506
A51: ='Template names'!B104 -> Chart C3 Aged Consumer Debtors Analysis
B52: ='SC3'!C3 -> 0-30 Days | C52: ='SC3'!D3 -> 31-60 Days | D52: ='SC3'!E3 -> 61-90 Days | E52: ='SC3'!F3 -> 91-120 Days | F52: ='SC3'!G3 -> 121-150 Dys | G52: ='SC3'!H3 -> 151-180 Dys | H52: ='SC3'!I3 -> 181 Dys-1 Yr | I52: ='SC3'!J3 -> Over 1Yr
A53: =Head2 -> Budget Year 2020/21 | B53: ='SC3'!C14 -> 13009069 | C53: ='SC3'!D14 -> 9760067 | D53: ='SC3'!E14 -> 8116761 | E53: ='SC3'!F14 -> 7025441 | F53: ='SC3'!G14 -> 6681266 | G53: ='SC3'!H14 -> 7175643 | H53: ='SC3'!I14 -> 53353813 | I53: ='SC3'!J14 -> 322573324
A54: =Head1 -> 2019/20 | B54: ='SC3'!C15 -> 0 | C54: ='SC3'!D15 -> 0 | D54: ='SC3'!E15 -> 0 | E54: ='SC3'!F15 -> 0 | F54: ='SC3'!G15 -> 0 | G54: ='SC3'!H15 -> 0 | H54: ='SC3'!I15 -> 0 | I54: ='SC3'!J15 -> 0
A76: ='Template names'!B105 -> Chart C4 Consumer Debtors (total by Debtor Customer Category)
B77: =Head1 -> 2019/20 | C77: =Head2 -> Budget Year 2020/21
A78: ='SC3'!A17 -> Organs of State | B78: =C78*0.97 -> 87353899.02 | C78: ='SC3'!K17 -> 90055566
A79: ='SC3'!A18 -> Commercial | B79: =C79*0.97 -> 106637339.9 | C79: ='SC3'!K18 -> 109935402
A80: ='SC3'!A19 -> Households | B80: =C80*0.97 -> 217924426.3 | C80: ='SC3'!K19 -> 224664357
A81: ='SC3'!A20 -> Other | B81: =C81*0.97 -> 2948857.23 | C81: ='SC3'!K20 -> 3040059
A101: ='Template names'!B106 -> Chart C5 Aged Creditors Analysis
B102: ='SC4'!A6 -> Bulk Electricity | C102: ='SC4'!A7 -> Bulk Water | D102: ='SC4'!A8 -> PAYE deductions | E102: ='SC4'!A9 -> VAT (output less input) | F102: ='SC4'!A10 -> Pensions / Retirement deductions | G102: ='SC4'!A11 -> Loan repayments | H102: ='SC4'!A12 -> Trade Creditors | I102: ='SC4'!A13 -> Auditor General | J102: ='SC4'!A14 -> Other
A103: =A54 -> 2019/20 | B103: ='SC4'!L6 -> 0 | C103: ='SC4'!L7 -> 0 | D103: ='SC4'!L8 -> 0 | E103: ='SC4'!L9 -> 0 | F103: ='SC4'!L10 -> 0 | G103: ='SC4'!L11 -> 0 | H103: ='SC4'!L12 -> 0 | I103: ='SC4'!L13 -> 0 | J103: ='SC4'!L14 -> 0
A104: =A53 -> Budget Year 2020/21 | B104: ='SC4'!K6 -> 0 | C104: ='SC4'!K7 -> 0 | D104: ='SC4'!K8 -> 0 | E104: ='SC4'!K9 -> 0 | F104: ='SC4'!K10 -> 0 | G104: ='SC4'!K11 -> 0 | H104: ='SC4'!K12 -> 8036150 | I104: ='SC4'!K13 -> 0 | J104: ='SC4'!K14 -> 0
